Workbook

Sheet День 1 (hidden)
A1: № | B1: Продукт | C1: Ед.изм. | D1: Нормы расхода продуктов в день,кг
D2: Завтрак | L2: Обед | X2: Полдник | AB2: Количество детей | AD2: ИТОГО
B3: ДЕНЬ 1 | D3: Каша молочная пшенная | F3: чай с молоком с сахаром | H3: батон, сыр порционно | J3: фрукты БАНАН | L3: ПОМИДОРЫ св. порционно | N3: Щи из св.капусты с мясными фрикад | P3: Жаркое по- домашнему | T3: Компот из изюма и кураги | V3: Хлеб белый, сельский | X3: Сок/Нектар фруктовый (разливной) | Z3: Блины с молоком сгущенным
B4: Возрастная группа | D4: 7-11 | E4: 12-18 | F4: 7-18 | H4: 7-11 | I4: 12-18 | J4: 7-18 | L4: 7-11 | M4: 12-18 | N4: 7-11 | O4: 12-18 | P4: 7-11 | Q4: 12-18 | T4: 7-18 | V4: 7-11 | W4: 12-18 | X4: 7-18 | Z4: 7-18 | AB4: 7-11 | AC4: 12-18
B5: Выход,гр | D5: 150/4 | E5: 200/5 | F5: 200/15 | H5: 30/15 | I5: 50/15 | J5: 200 | L5: 60 | M5: 100 | N5: 200/11/10 | O5: 250/11/10 | P5: 50/200 | Q5: 50/250 | T5: 200 | V5: 40/40 | W5: 50/50 | X5: 200 | Z5: 90/15 | AD5: =AB5+AC5 -> 0
B7: Хлебобулочные изделия
A8: 1 | B8: батон | C8: кг | H8: 0.0300 | I8: 0.0500 | AB8: =(D8+F8+H8+J8+L8+N8+P8+T8+V8+X8+Z8)*AB$5 -> 0.0000 | AC8: =(Z8+X8+W8+T8+Q8+O8+M8+J8+I8+F8+E8)*$AC$5 -> 0.0000 | AD8: =AB8+AC8 -> 0.0000
A9: 2 | B9: хлеб пшеничный | C9: кг | V9: 0.0400 | W9: 0.0500 | AB9: =(D9+F9+H9+J9+L9+N9+P9+T9+V9+X9+Z9)*AB$5 -> 0.0000 | AC9: =(Z9+X9+W9+T9+Q9+O9+M9+J9+I9+F9+E9)*$AC$5 -> 0.0000 | AD9: =AB9+AC9 -> 0.0000
A10: 3 | B10: хлеб ржаной | C10: кг | V10: 0.0400 | W10: 0.0500 | AB10: 0.0000 | AC10: 0.0000 | AD10: 0.0000
A11: 4 | B11: сухари панировочные | C11: кг | AB11: 0.0000 | AC11: 0.0000 | AD11: 0.0000
A12: 5 | B12: лапша домашняя ПФ | C12: кг | AB12: 0.0000 | AC12: 0.0000 | AD12: 0.0000
B13: Мясо | AB13: 0.0000 | AC13: 0.0000 | AD13: 0.0000
A14: 6 | B14: говядина (котлетное мясо) | C14: кг | N14: 0.0130 | O14: 0.0130 | AB14: 0.0000 | AC14: 0.0000 | AD14: 0.0000
B15: или фарш говяжий | C15: кг | N15: 0.0125 | O15: 0.0125 | AB15: 0.0000 | AC15: 0.0000 | AD15: 0.0000
A16: 7 | B16: говядина лопатка б/к | C16: кг | P16: 0.0790 | Q16: 0.0790 | AB16: 0.0000 | AC16: 0.0000 | AD16: 0.0000
B17: или говядина потушная | C17: кг | AB17: 0.0000 | AC17: 0.0000 | AD17: 0.0000
A18: 8 | B18: сосиски куриные "Халяль" | C18: кг | AB18: 0.0000 | AC18: 0.0000 | AD18: 0.0000
A19: 9 | B19: куриная грудка | C19: кг | AB19: 0.0000 | AC19: 0.0000 | AD19: 0.0000
A20: 10 | B20: куры/цыплята потрош. | C20: кг | AB20: 0.0000 | AC20: 0.0000 | AD20: 0.0000
A21: 11 | B21: печень говяжья | C21: кг | AB21: 0.0000 | AC21: 0.0000 | AD21: 0.0000
B22: Рыба | AB22: 0.0000 | AC22: 0.0000 | AD22: 0.0000
A23: 12 | B23: фарш из минтая с/м | C23: кг | AB23: 0.0000 | AC23: 0.0000 | AD23: 0.0000
A24: 13 | B24: минтай б/г с/м | C24: кг | AB24: 0.0000 | AC24: 0.0000 | AD24: 0.0000
B25: Сыпучка | AB25: 0.0000 | AC25: 0.0000 | AD25: 0.0000
A26: 14 | B26: вермишель | C26: кг | AB26: 0.0000 | AC26: 0.0000 | AD26: 0.0000
A27: 15 | B27: геркулес | C27: кг | AB27: 0.0000 | AC27: 0.0000 | AD27: 0.0000
A28: 16 | B28: горох | C28: кг | AB28: 0.0000 | AC28: 0.0000 | AD28: 0.0000
A29: 17 | B29: гречневая крупа | C29: кг | AB29: 0.0000 | AC29: 0.0000 | AD29: 0.0000
A30: 18 | B30: кукурузная крупа | C30: кг | AB30: 0.0000 | AC30: 0.0000 | AD30: 0.0000
A31: 19 | B31: макаронные изделия | C31: кг | AB31: 0.0000 | AC31: 0.0000 | AD31: 0.0000
A32: 20 | B32: манная крупа | C32: кг | AB32: 0.0000 | AC32: 0.0000 | AD32: 0.0000
A33: 21 | B33: перловая крупа | C33: кг | AB33: 0.0000 | AC33: 0.0000 | AD33: 0.0000
A34: 22 | B34: полбяная крупа | C34: кг | AB34: 0.0000 | AC34: 0.0000 | AD34: 0.0000
A35: 23 | B35: пшеничная крупа | C35: кг | AB35: 0.0000 | AC35: 0.0000 | AD35: 0.0000
A36: 24 | B36: пшено | C36: кг | D36: 0.0300 | E36: 0.0400 | AB36: 0.0000 | AC36: 0.0000 | AD36: 0.0000
A37: 25 | B37: рис | C37: кг | AB37: 0.0000 | AC37: 0.0000 | AD37: 0.0000
A38: 26 | B38: мука пшеничная в/с | C38: кг | AB38: 0.0000 | AC38: 0.0000 | AD38: 0.0000
A39: 27 | B39: сахарный песок | C39: кг | D39: 0.0040 | E39: 0.0060 | F39: 0.0150 | T39: 0.0200 | AB39: 0.0000 | AC39: 0.0000 | AD39: 0.0000
A40: 28 | B40: соль | C40: кг | D40: 0.0003 | E40: 0.0010 | N40: 0.0016 | O40: 0.0021 | P40: 0.0030 | Q40: 0.0030 | AB40: 0.0000 | AC40: 0.0000 | AD40: 0.0000
A41: 29 | B41: ячневая крупа | C41: кг | AB41: 0.0000 | AC41: 0.0000 | AD41: 0.0000
B42: Масло / сыр | AB42: 0.0000 | AC42: 0.0000 | AD42: 0.0000
A43: 30 | B43: масло растительное | C43: кг | N43: 0.0040 | O43: 0.0050 | P43: 0.0100 | Q43: 0.0150 | Z43: 0.0010 | AB43: 0.0000 | AC43: 0.0000 | AD43: 0.0000
A44: 31 | B44: масло сливочное | C44: кг | D44: 0.0040 | E44: 0.0050 | AB44: 0.0000 | AC44: 0.0000 | AD44: 0.0000
A45: 32 | B45: сыр голландский | C45: кг | H45: 0.0153 | I45: 0.0153 | AB45: 0.0000 | AC45: 0.0000 | AD45: 0.0000
B46: Молоко и молочная продукция | AB46: 0.0000 | AC46: 0.0000 | AD46: 0.0000
A47: 33 | B47: молоко 2,5% | C47: л | D47: 0.0750 | E47: 0.1000 | F47: 0.0510 | AB47: 0.0000 | AC47: 0.0000 | AD47: 0.0000
A48: 34 | B48: катык 2,5% | C48: кг | AB48: 0.0000 | AC48: 0.0000 | AD48: 0.0000
A49: 35 | B49: кефир 2,5% | C49: кг | AB49: 0.0000 | AC49: 0.0000 | AD49: 0.0000
A50: 36 | B50: ряженка 2,5% | C50: кг | AB50: 0.0000 | AC50: 0.0000 | AD50: 0.0000
A51: 37 | B51: напиток ацидофильный с подсластителем 2,5% | C51: кг | AB51: 0.0000 | AC51: 0.0000 | AD51: 0.0000
A52: 38 | B52: творог | C52: кг | AB52: 0.0000 | AC52: 0.0000 | AD52: 0.0000
A53: 39 | B53: сметана | C53: кг | N53: 0.0100 | O53: 0.0100 | AB53: 0.0000 | AC53: 0.0000 | AD53: 0.0000
B54: Консервы | C54: кг | AB54: 0.0000 | AC54: 0.0000 | AD54: 0.0000
A55: 40 | B55: кукуруза к/с | C55: кг | AB55: 0.0000 | AC55: 0.0000 | AD55: 0.0000
A56: 41 | B56: зеленый горошек к/с | C56: кг | AB56: 0.0000 | AC56: 0.0000 | AD56: 0.0000
A57: 42 | B57: молоко сгущенное | C57: кг | Z57: 0.0150 | AB57: 0.0000 | AC57: 0.0000 | AD57: 0.0000
A58: 43 | B58: огурцы соленые | C58: кг | AB58: 0.0000 | AC58: 0.0000 | AD58: 0.0000
A59: 44 | B59: повидло | C59: кг | AB59: 0.0000 | AC59: 0.0000 | AD59: 0.0000
A60: 45 | B60: томатная паста | C60: кг | N60: 0.0012 | O60: 0.0015 | P60: 0.0040 | Q60: 0.0050 | AB60: 0.0000 | AC60: 0.0000 | AD60: 0.0000
B61: Чай/какао/кофейный напиток | AB61: 0.0000 | AC61: 0.0000 | AD61: 0.0000
A62: 46 | B62: чай весовой | C62: кг | F62: 0.0010 | AB62: 0.0000 | AC62: 0.0000 | AD62: 0.0000
A63: 47 | B63: чай зеленый | C63: кг | AB63: 0.0000 | AC63: 0.0000 | AD63: 0.0000
A64: 48 | B64: какао | C64: кг | AB64: 0.0000 | AC64: 0.0000 | AD64: 0.0000
A65: 49 | B65: кисель | C65: кг | AB65: 0.0000 | AC65: 0.0000 | AD65: 0.0000
A66: 50 | B66: кофейный напиток | C66: кг | AB66: 0.0000 | AC66: 0.0000 | AD66: 0.0000
B67: Фрукты | AB67: 0.0000 | AC67: 0.0000 | AD67: 0.0000
A68: 51 | B68: апельсин | C68: кг | AB68: 0.0000 | AC68: 0.0000 | AD68: 0.0000
A69: 52 | B69: банан | C69: кг | J69: 0.2000 | AB69: 0.0000 | AC69: 0.0000 | AD69: 0.0000
A70: 53 | B70: груши | C70: кг | AB70: 0.0000 | AC70: 0.0000 | AD70: 0.0000
A71: 54 | B71: лимон | C71: кг | AB71: 0.0000 | AC71: 0.0000 | AD71: 0.0000
A72: 55 | B72: яблоки свежие | C72: кг | AB72: 0.0000 | AC72: 0.0000 | AD72: 0.0000
A73: 56 | B73: яблоки зеленые | AB73: =(D73+F73+H73+J73+L73+N73+P73+T73+V73+X73+Z73)*AB$5 -> 0.0000 | AC73: =(Z73+X73+W73+T73+Q73+O73+M73+J73+I73+F73+E73)*$AC$5 -> 0.0000 | AD73: =AB73+AC73 -> 0.0000
B74: Сухофрукты, ягоды св/мор | AB74: 0.0000 | AC74: 0.0000 | AD74: 0.0000
A75: 57 | B75: ассорти для компота (сухофрукты) | C75: кг | AB75: 0.0000 | AC75: 0.0000 | AD75: 0.0000
A76: 58 | B76: ягоды с/м(клюква,смородина черная) | C76: кг | AB76: 0.0000 | AC76: 0.0000 | AD76: 0.0000
A77: 59 | B77: изюм | C77: кг | T77: 0.0100 | AB77: 0.0000 | AC77: 0.0000 | AD77: 0.0000
A78: 60 | B78: курага | C78: кг | T78: 0.0100 | AB78: 0.0000 | AC78: 0.0000 | AD78: 0.0000
A79: 61 | B79: урюк | C79: кг | AB79: 0.0000 | AC79: 0.0000 | AD79: 0.0000
A80: 62 | B80: шиповник | C80: кг | AB80: 0.0000 | AC80: 0.0000 | AD80: 0.0000
A81: 63 | B81: компотная смесь с/м | C81: кг | AB81: 0.0000 | AC81: 0.0000 | AD81: 0.0000
A82: 64 | B82: чернослив | C82: кг | AB82: 0.0000 | AC82: 0.0000 | AD82: 0.0000
B83: Овощи / зелень | AB83: 0.0000 | AC83: 0.0000 | AD83: 0.0000
A84: 65 | B84: зеленый горошек с/м | C84: кг | AB84: 0.0000 | AC84: 0.0000 | AD84: 0.0000
A85: 66 | B85: кабачки с/м | C85: кг | AB85: 0.0000 | AC85: 0.0000 | AD85: 0.0000
A86: 67 | B86: капуста свежая | C86: кг | N86: 0.0500 | O86: 0.0625 | AB86: 0.0000 | AC86: 0.0000 | AD86: 0.0000
A87: 68 | B87: капуста цветная с/м | C87: кг | AB87: 0.0000 | AC87: 0.0000 | AD87: 0.0000
A88: 69 | B88: картофель | C88: кг | N88: 0.0320 | O88: 0.0400 | P88: 0.2130 | Q88: 0.2660 | AB88: 0.0000 | AC88: 0.0000 | AD88: 0.0000
A89: 70 | B89: лук репчатый | C89: кг | N89: 0.0121 | O89: 0.0143 | P89: 0.0192 | Q89: 0.0240 | AB89: 0.0000 | AC89: 0.0000 | AD89: 0.0000
A90: 71 | B90: морковь | C90: кг | N90: 0.0112 | O90: 0.0140 | AB90: 0.0000 | AC90: 0.0000 | AD90: 0.0000
A91: 72 | B91: огурцы св. | C91: кг | AB91: 0.0000 | AC91: 0.0000 | AD91: 0.0000
A92: 73 | B92: свекла | C92: кг | AB92: 0.0000 | AC92: 0.0000 | AD92: 0.0000
A93: 74 | B93: томаты св. | C93: кг | L93: 0.0612 | M93: 0.1020 | AB93: 0.0000 | AC93: 0.0000 | AD93: 0.0000
A94: 75 | B94: фасоль к/с | C94: кг | AB94: 0.0000 | AC94: 0.0000 | AD94: 0.0000
A95: 76 | B95: чеснок | C95: кг | AB95: 0.0000 | AC95: 0.0000 | AD95: 0.0000
B96: Кондитерские изделия, мучные изделия п/ф | AB96: 0.0000 | AC96: 0.0000 | AD96: 0.0000
A97: 77 | B97: батончик злаковый | C97: шт | AB97: 0.0000 | AC97: 0.0000 | AD97: 0.0000
A98: 78 | B98: блины п/ф | C98: кг | Z98: 0.0900 | AB98: 0.0000 | AC98: 0.0000 | AD98: 0.0000
A99: 79 | B99: печенье | C99: кг | AB99: 0.0000 | AC99: 0.0000 | AD99: 0.0000
A100: 80 | B100: вафли | C100: кг | AB100: 0.0000 | AC100: 0.0000 | AD100: 0.0000
B101: Сок | AB101: 0.0000 | AC101: 0.0000 | AD101: 0.0000
A102: 81 | B102: сок в ассортименте (разливной) | C102: л | X102: 0.2000 | AB102: 0.0000 | AC102: 0.0000 | AD102: 0.0000
A103: 82 | B103: сок в индувид.упаковке (0,2л) | C103: л | AB103: 0.0000 | AC103: 0.0000 | AD103: 0.0000
B104: Специи | AB104: 0.0000 | AC104: 0.0000 | AD104: 0.0000
A105: 83 | B105: дрожжи | C105: кг | AB105: 0.0000 | AC105: 0.0000 | AD105: 0.0000
A106: 84 | B106: кислота лимонная | C106: кг | AB106: 0.0000 | AC106: 0.0000 | AD106: 0.0000
A107: 85 | B107: клетчатка | C107: кг | AB107: 0.0000 | AC107: 0.0000 | AD107: 0.0000
B108: Яйцо | AB108: 0.0000 | AC108: 0.0000 | AD108: 0.0000
A109: 86 | B109: яйцо куриное | C109: кг | N109: 0.0010 | O109: 0.0010 | AB109: 0.0000 | AC109: 0.0000 | AD109: 0.0000
B110: яйцо куриное В ШТУКАХ!!! | Z110: 0.0480 | AB110: =AB109/Z110 -> 0 | AC110: =AC109/Z110 -> 0 | AD110: 0

Sheet День 1
A1: № | B1: Продукт | C1: Ед.изм. | D1: Нормы расхода продуктов в день,кг
D2: Завтрак | L2: Обед | AB2: Количество детей | AD2: ИТОГО
B3: ДЕНЬ 1 | D3: каша молочная геркулесовая с маслом | F3: какао с молоком | H3: батон, масло сливочное | J3: фрукты ЯБЛОКО | L3: Салат из кукурузы к/с | N3: Щи из св капус картоф с мясн фрикад, сметан | P3: гуляш из отвар кур грудок | R3: Макароны отварные | T3: Напиток из шиповника | V3: Хлеб белый, сельский
B4: Возрастная группа | D4: 7-11 | E4: 12-18 | F4: 7-18 | H4: 7-11 | I4: 12-18 | J4: 7-18 | L4: 7-11 | M4: 12-18 | N4: 7-11 | O4: 12-18 | P4: 7-11 | Q4: 12-18 | R4: 7-11 | S4: 12-18 | T4: 7-18 | V4: 7-11 | W4: 12-18 | AB4: 7-11 | AC4: 12-18
B5: Выход,гр | D5: 150/4 | E5: 200/5 | F5: 200 | H5: 30/10 | I5: 50/10 | J5: 100 | L5: 60 | M5: 100 | N5: 250/15/7 | O5: 250/15/7 | P5: 50/50 | Q5: 50/50 | R5: 150 | S5: 180 | T5: 200 | V5: 40/40 | W5: 50/50 | AB5: 0 | AC5: 13 | AD5: =AB5+AC5 -> 13
B7: Хлебобулочные изделия
A8: 1 | B8: батон | C8: кг | H8: 0.0300 | I8: 0.0500 | AB8: =(D8+F8+H8+J8+L8+N8+P8+R8+T8+V8+X8+Z8)*AB$5 -> 0.0000 | AC8: =(E8+F8+I8+J8+M8+O8+Q8+S8+T8+W8+Y8+Z8)*$AC$5 -> 0.6500 | AD8: =AB8+AC8 -> 0.6500
A9: 2 | B9: хлеб пшеничный | C9: кг | V9: 0.0400 | W9: 0.0500 | AB9: =(D9+F9+H9+J9+L9+N9+P9+R9+T9+V9+X9+Z9)*AB$5 -> 0.0000 | AC9: =(E9+F9+I9+J9+M9+O9+Q9+S9+T9+W9+Y9+Z9)*$AC$5 -> 0.6500 | AD9: =AB9+AC9 -> 0.6500
A10: 3 | B10: хлеб ржаной | C10: кг | V10: 0.0400 | W10: 0.0500 | AB10: 0.0000 | AC10: 0.6500 | AD10: 0.6500
A11: 4 | B11: сухари панировочные | C11: кг | AB11: 0.0000 | AC11: 0.0000 | AD11: 0.0000
A12: 5 | B12: лапша домашняя ПФ | C12: кг | AB12: 0.0000 | AC12: 0.0000 | AD12: 0.0000
B13: Мясо | AB13: 0.0000 | AC13: 0.0000 | AD13: 0.0000
A14: 6 | B14: говядина (котлетное мясо) | C14: кг | AB14: 0.0000 | AC14: 0.0000 | AD14: 0.0000
B15: или фарш говяжий | C15: кг | N15: 0.0179 | O15: 0.0179 | AB15: 0.0000 | AC15: 0.2321 | AD15: 0.2321
A16: 7 | B16: говядина лопатка б/к | C16: кг | AB16: 0.0000 | AC16: 0.0000 | AD16: 0.0000
B17: или говядина потушная | C17: кг | AB17: 0.0000 | AC17: 0.0000 | AD17: 0.0000
A18: 8 | B18: сосиски куриные "Халяль" | C18: кг | AB18: 0.0000 | AC18: 0.0000 | AD18: 0.0000
A19: 9 | B19: куриная грудка | C19: кг | P19: 0.0812 | Q19: 0.0812 | AB19: 0.0000 | AC19: 1.0556 | AD19: 1.0556
A20: 10 | B20: куры/цыплята потрош. | C20: кг | AB20: 0.0000 | AC20: 0.0000 | AD20: 0.0000
A21: 11 | B21: печень говяжья | C21: кг | AB21: 0.0000 | AC21: 0.0000 | AD21: 0.0000
B22: Рыба | AB22: 0.0000 | AC22: 0.0000 | AD22: 0.0000
A23: 12 | B23: фарш минтая с/м | C23: кг | AB23: 0.0000 | AC23: 0.0000 | AD23: 0.0000
A24: 13 | B24: минтай б/г с/м | C24: кг | AB24: 0.0000 | AC24: 0.0000 | AD24: 0.0000
B25: Сыпучка | AB25: 0.0000 | AC25: 0.0000 | AD25: 0.0000
A26: 14 | B26: вермишель | C26: кг | AB26: 0.0000 | AC26: 0.0000 | AD26: 0.0000
A27: 15 | B27: геркулес | C27: кг | D27: 0.0280 | E27: 0.0370 | AB27: 0.0000 | AC27: 0.4810 | AD27: 0.4810
A28: 16 | B28: горох | C28: кг | AB28: 0.0000 | AC28: 0.0000 | AD28: 0.0000
A29: 17 | B29: гречневая крупа | C29: кг | AB29: 0.0000 | AC29: 0.0000 | AD29: 0.0000
A30: 18 | B30: кукурузная крупа | C30: кг | AB30: 0.0000 | AC30: 0.0000 | AD30: 0.0000
A31: 19 | B31: макаронные изделия | C31: кг | R31: 0.0610 | S31: 0.0732 | AB31: 0.0000 | AC31: 0.9516 | AD31: 0.9516
A32: 20 | B32: манная крупа | C32: кг | AB32: 0.0000 | AC32: 0.0000 | AD32: 0.0000
A33: 21 | B33: перловая крупа | C33: кг | AB33: 0.0000 | AC33: 0.0000 | AD33: 0.0000
A34: 22 | B34: полбяная крупа | C34: кг | AB34: 0.0000 | AC34: 0.0000 | AD34: 0.0000
A35: 23 | B35: пшеничная крупа | C35: кг | AB35: 0.0000 | AC35: 0.0000 | AD35: 0.0000
A36: 24 | B36: пшено | C36: кг | AB36: 0.0000 | AC36: 0.0000 | AD36: 0.0000
A37: 25 | B37: рис | C37: кг | AB37: 0.0000 | AC37: 0.0000 | AD37: 0.0000
A38: 26 | B38: мука пшеничная в/с | C38: кг | P38: 0.0025 | Q38: 0.0025 | AB38: 0.0000 | AC38: 0.0325 | AD38: 0.0325
A39: 27 | B39: сахарный песок | C39: кг | D39: 0.0005 | E39: 0.0008 | F39: 0.0100 | L39: 0.0012 | M39: 0.0020 | T39: 0.0100 | AB39: 0.0000 | AC39: 0.2964 | AD39: 0.2964
A40: 28 | B40: соль | C40: кг | D40: 0.0003 | E40: 0.0005 | N40: =0.0008+0.00015 -> 0.0010 | O40: =0.0008+0.00015 -> 0.0010 | P40: 0.0003 | Q40: 0.0003 | R40: 0.0005 | S40: 0.0007 | AB40: 0.0000 | AC40: 0.0319 | AD40: 0.0319
A41: 29 | B41: ячневая крупа | C41: кг | AB41: 0.0000 | AC41: 0.0000 | AD41: 0.0000
B42: Масло / сыр | AB42: 0.0000 | AC42: 0.0000 | AD42: 0.0000
A43: 30 | B43: масло растительное | C43: кг | L43: 0.0035 | M43: 0.0050 | N43: 0.0050 | O43: 0.0050 | P43: 0.0030 | Q43: 0.0030 | AB43: 0.0000 | AC43: 0.1690 | AD43: 0.1690
A44: 31 | B44: масло сливочное | C44: кг | D44: 0.0040 | E44: 0.0050 | H44: 0.0100 | I44: 0.0100 | R44: 0.0020 | S44: 0.0030 | AB44: 0.0000 | AC44: 0.2340 | AD44: 0.2340
A45: 32 | B45: сыр голландский | C45: кг | AB45: 0.0000 | AC45: 0.0000 | AD45: 0.0000
B46: Молоко и молочная продукция | AB46: 0.0000 | AC46: 0.0000 | AD46: 0.0000
A47: 33 | B47: молоко 2,5% | C47: кг | D47: 0.0750 | E47: 0.1000 | F47: 0.1000 | AB47: 0.0000 | AC47: 2.6000 | AD47: 2.6000
A48: 34 | B48: катык 2,5% | C48: кг | AB48: 0.0000 | AC48: 0.0000 | AD48: 0.0000
A49: 35 | B49: кефир 2,5% | C49: кг | AB49: 0.0000 | AC49: 0.0000 | AD49: 0.0000
A50: 36 | B50: ряженка | C50: кг | AB50: 0.0000 | AC50: 0.0000 | AD50: 0.0000
A51: 37 | B51: йогурт разливной | C51: кг | AB51: 0.0000 | AC51: 0.0000 | AD51: 0.0000
A52: 38 | B52: творог | C52: кг | AB52: 0.0000 | AC52: 0.0000 | AD52: 0.0000
A53: 39 | B53: сметана | C53: кг | N53: 0.0070 | O53: 0.0070 | AB53: 0.0000 | AC53: 0.0910 | AD53: 0.0910
B54: Консервы | C54: кг | AB54: 0.0000 | AC54: 0.0000 | AD54: 0.0000
A55: 40 | B55: кукуруза к/с | C55: кг | L55: 0.0932 | M55: 0.1553 | AB55: 0.0000 | AC55: 2.0189 | AD55: 2.0189
A56: 41 | B56: зеленый горошек к/с | C56: кг | AB56: 0.0000 | AC56: 0.0000 | AD56: 0.0000
A57: 42 | B57: молоко сгущенное | C57: кг | AB57: 0.0000 | AC57: 0.0000 | AD57: 0.0000
A58: 43 | B58: огурцы соленые | C58: кг | AB58: 0.0000 | AC58: 0.0000 | AD58: 0.0000
A59: 44 | B59: рыбная консерва | C59: кг | AB59: 0.0000 | AC59: 0.0000 | AD59: 0.0000
A60: 45 | B60: томатная паста | C60: кг | N60: 0.0010 | O60: 0.0010 | P60: 0.0030 | Q60: 0.0030 | AB60: 0.0000 | AC60: 0.0520 | AD60: 0.0520
B61: Чай/какао/кофейный напиток | AB61: 0.0000 | AC61: 0.0000 | AD61: 0.0000
A62: 46 | B62: чай весовой | C62: кг | AB62: 0.0000 | AC62: 0.0000 | AD62: 0.0000
A63: 47 | B63: чай зеленый | C63: кг | AB63: 0.0000 | AC63: 0.0000 | AD63: 0.0000
A64: 48 | B64: какао | C64: кг | F64: 0,004 | AB64: 0.0000 | AC64: 0.0520 | AD64: 0.0520
A65: 49 | B65: кисель | C65: кг | AB65: 0.0000 | AC65: 0.0000 | AD65: 0.0000
A66: 50 | B66: кофейный напиток | C66: кг | AB66: 0.0000 | AC66: 0.0000 | AD66: 0.0000
B67: Фрукты | AB67: 0.0000 | AC67: 0.0000 | AD67: 0.0000
A68: 51 | B68: апельсин | C68: кг | AB68: 0.0000 | AC68: 0.0000 | AD68: 0.0000
A69: 52 | B69: банан | C69: кг | AB69: 0.0000 | AC69: 0.0000 | AD69: 0.0000
A70: 53 | B70: груши | C70: кг | AB70: 0.0000 | AC70: 0.0000 | AD70: 0.0000
A71: 54 | B71: лимон | C71: кг | AB71: 0.0000 | AC71: 0.0000 | AD71: 0.0000
A72: 55 | B72: яблоки свежие | C72: кг | J72: 0.1000 | AB72: 0.0000 | AC72: 1.3000 | AD72: 1.3000
A73: 56 | B73: яблоки зеленые | C73: кг | AB73: =(D73+F73+H73+J73+L73+N73+P73+R73+T73+V73+X73+Z73)*AB$5 -> 0.0000 | AC73: =(E73+F73+I73+J73+M73+O73+Q73+S73+T73+W73+Y73+Z73)*$AC$5 -> 0.0000 | AD73: =AB73+AC73 -> 0.0000
B74: Сухофрукты, ягоды св/мор | AB74: 0.0000 | AC74: 0.0000 | AD74: 0.0000
A75: 57 | B75: ассорти для компота (сухофрукты) | C75: кг | AB75: 0.0000 | AC75: 0.0000 | AD75: 0.0000
A76: 58 | B76: ягоды с/с (клюква,смородина черная) | C76: кг | AB76: 0.0000 | AC76: 0.0000 | AD76: 0.0000
A77: 59 | B77: изюм | C77: кг | AB77: 0.0000 | AC77: 0.0000 | AD77: 0.0000
A78: 60 | B78: курага | C78: кг | AB78: 0.0000 | AC78: 0.0000 | AD78: 0.0000
A79: 61 | B79: урюк | C79: кг | AB79: 0.0000 | AC79: 0.0000 | AD79: 0.0000
A80: 62 | B80: шиповник | C80: кг | T80: 0.0153 | AB80: 0.0000 | AC80: 0.1989 | AD80: 0.1989
A81: 63 | B81: компотная смесь с/м | C81: кг | AB81: 0.0000 | AC81: 0.0000 | AD81: 0.0000
A82: 64 | B82: чернослив | C82: кг | AB82: 0.0000 | AC82: 0.0000 | AD82: 0.0000
B83: Овощи / зелень | AB83: 0.0000 | AC83: 0.0000 | AD83: 0.0000
A84: 65 | B84: зеленый горошек с/м | C84: кг | AB84: 0.0000 | AC84: 0.0000 | AD84: 0.0000
A85: 66 | B85: кабачки с/м | C85: кг | AB85: 0.0000 | AC85: 0.0000 | AD85: 0.0000
A86: 67 | B86: капуста свежая | C86: кг | N86: 0.0625 | O86: 0.0625 | AB86: 0.0000 | AC86: 0.8125 | AD86: 0.8125
A87: 68 | B87: капуста морская сушеная | C87: кг | AB87: 0.0000 | AC87: 0.0000 | AD87: 0.0000
A88: 69 | B88: картофель | C88: кг | N88: 0.0399 | O88: 0.0399 | AB88: 0.0000 | AC88: 0.5187 | AD88: 0.5187
A89: 70 | B89: лук репчатый | C89: кг | N89: 0.0168 | O89: 0.0168 | P89: 0.0120 | Q89: 0.0120 | AB89: 0.0000 | AC89: 0.3744 | AD89: 0.3744
A90: 71 | B90: морковь | C90: кг | N90: 0.0156 | O90: 0.0156 | P90: 0.0188 | Q90: 0.0188 | AB90: 0.0000 | AC90: 0.4469 | AD90: 0.4469
A91: 72 | B91: огурцы св. | C91: кг | AB91: 0.0000 | AC91: 0.0000 | AD91: 0.0000
A92: 73 | B92: свекла | C92: кг | AB92: 0.0000 | AC92: 0.0000 | AD92: 0.0000
A93: 74 | B93: томаты св. | C93: кг | AB93: 0.0000 | AC93: 0.0000 | AD93: 0.0000
A94: 75 | B94: фасоль к/с | C94: кг | AB94: 0.0000 | AC94: 0.0000 | AD94: 0.0000
A95: 76 | B95: чеснок | C95: кг | AB95: 0.0000 | AC95: 0.0000 | AD95: 0.0000
B96: Кондитерские изделия, мучные п/ф | AB96: 0.0000 | AC96: 0.0000 | AD96: 0.0000
A97: 77 | B97: батончик злаковый | C97: шт | AB97: 0.0000 | AC97: 0.0000 | AD97: 0.0000
A98: 78 | B98: блины п/ф | C98: кг | AB98: 0.0000 | AC98: 0.0000 | AD98: 0.0000
A99: 79 | B99: печенье | C99: кг | AB99: 0.0000 | AC99: 0.0000 | AD99: 0.0000
A100: 80 | B100: вафли | C100: кг | AB100: 0.0000 | AC100: 0.0000 | AD100: 0.0000
B101: Сок | AB101: 0.0000 | AC101: 0.0000 | AD101: 0.0000
A102: 81 | B102: сок в ассортименте разливной | C102: л | AB102: 0.0000 | AC102: 0.0000 | AD102: 0.0000
A103: 82 | B103: сок в индувид.упаковке (0,2л) | C103: л | AB103: 0.0000 | AC103: 0.0000 | AD103: 0.0000
B104: Специи | AB104: 0.0000 | AC104: 0.0000 | AD104: 0.0000
A105: 83 | B105: дрожжи | C105: кг | AB105: 0.0000 | AC105: 0.0000 | AD105: 0.0000
A106: 84 | B106: кислота лимонная | C106: кг | AB106: 0.0000 | AC106: 0.0000 | AD106: 0.0000
A107: 85 | B107: клетчатка | C107: кг | AB107: 0.0000 | AC107: 0.0000 | AD107: 0.0000
B108: Яйцо | AB108: 0.0000 | AC108: 0.0000 | AD108: 0.0000
A109: 86 | B109: яйцо куриное | C109: кг | N109: 0.0014 | O109: 0.0014 | AB109: 0.0000 | AC109: 0.0187 | AD109: 0.0187
Z110: 0,048 | AB110: =AB109/Z110 -> 0 | AC110: =AC109/Z110 -> 0 | AD110: 0

Sheet День 2
A1: № | B1: Продукт | C1: Ед.изм. | D1: Нормы расхода продуктов в день,кг
D2: Завтрак | L2: Обед | AB2: Количество детей | AD2: ИТОГО
B3: ДЕНЬ 2 | D3: каша молочная пшеничная с маслом | F3: Чай с сахаром | H3: батон, сыр порц. | J3: фрукты АПЕЛЬСИН | L3: винегрет с сол огурцами | N3: Рассольник Ленингр с фрикад из птицы со смет | P3: Тефтели из говядины в соусе томатном | R3: Картофельное пюре | T3: Компот из изюма | V3: Хлеб белый, сельский
B4: Возрастная группа | D4: 7-11 | E4: 12-18 | F4: 7-18 | H4: 7-11 | I4: 12-18 | J4: 7-18 | L4: 7-11 | M4: 12-18 | N4: 7-11 | O4: 12-18 | P4: 7-11 | Q4: 12-18 | R4: 7-11 | S4: 12-18 | T4: 7-18 | V4: 7-11 | W4: 12-18 | AB4: 7-11 | AC4: 12-18
B5: Выход,гр | D5: 150/4 | E5: 200/5 | F5: 190/10 | H5: 30/15 | I5: 50/15 | J5: 100 | L5: 60 | M5: 100 | N5: 200/11/10 | O5: 250/11/10 | P5: 80/50 | Q5: 80/50 | R5: 150 | S5: 180 | T5: 200 | V5: 40/40 | W5: 50/50 | AB5: 0 | AC5: 13 | AD5: =AB5+AC5 -> 13
B7: Хлебобулочные изделия
A8: 1 | B8: батон | C8: кг | H8: 0.0300 | I8: 0.0500 | AB8: =(D8+F8+H8+J8+L8+N8+P8+R8+T8+V8+X8+Z8)*$AB$5 -> 0.0000 | AC8: =(E8+F8+I8+J8+M8+O8+Q8+S8+T8+W8+X8+Z8)*$AC$5 -> 0.6500 | AD8: =AB8+AC8 -> 0.6500
A9: 2 | B9: хлеб пшеничный | C9: кг | P9: 0.0100 | Q9: 0.0100 | V9: 0.0400 | W9: 0.0500 | AB9: =(D9+F9+H9+J9+L9+N9+P9+R9+T9+V9+X9+Z9)*$AB$5 -> 0.0000 | AC9: =(E9+F9+I9+J9+M9+O9+Q9+S9+T9+W9+X9+Z9)*$AC$5 -> 0.7800 | AD9: =AB9+AC9 -> 0.7800
A10: 3 | B10: хлеб ржаной | C10: кг | V10: 0.0400 | W10: 0.0500 | AB10: 0.0000 | AC10: 0.6500 | AD10: 0.6500
A11: 4 | B11: сухари панировочные | C11: кг | AB11: 0.0000 | AC11: 0.0000 | AD11: 0.0000
A12: 5 | B12: лапша домашняя ПФ | C12: кг | AB12: 0.0000 | AC12: 0.0000 | AD12: 0.0000
B13: Мясо | AB13: 0.0000 | AC13: 0.0000 | AD13: 0.0000
A14: 6 | B14: говядина (котлетное мясо) | C14: кг | AB14: 0.0000 | AC14: 0.0000 | AD14: 0.0000
B15: или фарш говяжий | C15: кг | P15: 0.0536 | Q15: 0.0536 | AB15: 0.0000 | AC15: 0.6962 | AD15: 0.6962
A16: 7 | B16: говядина лопатка б/к | C16: кг | AB16: 0.0000 | AC16: 0.0000 | AD16: 0.0000
B17: или говядина потушная | C17: кг | AB17: 0.0000 | AC17: 0.0000 | AD17: 0.0000
A18: 8 | B18: сосиски куриные "Халяль" | C18: кг | AB18: 0.0000 | AC18: 0.0000 | AD18: 0.0000
A19: 9 | B19: куриная грудка | C19: кг | N19: 0.0147 | O19: 0.0147 | AB19: 0.0000 | AC19: 0.1911 | AD19: 0.1911
A20: 10 | B20: куры/цыплята потрош. | C20: кг | AB20: 0.0000 | AC20: 0.0000 | AD20: 0.0000
A21: 11 | B21: печень говяжья | C21: кг | AB21: 0.0000 | AC21: 0.0000 | AD21: 0.0000
B22: Рыба | AB22: 0.0000 | AC22: 0.0000 | AD22: 0.0000
A23: 12 | B23: фарш минтая с/м | C23: кг | AB23: 0.0000 | AC23: 0.0000 | AD23: 0.0000
A24: 13 | B24: минтай б/г с/м | C24: кг | AB24: 0.0000 | AC24: 0.0000 | AD24: 0.0000
B25: Сыпучка | AB25: 0.0000 | AC25: 0.0000 | AD25: 0.0000
A26: 14 | B26: вермишель | C26: кг | AB26: 0.0000 | AC26: 0.0000 | AD26: 0.0000
A27: 15 | B27: геркулес | C27: кг | AB27: 0.0000 | AC27: 0.0000 | AD27: 0.0000
A28: 16 | B28: горох | C28: кг | AB28: 0.0000 | AC28: 0.0000 | AD28: 0.0000
A29: 17 | B29: гречневая крупа | C29: кг | AB29: 0.0000 | AC29: 0.0000 | AD29: 0.0000
A30: 18 | B30: кукурузная крупа | C30: кг | AB30: 0.0000 | AC30: 0.0000 | AD30: 0.0000
A31: 19 | B31: макаронные изделия | C31: кг | AB31: 0.0000 | AC31: 0.0000 | AD31: 0.0000
A32: 20 | B32: манная крупа | C32: кг | AB32: 0.0000 | AC32: 0.0000 | AD32: 0.0000
A33: 21 | B33: перловая крупа | C33: кг | N33: 0.0040 | O33: 0.0050 | AB33: 0.0000 | AC33: 0.0650 | AD33: 0.0650
A34: 22 | B34: полбяная крупа | C34: кг | AB34: 0.0000 | AC34: 0.0000 | AD34: 0.0000
A35: 23 | B35: пшеничная крупа | C35: кг | D35: 0.0300 | E35: 0.0400 | AB35: 0.0000 | AC35: 0.5200 | AD35: 0.5200
A36: 24 | B36: пшено | C36: кг | AB36: 0.0000 | AC36: 0.0000 | AD36: 0.0000
A37: 25 | B37: рис | C37: кг | AB37: 0.0000 | AC37: 0.0000 | AD37: 0.0000
A38: 26 | B38: мука пшеничная в/с | C38: кг | P38: 0.0073 | Q38: 0.0073 | AB38: 0.0000 | AC38: 0.0943 | AD38: 0.0943
A39: 27 | B39: сахарный песок | C39: кг | D39: 0.0005 | E39: 0.0008 | F39: 0.0150 | P39: 0.0005 | Q39: 0.0005 | T39: 0.0100 | AB39: 0.0000 | AC39: 0.3419 | AD39: 0.3419
A40: 28 | B40: соль | C40: кг | D40: 0.0003 | E40: 0.0005 | N40: 0.0009 | O40: 0.0010 | P40: 0.0005 | Q40: 0.0005 | R40: 0.0005 | S40: 0.0006 | AB40: 0.0000 | AC40: 0.0338 | AD40: 0.0338
A41: 29 | B41: ячневая крупа | C41: кг | AB41: 0.0000 | AC41: 0.0000 | AD41: 0.0000
B42: Масло / сыр | AB42: 0.0000 | AC42: 0.0000 | AD42: 0.0000
A43: 30 | B43: масло растительное | C43: кг | L43: 0.0036 | M43: 0.0060 | N43: 0.0040 | O43: 0.0050 | P43: 0.0078 | Q43: 0.0078 | AB43: 0.0000 | AC43: 0.2444 | AD43: 0.2444
A44: 31 | B44: масло сливочное | C44: кг | D44: 0.0040 | E44: 0.0050 | P44: 0.0023 | Q44: 0.0023 | R44: 0.0040 | S44: 0.0050 | AB44: 0.0000 | AC44: 0.1593 | AD44: 0.1593
A45: 32 | B45: сыр голландский | C45: кг | H45: 0.0153 | I45: 0.0153 | AB45: 0.0000 | AC45: 0.1989 | AD45: 0.1989
B46: Молоко и молочная продукция | AB46: 0.0000 | AC46: 0.0000 | AD46: 0.0000
A47: 33 | B47: молоко 2,5% | C47: л | D47: 0.0750 | E47: 0.1000 | R47: 0.0237 | S47: 0.0284 | AB47: 0.0000 | AC47: 1.6692 | AD47: 1.6692
A48: 34 | B48: катык 2,5% | C48: кг | AB48: 0.0000 | AC48: 0.0000 | AD48: 0.0000
A49: 35 | B49: кефир 2,5% | C49: кг | AB49: 0.0000 | AC49: 0.0000 | AD49: 0.0000
A50: 36 | B50: ряженка 2,5% | C50: кг | AB50: 0.0000 | AC50: 0.0000 | AD50: 0.0000
A51: 37 | B51: йогурт разливной | C51: кг | AB51: 0.0000 | AC51: 0.0000 | AD51: 0.0000
A52: 38 | B52: творог | C52: кг | AB52: 0.0000 | AC52: 0.0000 | AD52: 0.0000
A53: 39 | B53: сметана | C53: кг | N53: 0.0100 | O53: 0.0100 | AB53: 0.0000 | AC53: 0.1300 | AD53: 0.1300
B54: Консервы | AB54: 0.0000 | AC54: 0.0000 | AD54: 0.0000
A55: 40 | B55: кукуруза к/с | C55: кг | AB55: 0.0000 | AC55: 0.0000 | AD55: 0.0000
A56: 41 | B56: зеленый горошек к/с | C56: кг | AB56: 0.0000 | AC56: 0.0000 | AD56: 0.0000
A57: 42 | B57: молоко сгущенное | C57: кг | AB57: 0.0000 | AC57: 0.0000 | AD57: 0.0000
A58: 43 | B58: огурцы соленые | C58: кг | L58: 0.0218 | M58: 0.0364 | N58: 0.0218 | O58: 0.0273 | AB58: 0.0000 | AC58: 0.8281 | AD58: 0.8281
A59: 44 | B59: повидло | C59: кг | AB59: 0.0000 | AC59: 0.0000 | AD59: 0.0000
A60: 45 | B60: томатная паста | C60: кг | P60: 0.0030 | Q60: 0.0030 | AB60: 0.0000 | AC60: 0.0390 | AD60: 0.0390
B61: Чай/какао/кофейный напиток | AB61: 0.0000 | AC61: 0.0000 | AD61: 0.0000
A62: 46 | B62: чай весовой | C62: кг | F62: 0.0005 | AB62: 0.0000 | AC62: 0.0065 | AD62: 0.0065
A63: 47 | B63: чай зеленый | C63: кг | AB63: 0.0000 | AC63: 0.0000 | AD63: 0.0000
A64: 48 | B64: какао | C64: кг | AB64: 0.0000 | AC64: 0.0000 | AD64: 0.0000
A65: 49 | B65: кисель | C65: кг | AB65: 0.0000 | AC65: 0.0000 | AD65: 0.0000
A66: 50 | B66: кофейный напиток | C66: кг | AB66: 0.0000 | AC66: 0.0000 | AD66: 0.0000
B67: Фрукты | AB67: 0.0000 | AC67: 0.0000 | AD67: 0.0000
A68: 51 | B68: апельсин | C68: кг | J68: 0.1000 | AB68: 0.0000 | AC68: 1.3000 | AD68: 1.3000
A69: 52 | B69: банан | C69: кг | AB69: 0.0000 | AC69: 0.0000 | AD69: 0.0000
A70: 53 | B70: груши | C70: кг | AB70: 0.0000 | AC70: 0.0000 | AD70: 0.0000
A71: 54 | B71: лимон | C71: кг | AB71: 0.0000 | AC71: 0.0000 | AD71: 0.0000
A72: 55 | B72: яблоки свежие | C72: кг | AB72: 0.0000 | AC72: 0.0000 | AD72: 0.0000
A73: 56 | B73: мандарин | C73: кг | AB73: =(D73+F73+H73+J73+L73+N73+P73+R73+T73+V73+X73+Z73)*$AB$5 -> 0.0000 | AC73: =(E73+F73+I73+J73+M73+O73+Q73+S73+T73+W73+X73+Z73)*$AC$5 -> 0.0000 | AD73: =AB73+AC73 -> 0.0000
B74: Сухофрукты | AB74: 0.0000 | AC74: 0.0000 | AD74: 0.0000
A75: 57 | B75: ассорти для компота (сухофрукты) | C75: кг | AB75: 0.0000 | AC75: 0.0000 | AD75: 0.0000
A76: 58 | B76: ягоды с/м (клюква,смородина черная) | C76: кг | AB76: 0.0000 | AC76: 0.0000 | AD76: 0.0000
A77: 59 | B77: изюм | C77: кг | T77: 0.0204 | AB77: 0.0000 | AC77: 0.2652 | AD77: 0.2652
A78: 60 | B78: курага | C78: кг | AB78: 0.0000 | AC78: 0.0000 | AD78: 0.0000
A79: 61 | B79: урюк | C79: кг | AB79: 0.0000 | AC79: 0.0000 | AD79: 0.0000
A80: 62 | B80: шиповник | C80: кг | AB80: 0.0000 | AC80: 0.0000 | AD80: 0.0000
A81: 63 | B81: компотная смесь с/м | C81: кг | AB81: 0.0000 | AC81: 0.0000 | AD81: 0.0000
A82: 64 | B82: чернослив | C82: кг | AB82: 0.0000 | AC82: 0.0000 | AD82: 0.0000
B83: Овощи / зелень | AB83: 0.0000 | AC83: 0.0000 | AD83: 0.0000
A84: 65 | B84: зеленый горошек с/м | C84: кг | AB84: 0.0000 | AC84: 0.0000 | AD84: 0.0000
A85: 66 | B85: кабачки с/м | C85: кг | AB85: 0.0000 | AC85: 0.0000 | AD85: 0.0000
A86: 67 | B86: капуста свежая | C86: кг | AB86: 0.0000 | AC86: 0.0000 | AD86: 0.0000
A87: 68 | B87: капуста морская сушеная | C87: кг | AB87: 0.0000 | AC87: 0.0000 | AD87: 0.0000
A88: 69 | B88: картофель | C88: кг | L88: 0.0206 | M88: 0.0344 | N88: 0.0798 | O88: 0.1000 | R88: 0.1710 | S88: 0.2052 | AB88: 0.0000 | AC88: 4.4148 | AD88: 4.4148
A89: 70 | B89: лук репчатый | C89: кг | L89: 0.0107 | M89: 0.0179 | N89: =0.0048+0.00132 -> 0.0061 | O89: =0.006+0.00132 -> 0.0073 | P89: 0.0336 | Q89: 0.0336 | AB89: 0.0000 | AC89: 0.7647 | AD89: 0.7647
A90: 71 | B90: морковь | C90: кг | L90: 0.0114 | M90: 0.0189 | N90: 0.0100 | O90: 0.0125 | P90: 0.0044 | Q90: 0.0044 | AB90: 0.0000 | AC90: 0.4650 | AD90: 0.4650
A91: 72 | B91: огурцы св. | C91: кг | AB91: 0.0000 | AC91: 0.0000 | AD91: 0.0000
A92: 73 | B92: свекла | C92: кг | L92: 0.0153 | M92: 0.0255 | AB92: 0.0000 | AC92: 0.3315 | AD92: 0.3315
A93: 74 | B93: томаты св. | C93: кг | AB93: 0.0000 | AC93: 0.0000 | AD93: 0.0000
A94: 75 | B94: фасоль к/с | C94: кг | AB94: 0.0000 | AC94: 0.0000 | AD94: 0.0000
A95: 76 | B95: икра кабачковая/баклаж | C95: кг | AB95: 0.0000 | AC95: 0.0000 | AD95: 0.0000
B96: Кондитерские изделия, мучные п/ф | AB96: 0.0000 | AC96: 0.0000 | AD96: 0.0000
A97: 77 | B97: батончик злаковый | C97: шт | AB97: 0.0000 | AC97: 0.0000 | AD97: 0.0000
A98: 78 | B98: блины п/ф | C98: кг | AB98: 0.0000 | AC98: 0.0000 | AD98: 0.0000
A99: 79 | B99: печенье | C99: кг | AB99: 0.0000 | AC99: 0.0000 | AD99: 0.0000
A100: 80 | B100: вафли | C100: кг | AB100: 0.0000 | AC100: 0.0000 | AD100: 0.0000
B101: Сок | AB101: 0.0000 | AC101: 0.0000 | AD101: 0.0000
A102: 81 | B102: сок в ассортименте разливной | C102: л | AB102: 0.0000 | AC102: 0.0000 | AD102: 0.0000
A103: 82 | B103: сок в инд.упаковке 0,2л | C103: л | AB103: 0.0000 | AC103: 0.0000 | AD103: 0.0000
B104: Специи | AB104: 0.0000 | AC104: 0.0000 | AD104: 0.0000
A105: 83 | B105: дрожжи сухие | C105: кг | AB105: 0.0000 | AC105: 0.0000 | AD105: 0.0000
A106: 84 | B106: кислота лимонная | C106: кг | AB106: 0.0000 | AC106: 0.0000 | AD106: 0.0000
A107: 85 | B107: клетчатка | C107: кг | AB107: 0.0000 | AC107: 0.0000 | AD107: 0.0000
B108: Яйцо | AB108: 0.0000 | AC108: 0.0000 | AD108: 0.0000
A109: 86 | B109: яйцо куриное | C109: кг | N109: 0.0011 | O109: 0.0011 | P109: 0.0012 | Q109: 0.0012 | AB109: 0.0000 | AC109: 0.0294 | AD109: 0.0294
Z110: 0.0480 | AB110: =AB109/Z110 -> 0 | AC110: =AC109/Z110 -> 1 | AD110: 1

Sheet День 3
A1: № | B1: Продукт | C1: Ед.изм. | D1: Нормы расхода продуктов в день,кг
D2: Завтрак | L2: Обед | AB2: Количество детей | AD2: ИТОГО
B3: ДЕНЬ 3 | D3: Пудинг из творога со сгущ молоком | F3: Кофейный напиток с молоком | H3: батон, масло сливочное порц. | J3: каша молочная "Дружба" | L3: салат из свежей капусты с морковью | N3: Суп лапша домаш на кур бульоне | P3: Птица тушеная с овощами | R3: Каша гречневая рассыпчатая | T3: Кисель | V3: Хлеб белый, сельский
B4: Возрастная группа | D4: 7-11 | E4: 12-18 | F4: 7-18 | H4: 7-11 | I4: 12-18 | J4: 7-11 | K4: 12-18 | L4: 7-11 | M4: 12-18 | N4: 7-11 | O4: 12-18 | P4: 7-11 | Q4: 12-18 | R4: 7-11 | S4: 12-18 | T4: 7-18 | V4: 7-11 | W4: 12-18 | AB4: 7-11 | AC4: 12-18
B5: Выход,гр | D5: 100/10 | E5: 100/15 | F5: 200 | H5: 30/10 | I5: 50/10 | J5: 150/5 | K5: 200/5 | L5: 80 | M5: 100 | N5: 250 | O5: 250 | P5: 50/50 | Q5: 50/50 | R5: 150 | S5: 180 | T5: 200 | V5: 40/40 | W5: 50/50 | AB5: 0 | AC5: 13 | AD5: =AB5+AC5 -> 13
B7: Хлебобулочные изделия
A8: 1 | B8: батон | C8: кг | H8: 0.0300 | I8: 0.0500 | AB8: =(J8+L8+N8+P8+R8+H8+F8+D8+T8+V8+X8+Z8)*$AB$5 -> 0.0000 | AC8: =(E8+F8+I8+K8+M8+O8+Q8+S8+T8+W8+Y8+Z8)*$AC$5 -> 0.6500 | AD8: =AB8+AC8 -> 0.6500
A9: 2 | B9: хлеб пшеничный | C9: кг | V9: 0.0400 | W9: 0.0500 | AB9: =(J9+L9+N9+P9+R9+H9+F9+D9+T9+V9+X9+Z9)*$AB$5 -> 0.0000 | AC9: =(E9+F9+I9+K9+M9+O9+Q9+S9+T9+W9+Y9+Z9)*$AC$5 -> 0.6500 | AD9: =AB9+AC9 -> 0.6500
A10: 3 | B10: хлеб ржаной | C10: кг | V10: 0.0400 | W10: 0.0500 | AB10: 0.0000 | AC10: 0.6500 | AD10: 0.6500
A11: 4 | B11: сухари панировочные | C11: кг | D11: 0.0040 | E11: 0.0040 | AB11: 0.0000 | AC11: 0.0520 | AD11: 0.0520
A12: 5 | B12: лапша домашняя ПФ | C12: кг | N12: 0.0200 | O12: 0.0200 | AB12: 0.0000 | AC12: 0.2600 | AD12: 0.2600
B13: Мясо | AB13: 0.0000 | AC13: 0.0000 | AD13: 0.0000
A14: 6 | B14: говядина (котлетное мясо) | C14: кг | AB14: 0.0000 | AC14: 0.0000 | AD14: 0.0000
B15: или фарш говяжий | AB15: 0.0000 | AC15: 0.0000 | AD15: 0.0000
A16: 7 | B16: говядина лопатка б/к | C16: кг | AB16: 0.0000 | AC16: 0.0000 | AD16: 0.0000
B17: или говядина потушная | C17: кг | AB17: 0.0000 | AC17: 0.0000 | AD17: 0.0000
A18: 8 | B18: сосиски куриные "Халяль" | C18: кг | AB18: 0.0000 | AC18: 0.0000 | AD18: 0.0000
A19: 9 | B19: куриная грудка | C19: кг | P19: 0.0812 | Q19: 0.0812 | AB19: 0.0000 | AC19: 1.0556 | AD19: 1.0556
A20: 10 | B20: куры/цыплята потрош. | C20: кг | AB20: 0.0000 | AC20: 0.0000 | AD20: 0.0000
A21: 11 | B21: печень говяжья | C21: кг | AB21: 0.0000 | AC21: 0.0000 | AD21: 0.0000
B22: Рыба | AB22: 0.0000 | AC22: 0.0000 | AD22: 0.0000
A23: 12 | B23: фарш минтай | C23: кг | AB23: 0.0000 | AC23: 0.0000 | AD23: 0.0000
A24: 13 | B24: минтай б/г с/м | C24: кг | AB24: 0.0000 | AC24: 0.0000 | AD24: 0.0000
B25: Сыпучка | AB25: 0.0000 | AC25: 0.0000 | AD25: 0.0000
A26: 14 | B26: вермишель | C26: кг | AB26: 0.0000 | AC26: 0.0000 | AD26: 0.0000
A27: 15 | B27: геркулес | C27: кг | AB27: 0.0000 | AC27: 0.0000 | AD27: 0.0000
A28: 16 | B28: горох | C28: кг | AB28: 0.0000 | AC28: 0.0000 | AD28: 0.0000
A29: 17 | B29: гречневая крупа | C29: кг | R29: 0.0710 | S29: 0.0852 | AB29: 0.0000 | AC29: 1.1076 | AD29: 1.1076
A30: 18 | B30: кукурузная крупа | C30: кг | AB30: 0.0000 | AC30: 0.0000 | AD30: 0.0000
A31: 19 | B31: макаронные изделия | C31: кг | AB31: 0.0000 | AC31: 0.0000 | AD31: 0.0000
A32: 20 | B32: манная крупа | C32: кг | D32: 0.0080 | E32: 0.0080 | AB32: 0.0000 | AC32: 0.1040 | AD32: 0.1040
A33: 21 | B33: перловая крупа | C33: кг | AB33: 0.0000 | AC33: 0.0000 | AD33: 0.0000
A34: 22 | B34: полбяная крупа | C34: кг | AB34: 0.0000 | AC34: 0.0000 | AD34: 0.0000
A35: 23 | B35: пшеничная крупа | C35: кг | AB35: 0.0000 | AC35: 0.0000 | AD35: 0.0000
A36: 24 | B36: пшено | C36: кг | J36: 0.0140 | K36: 0.0190 | AB36: 0.0000 | AC36: 0.2470 | AD36: 0.2470
A37: 25 | B37: рис | C37: кг | J37: 0.0110 | K37: 0.0140 | AB37: 0.0000 | AC37: 0.1820 | AD37: 0.1820
A38: 26 | B38: мука пшеничная в/с | C38: кг | P38: 0.0014 | Q38: 0.0014 | AB38: 0.0000 | AC38: 0.0176 | AD38: 0.0176
A39: 27 | B39: сахарный песок | C39: кг | D39: 0.0080 | E39: 0.0080 | F39: 0.0100 | J39: 0.0005 | K39: 0.0008 | L39: 0.0012 | M39: 0.0016 | P39: 0.0003 | Q39: 0.0003 | T39: 0.0100 | AB39: 0.0000 | AC39: 0.3991 | AD39: 0.3991
A40: 28 | B40: соль | C40: кг | D40: 0.0004 | E40: 0.0004 | J40: 0.0003 | K40: 0.0005 | L40: 0.0004 | M40: 0.0005 | N40: 0.0009 | O40: 0.0009 | P40: 0.0003 | Q40: 0.0003 | R40: 0.0005 | S40: 0.0006 | AB40: 0.0000 | AC40: 0.0416 | AD40: 0.0416
A41: 29 | B41: ячневая крупа | C41: кг | AB41: 0.0000 | AC41: 0.0000 | AD41: 0.0000
B42: Масло / сыр | AB42: 0.0000 | AC42: 0.0000 | AD42: 0.0000
A43: 30 | B43: масло растительное | C43: кг | L43: 0.0040 | M43: 0.0050 | N43: 0.0050 | O43: 0.0050 | P43: =0.0025+0.002+0.00045 -> 0.0050 | Q43: =0.0025+0.002+0.00045 -> 0.0050 | AB43: 0.0000 | AC43: 0.1944 | AD43: 0.1944
A44: 31 | B44: масло сливочное | C44: кг | D44: 0.0040 | E44: 0.0040 | H44: 0.0100 | I44: 0.0100 | J44: 0.0050 | K44: 0.0050 | P44: 0.0014 | Q44: 0.0014 | AB44: 0.0000 | AC44: 0.2646 | AD44: 0.2646
A45: 32 | B45: сыр голландский | C45: кг | AB45: 0.0000 | AC45: 0.0000 | AD45: 0.0000
B46: Молоко и молочная продукция | AB46: 0.0000 | AC46: 0.0000 | AD46: 0.0000
A47: 33 | B47: молоко 2,5% | C47: кг | F47: 0.1000 | J47: 0.0750 | K47: 0.1000 | AB47: 0.0000 | AC47: 2.6000 | AD47: 2.6000
A48: 34 | B48: катык 2,5% | C48: кг | AB48: 0.0000 | AC48: 0.0000 | AD48: 0.0000
A49: 35 | B49: кефир 2,5% | C49: кг | AB49: 0.0000 | AC49: 0.0000 | AD49: 0.0000
A50: 36 | B50: ряженка 2,5 | C50: кг | AB50: 0.0000 | AC50: 0.0000 | AD50: 0.0000
A51: 37 | B51: напиток ацидофильный 2,5% | C51: кг | AB51: 0.0000 | AC51: 0.0000 | AD51: 0.0000
A52: 38 | B52: творог | C52: кг | D52: 0.0877 | E52: 0.0877 | AB52: 0.0000 | AC52: 1.1401 | AD52: 1.1401
A53: 39 | B53: сметана | C53: кг | D53: 0.0040 | E53: 0.0040 | AB53: 0.0000 | AC53: 0.0520 | AD53: 0.0520
B54: Консервы | AB54: 0.0000 | AC54: 0.0000 | AD54: 0.0000
A55: 40 | B55: кукуруза к/с | C55: кг | AB55: 0.0000 | AC55: 0.0000 | AD55: 0.0000
A56: 41 | B56: зеленый горошек к/с | C56: кг | AB56: 0.0000 | AC56: 0.0000 | AD56: 0.0000
A57: 42 | B57: молоко сгущенное | C57: кг | D57: 0.0102 | E57: 0.0153 | AB57: 0.0000 | AC57: 0.1989 | AD57: 0.1989
A58: 43 | B58: огурцы соленые | C58: кг | AB58: 0.0000 | AC58: 0.0000 | AD58: 0.0000
A59: 44 | B59: повидло | C59: кг | AB59: 0.0000 | AC59: 0.0000 | AD59: 0.0000
A60: 45 | B60: томатная паста | C60: кг | P60: 0.0020 | Q60: 0.0020 | AB60: 0.0000 | AC60: 0.0260 | AD60: 0.0260
B61: Чай/какао/кофейный напиток | AB61: 0.0000 | AC61: 0.0000 | AD61: 0.0000
A62: 46 | B62: чай весовой | C62: кг | AB62: 0.0000 | AC62: 0.0000 | AD62: 0.0000
A63: 47 | B63: чай зеленый | C63: кг | AB63: 0.0000 | AC63: 0.0000 | AD63: 0.0000
A64: 48 | B64: какао | C64: кг | AB64: 0.0000 | AC64: 0.0000 | AD64: 0.0000
A65: 49 | B65: кисель | C65: кг | T65: 0.0240 | AB65: 0.0000 | AC65: 0.3120 | AD65: 0.3120
A66: 50 | B66: кофейный напиток | C66: кг | F66: 0.0050 | AB66: 0.0000 | AC66: 0.0650 | AD66: 0.0650
B67: Фрукты | AB67: 0.0000 | AC67: 0.0000 | AD67: 0.0000
A68: 51 | B68: апельсин | C68: кг | AB68: 0.0000 | AC68: 0.0000 | AD68: 0.0000
A69: 52 | B69: банан | C69: кг | AB69: 0.0000 | AC69: 0.0000 | AD69: 0.0000
A70: 53 | B70: груши | C70: кг | AB70: 0.0000 | AC70: 0.0000 | AD70: 0.0000
A71: 54 | B71: лимон | C71: кг | AB71: 0.0000 | AC71: 0.0000 | AD71: 0.0000
A72: 55 | B72: яблоки свежие | C72: кг | AB72: 0.0000 | AC72: 0.0000 | AD72: 0.0000
A73: 56 | B73: яблоки зеленые | C73: кг | AB73: =(J73+L73+N73+P73+R73+H73+F73+D73+T73+V73+X73+Z73)*$AB$5 -> 0.0000 | AC73: =(E73+F73+I73+K73+M73+O73+Q73+S73+T73+W73+Y73+Z73)*$AC$5 -> 0.0000 | AD73: =AB73+AC73 -> 0.0000
B74: Сухофрукты | AB74: 0.0000 | AC74: 0.0000 | AD74: 0.0000
A75: 57 | B75: ассорти для компота (сухофрукты) | C75: кг | AB75: 0.0000 | AC75: 0.0000 | AD75: 0.0000
A76: 58 | B76: ягоды с/м (клюква,смородина черная) | C76: кг | AB76: 0.0000 | AC76: 0.0000 | AD76: 0.0000
A77: 59 | B77: изюм | C77: кг | AB77: 0.0000 | AC77: 0.0000 | AD77: 0.0000
A78: 60 | B78: курага | C78: кг | AB78: 0.0000 | AC78: 0.0000 | AD78: 0.0000
A79: 61 | B79: урюк | C79: кг | AB79: 0.0000 | AC79: 0.0000 | AD79: 0.0000
A80: 62 | B80: шиповник | C80: кг | AB80: 0.0000 | AC80: 0.0000 | AD80: 0.0000
A81: 63 | B81: компотная смесь с/м | C81: кг | AB81: 0.0000 | AC81: 0.0000 | AD81: 0.0000
A82: 64 | B82: чернослив | C82: кг | AB82: 0.0000 | AC82: 0.0000 | AD82: 0.0000
B83: Овощи / зелень | AB83: 0.0000 | AC83: 0.0000 | AD83: 0.0000
A84: 65 | B84: зеленый горошек с/м | C84: кг | AB84: 0.0000 | AC84: 0.0000 | AD84: 0.0000
A85: 66 | B85: кабачки с/м | C85: кг | AB85: 0.0000 | AC85: 0.0000 | AD85: 0.0000
A86: 67 | B86: капуста свежая | C86: кг | L86: 0.0925 | M86: 0.1156 | AB86: 0.0000 | AC86: 1.5032 | AD86: 1.5032
A87: 68 | B87: капуста морская сушеная | C87: кг | AB87: 0.0000 | AC87: 0.0000 | AD87: 0.0000
A88: 69 | B88: картофель | C88: кг | AB88: 0.0000 | AC88: 0.0000 | AD88: 0.0000
A89: 70 | B89: лук репчатый | C89: кг | N89: 0.0120 | O89: 0.0120 | P89: 0.0132 | Q89: 0.0132 | AB89: 0.0000 | AC89: 0.3276 | AD89: 0.3276
A90: 71 | B90: морковь | C90: кг | L90: 0.0125 | M90: 0.0125 | N90: 0.0125 | O90: 0.0125 | P90: 0.0210 | Q90: 0.0210 | AB90: 0.0000 | AC90: 0.5980 | AD90: 0.5980
A91: 72 | B91: огурцы св. | C91: кг | AB91: 0.0000 | AC91: 0.0000 | AD91: 0.0000
A92: 73 | B92: свекла | C92: кг | AB92: 0.0000 | AC92: 0.0000 | AD92: 0.0000
A93: 74 | B93: томаты св. | C93: кг | AB93: 0.0000 | AC93: 0.0000 | AD93: 0.0000
A94: 75 | B94: фасоль к/с | C94: кг | AB94: 0.0000 | AC94: 0.0000 | AD94: 0.0000
A95: 76 | B95: чеснок | C95: кг | AB95: 0.0000 | AC95: 0.0000 | AD95: 0.0000
B96: Кондитерские изделия | AB96: 0.0000 | AC96: 0.0000 | AD96: 0.0000
A97: 77 | B97: батончик злаковый | C97: шт | AB97: 0.0000 | AC97: 0.0000 | AD97: 0.0000
A98: 78 | B98: блины п/ф | C98: кг | AB98: 0.0000 | AC98: 0.0000 | AD98: 0.0000
A99: 79 | B99: печенье | C99: кг | AB99: 0.0000 | AC99: 0.0000 | AD99: 0.0000
A100: 80 | B100: вафли | C100: кг | AB100: 0.0000 | AC100: 0.0000 | AD100: 0.0000
B101: Сок | AB101: 0.0000 | AC101: 0.0000 | AD101: 0.0000
A102: 81 | B102: сок в ассортименте | C102: л | AB102: 0.0000 | AC102: 0.0000 | AD102: 0.0000
A103: 82 | B103: сок в индувид.упаковке (0,2л) | C103: л | AB103: 0.0000 | AC103: 0.0000 | AD103: 0.0000
B104: Специи | AB104: 0.0000 | AC104: 0.0000 | AD104: 0.0000
A105: 83 | B105: дрожжи сухие | C105: кг | AB105: 0.0000 | AC105: 0.0000 | AD105: 0.0000
A106: 84 | B106: кислота лимонная | C106: кг | AB106: 0.0000 | AC106: 0.0000 | AD106: 0.0000
A107: 85 | B107: клетчатка | C107: кг | AB107: 0.0000 | AC107: 0.0000 | AD107: 0.0000
B108: Яйцо | AB108: 0.0000 | AC108: 0.0000 | AD108: 0.0000
A109: 86 | B109: яйцо куриное | C109: кг | D109: 0.0048 | E109: 0.0048 | AB109: 0.0000 | AC109: 0.0624 | AD109: 0.0624
Z110: 0,048 | AB110: =AB109/Z110 -> 0 | AC110: =AC109/Z110 -> 1 | AD110: 1

Sheet День 4
A1: № | B1: Продукт | C1: Ед.изм. | D1: Нормы расхода продуктов в день,кг
D2: Завтрак | L2: Обед | AB2: Количество детей | AD2: ИТОГО
B3: ДЕНЬ 4 | D3: Омлет натуральный | F3: Чай с молоком с сахаром | H3: батон, сыр порц. | J3: фрукты ЯБЛОКО | L3: салат из отвар свеклы с маслом растит | N3: Суп картоф с мясными фрикад | P3: Биточки рыбные из минтая | R3: Макароны отварные с маслом слив | T3: Компот из сухофруктов | V3: Хлеб белый, сельский
B4: Возрастная группа | D4: 7-11 | E4: 12-18 | F4: 7-18 | H4: 7-11 | I4: 12-18 | J4: 7-18 | L4: 7-11 | M4: 12-18 | N4: 7-11 | O4: 12-18 | P4: 7-11 | Q4: 12-18 | R4: 7-11 | S4: 12-18 | T4: 7-18 | V4: 7-11 | W4: 12-18 | AB4: 7-11 | AC4: 12-18
B5: Выход,гр | D5: 200 | E5: 200 | F5: 200/15 | H5: 30/15 | I5: 50/15 | J5: 100 | L5: 60 | M5: 100 | N5: 200/11 | O5: 250/11 | P5: 90 | Q5: 100 | R5: 150/3 | S5: 180/5 | T5: 200 | V5: 40/40 | W5: 50/50 | AB5: 0 | AC5: 13 | AD5: =AB5+AC5 -> 13
B7: Хлебобулочные изделия
A8: 1 | B8: батон | C8: кг | H8: 0.0300 | I8: 0.0500 | AB8: =(D8+F8+H8+J8+L8+N8+P8+R8+T8+V8+X8+Z8)*$AB$5 -> 0.0000 | AC8: =(E8+F8+I8+J8+M8+O8+Q8+S8+T8+W8+X8+Z8)*$AC$5 -> 0.6500 | AD8: =AB8+AC8 -> 0.6500
A9: 2 | B9: хлеб пшеничный | C9: кг | P9: 0.0090 | Q9: 0.0100 | V9: 0.0400 | W9: 0.0500 | AB9: =(D9+F9+H9+J9+L9+N9+P9+R9+T9+V9+X9+Z9)*$AB$5 -> 0.0000 | AC9: =(E9+F9+I9+J9+M9+O9+Q9+S9+T9+W9+X9+Z9)*$AC$5 -> 0.7800 | AD9: =AB9+AC9 -> 0.7800
A10: 3 | B10: хлеб ржаной | C10: кг | V10: 0.0400 | W10: 0.0500 | AB10: 0.0000 | AC10: 0.6500 | AD10: 0.6500
A11: 4 | B11: сухари панировочные | C11: кг | P11: 0.0090 | Q11: 0.0100 | AB11: 0.0000 | AC11: 0.1300 | AD11: 0.1300
A12: 5 | B12: лапша домашняя ПФ | C12: кг | AB12: 0.0000 | AC12: 0.0000 | AD12: 0.0000
B13: Мясо | AB13: 0.0000 | AC13: 0.0000 | AD13: 0.0000
A14: 6 | B14: говядина (котлетное мясо) | C14: кг | AB14: 0.0000 | AC14: 0.0000 | AD14: 0.0000
B15: или фарш говяжий | C15: кг | N15: 0.0132 | O15: 0.0132 | AB15: 0.0000 | AC15: 0.1712 | AD15: 0.1712
A16: 7 | B16: говядина лопатка б/к | C16: кг | AB16: 0.0000 | AC16: 0.0000 | AD16: 0.0000
B17: или говядина потушная | C17: кг | AB17: 0.0000 | AC17: 0.0000 | AD17: 0.0000
A18: 8 | B18: сосиски куриные "Халяль" | C18: кг | AB18: 0.0000 | AC18: 0.0000 | AD18: 0.0000
A19: 9 | B19: куриная грудка | C19: кг | AB19: 0.0000 | AC19: 0.0000 | AD19: 0.0000
A20: 10 | B20: куры/цыплята потрош. | C20: кг | AB20: 0.0000 | AC20: 0.0000 | AD20: 0.0000
A21: 11 | B21: печень говяжья | C21: кг | AB21: 0.0000 | AC21: 0.0000 | AD21: 0.0000
B22: Рыба | AB22: 0.0000 | AC22: 0.0000 | AD22: 0.0000
A23: 12 | B23: фарш минтая с/м | C23: кг | AB23: 0.0000 | AC23: 0.0000 | AD23: 0.0000
A24: 13 | B24: минтай б/г с/м | C24: кг | P24: 0.0925 | Q24: 0.1028 | AB24: 0.0000 | AC24: 1.3358 | AD24: 1.3358
B25: Сыпучка | AB25: 0.0000 | AC25: 0.0000 | AD25: 0.0000
A26: 14 | B26: вермишель | C26: кг | AB26: 0.0000 | AC26: 0.0000 | AD26: 0.0000
A27: 15 | B27: геркулес | C27: кг | AB27: 0.0000 | AC27: 0.0000 | AD27: 0.0000
A28: 16 | B28: горох | C28: кг | AB28: 0.0000 | AC28: 0.0000 | AD28: 0.0000
A29: 17 | B29: гречневая крупа | C29: кг | AB29: 0.0000 | AC29: 0.0000 | AD29: 0.0000
A30: 18 | B30: кукурузная крупа | C30: кг | AB30: 0.0000 | AC30: 0.0000 | AD30: 0.0000
A31: 19 | B31: макаронные изделия | C31: кг | R31: 0.0610 | S31: 0.0732 | AB31: 0.0000 | AC31: 0.9516 | AD31: 0.9516
A32: 20 | B32: манная крупа | C32: кг | AB32: 0.0000 | AC32: 0.0000 | AD32: 0.0000
A33: 21 | B33: перловая крупа | C33: кг | AB33: 0.0000 | AC33: 0.0000 | AD33: 0.0000
A34: 22 | B34: полбяная крупа | C34: кг | AB34: 0.0000 | AC34: 0.0000 | AD34: 0.0000
A35: 23 | B35: пшеничная крупа | C35: кг | AB35: 0.0000 | AC35: 0.0000 | AD35: 0.0000
A36: 24 | B36: пшено | C36: кг | AB36: 0.0000 | AC36: 0.0000 | AD36: 0.0000
A37: 25 | B37: рис | C37: кг | AB37: 0.0000 | AC37: 0.0000 | AD37: 0.0000
A38: 26 | B38: мука пшеничная в/с | C38: кг | AB38: 0.0000 | AC38: 0.0000 | AD38: 0.0000
A39: 27 | B39: сахарный песок | C39: кг | F39: 0.0150 | T39: 0.0100 | AB39: 0.0000 | AC39: 0.3250 | AD39: 0.3250
A40: 28 | B40: соль | C40: кг | D40: 0.0010 | E40: 0.0010 | N40: 0.0009 | O40: 0.0010 | P40: 0.0006 | Q40: 0.0006 | R40: 0.0005 | S40: 0.0006 | AB40: 0.0000 | AC40: 0.0417 | AD40: 0.0417
A41: 29 | B41: ячневая крупа | C41: кг | AB41: 0.0000 | AC41: 0.0000 | AD41: 0.0000
B42: Масло / сыр | AB42: 0.0000 | AC42: 0.0000 | AD42: 0.0000
A43: 30 | B43: масло растительное | C43: кг | D43: 0.0040 | E43: 0.0040 | L43: 0.0030 | M43: 0.0050 | N43: 0.0020 | O43: 0.0025 | P43: 0.0034 | Q43: 0.0035 | AB43: 0.0000 | AC43: 0.1950 | AD43: 0.1950
A44: 31 | B44: масло сливочное | C44: кг | R44: 0.0030 | S44: 0.0050 | AB44: 0.0000 | AC44: 0.0650 | AD44: 0.0650
A45: 32 | B45: сыр голландский | C45: кг | H45: 0.0153 | I45: 0.0153 | AB45: 0.0000 | AC45: 0.1989 | AD45: 0.1989
B46: Молоко и молочная продукция | AB46: 0.0000 | AC46: 0.0000 | AD46: 0.0000
A47: 33 | B47: молоко 2,5% | C47: кг | D47: 0.0600 | E47: 0.0600 | F47: 0.0920 | AB47: 0.0000 | AC47: 1.9760 | AD47: 1.9760
A48: 34 | B48: катык 2,5% | C48: кг | AB48: 0.0000 | AC48: 0.0000 | AD48: 0.0000
A49: 35 | B49: кефир 2,5% | C49: кг | AB49: 0.0000 | AC49: 0.0000 | AD49: 0.0000
A50: 36 | B50: ряженка 2,5% | C50: кг | AB50: 0.0000 | AC50: 0.0000 | AD50: 0.0000
A51: 37 | B51: напиток ацидофильный с подсластителем 2,5% | C51: кг | AB51: 0.0000 | AC51: 0.0000 | AD51: 0.0000
A52: 38 | B52: творог | C52: кг | AB52: 0.0000 | AC52: 0.0000 | AD52: 0.0000
A53: 39 | B53: сметана | C53: кг | AB53: 0.0000 | AC53: 0.0000 | AD53: 0.0000
B54: Консервы | AB54: 0.0000 | AC54: 0.0000 | AD54: 0.0000
A55: 40 | B55: кукуруза к/с | C55: кг | AB55: 0.0000 | AC55: 0.0000 | AD55: 0.0000
A56: 41 | B56: зеленый горошек с/м | C56: кг | AB56: 0.0000 | AC56: 0.0000 | AD56: 0.0000
A57: 42 | B57: молоко сгущенное | C57: кг | AB57: 0.0000 | AC57: 0.0000 | AD57: 0.0000
A58: 43 | B58: огурцы соленые | C58: кг | AB58: 0.0000 | AC58: 0.0000 | AD58: 0.0000
A59: 44 | B59: повидло | C59: кг | AB59: 0.0000 | AC59: 0.0000 | AD59: 0.0000
A60: 45 | B60: томатная паста | C60: кг | AB60: 0.0000 | AC60: 0.0000 | AD60: 0.0000
B61: Чай/какао/кофейный напиток | AB61: 0.0000 | AC61: 0.0000 | AD61: 0.0000
A62: 46 | B62: чай весовой | C62: кг | F62: 0.0010 | AB62: 0.0000 | AC62: 0.0130 | AD62: 0.0130
A63: 47 | B63: чай зеленый | C63: кг | AB63: 0.0000 | AC63: 0.0000 | AD63: 0.0000
A64: 48 | B64: какао | C64: кг | AB64: 0.0000 | AC64: 0.0000 | AD64: 0.0000
A65: 49 | B65: кисель | C65: кг | AB65: 0.0000 | AC65: 0.0000 | AD65: 0.0000
A66: 50 | B66: кофейный напиток | C66: кг | AB66: 0.0000 | AC66: 0.0000 | AD66: 0.0000
B67: Фрукты | AB67: 0.0000 | AC67: 0.0000 | AD67: 0.0000
A68: 51 | B68: апельсин | C68: кг | AB68: 0.0000 | AC68: 0.0000 | AD68: 0.0000
A69: 52 | B69: банан | C69: кг | AB69: 0.0000 | AC69: 0.0000 | AD69: 0.0000
A70: 53 | B70: груши | C70: кг | AB70: 0.0000 | AC70: 0.0000 | AD70: 0.0000
A71: 54 | B71: лимон | C71: кг | AB71: 0.0000 | AC71: 0.0000 | AD71: 0.0000
A72: 55 | B72: яблоки свежие | C72: кг | J72: 0.1000 | AB72: 0.0000 | AC72: 1.3000 | AD72: 1.3000
A73: 56 | B73: мандарин | C73: кг | AB73: =(D73+F73+H73+J73+L73+N73+P73+R73+T73+V73+X73+Z73)*$AB$5 -> 0.0000 | AC73: =(E73+F73+I73+J73+M73+O73+Q73+S73+T73+W73+X73+Z73)*$AC$5 -> 0.0000 | AD73: =AB73+AC73 -> 0.0000
B74: Сухофрукты, замороженные ягоды | AB74: 0.0000 | AC74: 0.0000 | AD74: 0.0000
A75: 57 | B75: ассорти для компота (сухофрукты) | C75: кг | T75: 0.0204 | AB75: 0.0000 | AC75: 0.2652 | AD75: 0.2652
A76: 58 | B76: ягоды с/м (клюква,смородина черная) | C76: кг | AB76: 0.0000 | AC76: 0.0000 | AD76: 0.0000
A77: 59 | B77: изюм | C77: кг | AB77: 0.0000 | AC77: 0.0000 | AD77: 0.0000
A78: 60 | B78: курага | C78: кг | AB78: 0.0000 | AC78: 0.0000 | AD78: 0.0000
A79: 61 | B79: урюк | C79: кг | AB79: 0.0000 | AC79: 0.0000 | AD79: 0.0000
A80: 62 | B80: шиповник | C80: кг | AB80: 0.0000 | AC80: 0.0000 | AD80: 0.0000
A81: 63 | B81: компотная смесь с/м | C81: кг | AB81: 0.0000 | AC81: 0.0000 | AD81: 0.0000
A82: 64 | B82: чернослив | C82: кг | AB82: 0.0000 | AC82: 0.0000 | AD82: 0.0000
B83: Овощи / зелень | AB83: 0.0000 | AC83: 0.0000 | AD83: 0.0000
A84: 65 | B84: зеленый горошек с/м | C84: кг | AB84: 0.0000 | AC84: 0.0000 | AD84: 0.0000
A85: 66 | B85: кабачки с/м | C85: кг | AB85: 0.0000 | AC85: 0.0000 | AD85: 0.0000
A86: 67 | B86: капуста свежая | C86: кг | AB86: 0.0000 | AC86: 0.0000 | AD86: 0.0000
A87: 68 | B87: капуста морская сушеная | C87: кг | AB87: 0.0000 | AC87: 0.0000 | AD87: 0.0000
A88: 69 | B88: картофель | C88: кг | N88: 0.0800 | O88: 0.1000 | AB88: 0.0000 | AC88: 1.3000 | AD88: 1.3000
A89: 70 | B89: лук репчатый | C89: кг | N89: 0.0111 | O89: 0.0133 | P89: 0.0162 | Q89: 0.0180 | AB89: 0.0000 | AC89: 0.4069 | AD89: 0.4069
A90: 71 | B90: морковь | C90: кг | N90: 0.0100 | O90: 0.0125 | AB90: 0.0000 | AC90: 0.1625 | AD90: 0.1625
A91: 72 | B91: огурцы св. | C91: кг | AB91: 0.0000 | AC91: 0.0000 | AD91: 0.0000
A92: 73 | B92: свекла | C92: кг | L92: 0.0730 | M92: 0.1197 | AB92: 0.0000 | AC92: 1.5561 | AD92: 1.5561
A93: 74 | B93: томаты св. | C93: кг | AB93: 0.0000 | AC93: 0.0000 | AD93: 0.0000
A94: 75 | B94: фасоль к/с | C94: кг | AB94: 0.0000 | AC94: 0.0000 | AD94: 0.0000
A95: 76 | B95: чеснок | C95: кг | AB95: 0.0000 | AC95: 0.0000 | AD95: 0.0000
B96: Кондитерские изделия | AB96: 0.0000 | AC96: 0.0000 | AD96: 0.0000
A97: 77 | B97: батончик злаковый | C97: шт | AB97: 0.0000 | AC97: 0.0000 | AD97: 0.0000
A98: 78 | B98: крекер | C98: кг | AB98: 0.0000 | AC98: 0.0000 | AD98: 0.0000
A99: 79 | B99: вафли | C99: кг | AB99: 0.0000 | AC99: 0.0000 | AD99: 0.0000
A100: 80 | B100: печенье | C100: кг | AB100: 0.0000 | AC100: 0.0000 | AD100: 0.0000
B101: Сок | AB101: 0.0000 | AC101: 0.0000 | AD101: 0.0000
A102: 81 | B102: сок в ассортименте разливной | C102: л | AB102: 0.0000 | AC102: 0.0000 | AD102: 0.0000
A103: 82 | B103: сок в индувид.упаковке (0,2л) | C103: л | AB103: 0.0000 | AC103: 0.0000 | AD103: 0.0000
B104: Специи | AB104: 0.0000 | AC104: 0.0000 | AD104: 0.0000
A105: 83 | B105: дрожжи сухие | C105: кг | AB105: 0.0000 | AC105: 0.0000 | AD105: 0.0000
A106: 84 | B106: кислота лимонная | C106: кг | AB106: 0.0000 | AC106: 0.0000 | AD106: 0.0000
A107: 85 | B107: клетчатка | C107: кг | AB107: 0.0000 | AC107: 0.0000 | AD107: 0.0000
B108: Яйцо | AB108: 0.0000 | AC108: 0.0000 | AD108: 0.0000
A109: 86 | B109: яйцо куриное | C109: кг | D109: 0.1800 | E109: 0.1800 | N109: 0.0011 | O109: 0.0011 | AB109: 0.0000 | AC109: 2.3538 | AD109: 2.3538
Z110: 0,048 | AB110: =AB109/Z110 -> 0 | AC110: =AC109/Z110 -> 49 | AD110: 49

Sheet День 5
A1: № | B1: Продукт | C1: Ед.изм. | D1: Нормы расхода продуктов в день,кг
D2: Завтрак | L2: Обед | AB2: Количество детей | AD2: ИТОГО
B3: ДЕНЬ 5 | D3: Каша молочная пшенная | F3: какао с молоком | H3: батон, масло сливочное порц. | J3: фрукты АПЕЛЬСИН | L3: зеленый горошек /доп гарнир/ | N3: Суп из овощей на курин бульоне со сметаной | P3: Плов из отварных куриных грудок | T3: Напиток из шиповника | V3: Хлеб белый, сельский
B4: Возрастная группа | D4: 7-11 | E4: 12-18 | F4: 7-18 | H4: 7-11 | I4: 12-18 | J4: 7-18 | L4: 7-11 | M4: 12-18 | N4: 7-11 | O4: 12-18 | P4: 7-11 | Q4: 12-18 | T4: 7-18 | V4: 7-11 | W4: 12-18 | AB4: 7-11 | AC4: 12-18
B5: Выход,гр | D5: 150/4 | E5: 200/5 | F5: 200 | H5: 30/10 | I5: 50/10 | J5: 100 | L5: 30 | M5: 30 | N5: 250/10 | O5: 250/10 | P5: 50/200 | Q5: 50/250 | T5: 200 | V5: 40/40 | W5: 50/50 | AB5: 0 | AC5: 13 | AD5: =AB5+AC5 -> 13
B7: Хлебобулочные изделия
A8: 1 | B8: батон | C8: кг | H8: 0.0300 | I8: 0.0500 | AB8: =(D8+F8+H8+J8+L8+N8+P8+T8+V8+X8+Z8)*$AB$5 -> 0.0000 | AC8: =(Z8+Y8+W8+T8+Q8+O8+M8+J8+I8+F8+E8)*$AC$5 -> 0.6500 | AD8: =AB8+AC8 -> 0.6500
A9: 2 | B9: хлеб пшеничный | C9: кг | V9: 0.0400 | W9: 0.0500 | AB9: =(D9+F9+H9+J9+L9+N9+P9+T9+V9+X9+Z9)*$AB$5 -> 0.0000 | AC9: =(Z9+Y9+W9+T9+Q9+O9+M9+J9+I9+F9+E9)*$AC$5 -> 0.6500 | AD9: =AB9+AC9 -> 0.6500
A10: 3 | B10: хлеб ржаной | C10: кг | V10: 0.0400 | W10: 0.0500 | AB10: 0.0000 | AC10: 0.6500 | AD10: 0.6500
A11: 4 | B11: сухари панировочные | C11: кг | AB11: 0.0000 | AC11: 0.0000 | AD11: 0.0000
A12: 5 | B12: лапша домашняя ПФ | C12: кг | AB12: 0.0000 | AC12: 0.0000 | AD12: 0.0000
B13: Мясо | AB13: 0.0000 | AC13: 0.0000 | AD13: 0.0000
A14: 6 | B14: говядина (котлетное мясо) | C14: кг | AB14: 0.0000 | AC14: 0.0000 | AD14: 0.0000
B15: или фарш говяжий | AB15: 0.0000 | AC15: 0.0000 | AD15: 0.0000
A16: 7 | B16: говядина лопатка б/к | C16: кг | AB16: 0.0000 | AC16: 0.0000 | AD16: 0.0000
B17: или говядина потушная | C17: кг | AB17: 0.0000 | AC17: 0.0000 | AD17: 0.0000
A18: 8 | B18: сосиски куриные "Халяль" | AB18: 0.0000 | AC18: 0.0000 | AD18: 0.0000
A19: 9 | B19: куриная грудка | C19: кг | P19: 0.0812 | Q19: 0.0812 | AB19: 0.0000 | AC19: 1.0556 | AD19: 1.0556
A20: 10 | B20: куры/цыплята потрош. | C20: кг | AB20: 0.0000 | AC20: 0.0000 | AD20: 0.0000
A21: 11 | B21: печень говяжья | AB21: 0.0000 | AC21: 0.0000 | AD21: 0.0000
B22: Рыба | AB22: 0.0000 | AC22: 0.0000 | AD22: 0.0000
A23: 12 | B23: фарш минтай с/м | C23: кг | AB23: 0.0000 | AC23: 0.0000 | AD23: 0.0000
A24: 13 | B24: минтай б/г с/м | C24: кг | AB24: 0.0000 | AC24: 0.0000 | AD24: 0.0000
B25: Сыпучка | AB25: 0.0000 | AC25: 0.0000 | AD25: 0.0000
A26: 14 | B26: вермишель | C26: кг | AB26: 0.0000 | AC26: 0.0000 | AD26: 0.0000
A27: 15 | B27: геркулес | C27: кг | AB27: 0.0000 | AC27: 0.0000 | AD27: 0.0000
A28: 16 | B28: горох | C28: кг | AB28: 0.0000 | AC28: 0.0000 | AD28: 0.0000
A29: 17 | B29: гречневая крупа | C29: кг | AB29: 0.0000 | AC29: 0.0000 | AD29: 0.0000
A30: 18 | B30: кукурузная крупа | C30: кг | AB30: 0.0000 | AC30: 0.0000 | AD30: 0.0000
A31: 19 | B31: макаронные изделия | C31: кг | AB31: 0.0000 | AC31: 0.0000 | AD31: 0.0000
A32: 20 | B32: манная крупа | C32: кг | AB32: 0.0000 | AC32: 0.0000 | AD32: 0.0000
A33: 21 | B33: перловая крупа | C33: кг | AB33: 0.0000 | AC33: 0.0000 | AD33: 0.0000
A34: 22 | B34: полбяная крупа | C34: кг | AB34: 0.0000 | AC34: 0.0000 | AD34: 0.0000
A35: 23 | B35: пшеничная крупа | C35: кг | AB35: 0.0000 | AC35: 0.0000 | AD35: 0.0000
A36: 24 | B36: пшено | C36: кг | D36: 0.0300 | E36: 0.0400 | AB36: 0.0000 | AC36: 0.5200 | AD36: 0.5200
A37: 25 | B37: рис | C37: кг | P37: 0.0540 | Q37: 0.0720 | AB37: 0.0000 | AC37: 0.9360 | AD37: 0.9360
A38: 26 | B38: мука пшеничная в/с | C38: кг | AB38: 0.0000 | AC38: 0.0000 | AD38: 0.0000
A39: 27 | B39: сахарный песок | C39: кг | D39: 0.0005 | E39: 0.0008 | F39: 0.0100 | T39: 0.0100 | AB39: 0.0000 | AC39: 0.2704 | AD39: 0.2704
A40: 28 | B40: соль | C40: кг | D40: 0.0003 | E40: 0.0005 | N40: 0.0009 | O40: 0.0009 | P40: 0.0008 | Q40: 0.0010 | AB40: 0.0000 | AC40: 0.0312 | AD40: 0.0312
A41: 29 | B41: ячневая крупа | AB41: 0.0000 | AC41: 0.0000 | AD41: 0.0000
B42: Масло / сыр | AB42: 0.0000 | AC42: 0.0000 | AD42: 0.0000
A43: 30 | B43: масло растительное | C43: кг | N43: 0.0050 | O43: 0.0050 | P43: 0.0075 | Q43: 0.0100 | AB43: 0.0000 | AC43: 0.1950 | AD43: 0.1950
A44: 31 | B44: масло сливочное | C44: кг | D44: 0.0040 | E44: 0.0050 | H44: 0.0100 | I44: 0.0100 | AB44: 0.0000 | AC44: 0.1950 | AD44: 0.1950
A45: 32 | B45: сыр голландский | C45: кг | AB45: 0.0000 | AC45: 0.0000 | AD45: 0.0000
B46: Молоко и молочная продукция | AB46: 0.0000 | AC46: 0.0000 | AD46: 0.0000
A47: 33 | B47: молоко 2,5% | C47: л | D47: 0.0750 | E47: 0.1000 | F47: 0.1000 | AB47: 0.0000 | AC47: 2.6000 | AD47: 2.6000
A48: 34 | B48: катык 2,5% | C48: кг | AB48: 0.0000 | AC48: 0.0000 | AD48: 0.0000
A49: 35 | B49: кефир 2,5% | C49: кг | AB49: 0.0000 | AC49: 0.0000 | AD49: 0.0000
A50: 36 | B50: ряженка 2,5% | C50: кг | AB50: 0.0000 | AC50: 0.0000 | AD50: 0.0000
A51: 37 | B51: напиток ацидофильный 2,5% | C51: кг | AB51: 0.0000 | AC51: 0.0000 | AD51: 0.0000
A52: 38 | B52: творог | C52: кг | AB52: 0.0000 | AC52: 0.0000 | AD52: 0.0000
A53: 39 | B53: сметана | C53: кг | N53: 0.0100 | O53: 0.0100 | AB53: 0.0000 | AC53: 0.1300 | AD53: 0.1300
B54: Консервы | C54: кг | AB54: 0.0000 | AC54: 0.0000 | AD54: 0.0000
A55: 40 | B55: кукуруза к/с | C55: кг | AB55: 0.0000 | AC55: 0.0000 | AD55: 0.0000
A56: 41 | B56: зеленый горошек к/с | C56: кг | L56: 0.0501 | M56: 0.0501 | AB56: 0.0000 | AC56: 0.6513 | AD56: 0.6513
A57: 42 | B57: молоко сгущенное | C57: кг | AB57: 0.0000 | AC57: 0.0000 | AD57: 0.0000
A58: 43 | B58: огурцы соленые | C58: кг | AB58: 0.0000 | AC58: 0.0000 | AD58: 0.0000
A59: 44 | B59: повидло | C59: кг | AB59: 0.0000 | AC59: 0.0000 | AD59: 0.0000
A60: 45 | B60: томатная паста | C60: кг | P60: 0.0030 | Q60: 0.0040 | AB60: 0.0000 | AC60: 0.0520 | AD60: 0.0520
B61: Чай/какао/кофейный напиток | AB61: 0.0000 | AC61: 0.0000 | AD61: 0.0000
A62: 46 | B62: чай весовой | C62: кг | AB62: 0.0000 | AC62: 0.0000 | AD62: 0.0000
A63: 47 | B63: чай зеленый | AB63: 0.0000 | AC63: 0.0000 | AD63: 0.0000
A64: 48 | B64: какао | C64: кг | F64: 0,004 | AB64: 0.0000 | AC64: 0.0520 | AD64: 0.0520
A65: 49 | B65: кисель | C65: кг | AB65: 0.0000 | AC65: 0.0000 | AD65: 0.0000
A66: 50 | B66: кофейный напиток | C66: кг | AB66: 0.0000 | AC66: 0.0000 | AD66: 0.0000
B67: Фрукты | AB67: 0.0000 | AC67: 0.0000 | AD67: 0.0000
A68: 51 | B68: апельсин | C68: кг | J68: 0.1000 | AB68: 0.0000 | AC68: 1.3000 | AD68: 1.3000
A69: 52 | B69: банан | C69: кг | AB69: 0.0000 | AC69: 0.0000 | AD69: 0.0000
A70: 53 | B70: груши | C70: кг | AB70: 0.0000 | AC70: 0.0000 | AD70: 0.0000
A71: 54 | B71: лимон | C71: кг | AB71: 0.0000 | AC71: 0.0000 | AD71: 0.0000
A72: 55 | B72: яблоки свежие | C72: кг | AB72: 0.0000 | AC72: 0.0000 | AD72: 0.0000
A73: 56 | B73: яблоки зеленые | AB73: =(D73+F73+H73+J73+L73+N73+P73+T73+V73+X73+Z73)*$AB$5 -> 0.0000 | AC73: =(Z73+Y73+W73+T73+Q73+O73+M73+J73+I73+F73+E73)*$AC$5 -> 0.0000 | AD73: =AB73+AC73 -> 0.0000
B74: Сухофрукты, ягоды св/мор | AB74: 0.0000 | AC74: 0.0000 | AD74: 0.0000
A75: 57 | B75: ассорти для компота (сухофрукты) | C75: кг | AB75: 0.0000 | AC75: 0.0000 | AD75: 0.0000
A76: 58 | B76: ягоды с/м (клюква,смородина черная) | C76: кг | AB76: 0.0000 | AC76: 0.0000 | AD76: 0.0000
A77: 59 | B77: изюм | C77: кг | AB77: 0.0000 | AC77: 0.0000 | AD77: 0.0000
A78: 60 | B78: курага | C78: кг | AB78: 0.0000 | AC78: 0.0000 | AD78: 0.0000
A79: 61 | B79: урюк | C79: кг | AB79: 0.0000 | AC79: 0.0000 | AD79: 0.0000
A80: 62 | B80: шиповник | C80: кг | T80: 0.0153 | AB80: 0.0000 | AC80: 0.1989 | AD80: 0.1989
A81: 63 | B81: компотная с/м | C81: кг | AB81: 0.0000 | AC81: 0.0000 | AD81: 0.0000
A82: 64 | B82: чернослив | C82: кг | AB82: 0.0000 | AC82: 0.0000 | AD82: 0.0000
B83: Овощи / зелень | AB83: 0.0000 | AC83: 0.0000 | AD83: 0.0000
A84: 65 | B84: зеленый горошек с/м | C84: кг | AB84: 0.0000 | AC84: 0.0000 | AD84: 0.0000
A85: 66 | B85: кабачки с/м | AB85: 0.0000 | AC85: 0.0000 | AD85: 0.0000
A86: 67 | B86: капуста свежая | C86: кг | N86: 0.0250 | O86: 0.0250 | AB86: 0.0000 | AC86: 0.3250 | AD86: 0.3250
A87: 68 | B87: капуста морская сушеная | AB87: 0.0000 | AC87: 0.0000 | AD87: 0.0000
A88: 69 | B88: картофель | C88: кг | N88: 0.0800 | O88: 0.0800 | AB88: 0.0000 | AC88: 1.0400 | AD88: 1.0400
A89: 70 | B89: лук репчатый | C89: кг | N89: 0.0120 | O89: 0.0120 | P89: 0.0120 | Q89: 0.0168 | AB89: 0.0000 | AC89: 0.3744 | AD89: 0.3744
A90: 71 | B90: морковь | C90: кг | N90: 0.0125 | O90: 0.0125 | P90: 0.0150 | Q90: 0.0200 | AB90: 0.0000 | AC90: 0.4225 | AD90: 0.4225
A91: 72 | B91: огурцы св. | C91: кг | AB91: 0.0000 | AC91: 0.0000 | AD91: 0.0000
A92: 73 | B92: свекла | C92: кг | AB92: 0.0000 | AC92: 0.0000 | AD92: 0.0000
A93: 74 | B93: томаты св. | C93: кг | AB93: 0.0000 | AC93: 0.0000 | AD93: 0.0000
A94: 75 | B94: фасоль к/с | C94: кг | AB94: 0.0000 | AC94: 0.0000 | AD94: 0.0000
A95: 76 | B95: чеснок | C95: кг | AB95: 0.0000 | AC95: 0.0000 | AD95: 0.0000
B96: Кондитерские изделия, мучные из делия п/ф | AB96: 0.0000 | AC96: 0.0000 | AD96: 0.0000
A97: 77 | B97: батончик злаковый | C97: шт | AB97: 0.0000 | AC97: 0.0000 | AD97: 0.0000
A98: 78 | B98: блины п/ф | C98: кг | AB98: 0.0000 | AC98: 0.0000 | AD98: 0.0000
A99: 79 | B99: печенье | C99: кг | AB99: 0.0000 | AC99: 0.0000 | AD99: 0.0000
A100: 80 | B100: вафли | C100: кг | AB100: 0.0000 | AC100: 0.0000 | AD100: 0.0000
B101: Сок | AB101: 0.0000 | AC101: 0.0000 | AD101: 0.0000
A102: 81 | B102: сок в ассортименте | C102: л | AB102: 0.0000 | AC102: 0.0000 | AD102: 0.0000
A103: 82 | B103: сок в индувид.упаковке (0,2л) | C103: л | AB103: 0.0000 | AC103: 0.0000 | AD103: 0.0000
B104: Специи | AB104: 0.0000 | AC104: 0.0000 | AD104: 0.0000
A105: 83 | B105: дрожжи | C105: кг | AB105: 0.0000 | AC105: 0.0000 | AD105: 0.0000
A106: 84 | B106: кислота лимонная | C106: кг | AB106: 0.0000 | AC106: 0.0000 | AD106: 0.0000
A107: 85 | B107: клетчатка | C107: кг | AB107: 0.0000 | AC107: 0.0000 | AD107: 0.0000
B108: Яйцо | AB108: 0.0000 | AC108: 0.0000 | AD108: 0.0000
A109: 86 | B109: яйцо куриное | C109: кг | AB109: 0.0000 | AC109: 0.0000 | AD109: 0.0000
Z110: 0,048 | AB110: =AB109/Z110 -> 0 | AC110: =AC109/Z110 -> 0 | AD110: 0

Sheet День 6
A1: № | B1: Продукт | C1: Ед.изм. | D1: Нормы расхода продуктов в день,кг
D2: Завтрак | L2: Обед | AB2: Количество детей | AD2: ИТОГО
B3: ДЕНЬ 6 | D3: Каша молочная полбяная с маслом | F3: Чай с сахаром | H3: батон, сыр порц. | J3: фрукты ЯБЛОКО | L3: салат из квашенной капусты | N3: Суп картоф ГОРОХ с фрикад из птицы и гренками | P3: Котлеты "Аппетитные" | R3: Каша перловая рассып с овощами с масл слив | T3: Компот из изюма | V3: Хлеб белый, сельский
B4: Возрастная группа | D4: 7-11 | E4: 12-18 | F4: 7-18 | H4: 7-11 | I4: 12-18 | J4: 7-18 | L4: 7-11 | M4: 12-18 | N4: 7-11 | O4: 12-18 | P4: 7-11 | Q4: 12-18 | R4: 7-11 | S4: 12-18 | T4: 7-18 | V4: 7-11 | W4: 12-18 | X4: 7-18 | Z4: 7-18 | AB4: 7-11 | AC4: 12-18
B5: Выход,гр | D5: 150/4 | E5: 200/5 | F5: 200/15 | H5: 30/15 | I5: 50/15 | J5: 100 | L5: 60 | M5: 100 | N5: 200/11/10 | O5: 250/11/10 | P5: 90 | Q5: 100 | R5: 150/5 | S5: 180/5 | T5: 200 | V5: 40/40 | W5: 50/50 | AB5: 0 | AC5: 13 | AD5: =AB5+AC5 -> 13
B7: Хлебобулочные изделия
A8: 1 | B8: батон | C8: кг | H8: 0.0300 | I8: 0.0500 | AB8: =(D8+F8+H8+J8+L8+N8+P8+R8+T8+V8+X8+Z8)*$AB$5 -> 0.0000 | AC8: =(E8+F8+I8+J8+M8+O8+Q8+S8+T8+W8+X8+Z8)*$AC$5 -> 0.6500 | AD8: =AB8+AC8 -> 0.6500
A9: 2 | B9: хлеб пшеничный | C9: кг | N9: 0.0188 | O9: 0.0188 | P9: 0.0080 | Q9: 0.0088 | V9: 0.0400 | W9: 0.0500 | AB9: =(D9+F9+H9+J9+L9+N9+P9+R9+T9+V9+X9+Z9)*$AB$5 -> 0.0000 | AC9: =(E9+F9+I9+J9+M9+O9+Q9+S9+T9+W9+X9+Z9)*$AC$5 -> 1.0082 | AD9: =AB9+AC9 -> 1.0082
A10: 3 | B10: хлеб ржаной | C10: кг | V10: 0.0400 | W10: 0.0500 | AB10: 0.0000 | AC10: 0.6500 | AD10: 0.6500
A11: 4 | B11: сухари панировочные | C11: кг | P11: 0.0090 | Q11: 0.0100 | AB11: 0.0000 | AC11: 0.1300 | AD11: 0.1300
A12: 5 | B12: лапша домашняя ПФ | AB12: 0.0000 | AC12: 0.0000 | AD12: 0.0000
B13: Мясо | AB13: 0.0000 | AC13: 0.0000 | AD13: 0.0000
A14: 6 | B14: говядина (котлетное мясо) | C14: кг | AB14: 0.0000 | AC14: 0.0000 | AD14: 0.0000
B15: или фарш говяжий | P15: 0.0567 | Q15: 0.0630 | AB15: 0.0000 | AC15: 0.8190 | AD15: 0.8190
A16: 7 | B16: говядина лопатка б/к | C16: кг | AB16: 0.0000 | AC16: 0.0000 | AD16: 0.0000
B17: или говядина потушная | C17: кг | AB17: 0.0000 | AC17: 0.0000 | AD17: 0.0000
A18: 8 | B18: сосиски куриные "Халяль" | AB18: 0.0000 | AC18: 0.0000 | AD18: 0.0000
A19: 9 | B19: куриная грудка | C19: кг | N19: 0.0147 | O19: 0.0147 | P19: 0.0183 | Q19: 0.0200 | AB19: 0.0000 | AC19: 0.4511 | AD19: 0.4511
A20: 10 | B20: куры/цыплята потрош. | C20: кг | AB20: 0.0000 | AC20: 0.0000 | AD20: 0.0000
A21: 11 | B21: печень говяжья | AB21: 0.0000 | AC21: 0.0000 | AD21: 0.0000
B22: Рыба | AB22: 0.0000 | AC22: 0.0000 | AD22: 0.0000
A23: 12 | B23: фарш минтай с/м | C23: кг | AB23: 0.0000 | AC23: 0.0000 | AD23: 0.0000
A24: 13 | B24: минтай б/г с/м | C24: кг | AB24: 0.0000 | AC24: 0.0000 | AD24: 0.0000
B25: Сыпучка | AB25: 0.0000 | AC25: 0.0000 | AD25: 0.0000
A26: 14 | B26: вермишель | C26: кг | AB26: 0.0000 | AC26: 0.0000 | AD26: 0.0000
A27: 15 | B27: геркулес | C27: кг | AB27: 0.0000 | AC27: 0.0000 | AD27: 0.0000
A28: 16 | B28: горох | C28: кг | N28: 0.0280 | O28: 0.0354 | AB28: 0.0000 | AC28: 0.4602 | AD28: 0.4602
A29: 17 | B29: гречневая крупа | C29: кг | AB29: 0.0000 | AC29: 0.0000 | AD29: 0.0000
A30: 18 | B30: кукурузная крупа | C30: кг | AB30: 0.0000 | AC30: 0.0000 | AD30: 0.0000
A31: 19 | B31: макаронные изделия | C31: кг | AB31: 0.0000 | AC31: 0.0000 | AD31: 0.0000
A32: 20 | B32: манная крупа | C32: кг | AB32: 0.0000 | AC32: 0.0000 | AD32: 0.0000
A33: 21 | B33: перловая крупа | C33: кг | R33: 0.0434 | S33: 0.0530 | AB33: 0.0000 | AC33: 0.6890 | AD33: 0.6890
A34: 22 | B34: полбяная крупа | C34: кг | D34: 0.0300 | E34: 0.0400 | AB34: 0.0000 | AC34: 0.5200 | AD34: 0.5200
A35: 23 | B35: пшеничная крупа | C35: кг | AB35: 0.0000 | AC35: 0.0000 | AD35: 0.0000
A36: 24 | B36: пшено | C36: кг | AB36: 0.0000 | AC36: 0.0000 | AD36: 0.0000
A37: 25 | B37: рис | C37: кг | AB37: 0.0000 | AC37: 0.0000 | AD37: 0.0000
A38: 26 | B38: мука пшеничная в/с | C38: кг | AB38: 0.0000 | AC38: 0.0000 | AD38: 0.0000
A39: 27 | B39: сахарный песок | C39: кг | D39: 0.0005 | E39: 0.0008 | F39: 0.0150 | T39: 0.0100 | AB39: 0.0000 | AC39: 0.3354 | AD39: 0.3354
A40: 28 | B40: соль | C40: кг | D40: 0.0003 | E40: 0.0005 | N40: 0.0009 | O40: 0.0010 | P40: 0.0005 | Q40: 0.0007 | R40: 0.0004 | S40: 0.0005 | AB40: 0.0000 | AC40: 0.0351 | AD40: 0.0351
A41: 29 | B41: ячневая крупа | AB41: 0.0000 | AC41: 0.0000 | AD41: 0.0000
B42: Масло / сыр | AB42: 0.0000 | AC42: 0.0000 | AD42: 0.0000
A43: 30 | B43: масло растительное | C43: кг | L43: 0.0025 | N43: 0.0040 | O43: 0.0050 | P43: 0.0023 | Q43: 0.0025 | AB43: 0.0000 | AC43: 0.0975 | AD43: 0.0975
A44: 31 | B44: масло сливочное | C44: кг | D44: 0.0040 | E44: 0.0050 | R44: 0.0050 | S44: 0.0050 | AB44: 0.0000 | AC44: 0.1300 | AD44: 0.1300
A45: 32 | B45: сыр голландский | C45: кг | H45: 0.0153 | I45: 0.0153 | AB45: 0.0000 | AC45: 0.1989 | AD45: 0.1989
B46: Молоко и молочная продукция | AB46: 0.0000 | AC46: 0.0000 | AD46: 0.0000
A47: 33 | B47: молоко 2,5% | C47: л | D47: 0.0750 | E47: 0.1000 | AB47: 0.0000 | AC47: 1.3000 | AD47: 1.3000
A48: 34 | B48: катык 2,5% | C48: кг | AB48: 0.0000 | AC48: 0.0000 | AD48: 0.0000
A49: 35 | B49: кефир 2,5% | C49: кг | AB49: 0.0000 | AC49: 0.0000 | AD49: 0.0000
A50: 36 | B50: ряженка 2,5% | C50: кг | AB50: 0.0000 | AC50: 0.0000 | AD50: 0.0000
A51: 37 | B51: напиток ацидоф 2,5% | AB51: 0.0000 | AC51: 0.0000 | AD51: 0.0000
A52: 38 | B52: творог | C52: кг | AB52: 0.0000 | AC52: 0.0000 | AD52: 0.0000
A53: 39 | B53: сметана | C53: кг | AB53: 0.0000 | AC53: 0.0000 | AD53: 0.0000
B54: Консервы | C54: кг | AB54: 0.0000 | AC54: 0.0000 | AD54: 0.0000
A55: 40 | B55: кукуруза к/с | C55: кг | AB55: 0.0000 | AC55: 0.0000 | AD55: 0.0000
A56: 41 | B56: зеленый горошек к/с | C56: кг | AB56: 0.0000 | AC56: 0.0000 | AD56: 0.0000
A57: 42 | B57: молоко сгущенное | C57: кг | AB57: 0.0000 | AC57: 0.0000 | AD57: 0.0000
A58: 43 | B58: огурцы соленые | C58: кг | AB58: 0.0000 | AC58: 0.0000 | AD58: 0.0000
A59: 44 | B59: повидло | C59: кг | AB59: 0.0000 | AC59: 0.0000 | AD59: 0.0000
A60: 45 | B60: томатная паста | C60: кг | AB60: 0.0000 | AC60: 0.0000 | AD60: 0.0000
B61: Чай/какао/кофейный напиток | AB61: 0.0000 | AC61: 0.0000 | AD61: 0.0000
A62: 46 | B62: чай весовой | C62: кг | F62: 0.0005 | AB62: 0.0000 | AC62: 0.0065 | AD62: 0.0065
A63: 47 | B63: чай зеленый | AB63: 0.0000 | AC63: 0.0000 | AD63: 0.0000
A64: 48 | B64: какао | C64: кг | AB64: 0.0000 | AC64: 0.0000 | AD64: 0.0000
A65: 49 | B65: кисель | C65: кг | AB65: 0.0000 | AC65: 0.0000 | AD65: 0.0000
A66: 50 | B66: кофейный напиток | C66: кг | AB66: 0.0000 | AC66: 0.0000 | AD66: 0.0000
B67: Фрукты | AB67: 0.0000 | AC67: 0.0000 | AD67: 0.0000
A68: 51 | B68: апельсин | C68: кг | AB68: 0.0000 | AC68: 0.0000 | AD68: 0.0000
A69: 52 | B69: банан | C69: кг | AB69: 0.0000 | AC69: 0.0000 | AD69: 0.0000
A70: 53 | B70: груши | C70: кг | AB70: 0.0000 | AC70: 0.0000 | AD70: 0.0000
A71: 54 | B71: лимон | C71: кг | AB71: 0.0000 | AC71: 0.0000 | AD71: 0.0000
A72: 55 | B72: яблоки свежие | C72: кг | J72: 0.1000 | AB72: 0.0000 | AC72: 1.3000 | AD72: 1.3000
A73: 56 | B73: яблоки зеленые | AB73: =(D73+F73+H73+J73+L73+N73+P73+R73+T73+V73+X73+Z73)*$AB$5 -> 0.0000 | AC73: =(E73+F73+I73+J73+M73+O73+Q73+S73+T73+W73+X73+Z73)*$AC$5 -> 0.0000 | AD73: =AB73+AC73 -> 0.0000
B74: Сухофрукты | AB74: 0.0000 | AC74: 0.0000 | AD74: 0.0000
A75: 57 | B75: ассорти для компота (сухофрукты) | C75: кг | AB75: 0.0000 | AC75: 0.0000 | AD75: 0.0000
A76: 58 | B76: ягоды с/м (клюква,смородина черная) | AB76: 0.0000 | AC76: 0.0000 | AD76: 0.0000
A77: 59 | B77: изюм | C77: кг | T77: 0.0204 | AB77: 0.0000 | AC77: 0.2652 | AD77: 0.2652
A78: 60 | B78: курага | AB78: 0.0000 | AC78: 0.0000 | AD78: 0.0000
A79: 61 | B79: урюк | C79: кг | AB79: 0.0000 | AC79: 0.0000 | AD79: 0.0000
A80: 62 | B80: шиповник | C80: кг | AB80: 0.0000 | AC80: 0.0000 | AD80: 0.0000
A81: 63 | B81: компотная смесь с/м | AB81: 0.0000 | AC81: 0.0000 | AD81: 0.0000
A82: 64 | B82: чернослив | AB82: 0.0000 | AC82: 0.0000 | AD82: 0.0000
B83: Овощи / зелень | AB83: 0.0000 | AC83: 0.0000 | AD83: 0.0000
A84: 65 | B84: зеленый горошек к/с | C84: кг | AB84: 0.0000 | AC84: 0.0000 | AD84: 0.0000
A85: 66 | B85: кабачки с/м | AB85: 0.0000 | AC85: 0.0000 | AD85: 0.0000
A86: 67 | B86: капуста свежая | C86: кг | AB86: 0.0000 | AC86: 0.0000 | AD86: 0.0000
A87: 68 | B87: капуста квашенная | L87: 0.0829 | M87: 0.1382 | AB87: 0.0000 | AC87: 1.7966 | AD87: 1.7966
A88: 69 | B88: картофель | C88: кг | AB88: 0.0000 | AC88: 0.0000 | AD88: 0.0000
A89: 70 | B89: лук репчатый | C89: кг | N89: 0.0157 | O89: 0.0193 | P89: 0.0210 | Q89: 0.0234 | R89: 0.0030 | S89: 0.0036 | AB89: 0.0000 | AC89: 0.6019 | AD89: 0.6019
A90: 71 | B90: морковь | C90: кг | N90: 0.0100 | O90: 0.0125 | R90: 0.0240 | S90: 0.0300 | AB90: 0.0000 | AC90: 0.5525 | AD90: 0.5525
A91: 72 | B91: огурцы св. | C91: кг | AB91: 0.0000 | AC91: 0.0000 | AD91: 0.0000
A92: 73 | B92: свекла | C92: кг | AB92: 0.0000 | AC92: 0.0000 | AD92: 0.0000
A93: 74 | B93: томаты св. | C93: кг | AB93: 0.0000 | AC93: 0.0000 | AD93: 0.0000
A94: 75 | B94: фасоль к/с | AB94: 0.0000 | AC94: 0.0000 | AD94: 0.0000
A95: 76 | B95: чеснок | AB95: 0.0000 | AC95: 0.0000 | AD95: 0.0000
B96: Кондитерские изделия, мучные п/ф | AB96: 0.0000 | AC96: 0.0000 | AD96: 0.0000
A97: 77 | B97: батончик злаковый | C97: шт | AB97: 0.0000 | AC97: 0.0000 | AD97: 0.0000
A98: 78 | B98: блины п/ф | C98: кг | AB98: 0.0000 | AC98: 0.0000 | AD98: 0.0000
A99: 79 | B99: печенье | C99: кг | AB99: 0.0000 | AC99: 0.0000 | AD99: 0.0000
A100: 80 | B100: вафли | C100: кг | AB100: 0.0000 | AC100: 0.0000 | AD100: 0.0000
B101: Сок | AB101: 0.0000 | AC101: 0.0000 | AD101: 0.0000
A102: 81 | B102: сок в ассортименте разливной | C102: л | AB102: 0.0000 | AC102: 0.0000 | AD102: 0.0000
A103: 82 | B103: сок в индувид.упаковке (0,2л) | C103: л | AB103: 0.0000 | AC103: 0.0000 | AD103: 0.0000
B104: Специи | AB104: 0.0000 | AC104: 0.0000 | AD104: 0.0000
A105: 83 | B105: дрожжи | C105: кг | AB105: 0.0000 | AC105: 0.0000 | AD105: 0.0000
A106: 84 | B106: кислота лимонная | C106: кг | AB106: 0.0000 | AC106: 0.0000 | AD106: 0.0000
A107: 85 | B107: клетчатка | C107: кг | AB107: 0.0000 | AC107: 0.0000 | AD107: 0.0000
B108: Яйцо | AB108: 0.0000 | AC108: 0.0000 | AD108: 0.0000
A109: 86 | B109: яйцо куриное | C109: кг | N109: 0.0011 | O109: 0.0011 | AB109: 0.0000 | AC109: 0.0138 | AD109: 0.0138
Z110: 0.0480 | AB110: =AB109/Z110 -> 0 | AC110: =AC109/Z110 -> 0 | AD110: 0

Sheet День 7
A1: № | B1: Продукт | C1: Ед.изм. | D1: Нормы расхода продуктов в день,кг
D2: Завтрак | L2: Обед | AB2: Количество детей | AD2: ИТОГО
B3: ДЕНЬ 7 | D3: Запеканка из творога со сгущ молоком | F3: Кофейный напиток с молоком | H3: батон с маслом сливочным | J3: фрукты АПЕЛЬСИН | L3: винегрет с сол огурцами | N3: Суп крестьян с ПШЕНО крупой с мясом птицы | P3: Котлета по домашнему | R3: Рис отварной рассыпч с маслом слив | T3: Компот из яблок | V3: Хлеб белый, сельский
B4: Возрастная группа | D4: 7-11 | E4: 12-18 | F4: 7-18 | H4: 7-11 | I4: 12-18 | J4: 7-18 | L4: 7-11 | M4: 12-18 | N4: 7-11 | O4: 12-18 | P4: 7-11 | Q4: 12-18 | R4: 7-11 | S4: 12-18 | T4: 7-18 | V4: 7-11 | W4: 12-18 | X4: 7-18 | Z4: 7-18 | AB4: 7-11 | AC4: 12-18
B5: Выход,гр | D5: 130/20 | E5: 175/25 | F5: 200 | H5: 30/10 | I5: 50/10 | J5: 100 | L5: 60 | M5: 100 | N5: 250/15/7 | O5: 250/15/7 | P5: 90 | Q5: 100 | R5: 150/3 | S5: 180/3 | T5: 200 | V5: 40/40 | W5: 50/50 | X5: 180 | Y5: 180 | Z5: 75 | AB5: 0 | AC5: 13 | AD5: =AB5+AC5 -> 13
B7: Хлебобулочные изделия
A8: 1 | B8: батон | C8: кг | H8: 0.0300 | I8: 0.0500 | AB8: =(Z8+X8+V8+T8+P8+N8+L8+J8+H8+F8+D8+R8)*$AB$5 -> 0.0000 | AC8: =(Z8+Y8+W8+T8+Q8+O8+M8+J8+I8+F8+E8+S8)*$AC$5 -> 0.6500 | AD8: =AB8+AC8 -> 0.6500
A9: 2 | B9: хлеб пшеничный | C9: кг | P9: 0.0144 | Q9: 0.0160 | V9: 0.0400 | W9: 0.0500 | AB9: =(Z9+X9+V9+T9+P9+N9+L9+J9+H9+F9+D9+R9)*$AB$5 -> 0.0000 | AC9: =(Z9+Y9+W9+T9+Q9+O9+M9+J9+I9+F9+E9+S9)*$AC$5 -> 0.8580 | AD9: =AB9+AC9 -> 0.8580
A10: 3 | B10: хлеб ржаной | C10: кг | V10: 0.0400 | W10: 0.0500 | AB10: 0.0000 | AC10: 0.6500 | AD10: 0.6500
A11: 4 | B11: сухари панировочные | C11: кг | D11: 0.0052 | E11: 0.0070 | P11: 0.0045 | Q11: 0.0050 | AB11: 0.0000 | AC11: 0.1560 | AD11: 0.1560
A12: 5 | B12: лапша домашняя ПФ | AB12: 0.0000 | AC12: 0.0000 | AD12: 0.0000
B13: Мясо | AB13: 0.0000 | AC13: 0.0000 | AD13: 0.0000
A14: 6 | B14: говядина (котлетное мясо) | C14: кг | AB14: 0.0000 | AC14: 0.0000 | AD14: 0.0000
B15: или фарш говяжий | P15: 0.0616 | Q15: 0.0684 | AB15: 0.0000 | AC15: 0.8892 | AD15: 0.8892
A16: 7 | B16: говядина лопатка б/к | C16: кг | AB16: 0.0000 | AC16: 0.0000 | AD16: 0.0000
B17: или говядина потушная | C17: кг | AB17: 0.0000 | AC17: 0.0000 | AD17: 0.0000
A18: 8 | B18: сосиски куриные "Халяль" | AB18: 0.0000 | AC18: 0.0000 | AD18: 0.0000
A19: 9 | B19: куриная грудка | C19: кг | N19: 0.0244 | O19: 0.0244 | AB19: 0.0000 | AC19: 0.3172 | AD19: 0.3172
A20: 10 | B20: куры/цыплята потрош. | C20: кг | AB20: 0.0000 | AC20: 0.0000 | AD20: 0.0000
A21: 11 | B21: печень говяжья | AB21: 0.0000 | AC21: 0.0000 | AD21: 0.0000
B22: Рыба | AB22: 0.0000 | AC22: 0.0000 | AD22: 0.0000
A23: 12 | B23: фарш минтай с/м | C23: кг | AB23: 0.0000 | AC23: 0.0000 | AD23: 0.0000
A24: 13 | B24: минтай б/г с/м | C24: кг | AB24: 0.0000 | AC24: 0.0000 | AD24: 0.0000
B25: Сыпучка | AB25: 0.0000 | AC25: 0.0000 | AD25: 0.0000
A26: 14 | B26: вермишель | C26: кг | AB26: 0.0000 | AC26: 0.0000 | AD26: 0.0000
A27: 15 | B27: геркулес | C27: кг | AB27: 0.0000 | AC27: 0.0000 | AD27: 0.0000
A28: 16 | B28: горох | C28: кг | AB28: 0.0000 | AC28: 0.0000 | AD28: 0.0000
A29: 17 | B29: гречневая крупа | C29: кг | AB29: 0.0000 | AC29: 0.0000 | AD29: 0.0000
A30: 18 | B30: кукурузная крупа | C30: кг | AB30: 0.0000 | AC30: 0.0000 | AD30: 0.0000
A31: 19 | B31: макаронные изделия | C31: кг | AB31: 0.0000 | AC31: 0.0000 | AD31: 0.0000
A32: 20 | B32: манная крупа | C32: кг | D32: 0.0078 | E32: 0.0105 | AB32: 0.0000 | AC32: 0.1365 | AD32: 0.1365
A33: 21 | B33: перловая крупа | C33: кг | AB33: 0.0000 | AC33: 0.0000 | AD33: 0.0000
A34: 22 | B34: полбяная крупа | C34: кг | AB34: 0.0000 | AC34: 0.0000 | AD34: 0.0000
A35: 23 | B35: пшеничная крупа | C35: кг | AB35: 0.0000 | AC35: 0.0000 | AD35: 0.0000
A36: 24 | B36: пшено | C36: кг | N36: 0.0050 | O36: 0.0050 | AB36: 0.0000 | AC36: 0.0650 | AD36: 0.0650
A37: 25 | B37: рис | C37: кг | R37: 0.0540 | S37: 0.0650 | AB37: 0.0000 | AC37: 0.8450 | AD37: 0.8450
A38: 26 | B38: мука пшеничная в/с | C38: кг | AB38: 0.0000 | AC38: 0.0000 | AD38: 0.0000
A39: 27 | B39: сахарный песок | C39: кг | D39: 0.0052 | E39: 0.0070 | F39: 0.0100 | T39: 0.0100 | AB39: 0.0000 | AC39: 0.3510 | AD39: 0.3510
A40: 28 | B40: соль | C40: кг | D40: 0.0005 | E40: 0.0008 | N40: 0.0020 | O40: 0.0020 | P40: 0.0006 | Q40: 0.0007 | R40: 0.0006 | S40: 0.0008 | AB40: 0.0000 | AC40: 0.0553 | AD40: 0.0553
A41: 29 | B41: ячневая крупа | AB41: 0.0000 | AC41: 0.0000 | AD41: 0.0000
B42: Масло / сыр | AB42: 0.0000 | AC42: 0.0000 | AD42: 0.0000
A43: 30 | B43: масло растительное | C43: кг | D43: 0.0040 | E43: 0.0050 | L43: 0.0036 | M43: 0.0060 | N43: 0.0050 | O43: 0.0050 | P43: 0.0040 | Q43: 0.0040 | AB43: 0.0000 | AC43: 0.2600 | AD43: 0.2600
A44: 31 | B44: масло сливочное | C44: кг | H44: 0.0100 | I44: 0.0100 | R44: 0.0030 | S44: 0.0030 | AB44: 0.0000 | AC44: 0.1690 | AD44: 0.1690
A45: 32 | B45: сыр голландский | C45: кг | AB45: 0.0000 | AC45: 0.0000 | AD45: 0.0000
B46: Молоко и молочная продукция | AB46: 0.0000 | AC46: 0.0000 | AD46: 0.0000
A47: 33 | B47: молоко 2,5% | C47: л | F47: 0.1000 | AB47: 0.0000 | AC47: 1.3000 | AD47: 1.3000
A48: 34 | B48: катык 2,5% | C48: кг | AB48: 0.0000 | AC48: 0.0000 | AD48: 0.0000
A49: 35 | B49: кефир 2,5% | C49: кг | AB49: 0.0000 | AC49: 0.0000 | AD49: 0.0000
A50: 36 | B50: ряженка 2,5% | C50: кг | AB50: 0.0000 | AC50: 0.0000 | AD50: 0.0000
A51: 37 | B51: напиток ацидофильный 2,5% | AB51: 0.0000 | AC51: 0.0000 | AD51: 0.0000
A52: 38 | B52: творог | C52: кг | D52: 0.1224 | E52: 0.1647 | AB52: 0.0000 | AC52: 2.1411 | AD52: 2.1411
A53: 39 | B53: сметана | C53: кг | D53: 0.0052 | E53: 0.0070 | N53: 0.0070 | O53: 0.0070 | AB53: 0.0000 | AC53: 0.1820 | AD53: 0.1820
B54: Консервы | C54: кг | AB54: 0.0000 | AC54: 0.0000 | AD54: 0.0000
A55: 40 | B55: кукуруза к/с | C55: кг | AB55: 0.0000 | AC55: 0.0000 | AD55: 0.0000
A56: 41 | B56: зеленый горошек к/с | C56: кг | AB56: 0.0000 | AC56: 0.0000 | AD56: 0.0000
A57: 42 | B57: молоко сгущенное | C57: кг | D57: 0.0200 | E57: 0.0250 | AB57: 0.0000 | AC57: 0.3250 | AD57: 0.3250
A58: 43 | B58: огурцы соленые | C58: кг | L58: 0.0218 | M58: 0.0364 | AB58: 0.0000 | AC58: 0.4732 | AD58: 0.4732
A59: 44 | B59: повидло | C59: кг | AB59: 0.0000 | AC59: 0.0000 | AD59: 0.0000
A60: 45 | B60: томатная паста | C60: кг | AB60: 0.0000 | AC60: 0.0000 | AD60: 0.0000
B61: Чай/какао/кофейный напиток | AB61: 0.0000 | AC61: 0.0000 | AD61: 0.0000
A62: 46 | B62: чай весовой | C62: кг | AB62: 0.0000 | AC62: 0.0000 | AD62: 0.0000
A63: 47 | B63: чай зеленый | AB63: 0.0000 | AC63: 0.0000 | AD63: 0.0000
A64: 48 | B64: какао | C64: кг | AB64: 0.0000 | AC64: 0.0000 | AD64: 0.0000
A65: 49 | B65: кисель | C65: кг | AB65: 0.0000 | AC65: 0.0000 | AD65: 0.0000
A66: 50 | B66: кофейный напиток | C66: кг | F66: 0.0050 | AB66: 0.0000 | AC66: 0.0650 | AD66: 0.0650
B67: Фрукты | AB67: 0.0000 | AC67: 0.0000 | AD67: 0.0000
A68: 51 | B68: апельсин | C68: кг | J68: 0.1000 | AB68: 0.0000 | AC68: 1.3000 | AD68: 1.3000
A69: 52 | B69: банан | C69: кг | AB69: 0.0000 | AC69: 0.0000 | AD69: 0.0000
A70: 53 | B70: груши | C70: кг | AB70: 0.0000 | AC70: 0.0000 | AD70: 0.0000
A71: 54 | B71: лимон | C71: кг | AB71: 0.0000 | AC71: 0.0000 | AD71: 0.0000
A72: 55 | B72: яблоки свежие | C72: кг | T72: 0.0454 | AB72: 0.0000 | AC72: 0.5902 | AD72: 0.5902
A73: 56 | B73: яблоки зеленые | AB73: =(Z73+X73+V73+T73+P73+N73+L73+J73+H73+F73+D73+R73)*$AB$5 -> 0.0000 | AC73: =(Z73+Y73+W73+T73+Q73+O73+M73+J73+I73+F73+E73+S73)*$AC$5 -> 0.0000 | AD73: =AB73+AC73 -> 0.0000
B74: Сухофрукты, ягоды замороженные | AB74: 0.0000 | AC74: 0.0000 | AD74: 0.0000
A75: 57 | B75: ассорти для компота (сухофрукты) | C75: кг | AB75: 0.0000 | AC75: 0.0000 | AD75: 0.0000
A76: 58 | B76: ягоды с/м (клюква,смородина черная) | AB76: 0.0000 | AC76: 0.0000 | AD76: 0.0000
A77: 59 | B77: изюм | C77: кг | AB77: 0.0000 | AC77: 0.0000 | AD77: 0.0000
A78: 60 | B78: курага | C78: кг | AB78: 0.0000 | AC78: 0.0000 | AD78: 0.0000
A79: 61 | B79: урюк | C79: кг | AB79: 0.0000 | AC79: 0.0000 | AD79: 0.0000
A80: 62 | B80: шиповник | C80: кг | AB80: 0.0000 | AC80: 0.0000 | AD80: 0.0000
A81: 63 | B81: компотная смесь с/м | C81: кг | AB81: 0.0000 | AC81: 0.0000 | AD81: 0.0000
A82: 64 | B82: чернослив | C82: кг | AB82: 0.0000 | AC82: 0.0000 | AD82: 0.0000
B83: Овощи / зелень | AB83: 0.0000 | AC83: 0.0000 | AD83: 0.0000
A84: 65 | B84: зеленый горошек с/м | C84: кг | AB84: 0.0000 | AC84: 0.0000 | AD84: 0.0000
A85: 66 | B85: кабачки с/м | C85: кг | AB85: 0.0000 | AC85: 0.0000 | AD85: 0.0000
A86: 67 | B86: капуста свежая | C86: кг | N86: 0.0375 | O86: 0.0375 | AB86: 0.0000 | AC86: 0.4875 | AD86: 0.4875
A87: 68 | B87: капуста морская сушеная | C87: кг | AB87: 0.0000 | AC87: 0.0000 | AD87: 0.0000
A88: 69 | B88: картофель | C88: кг | L88: 0.0206 | M88: 0.0344 | N88: 0.0333 | O88: 0.0333 | AB88: 0.0000 | AC88: 0.8795 | AD88: 0.8795
A89: 70 | B89: лук репчатый | C89: кг | L89: 0.0107 | M89: 0.0179 | N89: 0.0120 | O89: 0.0120 | P89: 0.0108 | Q89: 0.0120 | AB89: 0.0000 | AC89: 0.5447 | AD89: 0.5447
A90: 71 | B90: морковь | C90: кг | L90: 0.0114 | M90: 0.0189 | N90: 0.0125 | O90: 0.0125 | AB90: 0.0000 | AC90: 0.4082 | AD90: 0.4082
A91: 72 | B91: огурцы св. | C91: кг | AB91: 0.0000 | AC91: 0.0000 | AD91: 0.0000
A92: 73 | B92: свекла | C92: кг | L92: 0.0153 | M92: 0.0255 | AB92: 0.0000 | AC92: 0.3315 | AD92: 0.3315
A93: 74 | B93: томаты св. | C93: кг | AB93: 0.0000 | AC93: 0.0000 | AD93: 0.0000
A94: 75 | B94: фасоль стручковая с/м | C94: кг | AB94: 0.0000 | AC94: 0.0000 | AD94: 0.0000
A95: 76 | B95: чеснок | C95: кг | AB95: 0.0000 | AC95: 0.0000 | AD95: 0.0000
B96: Кондитерские изделия, мучные п/ф | AB96: 0.0000 | AC96: 0.0000 | AD96: 0.0000
A97: 77 | B97: батончик злаковый | AB97: 0.0000 | AC97: 0.0000 | AD97: 0.0000
A98: 78 | B98: блины п/ф | C98: кг | AB98: 0.0000 | AC98: 0.0000 | AD98: 0.0000
A99: 79 | B99: печенье | C99: кг | AB99: 0.0000 | AC99: 0.0000 | AD99: 0.0000
A100: 80 | B100: вафли | AB100: 0.0000 | AC100: 0.0000 | AD100: 0.0000
B101: Сок | AB101: 0.0000 | AC101: 0.0000 | AD101: 0.0000
A102: 81 | B102: сок в ассортименте | C102: л | AB102: 0.0000 | AC102: 0.0000 | AD102: 0.0000
A103: 82 | B103: сок в индувид.упаковке (0,2л) | C103: л | AB103: 0.0000 | AC103: 0.0000 | AD103: 0.0000
B104: Специи | AB104: 0.0000 | AC104: 0.0000 | AD104: 0.0000
A105: 83 | B105: дрожжи сухие | C105: кг | AB105: 0.0000 | AC105: 0.0000 | AD105: 0.0000
A106: 84 | B106: кислота лимонная | C106: кг | AB106: 0.0000 | AC106: 0.0000 | AD106: 0.0000
A107: 85 | B107: клетчатка | C107: кг | AB107: 0.0000 | AC107: 0.0000 | AD107: 0.0000
B108: Яйцо | AB108: 0.0000 | AC108: 0.0000 | AD108: 0.0000
A109: 86 | B109: яйцо куриное | C109: шт | D109: 0.0062 | E109: 0.0084 | P109: 0.0013 | Q109: 0.0014 | AB109: 0.0000 | AC109: 0.1279 | AD109: 0.1279
Z110: 0.0480 | AB110: =AB109/Z110 -> 0 | AC110: =AC109/Z110 -> 3 | AD110: 3

Sheet День 9 (hidden)
A1: № | B1: Продукт | C1: Ед.изм. | D1: Нормы расхода продуктов в день,кг
D2: Завтрак | L2: Обед | X2: Полдник | AB2: Количество детей | AD2: ИТОГО
B3: ДЕНЬ 9 | D3: Каша рисовая молочная с маслом | F3: Чай с молоком с сахаром | H3: батон, сыр порционно | J3: фрукты МАНДАРИН | L3: св. помидор порционно | N3: Борщ сибирс с фрикад из птицы, со сметаной | P3: Фрикадельки рыбные в соусе молочном | R3: макароны отварные | T3: Напиток из шиповника | V3: Хлеб белый, сельский | X3: Сок /Нектар фруктовый (разливной) | Z3: Вафли
B4: Возрастная группа | D4: 7-11 | E4: 12-18 | F4: 7-18 | H4: 7-11 | I4: 12-18 | J4: 7-18 | L4: 7-11 | M4: 12-18 | N4: 7-11 | O4: 12-18 | P4: 7-11 | Q4: 12-18 | R4: 7-11 | S4: 12-18 | T4: 7-18 | V4: 7-11 | W4: 12-18 | X4: 7-18 | Z4: 7-18 | AB4: 7-11 | AC4: 12-18
B5: Выход,гр | D5: 150/4 | E5: 200/5 | F5: 200/15 | H5: 30/15 | I5: 50/15 | J5: 100 | L5: 60 | M5: 100 | N5: 200/11/10 | O5: 250/11/10 | P5: 55/50 | Q5: 55/50 | R5: 150 | S5: 180 | T5: 200 | V5: 40/40 | W5: 50/50 | X5: 200 | Z5: 75 | AD5: =AB5+AC5 -> 0
B7: Хлебобулочные изделия
A8: 1 | B8: батон | C8: кг | H8: 0.0300 | I8: 0.0500 | AB8: =(D8+F8+H8+J8+L8+N8+P8+R8+T8+V8+X8+Z8)*$AB$5 -> 0.0000 | AC8: =(E8+F8+I8+J8+M8+O8+Q8+S8+T8+W8+X8+Z8)*$AC$5 -> 0.0000 | AD8: =AB8+AC8 -> 0.0000
A9: 2 | B9: хлеб пшеничный | C9: кг | N9: 0.0018 | O9: 0.0018 | P9: 0,0077 | Q9: 0.0077 | V9: 0.0400 | W9: 0.0500 | AB9: =(D9+F9+H9+J9+L9+N9+P9+R9+T9+V9+X9+Z9)*$AB$5 -> 0.0000 | AC9: =(E9+F9+I9+J9+M9+O9+Q9+S9+T9+W9+X9+Z9)*$AC$5 -> 0.0000 | AD9: =AB9+AC9 -> 0.0000
A10: 3 | B10: хлеб ржаной | C10: кг | V10: 0.0400 | W10: 0.0500 | AB10: 0.0000 | AC10: 0.0000 | AD10: 0.0000
A11: 4 | B11: сухари панировочные | C11: кг | AB11: 0.0000 | AC11: 0.0000 | AD11: 0.0000
A12: 5 | B12: хлебцы ржаные | AB12: 0.0000 | AC12: 0.0000 | AD12: 0.0000
B13: Мясо | AB13: 0.0000 | AC13: 0.0000 | AD13: 0.0000
A14: 6 | B14: говядина (котлетное мясо) | C14: кг | AB14: 0.0000 | AC14: 0.0000 | AD14: 0.0000
B15: или фарш говяжий | AB15: 0.0000 | AC15: 0.0000 | AD15: 0.0000
A16: 7 | B16: говядина лопатка б/к | C16: кг | AB16: 0.0000 | AC16: 0.0000 | AD16: 0.0000
B17: или говядина потушная | C17: кг | AB17: 0.0000 | AC17: 0.0000 | AD17: 0.0000
A18: 8 | B18: сосиски куриные "Халяль" | AB18: 0.0000 | AC18: 0.0000 | AD18: 0.0000
A19: 9 | B19: куриная грудка | C19: кг | N19: 0.0100 | O19: 0.0100 | AB19: 0.0000 | AC19: 0.0000 | AD19: 0.0000
A20: 10 | B20: куры/цыплята потрош. | C20: кг | AB20: 0.0000 | AC20: 0.0000 | AD20: 0.0000
A21: 11 | B21: филе грудок индейки | AB21: 0.0000 | AC21: 0.0000 | AD21: 0.0000
B22: Рыба | AB22: 0.0000 | AC22: 0.0000 | AD22: 0.0000
A23: 12 | B23: фарш минтая | C23: кг | AB23: 0.0000 | AC23: 0.0000 | AD23: 0.0000
A24: 13 | B24: минтай б/г с/м | C24: кг | P24: 0.0447 | Q24: 0.0447 | AB24: 0.0000 | AC24: 0.0000 | AD24: 0.0000
B25: Сыпучка | AB25: 0.0000 | AC25: 0.0000 | AD25: 0.0000
A26: 14 | B26: вермишель | C26: кг | AB26: 0.0000 | AC26: 0.0000 | AD26: 0.0000
A27: 15 | B27: геркулес | C27: кг | AB27: 0.0000 | AC27: 0.0000 | AD27: 0.0000
A28: 16 | B28: горох | C28: кг | AB28: 0.0000 | AC28: 0.0000 | AD28: 0.0000
A29: 17 | B29: гречневая крупа | C29: кг | AB29: 0.0000 | AC29: 0.0000 | AD29: 0.0000
A30: 18 | B30: кукурузная крупа | C30: кг | AB30: 0.0000 | AC30: 0.0000 | AD30: 0.0000
A31: 19 | B31: макаронные изделия | C31: кг | R31: 0.0525 | S31: 0.0630 | AB31: 0.0000 | AC31: 0.0000 | AD31: 0.0000
A32: 20 | B32: манная крупа | C32: кг | AB32: 0.0000 | AC32: 0.0000 | AD32: 0.0000
A33: 21 | B33: перловая крупа | C33: кг | AB33: 0.0000 | AC33: 0.0000 | AD33: 0.0000
A34: 22 | B34: полбяная крупа | C34: кг | AB34: 0.0000 | AC34: 0.0000 | AD34: 0.0000
A35: 23 | B35: пшеничная крупа | C35: кг | AB35: 0.0000 | AC35: 0.0000 | AD35: 0.0000
A36: 24 | B36: пшено | C36: кг | AB36: 0.0000 | AC36: 0.0000 | AD36: 0.0000
A37: 25 | B37: рис | C37: кг | D37: 0.0280 | E37: 0.0380 | AB37: 0.0000 | AC37: 0.0000 | AD37: 0.0000
A38: 26 | B38: мука пшеничная в/с | C38: кг | P38: 0.0055 | Q38: 0.0055 | AB38: 0.0000 | AC38: 0.0000 | AD38: 0.0000
A39: 27 | B39: сахарный песок | C39: кг | D39: 0.0040 | E39: 0.0060 | F39: 0.0150 | N39: 0.0015 | O39: 0.0015 | T39: 0.0200 | AB39: 0.0000 | AC39: 0.0000 | AD39: 0.0000
A40: 28 | B40: соль | C40: кг | D40: 0.0003 | E40: 0.0010 | N40: 0.0033 | O40: 0.0038 | P40: 0.0018 | Q40: 0.0018 | R40: 0.0025 | S40: 0.0030 | AB40: 0.0000 | AC40: 0.0000 | AD40: 0.0000
A41: 29 | B41: ячневая крупа | AB41: 0.0000 | AC41: 0.0000 | AD41: 0.0000
B42: Масло / сыр | AB42: 0.0000 | AC42: 0.0000 | AD42: 0.0000
A43: 30 | B43: масло растительное | C43: кг | N43: 0.0040 | O43: 0.0050 | R43: 0.0030 | S43: 0.0030 | AB43: 0.0000 | AC43: 0.0000 | AD43: 0.0000
A44: 31 | B44: масло сливочное | C44: кг | D44: 0.0040 | E44: 0.0050 | P44: 0.0055 | Q44: 0.0055 | AB44: 0.0000 | AC44: 0.0000 | AD44: 0.0000
A45: 32 | B45: сыр голландский | C45: кг | H45: 0.0150 | I45: 0.0150 | AB45: 0.0000 | AC45: 0.0000 | AD45: 0.0000
B46: Молоко и молочная продукция | AB46: 0.0000 | AC46: 0.0000 | AD46: 0.0000
A47: 33 | B47: молоко 2,5% | C47: л | D47: 0.0750 | E47: 0.1000 | F47: 0.0510 | P47: 0.0250 | Q47: 0.0250 | AB47: 0.0000 | AC47: 0.0000 | AD47: 0.0000
A48: 34 | B48: катык 2,5% | C48: кг | AB48: 0.0000 | AC48: 0.0000 | AD48: 0.0000
A49: 35 | B49: кефир 2,5% | C49: кг | AB49: 0.0000 | AC49: 0.0000 | AD49: 0.0000
A50: 36 | B50: ряженка | C50: кг | AB50: 0.0000 | AC50: 0.0000 | AD50: 0.0000
A51: 37 | B51: напиток ацидоф | C51: кг | AB51: 0.0000 | AC51: 0.0000 | AD51: 0.0000
A52: 38 | B52: творог | C52: кг | AB52: 0.0000 | AC52: 0.0000 | AD52: 0.0000
A53: 39 | B53: сметана | C53: кг | N53: 0.0100 | O53: 0.0100 | AB53: 0.0000 | AC53: 0.0000 | AD53: 0.0000
B54: Консервы | C54: кг | AB54: 0.0000 | AC54: 0.0000 | AD54: 0.0000
B55: кукуруза. Конс. | C55: кг | AB55: 0.0000 | AC55: 0.0000 | AD55: 0.0000
A56: 40 | B56: зеленый горошек с/м | C56: кг | AB56: 0.0000 | AC56: 0.0000 | AD56: 0.0000
A57: 41 | B57: молоко сгущенное | C57: кг | AB57: 0.0000 | AC57: 0.0000 | AD57: 0.0000
A58: 42 | B58: огурцы соленые | C58: кг | AB58: 0.0000 | AC58: 0.0000 | AD58: 0.0000
A59: 43 | B59: повидло | C59: кг | AB59: 0.0000 | AC59: 0.0000 | AD59: 0.0000
A60: 44 | B60: томатная паста | C60: кг | N60: 0.0024 | O60: 0.0030 | AB60: 0.0000 | AC60: 0.0000 | AD60: 0.0000
B61: Чай/какао/кофейный напиток | AB61: 0.0000 | AC61: 0.0000 | AD61: 0.0000
A62: 45 | B62: чай весовой | C62: кг | F62: 0.0010 | AB62: 0.0000 | AC62: 0.0000 | AD62: 0.0000
A63: 46 | B63: чай зеленый | AB63: 0.0000 | AC63: 0.0000 | AD63: 0.0000
A64: 47 | B64: какао | C64: кг | AB64: 0.0000 | AC64: 0.0000 | AD64: 0.0000
A65: 48 | B65: кисель | C65: кг | AB65: 0.0000 | AC65: 0.0000 | AD65: 0.0000
A66: 49 | B66: кофейный напиток | C66: кг | AB66: 0.0000 | AC66: 0.0000 | AD66: 0.0000
B67: Фрукты | AB67: 0.0000 | AC67: 0.0000 | AD67: 0.0000
A68: 50 | B68: апельсин | C68: кг | AB68: 0.0000 | AC68: 0.0000 | AD68: 0.0000
A69: 51 | B69: банан | C69: кг | AB69: 0.0000 | AC69: 0.0000 | AD69: 0.0000
A70: 52 | B70: груши | C70: кг | AB70: 0.0000 | AC70: 0.0000 | AD70: 0.0000
A71: 53 | B71: лимон | C71: кг | AB71: 0.0000 | AC71: 0.0000 | AD71: 0.0000
A72: 54 | B72: яблоки свежие | C72: кг | AB72: 0.0000 | AC72: 0.0000 | AD72: 0.0000
A73: 55 | B73: мандарин | J73: 0,100 | AB73: =(D73+F73+H73+J73+L73+N73+P73+R73+T73+V73+X73+Z73)*$AB$5 -> 0.0000 | AC73: =(E73+F73+I73+J73+M73+O73+Q73+S73+T73+W73+X73+Z73)*$AC$5 -> 0.0000 | AD73: =AB73+AC73 -> 0.0000
B74: Сухофрукты | AB74: 0.0000 | AC74: 0.0000 | AD74: 0.0000
A75: 56 | B75: ассорти для компота (сухофрукты) | C75: кг | AB75: 0.0000 | AC75: 0.0000 | AD75: 0.0000
A76: 57 | B76: груши сушеные | AB76: 0.0000 | AC76: 0.0000 | AD76: 0.0000
A77: 58 | B77: изюм | C77: кг | AB77: 0.0000 | AC77: 0.0000 | AD77: 0.0000
A78: 59 | B78: курага | AB78: 0.0000 | AC78: 0.0000 | AD78: 0.0000
A79: 60 | B79: урюк | C79: кг | AB79: 0.0000 | AC79: 0.0000 | AD79: 0.0000
A80: 61 | B80: шиповник | C80: кг | T80: 0.0200 | AB80: 0.0000 | AC80: 0.0000 | AD80: 0.0000
A81: 62 | B81: яблоки сушеные | AB81: 0.0000 | AC81: 0.0000 | AD81: 0.0000
A82: 63 | B82: чернослив | AB82: 0.0000 | AC82: 0.0000 | AD82: 0.0000
B83: Овощи / зелень | AB83: 0.0000 | AC83: 0.0000 | AD83: 0.0000
A84: 64 | B84: зелень (укроп,петрушка) | C84: кг | AB84: 0.0000 | AC84: 0.0000 | AD84: 0.0000
A85: 65 | B85: кабачки с/м | AB85: 0.0000 | AC85: 0.0000 | AD85: 0.0000
A86: 66 | B86: капуста свежая | C86: кг | AB86: 0.0000 | AC86: 0.0000 | AD86: 0.0000
A87: 67 | B87: капуста цветная с/м | AB87: 0.0000 | AC87: 0.0000 | AD87: 0.0000
A88: 68 | B88: картофель | C88: кг | N88: 0.0260 | O88: 0.0333 | AB88: 0.0000 | AC88: 0.0000 | AD88: 0.0000
A89: 69 | B89: лук репчатый | C89: кг | N89: 0.0096 | O89: 0.0120 | P89: 0.0092 | Q89: 0.0092 | AB89: 0.0000 | AC89: 0.0000 | AD89: 0.0000
A90: 70 | B90: морковь | C90: кг | N90: 0.0125 | O90: 0.0156 | AB90: 0.0000 | AC90: 0.0000 | AD90: 0.0000
A91: 71 | B91: огурцы св. | C91: кг | AB91: 0.0000 | AC91: 0.0000 | AD91: 0.0000
A92: 72 | B92: свекла | C92: кг | N92: 0.0400 | O92: 0.0500 | AB92: 0.0000 | AC92: 0.0000 | AD92: 0.0000
A93: 73 | B93: томаты св. | C93: кг | L93: 0.0612 | M93: 0.1020 | AB93: 0.0000 | AC93: 0.0000 | AD93: 0.0000
A94: 74 | B94: фасоль к/с | N94: 0.0160 | O94: 0.0200 | AB94: 0.0000 | AC94: 0.0000 | AD94: 0.0000
A95: 75 | B95: чеснок | AB95: 0.0000 | AC95: 0.0000 | AD95: 0.0000
B96: Кондитерские изделия, мучные п/ф | AB96: 0.0000 | AC96: 0.0000 | AD96: 0.0000
B97: батончик злаковый | C97: шт | AB97: 0.0000 | AC97: 0.0000 | AD97: 0.0000
A98: 76 | B98: блины п/ф | C98: кг | AB98: 0.0000 | AC98: 0.0000 | AD98: 0.0000
A99: 77 | B99: печенье | C99: кг | AB99: 0.0000 | AC99: 0.0000 | AD99: 0.0000
A100: 75 | B100: вафли | Z100: 0,075 | AB100: 0.0000 | AC100: 0.0000 | AD100: 0.0000
B101: Сок | AB101: 0.0000 | AC101: 0.0000 | AD101: 0.0000
A102: 78 | B102: сок в ассортименте разливной | C102: л | X102: 0.2000 | AB102: 0.0000 | AC102: 0.0000 | AD102: 0.0000
B103: сок в индувид.упаковке (0,2л) | C103: л | AB103: 0.0000 | AC103: 0.0000 | AD103: 0.0000
B104: Специи | AB104: 0.0000 | AC104: 0.0000 | AD104: 0.0000
A105: 79 | B105: дрожжи | C105: кг | AB105: 0.0000 | AC105: 0.0000 | AD105: 0.0000
A106: 80 | B106: кислота лимонная | C106: кг | AB106: 0.0000 | AC106: 0.0000 | AD106: 0.0000
A107: 81 | B107: клетчатка | C107: кг | AB107: 0.0000 | AC107: 0.0000 | AD107: 0.0000
B108: Яйцо | AB108: 0.0000 | AC108: 0.0000 | AD108: 0.0000
A109: 82 | B109: яйцо куриное | C109: шт | P109: 0.0053 | Q109: 0.0053 | AB109: 0.0000 | AC109: 0.0000 | AD109: 0.0000
Z110: 0.0480 | AB110: =AB109/Z110 -> 0 | AC110: =AC109/Z110 -> 0 | AD110: 0

Sheet День 10 (hidden)
A1: № | B1: Продукт | C1: Ед.изм. | D1: Нормы расхода продуктов в день,кг
D2: Завтрак | L2: Обед | X2: Полдник | AB2: Количество детей | AD2: ИТОГО
B3: ДЕНЬ 10 | D3: Каша пшеничная молочная с маслом | F3: какао с молоком | H3: батон, масло сливочное | J3: фрукты БАНАН | L3: зеленый горошек /доп гарнир/ | N3: Рассольник Ленинградский со сметаной | P3: запеканка картофельная с мясом | T3: Кисель | V3: Хлеб белый, сельский | X3: Напиток ацидоф/Йогурт разлив | Z3: Батончик злаковый
B4: Возрастная группа | D4: 7-11 | E4: 12-18 | F4: 7-18 | H4: 7-11 | I4: 12-18 | J4: 7-18 | L4: 7-11 | M4: 12-18 | N4: 7-11 | O4: 12-18 | P4: 7-11 | Q4: 12-18 | T4: 7-18 | V4: 7-11 | W4: 12-18 | X4: 7-11 | Y4: 12-18 | Z4: 7-18 | AB4: 7-11 | AC4: 12-18
B5: Выход,гр | D5: 150/4 | E5: 200/5 | F5: 200 | H5: 25/10 | I5: 50/10 | J5: 200 | L5: 60 | M5: 30 | N5: 200/10 | O5: 250/10 | P5: 50/200 | Q5: 50/250 | T5: 200 | V5: 40/40 | W5: 50/50 | X5: 180 | Y5: 200 | Z5: 25 | AD5: =AB5+AC5 -> 0
B7: Хлебобулочные изделия
A8: 1 | B8: батон | C8: кг | H8: 0.0300 | I8: 0.0500 | AB8: =(D8+F8+H8+J8+L8+N8+P8+T8+V8+X8+Z8)*$AB$5 -> 0.0000 | AC8: =(E8+F8+I8+J8+M8+O8+Q8+T8+W8+Y8+Z8)*$AC$5 -> 0.0000 | AD8: =AB8+AC8 -> 0.0000
A9: 2 | B9: хлеб пшеничный | C9: кг | V9: 0.0400 | W9: 0.0500 | AB9: =(D9+F9+H9+J9+L9+N9+P9+T9+V9+X9+Z9)*$AB$5 -> 0.0000 | AC9: =(E9+F9+I9+J9+M9+O9+Q9+T9+W9+Y9+Z9)*$AC$5 -> 0.0000 | AD9: =AB9+AC9 -> 0.0000
A10: 3 | B10: хлеб ржаной | C10: кг | V10: 0.0400 | W10: 0.0500 | AB10: 0.0000 | AC10: 0.0000 | AD10: 0.0000
A11: 4 | B11: сухари панировочные | C11: кг | P11: 0.0030 | Q11: 0.0045 | AB11: 0.0000 | AC11: 0.0000 | AD11: 0.0000
A12: 5 | B12: хлебцы ржаные | AB12: 0.0000 | AC12: 0.0000 | AD12: 0.0000
B13: Мясо | AB13: 0.0000 | AC13: 0.0000 | AD13: 0.0000
A14: 6 | B14: говядина (котлетное мясо) | C14: кг | P14: 0.0653 | Q14: 0.0653 | AB14: 0.0000 | AC14: 0.0000 | AD14: 0.0000
B15: или фарш говяжий | P15: 0.0625 | Q15: 0.0625 | AB15: 0.0000 | AC15: 0.0000 | AD15: 0.0000
A16: 7 | B16: говядина лопатка б/к | C16: кг | AB16: 0.0000 | AC16: 0.0000 | AD16: 0.0000
B17: или говядина потушная | C17: кг | AB17: 0.0000 | AC17: 0.0000 | AD17: 0.0000
A18: 8 | B18: сосиски куриные "Халяль" | AB18: 0.0000 | AC18: 0.0000 | AD18: 0.0000
A19: 9 | B19: куриная грудка | C19: кг | AB19: 0.0000 | AC19: 0.0000 | AD19: 0.0000
A20: 10 | B20: куры/цыплята потрош. | C20: кг | AB20: 0.0000 | AC20: 0.0000 | AD20: 0.0000
A21: 11 | B21: филе грудок индейки | AB21: 0.0000 | AC21: 0.0000 | AD21: 0.0000
B22: Рыба | AB22: 0.0000 | AC22: 0.0000 | AD22: 0.0000
A23: 12 | B23: горбуша ПБГ с/м | C23: кг | AB23: 0.0000 | AC23: 0.0000 | AD23: 0.0000
A24: 13 | B24: минтай б/г с/м | C24: кг | AB24: 0.0000 | AC24: 0.0000 | AD24: 0.0000
B25: Сыпучка | AB25: 0.0000 | AC25: 0.0000 | AD25: 0.0000
A26: 14 | B26: вермишель | C26: кг | AB26: 0.0000 | AC26: 0.0000 | AD26: 0.0000
A27: 15 | B27: геркулес | C27: кг | AB27: 0.0000 | AC27: 0.0000 | AD27: 0.0000
A28: 16 | B28: горох | C28: кг | AB28: 0.0000 | AC28: 0.0000 | AD28: 0.0000
A29: 17 | B29: гречневая крупа | C29: кг | AB29: 0.0000 | AC29: 0.0000 | AD29: 0.0000
A30: 18 | B30: кукурузная крупа | C30: кг | AB30: 0.0000 | AC30: 0.0000 | AD30: 0.0000
A31: 19 | B31: макаронные изделия | C31: кг | AB31: 0.0000 | AC31: 0.0000 | AD31: 0.0000
A32: 20 | B32: манная крупа | C32: кг | AB32: 0.0000 | AC32: 0.0000 | AD32: 0.0000
A33: 21 | B33: перловая крупа | C33: кг | N33: 0.0040 | O33: 0.0050 | AB33: 0.0000 | AC33: 0.0000 | AD33: 0.0000
A34: 22 | B34: полбяная крупа | C34: кг | AB34: 0.0000 | AC34: 0.0000 | AD34: 0.0000
A35: 23 | B35: пшеничная крупа | C35: кг | D35: 0.0300 | E35: 0.0350 | AB35: 0.0000 | AC35: 0.0000 | AD35: 0.0000
A36: 24 | B36: пшено | C36: кг | AB36: 0.0000 | AC36: 0.0000 | AD36: 0.0000
A37: 25 | B37: рис | C37: кг | AB37: 0.0000 | AC37: 0.0000 | AD37: 0.0000
A38: 26 | B38: мука пшеничная в/с | C38: кг | AB38: 0.0000 | AC38: 0.0000 | AD38: 0.0000
A39: 27 | B39: сахарный песок | C39: кг | D39: 0.0040 | E39: 0.0060 | F39: 0.0200 | T39: 0.0100 | AB39: 0.0000 | AC39: 0.0000 | AD39: 0.0000
A40: 28 | B40: соль | C40: кг | D40: 0.0003 | E40: 0.0010 | N40: 0.0008 | O40: 0.0010 | P40: 0,001 | Q40: 0.0012 | AB40: 0.0000 | AC40: 0.0000 | AD40: 0.0000
A41: 29 | B41: ячневая крупа | AB41: 0.0000 | AC41: 0.0000 | AD41: 0.0000
B42: Масло / сыр | AB42: 0.0000 | AC42: 0.0000 | AD42: 0.0000
A43: 30 | B43: масло растительное | C43: кг | N43: 0.0040 | O43: 0.0050 | P43: 0.0060 | Q43: 0.0065 | AB43: 0.0000 | AC43: 0.0000 | AD43: 0.0000
A44: 31 | B44: масло сливочное | C44: кг | D44: 0.0040 | E44: 0.0050 | H44: 0.0100 | I44: 0.0100 | AB44: 0.0000 | AC44: 0.0000 | AD44: 0.0000
A45: 32 | B45: сыр голландский | C45: кг | AB45: 0.0000 | AC45: 0.0000 | AD45: 0.0000
B46: Молоко и молочная продукция | AB46: 0.0000 | AC46: 0.0000 | AD46: 0.0000
A47: 33 | B47: молоко 2,5% | C47: л | D47: 0.0750 | E47: 0.1000 | F47: 0.1000 | AB47: 0.0000 | AC47: 0.0000 | AD47: 0.0000
A48: 34 | B48: катык 2,5% | C48: кг | AB48: 0.0000 | AC48: 0.0000 | AD48: 0.0000
A49: 35 | B49: кефир 2,5% | C49: кг | AB49: 0.0000 | AC49: 0.0000 | AD49: 0.0000
A50: 36 | B50: ряженка 2,5% | C50: кг | AB50: 0.0000 | AC50: 0.0000 | AD50: 0.0000
A51: 37 | B51: напиток ацидофильный 2,5% | X51: 0.1850 | Y51: 0.2070 | AB51: 0.0000 | AC51: 0.0000 | AD51: 0.0000
A52: 38 | B52: творог | C52: кг | AB52: 0.0000 | AC52: 0.0000 | AD52: 0.0000
A53: 39 | B53: сметана | C53: кг | N53: 0.0100 | O53: 0.0100 | AB53: 0.0000 | AC53: 0.0000 | AD53: 0.0000
B54: Консервы | C54: кг | AB54: 0.0000 | AC54: 0.0000 | AD54: 0.0000
B55: кукуруза к/с | C55: кг | AB55: 0.0000 | AC55: 0.0000 | AD55: 0.0000
A56: 40 | B56: зеленый горошек к/с | C56: кг | L56: 0.1000 | M56: 0.0500 | AB56: 0.0000 | AC56: 0.0000 | AD56: 0.0000
A57: 41 | B57: молоко сгущенное | C57: кг | AB57: 0.0000 | AC57: 0.0000 | AD57: 0.0000
A58: 42 | B58: огурцы соленые | C58: кг | N58: 0.0200 | O58: 0.0273 | AB58: 0.0000 | AC58: 0.0000 | AD58: 0.0000
A59: 43 | B59: повидло | C59: кг | AB59: 0.0000 | AC59: 0.0000 | AD59: 0.0000
A60: 44 | B60: томатная паста | C60: кг | AB60: 0.0000 | AC60: 0.0000 | AD60: 0.0000
B61: Чай/какао/кофейный напиток | AB61: 0.0000 | AC61: 0.0000 | AD61: 0.0000
A62: 45 | B62: чай весовой | C62: кг | AB62: 0.0000 | AC62: 0.0000 | AD62: 0.0000
A63: 46 | B63: чай зеленый | AB63: 0.0000 | AC63: 0.0000 | AD63: 0.0000
A64: 47 | B64: какао | C64: кг | F64: 0,004 | AB64: 0.0000 | AC64: 0.0000 | AD64: 0.0000
A65: 48 | B65: кисель | C65: кг | T65: 0.0240 | AB65: 0.0000 | AC65: 0.0000 | AD65: 0.0000
A66: 49 | B66: кофейный напиток | C66: кг | AB66: 0.0000 | AC66: 0.0000 | AD66: 0.0000
B67: Фрукты | AB67: 0.0000 | AC67: 0.0000 | AD67: 0.0000
A68: 50 | B68: апельсин | C68: кг | AB68: 0.0000 | AC68: 0.0000 | AD68: 0.0000
A69: 51 | B69: банан | C69: кг | J69: 0.2000 | AB69: 0.0000 | AC69: 0.0000 | AD69: 0.0000
A70: 52 | B70: груши | C70: кг | AB70: 0.0000 | AC70: 0.0000 | AD70: 0.0000
A71: 53 | B71: лимон | C71: кг | AB71: 0.0000 | AC71: 0.0000 | AD71: 0.0000
A72: 54 | B72: яблоки свежие | C72: кг | AB72: 0.0000 | AC72: 0.0000 | AD72: 0.0000
A73: 55 | B73: яблоки зеленые | AB73: =(D73+F73+H73+J73+L73+N73+P73+T73+V73+X73+Z73)*$AB$5 -> 0.0000 | AC73: =(E73+F73+I73+J73+M73+O73+Q73+T73+W73+Y73+Z73)*$AC$5 -> 0.0000 | AD73: =AB73+AC73 -> 0.0000
B74: Сухофрукты | AB74: 0.0000 | AC74: 0.0000 | AD74: 0.0000
A75: 56 | B75: ассорти для компота (сухофрукты) | C75: кг | AB75: 0.0000 | AC75: 0.0000 | AD75: 0.0000
A76: 57 | B76: ягоды с/м (клюква,смородина черная) | AB76: 0.0000 | AC76: 0.0000 | AD76: 0.0000
A77: 58 | B77: изюм | C77: кг | AB77: 0.0000 | AC77: 0.0000 | AD77: 0.0000
A78: 59 | B78: курага | AB78: 0.0000 | AC78: 0.0000 | AD78: 0.0000
A79: 60 | B79: урюк | C79: кг | AB79: 0.0000 | AC79: 0.0000 | AD79: 0.0000
A80: 61 | B80: шиповник | C80: кг | AB80: 0.0000 | AC80: 0.0000 | AD80: 0.0000
A81: 62 | B81: компотная смесь с/м | AB81: 0.0000 | AC81: 0.0000 | AD81: 0.0000
A82: 63 | B82: чернослив | AB82: 0.0000 | AC82: 0.0000 | AD82: 0.0000
B83: Овощи / зелень | AB83: 0.0000 | AC83: 0.0000 | AD83: 0.0000
A84: 64 | B84: зеленый горошек с/м | C84: кг | AB84: 0.0000 | AC84: 0.0000 | AD84: 0.0000
A85: 65 | B85: кабачки с/м | AB85: 0.0000 | AC85: 0.0000 | AD85: 0.0000
A86: 66 | B86: капуста свежая | C86: кг | AB86: 0.0000 | AC86: 0.0000 | AD86: 0.0000
A87: 67 | B87: капуста цветная с/м | AB87: 0.0000 | AC87: 0.0000 | AD87: 0.0000
A88: 68 | B88: картофель | C88: кг | N88: 0.0800 | O88: 0.1000 | P88: 0.2840 | Q88: 0.3790 | AB88: 0.0000 | AC88: 0.0000 | AD88: 0.0000
A89: 69 | B89: лук репчатый | C89: кг | N89: 0.0048 | O89: 0.0060 | P89: 0.0155 | Q89: 0.0214 | AB89: 0.0000 | AC89: 0.0000 | AD89: 0.0000
A90: 70 | B90: морковь | C90: кг | N90: 0.0100 | O90: 0.0125 | AB90: 0.0000 | AC90: 0.0000 | AD90: 0.0000
A91: 71 | B91: огурцы св. | C91: кг | AB91: 0.0000 | AC91: 0.0000 | AD91: 0.0000
A92: 72 | B92: свекла | C92: кг | AB92: 0.0000 | AC92: 0.0000 | AD92: 0.0000
A93: 73 | B93: томаты св. | C93: кг | AB93: 0.0000 | AC93: 0.0000 | AD93: 0.0000
A94: 74 | B94: фасоль к/с | AB94: 0.0000 | AC94: 0.0000 | AD94: 0.0000
A95: 75 | B95: чеснок | AB95: 0.0000 | AC95: 0.0000 | AD95: 0.0000
B96: Кондитерские изделия | AB96: 0.0000 | AC96: 0.0000 | AD96: 0.0000
B97: батончик злаковый | Z97: 1 | AB97: 0.0000 | AC97: 0.0000 | AD97: 0.0000
A98: 76 | B98: блины п/ф | C98: кг | AB98: 0.0000 | AC98: 0.0000 | AD98: 0.0000
A99: 77 | B99: печенье | C99: кг | AB99: 0.0000 | AC99: 0.0000 | AD99: 0.0000
B100: вафли | AB100: 0.0000 | AC100: 0.0000 | AD100: 0.0000
B101: Сок | AB101: 0.0000 | AC101: 0.0000 | AD101: 0.0000
A102: 78 | B102: сок в ассортименте | C102: л | AB102: 0.0000 | AC102: 0.0000 | AD102: 0.0000
B103: сок в индувид.упаковке (0,2л) | C103: л | AB103: 0.0000 | AC103: 0.0000 | AD103: 0.0000
B104: Специи | AB104: 0.0000 | AC104: 0.0000 | AD104: 0.0000
A105: 79 | B105: дрожжи | C105: кг | AB105: 0.0000 | AC105: 0.0000 | AD105: 0.0000
A106: 80 | B106: кислота лимонная | C106: кг | AB106: 0.0000 | AC106: 0.0000 | AD106: 0.0000
A107: 81 | B107: клетчатка | C107: кг | AB107: 0.0000 | AC107: 0.0000 | AD107: 0.0000
B108: Яйцо | AB108: 0.0000 | AC108: 0.0000 | AD108: 0.0000
A109: 82 | B109: яйцо куриное | C109: шт | AB109: 0.0000 | AC109: 0.0000 | AD109: 0.0000
Z110: 0.0480 | AB110: =AB109/Z110 -> 0 | AC110: =AC109/Z110 -> 0 | AD110: 0

Sheet День 11 (hidden)
A1: № | B1: Продукт | C1: Ед.изм. | D1: Нормы расхода продуктов в день,кг
D2: Завтрак | L2: Обед | X2: Полдник | AB2: Количество детей | AD2: ИТОГО
B3: ДЕНЬ 11 | D3: Омлет натуральный с сосиками | F3: Чай с сахаром | H3: батон, масло сливочное | J3: фрукты ЯБЛОКО | L3: кукуруза к/с /доп гарнир/ | N3: Щи из св. капусты с картоф, куриными фрикад со сметаной | P3: Котлеты натуральные "Нежные" | R3: Рис отварной с маслом | T3: Компот из урюка и черснолива | V3: Хлеб белый, сельский | X3: Сок /Нектар фруктов (разлив) | Z3: Печенье
B4: Возрастная группа | D4: 7-11 | E4: 12-18 | F4: 7-18 | H4: 7-11 | I4: 12-18 | J4: 7-18 | L4: 7-11 | M4: 12-18 | N4: 7-11 | O4: 12-18 | P4: 7-11 | Q4: 12-18 | R4: 7-11 | S4: 12-18 | T4: 7-18 | V4: 7-11 | W4: 12-18 | X4: 7-18 | Z4: 7-18 | AB4: 7-11 | AC4: 12-18
B5: Выход,гр | D5: 35/150 | E5: 45/200 | F5: 200/15 | H5: 30/10 | I5: 50/10 | J5: 100 | L5: 30 | M5: 30 | N5: 200/11/10 | O5: 250/11/10 | P5: 90 | Q5: 100 | R5: 150/3 | S5: 180/5 | T5: 200 | V5: 40/40 | W5: 50/50 | X5: 200 | Z5: 50 | AD5: =AB5+AC5 -> 0
B7: Хлебобулочные изделия
A8: 1 | B8: батон | C8: кг | H8: 0.0300 | I8: 0.0500 | AB8: =(D8+F8+H8+J8+L8+N8+P8+R8+T8+V8+X8+Z8)*$AB$5 -> 0.0000 | AC8: =(E8+F8+I8+J8+M8+O8+Q8+S8+T8+W8+X8+Z8)*$AC$5 -> 0.0000 | AD8: =AB8+AC8 -> 0.0000
A9: 2 | B9: хлеб пшеничный | C9: кг | N9: 0.0018 | O9: 0.0018 | P9: 0.0160 | Q9: 0.0180 | V9: 0.0400 | W9: 0.0500 | AB9: =(D9+F9+H9+J9+L9+N9+P9+R9+T9+V9+X9+Z9)*$AB$5 -> 0.0000 | AC9: =(E9+F9+I9+J9+M9+O9+Q9+S9+T9+W9+X9+Z9)*$AC$5 -> 0.0000 | AD9: =AB9+AC9 -> 0.0000
A10: 3 | B10: хлеб ржаной | C10: кг | V10: 0.0400 | W10: 0.0500 | AB10: 0.0000 | AC10: 0.0000 | AD10: 0.0000
A11: 4 | B11: сухари панировочные | C11: кг | P11: 0.0090 | Q11: 0.0100 | AB11: 0.0000 | AC11: 0.0000 | AD11: 0.0000
A12: 5 | B12: лапша домашняя ПФ | C12: кг | AB12: 0.0000 | AC12: 0.0000 | AD12: 0.0000
B13: Мясо | AB13: 0.0000 | AC13: 0.0000 | AD13: 0.0000
A14: 6 | B14: говядина (котлетное мясо) | C14: кг | AB14: 0.0000 | AC14: 0.0000 | AD14: 0.0000
B15: или фарш говяжий | C15: кг | AB15: 0.0000 | AC15: 0.0000 | AD15: 0.0000
A16: 7 | B16: говядина лопатка б/к | C16: кг | AB16: 0.0000 | AC16: 0.0000 | AD16: 0.0000
B17: или говядина потушная | C17: кг | AB17: 0.0000 | AC17: 0.0000 | AD17: 0.0000
A18: 8 | B18: сосиски куриные "Халяль" | C18: кг | D18: 0.0385 | E18: 0.0495 | AB18: 0.0000 | AC18: 0.0000 | AD18: 0.0000
A19: 9 | B19: куриная грудка | C19: кг | N19: 0.0100 | O19: 0.0100 | P19: 0.0815 | Q19: 0.0905 | AB19: 0.0000 | AC19: 0.0000 | AD19: 0.0000
A20: 10 | B20: куры/цыплята потрош. | C20: кг | AB20: 0.0000 | AC20: 0.0000 | AD20: 0.0000
A21: 11 | B21: печень говяжья | C21: кг | AB21: 0.0000 | AC21: 0.0000 | AD21: 0.0000
B22: Рыба | AB22: 0.0000 | AC22: 0.0000 | AD22: 0.0000
A23: 12 | B23: фарш из минтая с/м | C23: кг | AB23: 0.0000 | AC23: 0.0000 | AD23: 0.0000
A24: 13 | B24: минтай б/г с/м | C24: кг | AB24: 0.0000 | AC24: 0.0000 | AD24: 0.0000
B25: Сыпучка | AB25: 0.0000 | AC25: 0.0000 | AD25: 0.0000
A26: 14 | B26: вермишель | C26: кг | AB26: 0.0000 | AC26: 0.0000 | AD26: 0.0000
A27: 15 | B27: геркулес | C27: кг | AB27: 0.0000 | AC27: 0.0000 | AD27: 0.0000
A28: 16 | B28: горох | C28: кг | AB28: 0.0000 | AC28: 0.0000 | AD28: 0.0000
A29: 17 | B29: гречневая крупа | C29: кг | AB29: 0.0000 | AC29: 0.0000 | AD29: 0.0000
A30: 18 | B30: кукурузная крупа | C30: кг | AB30: 0.0000 | AC30: 0.0000 | AD30: 0.0000
A31: 19 | B31: макаронные изделия | C31: кг | AB31: 0.0000 | AC31: 0.0000 | AD31: 0.0000
A32: 20 | B32: манная крупа | C32: кг | AB32: 0.0000 | AC32: 0.0000 | AD32: 0.0000
A33: 21 | B33: перловая крупа | C33: кг | AB33: 0.0000 | AC33: 0.0000 | AD33: 0.0000
A34: 22 | B34: полбяная крупа | C34: кг | AB34: 0.0000 | AC34: 0.0000 | AD34: 0.0000
A35: 23 | B35: пшеничная крупа | C35: кг | AB35: 0.0000 | AC35: 0.0000 | AD35: 0.0000
A36: 24 | B36: пшено | C36: кг | AB36: 0.0000 | AC36: 0.0000 | AD36: 0.0000
A37: 25 | B37: рис | C37: кг | R37: 0.0540 | S37: 0.0648 | AB37: 0.0000 | AC37: 0.0000 | AD37: 0.0000
A38: 26 | B38: мука пшеничная в/с | C38: кг | AB38: 0.0000 | AC38: 0.0000 | AD38: 0.0000
A39: 27 | B39: сахарный песок | C39: кг | F39: 0.0150 | T39: 0.0200 | AB39: 0.0000 | AC39: 0.0000 | AD39: 0.0000
A40: 28 | B40: соль | C40: кг | D40: 0.0010 | E40: 0.0010 | N40: 0.0033 | O40: 0.0038 | P40: 0.0009 | Q40: 0.0010 | R40: 0.0015 | S40: 0.0018 | AB40: 0.0000 | AC40: 0.0000 | AD40: 0.0000
A41: 29 | B41: ячневая крупа | AB41: 0.0000 | AC41: 0.0000 | AD41: 0.0000
B42: Масло / сыр | AB42: 0.0000 | AC42: 0.0000 | AD42: 0.0000
A43: 30 | B43: масло растительное | C43: кг | D43: 0.0093 | E43: 0.0095 | N43: 0.0040 | O43: 0.0050 | P43: 0.0045 | Q43: 0.0050 | AB43: 0.0000 | AC43: 0.0000 | AD43: 0.0000
A44: 31 | B44: масло сливочное | C44: кг | H44: 0.0100 | I44: 0.0100 | R44: 0.0030 | S44: 0.0050 | AB44: 0.0000 | AC44: 0.0000 | AD44: 0.0000
A45: 32 | B45: сыр голландский | C45: кг | AB45: 0.0000 | AC45: 0.0000 | AD45: 0.0000
B46: Молоко и молочная продукция | AB46: 0.0000 | AC46: 0.0000 | AD46: 0.0000
A47: 33 | B47: молоко 2,5% | C47: л | D47: 0.0314 | E47: 0.0423 | AB47: 0.0000 | AC47: 0.0000 | AD47: 0.0000
A48: 34 | B48: катык 2,5% | C48: кг | AB48: 0.0000 | AC48: 0.0000 | AD48: 0.0000
A49: 35 | B49: кефир 2,5% | C49: кг | AB49: 0.0000 | AC49: 0.0000 | AD49: 0.0000
A50: 36 | B50: ряженка 2,5% | C50: кг | AB50: 0.0000 | AC50: 0.0000 | AD50: 0.0000
A51: 37 | B51: напиток ацидофильный с подсластителем | C51: кг | AB51: 0.0000 | AC51: 0.0000 | AD51: 0.0000
A52: 38 | B52: творог | C52: кг | AB52: 0.0000 | AC52: 0.0000 | AD52: 0.0000
A53: 39 | B53: сметана | C53: кг | N53: 0.0100 | O53: 0.0100 | AB53: 0.0000 | AC53: 0.0000 | AD53: 0.0000
B54: Консервы | C54: кг | AB54: 0.0000 | AC54: 0.0000 | AD54: 0.0000
A55: 40 | B55: кукуруза к/с | C55: кг | L55: 0.0500 | M55: 0.0500 | AB55: 0.0000 | AC55: 0.0000 | AD55: 0.0000
A56: 41 | B56: зеленый горошек к/с | C56: кг | AB56: 0.0000 | AC56: 0.0000 | AD56: 0.0000
A57: 42 | B57: молоко сгущенное | C57: кг | AB57: 0.0000 | AC57: 0.0000 | AD57: 0.0000
A58: 43 | B58: огурцы соленые | C58: кг | AB58: 0.0000 | AC58: 0.0000 | AD58: 0.0000
A59: 44 | B59: повидло | C59: кг | AB59: 0.0000 | AC59: 0.0000 | AD59: 0.0000
A60: 45 | B60: томатная паста | C60: кг | N60: 0.0012 | O60: 0.0015 | AB60: 0.0000 | AC60: 0.0000 | AD60: 0.0000
B61: Чай/какао/кофейный напиток | AB61: 0.0000 | AC61: 0.0000 | AD61: 0.0000
A62: 46 | B62: чай весовой | C62: кг | F62: 0.0010 | AB62: 0.0000 | AC62: 0.0000 | AD62: 0.0000
A63: 47 | B63: чай зеленый | C63: кг | AB63: 0.0000 | AC63: 0.0000 | AD63: 0.0000
A64: 48 | B64: какао | C64: кг | AB64: 0.0000 | AC64: 0.0000 | AD64: 0.0000
A65: 49 | B65: кисель | C65: кг | AB65: 0.0000 | AC65: 0.0000 | AD65: 0.0000
A66: 50 | B66: кофейный напиток | C66: кг | AB66: 0.0000 | AC66: 0.0000 | AD66: 0.0000
B67: Фрукты | AB67: 0.0000 | AC67: 0.0000 | AD67: 0.0000
A68: 51 | B68: апельсин | C68: кг | AB68: 0.0000 | AC68: 0.0000 | AD68: 0.0000
A69: 52 | B69: банан | C69: кг | AB69: 0.0000 | AC69: 0.0000 | AD69: 0.0000
A70: 53 | B70: груши | C70: кг | AB70: 0.0000 | AC70: 0.0000 | AD70: 0.0000
A71: 54 | B71: лимон | C71: кг | AB71: 0.0000 | AC71: 0.0000 | AD71: 0.0000
A72: 55 | B72: яблоки свежие | C72: кг | J72: 0.1000 | AB72: 0.0000 | AC72: 0.0000 | AD72: 0.0000
A73: 56 | B73: яблоки зеленые | C73: кг | AB73: =(D73+F73+H73+J73+L73+N73+P73+R73+T73+V73+X73+Z73)*$AB$5 -> 0.0000 | AC73: =(E73+F73+I73+J73+M73+O73+Q73+S73+T73+W73+X73+Z73)*$AC$5 -> 0.0000 | AD73: =AB73+AC73 -> 0.0000
B74: Сухофрукты, ягоды замороженные | AB74: 0.0000 | AC74: 0.0000 | AD74: 0.0000
A75: 57 | B75: ассорти для компота (сухофрукты) | C75: кг | AB75: 0.0000 | AC75: 0.0000 | AD75: 0.0000
A76: 58 | B76: ягоды с/м (клюква,черная смородина) | C76: кг | AB76: 0.0000 | AC76: 0.0000 | AD76: 0.0000
A77: 59 | B77: изюм | C77: кг | AB77: 0.0000 | AC77: 0.0000 | AD77: 0.0000
A78: 60 | B78: курага | C78: кг | AB78: 0.0000 | AC78: 0.0000 | AD78: 0.0000
A79: 61 | B79: урюк | C79: кг | T79: 0.0100 | AB79: 0.0000 | AC79: 0.0000 | AD79: 0.0000
A80: 62 | B80: шиповник | C80: кг | AB80: 0.0000 | AC80: 0.0000 | AD80: 0.0000
A81: 63 | B81: Компотная смесь с/м | C81: кг | AB81: 0.0000 | AC81: 0.0000 | AD81: 0.0000
A82: 64 | B82: чернослив | C82: кг | T82: 0.0100 | AB82: 0.0000 | AC82: 0.0000 | AD82: 0.0000
B83: Овощи / зелень | AB83: 0.0000 | AC83: 0.0000 | AD83: 0.0000
A84: 65 | B84: зеленый горошек с/м | C84: кг | AB84: 0.0000 | AC84: 0.0000 | AD84: 0.0000
A85: 66 | B85: кабачки с/м | C85: кг | AB85: 0.0000 | AC85: 0.0000 | AD85: 0.0000
A86: 67 | B86: капуста свежая | C86: кг | N86: 0.0500 | O86: 0.0625 | AB86: 0.0000 | AC86: 0.0000 | AD86: 0.0000
A87: 68 | B87: капуста цветная с/м | C87: кг | AB87: 0.0000 | AC87: 0.0000 | AD87: 0.0000
A88: 69 | B88: картофель | C88: кг | N88: 0.0320 | O88: 0.0400 | AB88: 0.0000 | AC88: 0.0000 | AD88: 0.0000
A89: 70 | B89: лук репчатый | C89: кг | N89: 0.0106 | O89: 0.0130 | AB89: 0.0000 | AC89: 0.0000 | AD89: 0.0000
A90: 71 | B90: морковь | C90: кг | N90: 0.0110 | O90: 0.0140 | AB90: 0.0000 | AC90: 0.0000 | AD90: 0.0000
A91: 72 | B91: огурцы св. | C91: кг | AB91: 0.0000 | AC91: 0.0000 | AD91: 0.0000
A92: 73 | B92: свекла | C92: кг | AB92: 0.0000 | AC92: 0.0000 | AD92: 0.0000
A93: 74 | B93: томаты св. | C93: кг | AB93: 0.0000 | AC93: 0.0000 | AD93: 0.0000
A94: 75 | B94: фасоль к/с | C94: кг | AB94: 0.0000 | AC94: 0.0000 | AD94: 0.0000
A95: 76 | B95: чеснок | C95: кг | AB95: 0.0000 | AC95: 0.0000 | AD95: 0.0000
B96: Кондитерские изделия | AB96: 0.0000 | AC96: 0.0000 | AD96: 0.0000
A97: 77 | B97: батончик злаковый | C97: шт | AB97: 0.0000 | AC97: 0.0000 | AD97: 0.0000
A98: 78 | B98: блины п/ф | C98: кг | AB98: 0.0000 | AC98: 0.0000 | AD98: 0.0000
A99: 79 | B99: печенье | C99: кг | Z99: 0.0500 | AB99: 0.0000 | AC99: 0.0000 | AD99: 0.0000
A100: 80 | B100: вафли | C100: кг | AB100: 0.0000 | AC100: 0.0000 | AD100: 0.0000
B101: Сок | AB101: 0.0000 | AC101: 0.0000 | AD101: 0.0000
A102: 81 | B102: сок в ассортименте разливной | C102: л | X102: 0.2000 | AB102: 0.0000 | AC102: 0.0000 | AD102: 0.0000
A103: 82 | B103: сок в индувид.упаковке (0,2л) | C103: л | AB103: 0.0000 | AC103: 0.0000 | AD103: 0.0000
B104: Специи | AB104: 0.0000 | AC104: 0.0000 | AD104: 0.0000
A105: 83 | B105: дрожжи | C105: кг | AB105: 0.0000 | AC105: 0.0000 | AD105: 0.0000
A106: 84 | B106: кислота лимонная | C106: кг | AB106: 0.0000 | AC106: 0.0000 | AD106: 0.0000
A107: 85 | B107: клетчатка | C107: кг | AB107: 0.0000 | AC107: 0.0000 | AD107: 0.0000
B108: Яйцо | AB108: 0.0000 | AC108: 0.0000 | AD108: 0.0000
A109: 86 | B109: яйцо куриное | C109: кг | D109: 0.1004 | E109: 0.1353 | P109: 0.0022 | Q109: 0.0024 | AB109: 0.0000 | AC109: 0.0000 | AD109: 0.0000
Z110: 0.0480 | AB110: =AB109/Z110 -> 0 | AC110: =AC109/Z110 -> 0 | AD110: 0

Sheet День 12 (hidden)
A1: № | B1: Продукт | C1: Ед.изм. | D1: Нормы расхода продуктов в день,кг
D2: Завтрак | L2: Обед | X2: Полдник
B3: ДЕНЬ 12 | D3: каша геркулесовая молоч с маслом слив | F3: Оладьи со сгущенным молоком | H3: Кофейный напиток с молоком | J3: батон, сыр порционно | L3: Огурцы свежие порц | N3: Суп картоф с клецками, с мясными фрикад | P3: Тефтели из говядины в соусе томатном | R3: Каша гречневая рассыпчатая | T3: Напиток из шиповника | V3: Хлеб белый, сельский | X3: Кефир 2,5% | Z3: Сосиска в тесте запеченная | AB3: Количество детей | AD3: ИТОГО
B4: Возрастная группа | D4: 7-11 | E4: 12-18 | F4: 7-11 | G4: 12-18 | H4: 7-18 | J4: 7-11 | K4: 12-18 | L4: 7-11 | M4: 12-18 | N4: 7-11 | O4: 12-18 | P4: 7-11 | Q4: 12-18 | R4: 7-11 | S4: 12-18 | T4: 7-18 | V4: 7-11 | W4: 12-18 | X4: 7-11 | Y4: 12-18 | Z4: 7-18 | AB4: 7-11 | AC4: 12-18
B5: Выход,гр | D5: 150/4 | E5: 150/4 | F5: 120/25 | G5: 120/25 | H5: 200 | J5: 30/15 | K5: 40/15 | L5: 60 | M5: 100 | N5: 250/22 | O5: 200/22 | P5: 80/50 | Q5: 80/50 | R5: 150 | S5: 180 | T5: 200 | V5: 40/40 | W5: 50/50 | X5: 180 | Y5: 200 | Z5: 50/50 | AD5: =AB5+AC5 -> 0
B7: Хлебобулочные изделия
A8: 1 | B8: батон | C8: кг | J8: 0.0300 | K8: 0.0400 | AB8: =(D8+F8+H8+J8+L8+N8+P8+R8+T8+V8+X8+Z8)*$AB$5 -> 0.0000 | AC8: =(E8+G8+H8+K8+M8+O8+Q8+S8+T8+W8+Y8+Z8)*$AC$5 -> 0.0000 | AD8: =AB8+AC8 -> 0.0000
A9: 2 | B9: хлеб пшеничный | C9: кг | P9: 0.0100 | Q9: 0.0100 | V9: 0.0400 | W9: 0.0500 | AB9: =(D9+F9+H9+J9+L9+N9+P9+R9+T9+V9+X9+Z9)*$AB$5 -> 0.0000 | AC9: =(E9+G9+H9+K9+M9+O9+Q9+S9+T9+W9+Y9+Z9)*$AC$5 -> 0.0000 | AD9: =AB9+AC9 -> 0.0000
A10: 3 | B10: хлеб ржаной | C10: кг | V10: 0.0400 | W10: 0.0500 | AB10: 0.0000 | AC10: 0.0000 | AD10: 0.0000
A11: 4 | B11: сухари панировочные | C11: кг | AB11: 0.0000 | AC11: 0.0000 | AD11: 0.0000
A12: 5 | B12: лапша домашняя ПФ | C12: кг | AB12: 0.0000 | AC12: 0.0000 | AD12: 0.0000
B13: Мясо | AB13: 0.0000 | AC13: 0.0000 | AD13: 0.0000
A14: 6 | B14: говядина (котлетное мясо) | C14: кг | N14: 0,0262 | O14: 0.0262 | P14: 0.0532 | Q14: 0.0532 | AB14: 0.0000 | AC14: 0.0000 | AD14: 0.0000
B15: или фарш говяжий | N15: 0.0250 | O15: 0.0250 | P15: 0.0510 | Q15: 0.0510 | AB15: 0.0000 | AC15: 0.0000 | AD15: 0.0000
A16: 7 | B16: говядина лопатка б/к | C16: кг | AB16: 0.0000 | AC16: 0.0000 | AD16: 0.0000
B17: или говядина потушная | C17: кг | AB17: 0.0000 | AC17: 0.0000 | AD17: 0.0000
A18: 8 | B18: сосиски куриные "Халяль" | C18: кг | Z18: 0.0513 | AB18: 0.0000 | AC18: 0.0000 | AD18: 0.0000
A19: 9 | B19: куриная грудка | C19: кг | AB19: 0.0000 | AC19: 0.0000 | AD19: 0.0000
A20: 10 | B20: куры/цыплята потрош. | C20: кг | AB20: 0.0000 | AC20: 0.0000 | AD20: 0.0000
A21: 11 | B21: печень говяжья | C21: кг | AB21: 0.0000 | AC21: 0.0000 | AD21: 0.0000
B22: Рыба | AB22: 0.0000 | AC22: 0.0000 | AD22: 0.0000
A23: 12 | B23: фарш из минтая с/м | C23: кг | AB23: 0.0000 | AC23: 0.0000 | AD23: 0.0000
A24: 13 | B24: минтай б/г с/м | C24: кг | AB24: 0.0000 | AC24: 0.0000 | AD24: 0.0000
B25: Сыпучка | AB25: 0.0000 | AC25: 0.0000 | AD25: 0.0000
A26: 14 | B26: вермишель | C26: кг | AB26: 0.0000 | AC26: 0.0000 | AD26: 0.0000
A27: 15 | B27: геркулес | C27: кг | D27: 0.0280 | E27: 0.0280 | AB27: 0.0000 | AC27: 0.0000 | AD27: 0.0000
A28: 16 | B28: горох | C28: кг | AB28: 0.0000 | AC28: 0.0000 | AD28: 0.0000
A29: 17 | B29: гречневая крупа | C29: кг | R29: 0.0693 | S29: 0.0852 | AB29: 0.0000 | AC29: 0.0000 | AD29: 0.0000
A30: 18 | B30: кукурузная крупа | C30: кг | AB30: 0.0000 | AC30: 0.0000 | AD30: 0.0000
A31: 19 | B31: макаронные изделия | C31: кг | AB31: 0.0000 | AC31: 0.0000 | AD31: 0.0000
A32: 20 | B32: манная крупа | C32: кг | AB32: 0.0000 | AC32: 0.0000 | AD32: 0.0000
A33: 21 | B33: перловая крупа | C33: кг | AB33: 0.0000 | AC33: 0.0000 | AD33: 0.0000
A34: 22 | B34: полбяная крупа | C34: кг | AB34: 0.0000 | AC34: 0.0000 | AD34: 0.0000
A35: 23 | B35: пшеничная крупа | C35: кг | AB35: 0.0000 | AC35: 0.0000 | AD35: 0.0000
A36: 24 | B36: пшено | C36: кг | AB36: 0.0000 | AC36: 0.0000 | AD36: 0.0000
A37: 25 | B37: рис | C37: кг | AB37: 0.0000 | AC37: 0.0000 | AD37: 0.0000
A38: 26 | B38: мука пшеничная в/с | C38: кг | F38: 0.0680 | G38: 0.0680 | N38: 0.0180 | O38: 0.0200 | P38: 0.0063 | Q38: 0.0063 | Z38: 0.0387 | AB38: 0.0000 | AC38: 0.0000 | AD38: 0.0000
A39: 27 | B39: сахарный песок | C39: кг | D39: 0.0040 | E39: 0.0040 | F39: 0.0024 | G39: 0.0024 | H39: 0.0200 | P39: 0.0005 | Q39: 0.0005 | T39: 0.0200 | Z39: 0.0026 | AB39: 0.0000 | AC39: 0.0000 | AD39: 0.0000
A40: 28 | B40: соль | C40: кг | D40: 0.0008 | E40: 0.0008 | F40: 0.0013 | G40: 0.0013 | N40: 0.0009 | O40: 0.0010 | P40: 0.0005 | Q40: 0.0005 | R40: 0.0015 | S40: 0.0018 | Z40: 0.0006 | AB40: 0.0000 | AC40: 0.0000 | AD40: 0.0000
A41: 29 | B41: ячневая крупа | C41: кг | AB41: 0.0000 | AC41: 0.0000 | AD41: 0.0000
B42: Масло / сыр | AB42: 0.0000 | AC42: 0.0000 | AD42: 0.0000
A43: 30 | B43: масло растительное | C43: кг | F43: 0.0070 | G43: 0.0070 | N43: 0.0020 | O43: 0.0025 | P43: 0.0078 | Q43: 0.0078 | Z43: 0.0005 | AB43: 0.0000 | AC43: 0.0000 | AD43: 0.0000
A44: 31 | B44: масло сливочное | C44: кг | D44: 0.0040 | E44: 0.0040 | N44: 0.0020 | O44: 0.0023 | Z44: 0.0011 | AB44: 0.0000 | AC44: 0.0000 | AD44: 0.0000
A45: 32 | B45: сыр голландский | C45: кг | J45: 0.0150 | K45: 0.0150 | AB45: 0.0000 | AC45: 0.0000 | AD45: 0.0000
B46: Молоко и молочная продукция | AB46: 0.0000 | AC46: 0.0000 | AD46: 0.0000
A47: 33 | B47: молоко 2,5% | C47: л | D47: 0.0750 | E47: 0.0750 | F47: 0.0680 | G47: 0.0680 | H47: 0.0500 | AB47: 0.0000 | AC47: 0.0000 | AD47: 0.0000
A48: 34 | B48: катык 2,5% | C48: кг | AB48: 0.0000 | AC48: 0.0000 | AD48: 0.0000
A49: 35 | B49: кефир 2,5% | C49: кг | X49: 0.1850 | Y49: 0.2070 | AB49: 0.0000 | AC49: 0.0000 | AD49: 0.0000
A50: 36 | B50: ряженка 2,5% | C50: кг | AB50: 0.0000 | AC50: 0.0000 | AD50: 0.0000
A51: 37 | B51: напиток ацидофильный с подсластителем 2,5% | C51: кг | AB51: 0.0000 | AC51: 0.0000 | AD51: 0.0000
A52: 38 | B52: творог | C52: кг | AB52: 0.0000 | AC52: 0.0000 | AD52: 0.0000
A53: 39 | B53: сметана | C53: кг | AB53: 0.0000 | AC53: 0.0000 | AD53: 0.0000
B54: Консервы | C54: кг | AB54: 0.0000 | AC54: 0.0000 | AD54: 0.0000
A55: 40 | B55: кукуруза к/с | C55: кг | AB55: 0.0000 | AC55: 0.0000 | AD55: 0.0000
A56: 41 | B56: зеленый горошек к/с | C56: кг | AB56: 0.0000 | AC56: 0.0000 | AD56: 0.0000
A57: 42 | B57: молоко сгущенное | C57: кг | F57: 0.0200 | G57: 0.0200 | AB57: 0.0000 | AC57: 0.0000 | AD57: 0.0000
A58: 43 | B58: огурцы соленые | C58: кг | AB58: 0.0000 | AC58: 0.0000 | AD58: 0.0000
A59: 44 | B59: повидло | C59: кг | AB59: 0.0000 | AC59: 0.0000 | AD59: 0.0000
A60: 45 | B60: томатная паста | C60: кг | P60: 0.0030 | Q60: 0.0030 | AB60: 0.0000 | AC60: 0.0000 | AD60: 0.0000
B61: Чай/какао/кофейный напиток | AB61: 0.0000 | AC61: 0.0000 | AD61: 0.0000
A62: 46 | B62: чай весовой | C62: кг | AB62: 0.0000 | AC62: 0.0000 | AD62: 0.0000
A63: 47 | B63: чай зеленый | C63: кг | AB63: 0.0000 | AC63: 0.0000 | AD63: 0.0000
A64: 48 | B64: какао | C64: кг | AB64: 0.0000 | AC64: 0.0000 | AD64: 0.0000
A65: 49 | B65: кисель | C65: кг | AB65: 0.0000 | AC65: 0.0000 | AD65: 0.0000
A66: 50 | B66: кофейный напиток | C66: кг | H66: 0.0050 | AB66: 0.0000 | AC66: 0.0000 | AD66: 0.0000
B67: Фрукты | AB67: 0.0000 | AC67: 0.0000 | AD67: 0.0000
A68: 51 | B68: апельсин | C68: кг | AB68: 0.0000 | AC68: 0.0000 | AD68: 0.0000
A69: 52 | B69: банан | C69: кг | AB69: 0.0000 | AC69: 0.0000 | AD69: 0.0000
A70: 53 | B70: груши | C70: кг | AB70: 0.0000 | AC70: 0.0000 | AD70: 0.0000
A71: 54 | B71: лимон | C71: кг | AB71: 0.0000 | AC71: 0.0000 | AD71: 0.0000
A72: 55 | B72: яблоки свежие | C72: кг | AB72: 0.0000 | AC72: 0.0000 | AD72: 0.0000
A73: 56 | B73: яблоки зеленые | C73: кг | AB73: =(D73+F73+H73+J73+L73+N73+P73+R73+T73+V73+X73+Z73)*$AB$5 -> 0.0000 | AC73: =(E73+G73+H73+K73+M73+O73+Q73+S73+T73+W73+Y73+Z73)*$AC$5 -> 0.0000 | AD73: =AB73+AC73 -> 0.0000
B74: Сухофрукты | AB74: 0.0000 | AC74: 0.0000 | AD74: 0.0000
A75: 57 | B75: ассорти для компота (сухофрукты) | C75: кг | AB75: 0.0000 | AC75: 0.0000 | AD75: 0.0000
A76: 58 | B76: ягоды с/м (клюква,черная смородина) | C76: кг | AB76: 0.0000 | AC76: 0.0000 | AD76: 0.0000
A77: 59 | B77: изюм | C77: кг | AB77: 0.0000 | AC77: 0.0000 | AD77: 0.0000
A78: 60 | B78: курага | C78: кг | AB78: 0.0000 | AC78: 0.0000 | AD78: 0.0000
A79: 61 | B79: урюк | C79: кг | AB79: 0.0000 | AC79: 0.0000 | AD79: 0.0000
A80: 62 | B80: шиповник | C80: кг | T80: 0.0200 | AB80: 0.0000 | AC80: 0.0000 | AD80: 0.0000
A81: 63 | B81: компотная смесь с/м | C81: кг | AB81: 0.0000 | AC81: 0.0000 | AD81: 0.0000
A82: 64 | B82: чернослив | C82: кг | AB82: 0.0000 | AC82: 0.0000 | AD82: 0.0000
B83: Овощи / зелень | AB83: 0.0000 | AC83: 0.0000 | AD83: 0.0000
A84: 65 | B84: зеленый горошек с/м | C84: кг | AB84: 0.0000 | AC84: 0.0000 | AD84: 0.0000
A85: 66 | B85: кабачки с/м | C85: кг | AB85: 0.0000 | AC85: 0.0000 | AD85: 0.0000
A86: 67 | B86: капуста свежая | C86: кг | AB86: 0.0000 | AC86: 0.0000 | AD86: 0.0000
A87: 68 | B87: капуста цветная с/м | C87: кг | AB87: 0.0000 | AC87: 0.0000 | AD87: 0.0000
A88: 69 | B88: картофель | C88: кг | N88: 0.0530 | O88: 0.0668 | AB88: 0.0000 | AC88: 0.0000 | AD88: 0.0000
A89: 70 | B89: лук репчатый | C89: кг | N89: 0.0096 | O89: 0.0133 | P89: 0.0312 | Q89: 0.0312 | AB89: 0.0000 | AC89: 0.0000 | AD89: 0.0000
A90: 71 | B90: морковь | C90: кг | N90: 0.0100 | O90: 0.0125 | P90: 0.0044 | Q90: 0.0044 | AB90: 0.0000 | AC90: 0.0000 | AD90: 0.0000
A91: 72 | B91: огурцы св. | C91: кг | L91: 0.0612 | M91: 0.1020 | AB91: 0.0000 | AC91: 0.0000 | AD91: 0.0000
A92: 73 | B92: свекла | C92: кг | AB92: 0.0000 | AC92: 0.0000 | AD92: 0.0000
A93: 74 | B93: томаты св. | C93: кг | AB93: 0.0000 | AC93: 0.0000 | AD93: 0.0000
A94: 75 | B94: фасоль к/с | C94: кг | AB94: 0.0000 | AC94: 0.0000 | AD94: 0.0000
A95: 76 | B95: чеснок | C95: кг | AB95: 0.0000 | AC95: 0.0000 | AD95: 0.0000
B96: Кондитерские изделия | AB96: 0.0000 | AC96: 0.0000 | AD96: 0.0000
A97: 77 | B97: батончик злаковый | C97: шт | AB97: 0.0000 | AC97: 0.0000 | AD97: 0.0000
A98: 78 | B98: блины с/м ПФ | C98: кг | AB98: 0.0000 | AC98: 0.0000 | AD98: 0.0000
A99: 79 | B99: вафли | C99: кг | AB99: 0.0000 | AC99: 0.0000 | AD99: 0.0000
A100: 80 | B100: печенье | C100: кг | AB100: 0.0000 | AC100: 0.0000 | AD100: 0.0000
B101: Сок | AB101: 0.0000 | AC101: 0.0000 | AD101: 0.0000
A102: 81 | B102: сок в ассортименте | C102: л | AB102: 0.0000 | AC102: 0.0000 | AD102: 0.0000
A103: 82 | B103: сок в индувид.упаковке (0,2л) | C103: л | AB103: 0.0000 | AC103: 0.0000 | AD103: 0.0000
B104: Специи | AB104: 0.0000 | AC104: 0.0000 | AD104: 0.0000
A105: 83 | B105: дрожжи | C105: кг | F105: 0.0005 | G105: 0.0005 | Z105: 0.0003 | AB105: 0.0000 | AC105: 0.0000 | AD105: 0.0000
A106: 84 | B106: кислота лимонная | C106: кг | AB106: 0.0000 | AC106: 0.0000 | AD106: 0.0000
A107: 85 | B107: клетчатка | C107: кг | AB107: 0.0000 | AC107: 0.0000 | AD107: 0.0000
B108: Яйцо | AB108: 0.0000 | AC108: 0.0000 | AD108: 0.0000
A109: 86 | B109: яйцо куриное | C109: кг | F109: 0.0041 | G109: 0.0041 | N109: 0.0055 | O109: 0.0069 | P109: 0.0012 | Q109: 0.0012 | Z109: 0.0036 | AB109: 0.0000 | AC109: 0.0000 | AD109: 0.0000
Z110: 0.0048 | AB110: =AB109/Z110 -> 0 | AC110: =AC109/Z110 -> 0 | AD110: =AB110+AC110 -> 0

Sheet День 13 (hidden)
A1: № | B1: Продукт | C1: Ед.изм. | D1: Нормы расхода продуктов в день,кг
D2: Завтрак | N2: Обед | X2: Полдник
B3: ДЕНЬ 13 | D3: Каша пшеничная молочная с маслом | F3: Чай с молоком с сахаром | H3: батон, масло сливочное | J3: Фрукты АПЕЛЬСИН | L3: помидоры св порционно | N3: Суп картоф ГОРОХ с фрикадельками из птицы | P3: Филе минтая запеченное с сыром | R3: Пюре картофельное | T3: Напиток из замор черной смородины | V3: Хлеб белый, сельский | X3: Сок/ Нектар фруктовый (разливной) | Z3: батончик злаковый | AB3: Количество детей | AD3: ИТОГО
B4: Возрастная группа | D4: 7-11 | E4: 12-18 | F4: 7-18 | H4: 7-11 | I4: 12-18 | J4: 7-18 | L4: 7-11 | M4: 12-18 | N4: 7-11 | O4: 12-18 | P4: 7-11 | Q4: 12-18 | R4: 7-11 | S4: 12-18 | T4: 7-18 | V4: 7-11 | W4: 12-18 | X4: 7-18 | Z4: 7-18 | AB4: 7-11 | AC4: 12-18
B5: Выход,гр | D5: 150/4 | E5: 200/5 | F5: 200/15 | H5: 30/10 | I5: 50/10 | J5: 100 | L5: 60 | M5: 100 | N5: 200/11 | O5: 250/11 | P5: 80/10 | Q5: 100/10 | R5: 150 | S5: 180 | T5: 200 | V5: 40/40 | W5: 50/50 | X5: 200 | Z5: 25 | AD5: =AB5+AC5 -> 0
B7: Хлебобулочные изделия
A8: 1 | B8: батон | C8: кг | H8: 0.0300 | I8: 0.0500 | AB8: =(D8+F8+H8+J8+L8+N8+P8+R8+T8+V8+X8+Z8)*$AB$5 -> 0.0000 | AC8: =(E8+F8+I8+J8+M8+O8+Q8+S8+T8+W8+X8+Z8)*$AC$5 -> 0.0000 | AD8: =AB8+AC8 -> 0.0000
A9: 2 | B9: хлеб пшеничный | C9: кг | N9: 0,0018 | O9: 0,0018 | V9: 0.0400 | W9: 0.0500 | AB9: =(D9+F9+H9+J9+L9+N9+P9+R9+T9+V9+X9+Z9)*$AB$5 -> 0.0000 | AC9: =(E9+F9+I9+J9+M9+O9+Q9+S9+T9+W9+X9+Z9)*$AC$5 -> 0.0000 | AD9: =AB9+AC9 -> 0.0000
A10: 3 | B10: хлеб ржаной | C10: кг | V10: 0.0400 | W10: 0.0500 | AB10: 0.0000 | AC10: 0.0000 | AD10: 0.0000
A11: 4 | B11: сухари панировочные | C11: кг | AB11: 0.0000 | AC11: 0.0000 | AD11: 0.0000
A12: 5 | B12: лапша домашняя ПФ | C12: кг | AB12: 0.0000 | AC12: 0.0000 | AD12: 0.0000
B13: Мясо | AB13: 0.0000 | AC13: 0.0000 | AD13: 0.0000
A14: 6 | B14: говядина (котлетное мясо) | C14: кг | AB14: 0.0000 | AC14: 0.0000 | AD14: 0.0000
B15: или фарш говяжий | AB15: 0.0000 | AC15: 0.0000 | AD15: 0.0000
A16: 7 | B16: говядина лопатка б/к | C16: кг | AB16: 0.0000 | AC16: 0.0000 | AD16: 0.0000
B17: или говядина потушная | C17: кг | AB17: 0.0000 | AC17: 0.0000 | AD17: 0.0000
A18: 8 | B18: сосиски куриные "Халяль" | C18: кг | AB18: 0.0000 | AC18: 0.0000 | AD18: 0.0000
A19: 9 | B19: куриная грудка | C19: кг | N19: 0,010 | O19: 0,010 | AB19: 0.0000 | AC19: 0.0000 | AD19: 0.0000
A20: 10 | B20: куры/цыплята потрош. | C20: кг | AB20: 0.0000 | AC20: 0.0000 | AD20: 0.0000
A21: 11 | B21: печень говяжья | C21: кг | AB21: 0.0000 | AC21: 0.0000 | AD21: 0.0000
B22: Рыба | AB22: 0.0000 | AC22: 0.0000 | AD22: 0.0000
A23: 12 | B23: фарш из минтая с/м | C23: кг | AB23: 0.0000 | AC23: 0.0000 | AD23: 0.0000
A24: 13 | B24: минтай б/г с/м | C24: кг | P24: 0.1178 | Q24: 0.1472 | AB24: 0.0000 | AC24: 0.0000 | AD24: 0.0000
B25: Сыпучка | AB25: 0.0000 | AC25: 0.0000 | AD25: 0.0000
A26: 14 | B26: вермишель | C26: кг | AB26: 0.0000 | AC26: 0.0000 | AD26: 0.0000
A27: 15 | B27: геркулес | C27: кг | AB27: 0.0000 | AC27: 0.0000 | AD27: 0.0000
A28: 16 | B28: горох | C28: кг | N28: 0,0162 | O28: 0,0203 | AB28: 0.0000 | AC28: 0.0000 | AD28: 0.0000
A29: 17 | B29: гречневая крупа | C29: кг | AB29: 0.0000 | AC29: 0.0000 | AD29: 0.0000
A30: 18 | B30: кукурузная крупа | C30: кг | AB30: 0.0000 | AC30: 0.0000 | AD30: 0.0000
A31: 19 | B31: макаронные изделия | C31: кг | AB31: 0.0000 | AC31: 0.0000 | AD31: 0.0000
A32: 20 | B32: манная крупа | C32: кг | AB32: 0.0000 | AC32: 0.0000 | AD32: 0.0000
A33: 21 | B33: перловая крупа | C33: кг | AB33: 0.0000 | AC33: 0.0000 | AD33: 0.0000
A34: 22 | B34: полбяная крупа | C34: кг | AB34: 0.0000 | AC34: 0.0000 | AD34: 0.0000
A35: 23 | B35: пшеничная крупа | C35: кг | D35: 0.0300 | E35: 0.0350 | AB35: 0.0000 | AC35: 0.0000 | AD35: 0.0000
A36: 24 | B36: пшено | C36: кг | AB36: 0.0000 | AC36: 0.0000 | AD36: 0.0000
A37: 25 | B37: рис | C37: кг | AB37: 0.0000 | AC37: 0.0000 | AD37: 0.0000
A38: 26 | B38: мука пшеничная в/с | C38: кг | AB38: 0.0000 | AC38: 0.0000 | AD38: 0.0000
A39: 27 | B39: сахарный песок | C39: кг | D39: 0.0040 | E39: 0.0060 | F39: 0.0150 | T39: 0,020 | AB39: 0.0000 | AC39: 0.0000 | AD39: 0.0000
A40: 28 | B40: соль | C40: кг | D40: 0.0003 | E40: 0.0010 | N40: 0,0033 | O40: 0,0038 | P40: 0.0015 | Q40: 0.0015 | R40: 0.0010 | S40: 0.0012 | AB40: 0.0000 | AC40: 0.0000 | AD40: 0.0000
A41: 29 | B41: ячневая крупа | C41: кг | AB41: 0.0000 | AC41: 0.0000 | AD41: 0.0000
B42: Масло / сыр | AB42: 0.0000 | AC42: 0.0000 | AD42: 0.0000
A43: 30 | B43: масло растительное | C43: кг | N43: 0,004 | O43: 0,005 | P43: 0.0045 | Q43: 0.0045 | AB43: 0.0000 | AC43: 0.0000 | AD43: 0.0000
A44: 31 | B44: масло сливочное | C44: кг | D44: 0.0040 | E44: 0.0050 | H44: 0.0100 | I44: 0.0100 | R44: 0.0053 | S44: 0.0063 | AB44: 0.0000 | AC44: 0.0000 | AD44: 0.0000
A45: 32 | B45: сыр голландский | C45: кг | P45: 0.0102 | Q45: 0.0102 | AB45: 0.0000 | AC45: 0.0000 | AD45: 0.0000
B46: Молоко и молочная продукция | AB46: 0.0000 | AC46: 0.0000 | AD46: 0.0000
A47: 33 | B47: молоко 2,5% | C47: кг | D47: 0.0750 | E47: 0.1000 | F47: 0.0510 | R47: 0.0237 | S47: 0.0284 | AB47: 0.0000 | AC47: 0.0000 | AD47: 0.0000
A48: 34 | B48: катык 2,5% | C48: кг | AB48: 0.0000 | AC48: 0.0000 | AD48: 0.0000
A49: 35 | B49: кефир 2,5% | C49: кг | AB49: 0.0000 | AC49: 0.0000 | AD49: 0.0000
A50: 36 | B50: ряженка 2,5% | C50: кг | AB50: 0.0000 | AC50: 0.0000 | AD50: 0.0000
A51: 37 | B51: напиток ацидофильный с подсластителем | C51: кг | AB51: 0.0000 | AC51: 0.0000 | AD51: 0.0000
A52: 38 | B52: творог | C52: кг | AB52: 0.0000 | AC52: 0.0000 | AD52: 0.0000
A53: 39 | B53: сметана | C53: кг | AB53: 0.0000 | AC53: 0.0000 | AD53: 0.0000
B54: Консервы | C54: кг | AB54: 0.0000 | AC54: 0.0000 | AD54: 0.0000
A55: 40 | B55: кукуруза к/с | C55: кг | AB55: 0.0000 | AC55: 0.0000 | AD55: 0.0000
A56: 41 | B56: зеленый горошек к/с | C56: кг | AB56: 0.0000 | AC56: 0.0000 | AD56: 0.0000
A57: 42 | B57: молоко сгущенное | C57: кг | AB57: 0.0000 | AC57: 0.0000 | AD57: 0.0000
A58: 43 | B58: огурцы соленые | C58: кг | AB58: 0.0000 | AC58: 0.0000 | AD58: 0.0000
A59: 44 | B59: повидло | C59: кг | AB59: 0.0000 | AC59: 0.0000 | AD59: 0.0000
A60: 45 | B60: томатная паста | C60: кг | AB60: 0.0000 | AC60: 0.0000 | AD60: 0.0000
B61: Чай/какао/кофейный напиток | AB61: 0.0000 | AC61: 0.0000 | AD61: 0.0000
A62: 46 | B62: чай весовой | C62: кг | F62: 0.0010 | AB62: 0.0000 | AC62: 0.0000 | AD62: 0.0000
A63: 47 | B63: чай зеленый | C63: кг | AB63: 0.0000 | AC63: 0.0000 | AD63: 0.0000
A64: 48 | B64: какао | C64: кг | AB64: 0.0000 | AC64: 0.0000 | AD64: 0.0000
A65: 49 | B65: кисель | C65: кг | AB65: 0.0000 | AC65: 0.0000 | AD65: 0.0000
A66: 50 | B66: кофейный напиток | C66: кг | AB66: 0.0000 | AC66: 0.0000 | AD66: 0.0000
B67: Фрукты | AB67: 0.0000 | AC67: 0.0000 | AD67: 0.0000
A68: 51 | B68: апельсин | C68: кг | J68: 0,100 | AB68: 0.0000 | AC68: 0.0000 | AD68: 0.0000
A69: 52 | B69: банан | C69: кг | AB69: 0.0000 | AC69: 0.0000 | AD69: 0.0000
A70: 53 | B70: груши | C70: кг | AB70: 0.0000 | AC70: 0.0000 | AD70: 0.0000
A71: 54 | B71: лимон | C71: кг | AB71: 0.0000 | AC71: 0.0000 | AD71: 0.0000
A72: 55 | B72: яблоки свежие | C72: кг | AB72: 0.0000 | AC72: 0.0000 | AD72: 0.0000
A73: 56 | B73: яблоки зеленые | C73: кг | AB73: =(D73+F73+H73+J73+L73+N73+P73+R73+T73+V73+X73+Z73)*$AB$5 -> 0.0000 | AC73: =(E73+F73+I73+J73+M73+O73+Q73+S73+T73+W73+X73+Z73)*$AC$5 -> 0.0000 | AD73: =AB73+AC73 -> 0.0000
B74: Сухофрукты | AB74: 0.0000 | AC74: 0.0000 | AD74: 0.0000
A75: 57 | B75: ассорти для компота (сухофрукты) | C75: кг | AB75: 0.0000 | AC75: 0.0000 | AD75: 0.0000
A76: 58 | B76: ягоды с/м (клюква,черная смородина) | C76: кг | T76: 0,020 | AB76: 0.0000 | AC76: 0.0000 | AD76: 0.0000
A77: 59 | B77: изюм | C77: кг | AB77: 0.0000 | AC77: 0.0000 | AD77: 0.0000
A78: 60 | B78: курага | C78: кг | AB78: 0.0000 | AC78: 0.0000 | AD78: 0.0000
A79: 61 | B79: урюк | C79: кг | AB79: 0.0000 | AC79: 0.0000 | AD79: 0.0000
A80: 62 | B80: шиповник | C80: кг | AB80: 0.0000 | AC80: 0.0000 | AD80: 0.0000
A81: 63 | B81: компотная смесь с/м | C81: кг | AB81: 0.0000 | AC81: 0.0000 | AD81: 0.0000
A82: 64 | B82: чернослив | C82: кг | AB82: 0.0000 | AC82: 0.0000 | AD82: 0.0000
B83: Овощи / зелень | AB83: 0.0000 | AC83: 0.0000 | AD83: 0.0000
A84: 65 | B84: зеленый горошек с/м | C84: кг | AB84: 0.0000 | AC84: 0.0000 | AD84: 0.0000
A85: 66 | B85: кабачки с/м | C85: кг | AB85: 0.0000 | AC85: 0.0000 | AD85: 0.0000
A86: 67 | B86: капуста свежая | C86: кг | AB86: 0.0000 | AC86: 0.0000 | AD86: 0.0000
A87: 68 | B87: капуста цветная с/м | C87: кг | AB87: 0.0000 | AC87: 0.0000 | AD87: 0.0000
A88: 69 | B88: картофель | C88: кг | N88: 0,0532 | O88: 0,0668 | R88: 0.1710 | S88: 0.2052 | AB88: 0.0000 | AC88: 0.0000 | AD88: 0.0000
A89: 70 | B89: лук репчатый | C89: кг | N89: 0,0096 | O89: 0.0120 | AB89: 0.0000 | AC89: 0.0000 | AD89: 0.0000
A90: 71 | B90: морковь | C90: кг | N90: 0,0125 | O90: 0,0163 | AB90: 0.0000 | AC90: 0.0000 | AD90: 0.0000
A91: 72 | B91: огурцы св. | C91: кг | AB91: 0.0000 | AC91: 0.0000 | AD91: 0.0000
A92: 73 | B92: свекла | C92: кг | AB92: 0.0000 | AC92: 0.0000 | AD92: 0.0000
A93: 74 | B93: томаты св. | C93: кг | L93: 0.0612 | M93: 0.1020 | AB93: 0.0000 | AC93: 0.0000 | AD93: 0.0000
A94: 75 | B94: фасоль к/с | C94: кг | AB94: 0.0000 | AC94: 0.0000 | AD94: 0.0000
A95: 76 | B95: чеснок | C95: кг | AB95: 0.0000 | AC95: 0.0000 | AD95: 0.0000
B96: Кондитерские изделия | AB96: 0.0000 | AC96: 0.0000 | AD96: 0.0000
A97: 77 | B97: батончик злаковый | C97: шт | Z97: 1 | AB97: 0.0000 | AC97: 0.0000 | AD97: 0.0000
A98: 78 | B98: блины с/м | C98: кг | AB98: 0.0000 | AC98: 0.0000 | AD98: 0.0000
A99: 79 | B99: вафли | C99: кг | AB99: 0.0000 | AC99: 0.0000 | AD99: 0.0000
A100: 80 | B100: печенье | C100: кг | AB100: 0.0000 | AC100: 0.0000 | AD100: 0.0000
B101: Сок | AB101: 0.0000 | AC101: 0.0000 | AD101: 0.0000
A102: 81 | B102: сок в ассортименте | C102: л | X102: 0.2000 | AB102: 0.0000 | AC102: 0.0000 | AD102: 0.0000
A103: 82 | B103: сок в индувид.упаковке (0,2л) | C103: л | AB103: 0.0000 | AC103: 0.0000 | AD103: 0.0000
B104: Специи | AB104: 0.0000 | AC104: 0.0000 | AD104: 0.0000
A105: 83 | B105: дрожжи | C105: кг | AB105: 0.0000 | AC105: 0.0000 | AD105: 0.0000
A106: 84 | B106: кислота лимонная | C106: кг | AB106: 0.0000 | AC106: 0.0000 | AD106: 0.0000
A107: 85 | B107: клетчатка | C107: кг | AB107: 0.0000 | AC107: 0.0000 | AD107: 0.0000
B108: Яйцо | AB108: 0.0000 | AC108: 0.0000 | AD108: 0.0000
A109: 86 | B109: яйцо куриное | C109: кг | AB109: 0.0000 | AC109: 0.0000 | AD109: 0.0000
Z110: 0,048 | AB110: =AB109/Z110 -> 0 | AC110: =AC109/Z110 -> 0 | AD110: 0

Sheet День 14 (hidden)
A1: № | B1: Продукт | C1: Ед.изм. | D1: Нормы расхода продуктов в день,кг
D2: Завтрак | L2: Обед | X2: Полдник
B3: ДЕНЬ 14 | D3: Каша молочная манная с маслом | F3: Какао с молоком | H3: батон, сыр порционно | J3: Фрукты МАНДАРИН | L3: Салат из картоф, морковью и кукурузой | N3: Рассольник Домашний со сметаной | P3: Котлеты "Столичные" | R3: Макароны отварные с маслом | T3: Компот из урюка | V3: Хлеб белый, сельский | X3: Катык 2,5 % | Z3: Булочка молочная | AB3: Количество детей | AD3: ИТОГО
B4: Возрастная группа | D4: 7-11 | E4: 12-18 | F4: 7-18 | H4: 7-11 | I4: 12-18 | J4: 7-18 | L4: 7-11 | M4: 12-18 | N4: 7-11 | O4: 12-18 | P4: 7-11 | Q4: 12-18 | R4: 7-11 | S4: 12-18 | T4: 7-18 | V4: 7-11 | W4: 12-18 | X4: 7-18 | Z4: 7-18 | AB4: 7-11 | AC4: 12-18
B5: Выход,гр | D5: 150/5 | E5: 200/5 | F5: 200 | H5: 30/15 | I5: 50/15 | J5: 100 | L5: 60 | M5: 100 | N5: 200/10 | O5: 250/10 | P5: 90 | Q5: 100 | R5: 150/3 | S5: 180/5 | T5: 200 | V5: 40/40 | W5: 50/50 | X5: 180 | Y5: 200 | Z5: 50 | AD5: =AB5+AC5 -> 0
B7: Хлебобулочные изделия
A8: 1 | B8: батон | C8: кг | H8: 0.0300 | I8: 0.0500 | AB8: =(D8+F8+H8+J8+L8+N8+P8+R8+T8+V8+X8+Z8)*$AB$5 -> 0.0000 | AC8: =(E8+F8+I8+J8+M8+O8+Q8+S8+T8+W8+Y8+Z8)*$AC$5 -> 0.0000 | AD8: =AB8+AC8 -> 0.0000
A9: 2 | B9: хлеб пшеничный | C9: кг | V9: 0.0400 | W9: 0.0500 | AB9: =(D9+F9+H9+J9+L9+N9+P9+R9+T9+V9+X9+Z9)*$AB$5 -> 0.0000 | AC9: =(E9+F9+I9+J9+M9+O9+Q9+S9+T9+W9+Y9+Z9)*$AC$5 -> 0.0000 | AD9: =AB9+AC9 -> 0.0000
A10: 3 | B10: хлеб ржаной | C10: кг | V10: 0.0400 | W10: 0.0500 | AB10: 0.0000 | AC10: 0.0000 | AD10: 0.0000
A11: 4 | B11: сухари панировочные | C11: кг | P11: 0.0113 | Q11: 0.0125 | AB11: 0.0000 | AC11: 0.0000 | AD11: 0.0000
A12: 5 | B12: лапша домашняя ПФ | C12: кг | AB12: 0.0000 | AC12: 0.0000 | AD12: 0.0000
B13: Мясо | AB13: 0.0000 | AC13: 0.0000 | AD13: 0.0000
A14: 6 | B14: говядина (котлетное мясо) | C14: кг | P14: 0.0555 | Q14: 0.0616 | AB14: 0.0000 | AC14: 0.0000 | AD14: 0.0000
B15: или фарш говяжий | C15: кг | P15: 0.0530 | Q15: 0.0588 | AB15: 0.0000 | AC15: 0.0000 | AD15: 0.0000
A16: 7 | B16: говядина лопатка б/к | C16: кг | AB16: 0.0000 | AC16: 0.0000 | AD16: 0.0000
B17: или говядина потушная | C17: кг | AB17: 0.0000 | AC17: 0.0000 | AD17: 0.0000
A18: 8 | B18: сосиски куриные "Халяль" | C18: кг | AB18: 0.0000 | AC18: 0.0000 | AD18: 0.0000
A19: 9 | B19: куриная грудка | C19: кг | P19: 0.0188 | Q19: 0.0209 | AB19: 0.0000 | AC19: 0.0000 | AD19: 0.0000
A20: 10 | B20: куры/цыплята потрош. | C20: кг | AB20: 0.0000 | AC20: 0.0000 | AD20: 0.0000
A21: 11 | B21: печень говяжья | C21: кг | AB21: 0.0000 | AC21: 0.0000 | AD21: 0.0000
B22: Рыба | AB22: 0.0000 | AC22: 0.0000 | AD22: 0.0000
A23: 12 | B23: фарш из минтая с/м | C23: кг | AB23: 0.0000 | AC23: 0.0000 | AD23: 0.0000
A24: 13 | B24: минтай б/г с/м | C24: кг | AB24: 0.0000 | AC24: 0.0000 | AD24: 0.0000
B25: Сыпучка | AB25: 0.0000 | AC25: 0.0000 | AD25: 0.0000
A26: 14 | B26: вермишель | C26: кг | AB26: 0.0000 | AC26: 0.0000 | AD26: 0.0000
A27: 15 | B27: геркулес | C27: кг | AB27: 0.0000 | AC27: 0.0000 | AD27: 0.0000
A28: 16 | B28: горох | C28: кг | AB28: 0.0000 | AC28: 0.0000 | AD28: 0.0000
A29: 17 | B29: гречневая крупа | C29: кг | AB29: 0.0000 | AC29: 0.0000 | AD29: 0.0000
A30: 18 | B30: кукурузная крупа | C30: кг | AB30: 0.0000 | AC30: 0.0000 | AD30: 0.0000
A31: 19 | B31: макаронные изделия | C31: кг | R31: 0.0525 | S31: 0.0630 | AB31: 0.0000 | AC31: 0.0000 | AD31: 0.0000
A32: 20 | B32: манная крупа | C32: кг | D32: 0.0280 | E32: 0.0370 | AB32: 0.0000 | AC32: 0.0000 | AD32: 0.0000
A33: 21 | B33: перловая крупа | C33: кг | AB33: 0.0000 | AC33: 0.0000 | AD33: 0.0000
A34: 22 | B34: полбяная крупа | C34: кг | AB34: 0.0000 | AC34: 0.0000 | AD34: 0.0000
A35: 23 | B35: пшеничная крупа | C35: кг | AB35: 0.0000 | AC35: 0.0000 | AD35: 0.0000
A36: 24 | B36: пшено | C36: кг | AB36: 0.0000 | AC36: 0.0000 | AD36: 0.0000
A37: 25 | B37: рис | C37: кг | AB37: 0.0000 | AC37: 0.0000 | AD37: 0.0000
A38: 26 | B38: мука пшеничная в/с | C38: кг | Z38: 0.0400 | AB38: 0.0000 | AC38: 0.0000 | AD38: 0.0000
A39: 27 | B39: сахарный песок | C39: кг | D39: 0.0040 | E39: 0.0050 | F39: 0.0200 | T39: 0.0200 | AB39: 0.0000 | AC39: 0.0000 | AD39: 0.0000
A40: 28 | B40: соль | C40: кг | D40: 0.0003 | E40: 0.0004 | L40: 0.0003 | M40: 0.0005 | N40: 0.0002 | O40: 0.0010 | P40: 0.0009 | Q40: 0.0010 | R40: 0.0025 | S40: 0.0030 | Z40: 0.0005 | AB40: 0.0000 | AC40: 0.0000 | AD40: 0.0000
A41: 29 | B41: ячневая крупа | C41: кг | AB41: 0.0000 | AC41: 0.0000 | AD41: 0.0000
B42: Масло / сыр | AB42: 0.0000 | AC42: 0.0000 | AD42: 0.0000
A43: 30 | B43: масло растительное | C43: кг | L43: 0.0036 | M43: 0.0060 | N43: 0.0040 | O43: 0.0050 | P43: 0.0045 | Q43: 0.0050 | Z43: 0.0010 | AB43: 0.0000 | AC43: 0.0000 | AD43: 0.0000
A44: 31 | B44: масло сливочное | C44: кг | D44: 0.0050 | E44: 0.0050 | R44: 0.0030 | S44: 0.0050 | AB44: 0.0000 | AC44: 0.0000 | AD44: 0.0000
A45: 32 | B45: сыр голландский | C45: кг | H45: 0.0150 | I45: 0.0150 | AB45: 0.0000 | AC45: 0.0000 | AD45: 0.0000
B46: Молоко и молочная продукция | AB46: 0.0000 | AC46: 0.0000 | AD46: 0.0000
A47: 33 | B47: молоко 2,5% | C47: л | D47: 0.0750 | E47: 0.1000 | F47: 0.1000 | Z47: 0.0200 | AB47: 0.0000 | AC47: 0.0000 | AD47: 0.0000
A48: 34 | B48: катык 2,5% | C48: кг | X48: 0.1850 | Y48: 0.2070 | AB48: 0.0000 | AC48: 0.0000 | AD48: 0.0000
A49: 35 | B49: кефир 2,5% | C49: кг | AB49: 0.0000 | AC49: 0.0000 | AD49: 0.0000
A50: 36 | B50: ряженка 2,5% | C50: кг | AB50: 0.0000 | AC50: 0.0000 | AD50: 0.0000
A51: 37 | B51: напиток ацидофильный с подсластителем | C51: кг | AB51: 0.0000 | AC51: 0.0000 | AD51: 0.0000
A52: 38 | B52: творог | C52: кг | AB52: 0.0000 | AC52: 0.0000 | AD52: 0.0000
A53: 39 | B53: сметана | C53: кг | N53: 0.0100 | O53: 0.0100 | AB53: 0.0000 | AC53: 0.0000 | AD53: 0.0000
B54: Консервы | C54: кг | AB54: 0.0000 | AC54: 0.0000 | AD54: 0.0000
A55: 41 | B55: кукуруза к/с | C55: кг | L55: 0.0251 | M55: 0.0418 | AB55: 0.0000 | AC55: 0.0000 | AD55: 0.0000
A56: 42 | B56: зеленый горошек к/с | C56: кг | AB56: 0.0000 | AC56: 0.0000 | AD56: 0.0000
A57: 43 | B57: молоко сгущенное | C57: кг | AB57: 0.0000 | AC57: 0.0000 | AD57: 0.0000
A58: 44 | B58: огурцы соленые | C58: кг | N58: 0.0200 | O58: 0.0251 | AB58: 0.0000 | AC58: 0.0000 | AD58: 0.0000
A59: 45 | B59: повидло | C59: кг | AB59: 0.0000 | AC59: 0.0000 | AD59: 0.0000
A60: 46 | B60: томатная паста | C60: кг | AB60: 0.0000 | AC60: 0.0000 | AD60: 0.0000
B61: Чай/какао/кофейный напиток | AB61: 0.0000 | AC61: 0.0000 | AD61: 0.0000
A62: 47 | B62: чай весовой | C62: кг | AB62: 0.0000 | AC62: 0.0000 | AD62: 0.0000
A63: 48 | B63: чай зеленый | C63: кг | AB63: 0.0000 | AC63: 0.0000 | AD63: 0.0000
A64: 49 | B64: какао | C64: кг | F64: 0,004 | AB64: 0.0000 | AC64: 0.0000 | AD64: 0.0000
A65: 50 | B65: кисель | C65: кг | AB65: 0.0000 | AC65: 0.0000 | AD65: 0.0000
A66: 51 | B66: кофейный напиток | C66: кг | AB66: 0.0000 | AC66: 0.0000 | AD66: 0.0000
B67: Фрукты | AB67: 0.0000 | AC67: 0.0000 | AD67: 0.0000
A68: 51 | B68: апельсин | C68: кг | AB68: 0.0000 | AC68: 0.0000 | AD68: 0.0000
A69: 52 | B69: банан | C69: кг | AB69: 0.0000 | AC69: 0.0000 | AD69: 0.0000
A70: 53 | B70: груши | C70: кг | AB70: 0.0000 | AC70: 0.0000 | AD70: 0.0000
A71: 54 | B71: лимон | C71: кг | AB71: 0.0000 | AC71: 0.0000 | AD71: 0.0000
A72: 55 | B72: яблоки свежие | C72: кг | AB72: 0.0000 | AC72: 0.0000 | AD72: 0.0000
A73: 56 | B73: мандарин | C73: кг | J73: 0.1000 | AB73: =(D73+F73+H73+J73+L73+N73+P73+R73+T73+V73+X73+Z73)*$AB$5 -> 0.0000 | AC73: =(E73+F73+I73+J73+M73+O73+Q73+S73+T73+W73+Y73+Z73)*$AC$5 -> 0.0000 | AD73: =AB73+AC73 -> 0.0000
B74: Сухофрукты | AB74: 0.0000 | AC74: 0.0000 | AD74: 0.0000
A75: 57 | B75: ассорти для компота (сухофрукты) | C75: кг | AB75: 0.0000 | AC75: 0.0000 | AD75: 0.0000
A76: 58 | B76: ягоды с/м (клюква,черная смородина) | C76: кг | AB76: 0.0000 | AC76: 0.0000 | AD76: 0.0000
A77: 59 | B77: изюм | C77: кг | AB77: 0.0000 | AC77: 0.0000 | AD77: 0.0000
A78: 60 | B78: курага | C78: кг | AB78: 0.0000 | AC78: 0.0000 | AD78: 0.0000
A79: 61 | B79: урюк | C79: кг | T79: 0.0204 | AB79: 0.0000 | AC79: 0.0000 | AD79: 0.0000
A80: 62 | B80: шиповник | C80: кг | AB80: 0.0000 | AC80: 0.0000 | AD80: 0.0000
A81: 63 | B81: компотная смесь с/м | C81: кг | AB81: 0.0000 | AC81: 0.0000 | AD81: 0.0000
A82: 64 | B82: чернослив | C82: кг | AB82: 0.0000 | AC82: 0.0000 | AD82: 0.0000
B83: Овощи / зелень | AB83: 0.0000 | AC83: 0.0000 | AD83: 0.0000
A84: 65 | B84: зеленый горошек с/м | C84: кг | AB84: 0.0000 | AC84: 0.0000 | AD84: 0.0000
A85: 66 | B85: кабачки с/м | C85: кг | AB85: 0.0000 | AC85: 0.0000 | AD85: 0.0000
A86: 67 | B86: капуста свежая | C86: кг | N86: 0.0200 | O86: 0.0250 | AB86: 0.0000 | AC86: 0.0000 | AD86: 0.0000
A87: 68 | B87: капуста цветная с/м | C87: кг | AB87: 0.0000 | AC87: 0.0000 | AD87: 0.0000
A88: 69 | B88: картофель | C88: кг | L88: 0.0376 | M88: 0.0626 | N88: 0.0800 | O88: 0.1000 | AB88: 0.0000 | AC88: 0.0000 | AD88: 0.0000
A89: 70 | B89: лук репчатый | C89: кг | N89: 0.0096 | O89: 0.0120 | P89: 0.0182 | Q89: 0.0203 | AB89: 0.0000 | AC89: 0.0000 | AD89: 0.0000
A90: 71 | B90: морковь | C90: кг | L90: 0.0188 | M90: 0.0314 | N90: 0.0100 | O90: 0.0125 | AB90: 0.0000 | AC90: 0.0000 | AD90: 0.0000
A91: 72 | B91: огурцы св. | C91: кг | AB91: 0.0000 | AC91: 0.0000 | AD91: 0.0000
A92: 73 | B92: свекла | C92: кг | AB92: 0.0000 | AC92: 0.0000 | AD92: 0.0000
A93: 74 | B93: томаты св. | C93: кг | AB93: 0.0000 | AC93: 0.0000 | AD93: 0.0000
A94: 75 | B94: фасоль к/с | C94: кг | AB94: 0.0000 | AC94: 0.0000 | AD94: 0.0000
A95: 76 | B95: чеснок | C95: кг | AB95: 0.0000 | AC95: 0.0000 | AD95: 0.0000
B96: Кондитерские изделия | AB96: 0.0000 | AC96: 0.0000 | AD96: 0.0000
A97: 77 | B97: батончик злаковый | C97: шт | AB97: 0.0000 | AC97: 0.0000 | AD97: 0.0000
A98: 78 | B98: блины с/м | C98: кг | AB98: 0.0000 | AC98: 0.0000 | AD98: 0.0000
A99: 79 | B99: вафли | C99: кг | AB99: 0.0000 | AC99: 0.0000 | AD99: 0.0000
A100: 80 | B100: печенье | C100: кг | AB100: 0.0000 | AC100: 0.0000 | AD100: 0.0000
B101: Сок | AB101: 0.0000 | AC101: 0.0000 | AD101: 0.0000
A102: 81 | B102: сок в ассортименте | C102: л | AB102: 0.0000 | AC102: 0.0000 | AD102: 0.0000
A103: 82 | B103: сок в индувид.упаковке (0,2л) | C103: л | AB103: 0.0000 | AC103: 0.0000 | AD103: 0.0000
B104: Специи | AB104: 0.0000 | AC104: 0.0000 | AD104: 0.0000
A105: 83 | B105: дрожжи | C105: кг | Z105: 0.0002 | AB105: 0.0000 | AC105: 0.0000 | AD105: 0.0000
A106: 84 | B106: кислота лимонная | C106: кг | AB106: 0.0000 | AC106: 0.0000 | AD106: 0.0000
A107: 85 | B107: клетчатка | C107: кг | AB107: 0.0000 | AC107: 0.0000 | AD107: 0.0000
B108: Яйцо | AB108: 0.0000 | AC108: 0.0000 | AD108: 0.0000
A109: 86 | B109: яйцо куриное | C109: кг | P109: 0.0014 | Q109: 0.0015 | AB109: 0.0000 | AC109: 0.0000 | AD109: 0.0000
Z110: 0.0480 | AB110: =AB109/Z110 -> 0 | AC110: =AC109/Z110 -> 0 | AD110: 0

Sheet День 15 (hidden)
A1: № | B1: Продукт | C1: Ед.изм. | D1: Нормы расхода продуктов в день,кг
D2: Завтрак | L2: Обед | X2: Полдник
B3: ДЕНЬ 15 | D3: Пудинг из творога с повидлом | F3: Чай с сахаром | H3: батон, масло сливочное | J3: каша ячневая молоч с маслом сливочным | L3: Огурцы свежие порционно | N3: Борщ из св. капусты с картоф, на кур бульоне, со сметаной | P3: Фрикассе из куриных грудок | R3: Рис отварной | T3: Компот из св. яблок | V3: Хлеб белый, сельский | X3: Сок /Нектар фруктовый (разливной) | Z3: Булочка "Домашняя" | AB3: Количество детей | AD3: ИТОГО
B4: Возрастная группа | D4: 7-11 | E4: 12-18 | F4: 7-18 | H4: 7-11 | I4: 12-18 | J4: 7-18 | L4: 7-11 | M4: 12-18 | N4: 7-11 | O4: 12-18 | P4: 7-11 | Q4: 12-18 | R4: 7-11 | S4: 12-18 | T4: 7-18 | V4: 7-11 | W4: 12-18 | X4: 7-18 | Z4: 7-18 | AB4: 7-11 | AC4: 12-18
B5: Выход,гр | D5: 130/20 | E5: 130/20 | F5: 200/15 | H5: 30/10 | I5: 50/10 | J5: 150/4 | K5: 150/4 | L5: 60 | M5: 100 | N5: 200/11 | O5: 250/11 | P5: 50/50 | Q5: 50/50 | R5: 150 | S5: 180 | T5: 200 | V5: 40/40 | W5: 50/50 | X5: 200 | Z5: 50 | AD5: =AB5+AC5 -> 0
B7: Хлебобулочные изделия
A8: 1 | B8: батон | C8: кг | H8: 0.0300 | I8: 0.0500 | AB8: =(D8+F8+H8+J8+L8+N8+P8+R8+T8+V8+X8+Z8)*$AB$5 -> 0.0000 | AC8: =(E8+F8+I8+K8+M8+O8+Q8+S8+T8+W8+X8+Z8)*$AC$5 -> 0.0000 | AD8: =AB8+AC8 -> 0.0000
A9: 2 | B9: хлеб пшеничный | C9: кг | V9: 0.0400 | W9: 0.0500 | AB9: =(D9+F9+H9+J9+L9+N9+P9+R9+T9+V9+X9+Z9)*$AB$5 -> 0.0000 | AC9: =(E9+F9+I9+K9+M9+O9+Q9+S9+T9+W9+X9+Z9)*$AC$5 -> 0.0000 | AD9: =AB9+AC9 -> 0.0000
A10: 3 | B10: хлеб ржаной | C10: кг | V10: 0.0400 | W10: 0.0500 | AB10: 0.0000 | AC10: 0.0000 | AD10: 0.0000
A11: 4 | B11: сухари панировочные | C11: кг | D11: 0.0050 | E11: 0.0050 | AB11: 0.0000 | AC11: 0.0000 | AD11: 0.0000
A12: 5 | B12: лапша домашняя ПФ | C12: кг | AB12: 0.0000 | AC12: 0.0000 | AD12: 0.0000
B13: Мясо | AB13: 0.0000 | AC13: 0.0000 | AD13: 0.0000
A14: 6 | B14: говядина (котлетное мясо) | C14: кг | AB14: 0.0000 | AC14: 0.0000 | AD14: 0.0000
B15: или фарш говяжий | AB15: 0.0000 | AC15: 0.0000 | AD15: 0.0000
A16: 7 | B16: говядина лопатка б/к | C16: кг | AB16: 0.0000 | AC16: 0.0000 | AD16: 0.0000
B17: или говядина потушная | C17: кг | AB17: 0.0000 | AC17: 0.0000 | AD17: 0.0000
A18: 8 | B18: сосиски куриные "Халяль" | C18: кг | AB18: 0.0000 | AC18: 0.0000 | AD18: 0.0000
A19: 9 | B19: куриная грудка | C19: кг | P19: 0.0812 | Q19: 0.0812 | AB19: 0.0000 | AC19: 0.0000 | AD19: 0.0000
A20: 10 | B20: куры/цыплята потрош. | C20: кг | AB20: 0.0000 | AC20: 0.0000 | AD20: 0.0000
A21: 11 | B21: печень говяжья | C21: кг | AB21: 0.0000 | AC21: 0.0000 | AD21: 0.0000
B22: Рыба | AB22: 0.0000 | AC22: 0.0000 | AD22: 0.0000
A23: 12 | B23: фарш из минтая с/м | C23: кг | AB23: 0.0000 | AC23: 0.0000 | AD23: 0.0000
A24: 13 | B24: минтай б/г с/м | C24: кг | AB24: 0.0000 | AC24: 0.0000 | AD24: 0.0000
B25: Сыпучка | AB25: 0.0000 | AC25: 0.0000 | AD25: 0.0000
A26: 14 | B26: вермишель | C26: кг | AB26: 0.0000 | AC26: 0.0000 | AD26: 0.0000
A27: 15 | B27: геркулес | C27: кг | AB27: 0.0000 | AC27: 0.0000 | AD27: 0.0000
A28: 16 | B28: горох | C28: кг | AB28: 0.0000 | AC28: 0.0000 | AD28: 0.0000
A29: 17 | B29: гречневая крупа | C29: кг | AB29: 0.0000 | AC29: 0.0000 | AD29: 0.0000
A30: 18 | B30: кукурузная крупа | C30: кг | AB30: 0.0000 | AC30: 0.0000 | AD30: 0.0000
A31: 19 | B31: макаронные изделия | C31: кг | AB31: 0.0000 | AC31: 0.0000 | AD31: 0.0000
A32: 20 | B32: манная крупа | C32: кг | D32: 0.0104 | E32: 0.0104 | AB32: 0.0000 | AC32: 0.0000 | AD32: 0.0000
A33: 21 | B33: перловая крупа | C33: кг | AB33: 0.0000 | AC33: 0.0000 | AD33: 0.0000
A34: 22 | B34: полбяная крупа | C34: кг | AB34: 0.0000 | AC34: 0.0000 | AD34: 0.0000
A35: 23 | B35: пшеничная крупа | C35: кг | AB35: 0.0000 | AC35: 0.0000 | AD35: 0.0000
A36: 24 | B36: пшено | C36: кг | AB36: 0.0000 | AC36: 0.0000 | AD36: 0.0000
A37: 25 | B37: рис | C37: кг | R37: 0,054 | S37: 0,0648 | AB37: 0.0000 | AC37: 0.0000 | AD37: 0.0000
A38: 26 | B38: мука пшеничная в/с | C38: кг | P38: 0.0055 | Q38: 0.0055 | Z38: 0.0337 | AB38: 0.0000 | AC38: 0.0000 | AD38: 0.0000
A39: 27 | B39: сахарный песок | C39: кг | D39: 0.0104 | E39: 0.0104 | F39: 0,015 | J39: 0.0045 | K39: 0.0045 | N39: 0.0020 | O39: 0.0025 | T39: 0.0240 | Z39: 0.0070 | AB39: 0.0000 | AC39: 0.0000 | AD39: 0.0000
A40: 28 | B40: соль | C40: кг | D40: 0.0008 | E40: 0.0008 | J40: 0.0008 | K40: 0.0008 | N40: 0.0015 | O40: 0.0020 | P40: 0.0018 | Q40: 0.0018 | R40: 0,0015 | S40: 0,0018 | Z40: 0,0003 | AB40: 0.0000 | AC40: 0.0000 | AD40: 0.0000
A41: 29 | B41: ячневая крупа | C41: кг | J41: 0.0280 | K41: 0.0280 | AB41: 0.0000 | AC41: 0.0000 | AD41: 0.0000
B42: Масло / сыр | AB42: 0.0000 | AC42: 0.0000 | AD42: 0.0000
A43: 30 | B43: масло растительное | C43: кг | N43: 0.0040 | O43: 0.0050 | P43: 0.0018 | Q43: 0.0018 | Z43: 0.0010 | AB43: 0.0000 | AC43: 0.0000 | AD43: 0.0000
A44: 31 | B44: масло сливочное | C44: кг | D44: 0.0050 | E44: 0.0050 | H44: 0.0100 | I44: 0.0100 | J44: 0.0040 | K44: 0.0040 | P44: 0.0055 | Q44: 0.0055 | Z44: 0.0075 | AB44: 0.0000 | AC44: 0.0000 | AD44: 0.0000
A45: 32 | B45: сыр голландский | C45: кг | AB45: 0.0000 | AC45: 0.0000 | AD45: 0.0000
B46: Молоко и молочная продукция | AB46: 0.0000 | AC46: 0.0000 | AD46: 0.0000
A47: 33 | B47: молоко 2,5% | C47: л | J47: 0.0750 | K47: 0.0750 | P47: 0.0250 | Q47: 0.0250 | AB47: 0.0000 | AC47: 0.0000 | AD47: 0.0000
A48: 34 | B48: катык 2,5% | C48: кг | AB48: 0.0000 | AC48: 0.0000 | AD48: 0.0000
A49: 35 | B49: кефир 2,5% | C49: кг | AB49: 0.0000 | AC49: 0.0000 | AD49: 0.0000
A50: 36 | B50: ряженка 2,5% | C50: кг | AB50: 0.0000 | AC50: 0.0000 | AD50: 0.0000
A51: 37 | B51: напиток ацидофильный с подсластителем | C51: кг | AB51: 0.0000 | AC51: 0.0000 | AD51: 0.0000
A52: 38 | B52: творог | C52: кг | D52: 0.1000 | E52: 0.1000 | AB52: 0.0000 | AC52: 0.0000 | AD52: 0.0000
A53: 39 | B53: сметана | C53: кг | D53: 0.0050 | E53: 0.0050 | N53: 0.0100 | O53: 0.0100 | AB53: 0.0000 | AC53: 0.0000 | AD53: 0.0000
B54: Консервы | C54: кг | AB54: 0.0000 | AC54: 0.0000 | AD54: 0.0000
A55: 40 | B55: кукуруза к/с | C55: кг | AB55: 0.0000 | AC55: 0.0000 | AD55: 0.0000
A56: 41 | B56: зеленый горошек к/с | C56: кг | AB56: 0.0000 | AC56: 0.0000 | AD56: 0.0000
A57: 42 | B57: молоко сгущенное | C57: кг | AB57: 0.0000 | AC57: 0.0000 | AD57: 0.0000
A58: 43 | B58: огурцы соленые | C58: кг | AB58: 0.0000 | AC58: 0.0000 | AD58: 0.0000
A59: 44 | B59: повидло | C59: кг | D59: 0.0200 | E59: 0.0200 | AB59: 0.0000 | AC59: 0.0000 | AD59: 0.0000
A60: 45 | B60: томатная паста | C60: кг | N60: 0.0024 | O60: 0.0030 | AB60: 0.0000 | AC60: 0.0000 | AD60: 0.0000
B61: Чай/какао/кофейный напиток | AB61: 0.0000 | AC61: 0.0000 | AD61: 0.0000
A62: 46 | B62: чай весовой | C62: кг | F62: 0.0010 | AB62: 0.0000 | AC62: 0.0000 | AD62: 0.0000
A63: 47 | B63: чай зеленый | C63: кг | AB63: 0.0000 | AC63: 0.0000 | AD63: 0.0000
A64: 48 | B64: какао | C64: кг | AB64: 0.0000 | AC64: 0.0000 | AD64: 0.0000
A65: 49 | B65: кисель | C65: кг | AB65: 0.0000 | AC65: 0.0000 | AD65: 0.0000
A66: 50 | B66: кофейный напиток | C66: кг | AB66: 0.0000 | AC66: 0.0000 | AD66: 0.0000
B67: Фрукты | AB67: 0.0000 | AC67: 0.0000 | AD67: 0.0000
A68: 51 | B68: апельсин | C68: кг | AB68: 0.0000 | AC68: 0.0000 | AD68: 0.0000
A69: 52 | B69: банан | C69: кг | AB69: 0.0000 | AC69: 0.0000 | AD69: 0.0000
A70: 53 | B70: груши | C70: кг | AB70: 0.0000 | AC70: 0.0000 | AD70: 0.0000
A71: 54 | B71: лимон | C71: кг | AB71: 0.0000 | AC71: 0.0000 | AD71: 0.0000
A72: 55 | B72: яблоки свежие | C72: кг | T72: 0.0454 | AB72: 0.0000 | AC72: 0.0000 | AD72: 0.0000
A73: 56 | B73: яблоки зеленые | C73: кг | AB73: =(D73+F73+H73+J73+L73+N73+P73+R73+T73+V73+X73+Z73)*$AB$5 -> 0.0000 | AC73: =(E73+F73+I73+K73+M73+O73+Q73+S73+T73+W73+X73+Z73)*$AC$5 -> 0.0000 | AD73: =AB73+AC73 -> 0.0000
B74: Сухофрукты | AB74: 0.0000 | AC74: 0.0000 | AD74: 0.0000
A75: 57 | B75: ассорти для компота (сухофрукты) | C75: кг | AB75: 0.0000 | AC75: 0.0000 | AD75: 0.0000
A76: 58 | B76: ягоды с/м (клюква и черная смородина) | C76: кг | AB76: 0.0000 | AC76: 0.0000 | AD76: 0.0000
A77: 59 | B77: изюм | C77: кг | AB77: 0.0000 | AC77: 0.0000 | AD77: 0.0000
A78: 60 | B78: курага | C78: кг | AB78: 0.0000 | AC78: 0.0000 | AD78: 0.0000
A79: 61 | B79: урюк | C79: кг | AB79: 0.0000 | AC79: 0.0000 | AD79: 0.0000
A80: 62 | B80: шиповник | C80: кг | AB80: 0.0000 | AC80: 0.0000 | AD80: 0.0000
A81: 63 | B81: компотная смесь с/м | C81: кг | AB81: 0.0000 | AC81: 0.0000 | AD81: 0.0000
A82: 64 | B82: чернослив | C82: кг | AB82: 0.0000 | AC82: 0.0000 | AD82: 0.0000
B83: Овощи / зелень | AB83: 0.0000 | AC83: 0.0000 | AD83: 0.0000
A84: 65 | B84: зеленый горошек с/м | C84: кг | P84: 0.0143 | Q84: 0.0143 | AB84: 0.0000 | AC84: 0.0000 | AD84: 0.0000
A85: 66 | B85: кабачки с/м | C85: кг | AB85: 0.0000 | AC85: 0.0000 | AD85: 0.0000
A86: 67 | B86: капуста свежая | C86: кг | N86: 0.0200 | O86: 0.0282 | AB86: 0.0000 | AC86: 0.0000 | AD86: 0.0000
A87: 68 | B87: капуста цветная с/м | C87: кг | AB87: 0.0000 | AC87: 0.0000 | AD87: 0.0000
A88: 69 | B88: картофель | C88: кг | N88: 0.0213 | O88: 0.0268 | AB88: 0.0000 | AC88: 0.0000 | AD88: 0.0000
A89: 70 | B89: лук репчатый | C89: кг | N89: 0.0096 | O89: 0.0120 | P89: 0.0052 | Q89: 0.0052 | AB89: 0.0000 | AC89: 0.0000 | AD89: 0.0000
A90: 71 | B90: морковь | C90: кг | N90: 0.0125 | O90: 0.0156 | P90: 0.0053 | Q90: 0.0053 | AB90: 0.0000 | AC90: 0.0000 | AD90: 0.0000
A91: 72 | B91: огурцы св. | C91: кг | L91: 0.0612 | M91: 0.1020 | AB91: 0.0000 | AC91: 0.0000 | AD91: 0.0000
A92: 73 | B92: свекла | C92: кг | N92: 0.0400 | O92: 0.0500 | AB92: 0.0000 | AC92: 0.0000 | AD92: 0.0000
A93: 74 | B93: томаты св. | C93: кг | AB93: 0.0000 | AC93: 0.0000 | AD93: 0.0000
A94: 75 | B94: фасоль к/с | C94: кг | AB94: 0.0000 | AC94: 0.0000 | AD94: 0.0000
A95: 76 | B95: чеснок | C95: кг | AB95: 0.0000 | AC95: 0.0000 | AD95: 0.0000
B96: Кондитерские изделия | AB96: 0.0000 | AC96: 0.0000 | AD96: 0.0000
A97: 77 | B97: батончик злаковый | C97: шт | AB97: 0.0000 | AC97: 0.0000 | AD97: 0.0000
A98: 78 | B98: блины с/м | C98: кг | AB98: 0.0000 | AC98: 0.0000 | AD98: 0.0000
A99: 79 | B99: вафли | C99: кг | AB99: 0.0000 | AC99: 0.0000 | AD99: 0.0000
A100: 80 | B100: печенье | C100: кг | AB100: 0.0000 | AC100: 0.0000 | AD100: 0.0000
B101: Сок | AB101: 0.0000 | AC101: 0.0000 | AD101: 0.0000
A102: 81 | B102: сок в ассортименте | C102: л | X102: 0.2000 | AB102: 0.0000 | AC102: 0.0000 | AD102: 0.0000
A103: 82 | B103: сок в индувид.упаковке (0,2л) | C103: л | AB103: 0.0000 | AC103: 0.0000 | AD103: 0.0000
B104: Специи | AB104: 0.0000 | AC104: 0.0000 | AD104: 0.0000
A105: 83 | B105: дрожжи | C105: кг | Z105: 0.0003 | AB105: 0.0000 | AC105: 0.0000 | AD105: 0.0000
A106: 84 | B106: кислота лимонная | C106: кг | AB106: 0.0000 | AC106: 0.0000 | AD106: 0.0000
A107: 85 | B107: клетчатка | C107: кг | AB107: 0.0000 | AC107: 0.0000 | AD107: 0.0000
B108: Яйцо | AB108: 0.0000 | AC108: 0.0000 | AD108: 0.0000
A109: 86 | B109: яйцо куриное | C109: кг | D109: 0.0062 | E109: 0.0062 | Z109: 0.0012 | AB109: 0.0000 | AC109: 0.0000 | AD109: 0.0000
Z110: 0.0480 | AB110: =AB109/Z110 -> 0 | AC110: =AC109/Z110 -> 0 | AD110: 0

Sheet День 16 (hidden)
A1: № | B1: Продукт | C1: Ед.изм. | D1: Нормы расхода продуктов в день,кг
D2: Завтрак | L2: Обед | X2: Полдник
B3: ДЕНЬ 16 | D3: Каша кукрузная молочная с маслом | F3: Кофейный напиток с молоком | H3: батон, сыр порционно | J3: Фрукты МАНДАРИН | L3: салат из морской капусты с кукурузой и морковью | N3: Суп картоф с куриными фрикад | P3: Биточки рыбные из минтая | R3: Картофельное пюре с маслом | T3: Напиток из сухофруктов | V3: Хлеб белый, сельский | X3: Ряженка 2,5 % | Z3: Батончик злаковый | AB3: Количество детей | AD3: ИТОГО
B4: Возрастная группа | D4: 7-11 | E4: 12-18 | F4: 7-18 | H4: 7-11 | I4: 12-18 | J4: 7-18 | L4: 7-11 | M4: 12-18 | N4: 7-11 | O4: 12-18 | P4: 7-11 | Q4: 12-18 | R4: 7-11 | S4: 12-18 | T4: 7-18 | V4: 7-11 | W4: 12-18 | X4: 7-11 | Y4: 12-18 | Z4: 7-18 | AB4: 7-11 | AC4: 12-18
B5: Выход,гр | D5: 150/5 | E5: 200/5 | F5: 200 | H5: 30/15 | I5: 50/15 | J5: 100 | L5: 60 | M5: 100 | N5: 200/11 | O5: 250/11 | P5: 90 | Q5: 100 | R5: 150/3 | S5: 180/5 | T5: 200 | V5: 40/40 | W5: 50/50 | X5: 180 | Y5: 200 | Z5: 25 | AD5: =AB5+AC5 -> 0
B7: Хлебобулочные изделия
A8: 1 | B8: батон | C8: кг | H8: 0.0300 | I8: 0.0500 | AB8: =(D8+F8+H8+J8+L8+N8+P8+R8+T8+V8+X8+Z8)*$AB$5 -> 0.0000 | AC8: =(E8+F8+I8+J8+M8+O8+Q8+S8+T8+W8+Y8+Z8)*$AC$5 -> 0.0000 | AD8: =AC8+AB8 -> 0.0000
A9: 2 | B9: хлеб пшеничный | C9: кг | N9: 0.0018 | O9: 0.0018 | P9: 0.0144 | Q9: 0.0160 | V9: 0.0400 | W9: 0.0500 | AB9: =(D9+F9+H9+J9+L9+N9+P9+R9+T9+V9+X9+Z9)*$AB$5 -> 0.0000 | AC9: =(E9+F9+I9+J9+M9+O9+Q9+S9+T9+W9+Y9+Z9)*$AC$5 -> 0.0000 | AD9: =AC9+AB9 -> 0.0000
A10: 3 | B10: хлеб ржаной | C10: кг | V10: 0.0400 | W10: 0.0500 | AB10: 0.0000 | AC10: 0.0000 | AD10: 0.0000
A11: 4 | B11: сухари панировочные | C11: кг | P11: 0.0070 | Q11: 0.0080 | AB11: 0.0000 | AC11: 0.0000 | AD11: 0.0000
A12: 5 | B12: лапша домашняя ПФ | C12: кг | AB12: 0.0000 | AC12: 0.0000 | AD12: 0.0000
B13: Мясо | AB13: 0.0000 | AC13: 0.0000 | AD13: 0.0000
A14: 6 | B14: говядина (котлетное мясо) | C14: кг | AB14: 0.0000 | AC14: 0.0000 | AD14: 0.0000
B15: или фарш говяжий | C15: кг | AB15: 0.0000 | AC15: 0.0000 | AD15: 0.0000
A16: 7 | B16: говядина лопатка б/к | C16: кг | AB16: 0.0000 | AC16: 0.0000 | AD16: 0.0000
B17: или говядина потушная | C17: кг | AB17: 0.0000 | AC17: 0.0000 | AD17: 0.0000
A18: 8 | B18: сосиски куриные "Халяль" | C18: кг | AB18: 0.0000 | AC18: 0.0000 | AD18: 0.0000
A19: 9 | B19: куриная грудка | C19: кг | N19: 0.0100 | O19: 0.0100 | AB19: 0.0000 | AC19: 0.0000 | AD19: 0.0000
A20: 10 | B20: куры/цыплята потрош. | C20: кг | AB20: 0.0000 | AC20: 0.0000 | AD20: 0.0000
A21: 11 | B21: печень говяжья | C21: кг | AB21: 0.0000 | AC21: 0.0000 | AD21: 0.0000
B22: Рыба | AB22: 0.0000 | AC22: 0.0000 | AD22: 0.0000
A23: 12 | B23: фарш минтая с/м | C23: кг | P23: 0.0510 | Q23: 0.0566 | AB23: 0.0000 | AC23: 0.0000 | AD23: 0.0000
A24: 13 | B24: минтай б/г с/м | C24: кг | P24: 0.0637 | Q24: 0.0708 | AB24: 0.0000 | AC24: 0.0000 | AD24: 0.0000
B25: Сыпучка | AB25: 0.0000 | AC25: 0.0000 | AD25: 0.0000
A26: 14 | B26: вермишель | C26: кг | AB26: 0.0000 | AC26: 0.0000 | AD26: 0.0000
A27: 15 | B27: геркулес | C27: кг | AB27: 0.0000 | AC27: 0.0000 | AD27: 0.0000
A28: 16 | B28: горох | C28: кг | AB28: 0.0000 | AC28: 0.0000 | AD28: 0.0000
A29: 17 | B29: гречневая крупа | C29: кг | AB29: 0.0000 | AC29: 0.0000 | AD29: 0.0000
A30: 18 | B30: кукурузная крупа | C30: кг | D30: 0.0340 | E30: 0.0450 | AB30: 0.0000 | AC30: 0.0000 | AD30: 0.0000
A31: 19 | B31: макаронные изделия | C31: кг | AB31: 0.0000 | AC31: 0.0000 | AD31: 0.0000
A32: 20 | B32: манная крупа | C32: кг | AB32: 0.0000 | AC32: 0.0000 | AD32: 0.0000
A33: 21 | B33: перловая крупа | C33: кг | AB33: 0.0000 | AC33: 0.0000 | AD33: 0.0000
A34: 22 | B34: полбяная крупа | C34: кг | AB34: 0.0000 | AC34: 0.0000 | AD34: 0.0000
A35: 23 | B35: пшеничная крупа | C35: кг | AB35: 0.0000 | AC35: 0.0000 | AD35: 0.0000
A36: 24 | B36: пшено | C36: кг | AB36: 0.0000 | AC36: 0.0000 | AD36: 0.0000
A37: 25 | B37: рис | C37: кг | AB37: 0.0000 | AC37: 0.0000 | AD37: 0.0000
A38: 26 | B38: мука пшеничная в/с | C38: кг | AB38: 0.0000 | AC38: 0.0000 | AD38: 0.0000
A39: 27 | B39: сахарный песок | C39: кг | D39: 0.0040 | E39: 0.0060 | F39: 0.0200 | T39: 0.0150 | AB39: 0.0000 | AC39: 0.0000 | AD39: 0.0000
A40: 28 | B40: соль | C40: кг | D40: 0.0008 | E40: 0.0010 | L40: 0.0010 | M40: 0.0015 | N40: 0.0033 | O40: 0.0036 | P40: 0.0014 | Q40: 0.0015 | R40: 0.0010 | S40: 0.0012 | AB40: 0.0000 | AC40: 0.0000 | AD40: 0.0000
A41: 29 | B41: ячневая крупа | C41: кг | AB41: 0.0000 | AC41: 0.0000 | AD41: 0.0000
B42: Масло / сыр | AB42: 0.0000 | AC42: 0.0000 | AD42: 0.0000
A43: 30 | B43: масло растительное | C43: кг | L43: 0.0030 | M43: 0.0050 | N43: 0.0020 | O43: 0.0025 | P43: 0.0036 | Q43: 0.0038 | AB43: 0.0000 | AC43: 0.0000 | AD43: 0.0000
A44: 31 | B44: масло сливочное | C44: кг | D44: 0.0050 | E44: 0.0050 | R44: 0,0083 | S44: 0.0113 | AB44: 0.0000 | AC44: 0.0000 | AD44: 0.0000
A45: 32 | B45: сыр голландский | C45: кг | H45: 0.0150 | I45: 0.0150 | AB45: 0.0000 | AC45: 0.0000 | AD45: 0.0000
B46: Молоко и молочная продукция | AB46: 0.0000 | AC46: 0.0000 | AD46: 0.0000
A47: 33 | B47: молоко 2,5% | C47: л | D47: 0.0750 | E47: 0.0100 | F47: 0.0500 | R47: 0.0237 | S47: 0.0284 | AB47: 0.0000 | AC47: 0.0000 | AD47: 0.0000
A48: 34 | B48: катык 2,5% | C48: кг | AB48: 0.0000 | AC48: 0.0000 | AD48: 0.0000
A49: 35 | B49: кефир 2,5% | C49: кг | AB49: 0.0000 | AC49: 0.0000 | AD49: 0.0000
A50: 36 | B50: ряженка 2,5% | C50: кг | X50: 0.1850 | Y50: 0.2070 | AB50: 0.0000 | AC50: 0.0000 | AD50: 0.0000
A51: 37 | B51: напиток ацидофильный с подсластителем | C51: кг | AB51: 0.0000 | AC51: 0.0000 | AD51: 0.0000
A52: 38 | B52: творог | C52: кг | AB52: 0.0000 | AC52: 0.0000 | AD52: 0.0000
A53: 39 | B53: сметана | C53: кг | AB53: 0.0000 | AC53: 0.0000 | AD53: 0.0000
B54: Консервы | AB54: 0.0000 | AC54: 0.0000 | AD54: 0.0000
A55: 40 | B55: кукуруза к/с | C55: кг | L55: 0.0125 | M55: 0.0209 | AB55: 0.0000 | AC55: 0.0000 | AD55: 0.0000
A56: 41 | B56: зеленый горошек к/с | C56: кг | AB56: 0.0000 | AC56: 0.0000 | AD56: 0.0000
A57: 42 | B57: молоко сгущенное | C57: кг | AB57: 0.0000 | AC57: 0.0000 | AD57: 0.0000
A58: 43 | B58: огурцы соленые | C58: кг | AB58: 0.0000 | AC58: 0.0000 | AD58: 0.0000
A59: 44 | B59: повидло | C59: кг | AB59: 0.0000 | AC59: 0.0000 | AD59: 0.0000
A60: 45 | B60: томатная паста | C60: кг | AB60: 0.0000 | AC60: 0.0000 | AD60: 0.0000
B61: Чай/какао/кофейный напиток | AB61: 0.0000 | AC61: 0.0000 | AD61: 0.0000
A62: 46 | B62: чай весовой | C62: кг | AB62: 0.0000 | AC62: 0.0000 | AD62: 0.0000
A63: 47 | B63: чай зеленый | C63: кг | AB63: 0.0000 | AC63: 0.0000 | AD63: 0.0000
A64: 48 | B64: какао | C64: кг | AB64: 0.0000 | AC64: 0.0000 | AD64: 0.0000
A65: 49 | B65: кисель | C65: кг | AB65: 0.0000 | AC65: 0.0000 | AD65: 0.0000
A66: 50 | B66: кофейный напиток | C66: кг | F66: 0.0050 | AB66: 0.0000 | AC66: 0.0000 | AD66: 0.0000
B67: Фрукты | AB67: 0.0000 | AC67: 0.0000 | AD67: 0.0000
A68: 51 | B68: апельсин | C68: кг | AB68: 0.0000 | AC68: 0.0000 | AD68: 0.0000
A69: 52 | B69: банан | C69: кг | AB69: 0.0000 | AC69: 0.0000 | AD69: 0.0000
A70: 53 | B70: груши | C70: кг | AB70: 0.0000 | AC70: 0.0000 | AD70: 0.0000
A71: 54 | B71: лимон | C71: кг | AB71: 0.0000 | AC71: 0.0000 | AD71: 0.0000
A72: 55 | B72: яблоки свежие | C72: кг | AB72: 0.0000 | AC72: 0.0000 | AD72: 0.0000
A73: 56 | B73: мандарин | C73: кг | J73: 0,100 | AB73: =(D73+F73+H73+J73+L73+N73+P73+R73+T73+V73+X73+Z73)*$AB$5 -> 0.0000 | AC73: =(E73+F73+I73+J73+M73+O73+Q73+S73+T73+W73+Y73+Z73)*$AC$5 -> 0.0000 | AD73: =AC73+AB73 -> 0.0000
B74: Сухофрукты | AB74: 0.0000 | AC74: 0.0000 | AD74: 0.0000
A75: 57 | B75: ассорти для компота (сухофрукты) | C75: кг | T75: 0.0150 | AB75: 0.0000 | AC75: 0.0000 | AD75: 0.0000
A76: 58 | B76: ягоды с/м (клюква,черная смородина) | C76: кг | AB76: 0.0000 | AC76: 0.0000 | AD76: 0.0000
A77: 59 | B77: изюм | C77: кг | AB77: 0.0000 | AC77: 0.0000 | AD77: 0.0000
A78: 60 | B78: курага | C78: кг | AB78: 0.0000 | AC78: 0.0000 | AD78: 0.0000
A79: 61 | B79: урюк | C79: кг | AB79: 0.0000 | AC79: 0.0000 | AD79: 0.0000
A80: 62 | B80: шиповник | C80: кг | AB80: 0.0000 | AC80: 0.0000 | AD80: 0.0000
A81: 63 | B81: яблоки сушеные | C81: кг | AB81: 0.0000 | AC81: 0.0000 | AD81: 0.0000
A82: 64 | B82: чернослив | C82: кг | AB82: 0.0000 | AC82: 0.0000 | AD82: 0.0000
B83: Овощи / зелень | AB83: 0.0000 | AC83: 0.0000 | AD83: 0.0000
A84: 65 | B84: зеленый горошек с/м | C84: кг | AB84: 0.0000 | AC84: 0.0000 | AD84: 0.0000
A85: 66 | B85: кабачки с/м | C85: кг | AB85: 0.0000 | AC85: 0.0000 | AD85: 0.0000
A86: 67 | B86: капуста свежая | C86: кг | AB86: 0.0000 | AC86: 0.0000 | AD86: 0.0000
A87: 68 | B87: капуста морская суш | C87: кг | L87: 0.0064 | M87: 0.0107 | AB87: 0.0000 | AC87: 0.0000 | AD87: 0.0000
A88: 69 | B88: картофель | C88: кг | N88: 0.1064 | O88: 0.1330 | R88: 0,171 | S88: 0.2052 | AB88: 0.0000 | AC88: 0.0000 | AD88: 0.0000
A89: 70 | B89: лук репчатый | C89: кг | N89: 0.0096 | O89: 0.0120 | P89: 0.0160 | Q89: 0.0180 | AB89: 0.0000 | AC89: 0.0000 | AD89: 0.0000
A90: 71 | B90: морковь | C90: кг | L90: 0.0125 | M90: 0.0209 | N90: 0.0100 | O90: 0.0125 | AB90: 0.0000 | AC90: 0.0000 | AD90: 0.0000
A91: 72 | B91: огурцы св. | C91: кг | AB91: 0.0000 | AC91: 0.0000 | AD91: 0.0000
A92: 73 | B92: свекла | C92: кг | AB92: 0.0000 | AC92: 0.0000 | AD92: 0.0000
A93: 74 | B93: томаты св. | C93: кг | AB93: 0.0000 | AC93: 0.0000 | AD93: 0.0000
A94: 75 | B94: фасоль к/с | C94: кг | AB94: 0.0000 | AC94: 0.0000 | AD94: 0.0000
A95: 76 | B95: морская капуста суш | C95: кг | AB95: 0.0000 | AC95: 0.0000 | AD95: 0.0000
B96: Кондитерские изделия | AB96: 0.0000 | AC96: 0.0000 | AD96: 0.0000
A97: 77 | B97: баточик злаковый | C97: шт | Z97: 1 | AB97: 0.0000 | AC97: 0.0000 | AD97: 0.0000
A98: 78 | B98: блины с/м ПФ | C98: кг | AB98: 0.0000 | AC98: 0.0000 | AD98: 0.0000
A99: 79 | B99: вафли | C99: кг | AB99: 0.0000 | AC99: 0.0000 | AD99: 0.0000
A100: 80 | B100: печенье | C100: кг | AB100: 0.0000 | AC100: 0.0000 | AD100: 0.0000
B101: Сок | AB101: 0.0000 | AC101: 0.0000 | AD101: 0.0000
A102: 81 | B102: сок в ассортименте | C102: л | AB102: 0.0000 | AC102: 0.0000 | AD102: 0.0000
A103: 82 | B103: сок в индувид.упаковке (0,2л) | C103: л | AB103: 0.0000 | AC103: 0.0000 | AD103: 0.0000
B104: Специи | AB104: 0.0000 | AC104: 0.0000 | AD104: 0.0000
A105: 83 | B105: дрожжи | C105: кг | AB105: 0.0000 | AC105: 0.0000 | AD105: 0.0000
A106: 84 | B106: кислота лимонная | C106: кг | AB106: 0.0000 | AC106: 0.0000 | AD106: 0.0000
A107: 85 | B107: клетчатка | C107: кг | AB107: 0.0000 | AC107: 0.0000 | AD107: 0.0000
B108: Яйцо | AB108: 0.0000 | AC108: 0.0000 | AD108: 0.0000
A109: 86 | B109: яйцо куриное | C109: шт | AB109: 0.0000 | AC109: 0.0000 | AD109: 0.0000
Z110: 0.0480 | AB110: =AB109/Z110 -> 0 | AC110: =AC109/Z110 -> 0 | AD110: =AB110+AC110 -> 0

Sheet День 17 (hidden)
A1: № | B1: Продукт | C1: Ед.изм. | D1: Нормы расхода продуктов в день,кг
D2: Завтрак | L2: Обед | X2: Полдник
B3: ДЕНЬ 17 | D3: Омлет с сосисками с маслом | F3: Чай с молоком с сахаром | H3: батон, масло сливочное | J3: Фрукты ЯБЛОКО | L3: Помидоры свежие порционно | N3: Суп из овощей на мясном бульоне со сметаной | P3: Плов из отварной говядины | T3: Компот из апельсинов | V3: Хлеб белый, сельский | X3: Сок /Нектар фруктовый (разливной) | Z3: Булочка "Веснушка" | AB3: Количество детей | AD3: ИТОГО
B4: Возрастная группа | D4: 7-11 | E4: 12-18 | F4: 7-18 | H4: 7-11 | I4: 12-18 | J4: 7-18 | L4: 7-11 | M4: 12-18 | N4: 7-11 | O4: 12-18 | P4: 7-11 | Q4: 12-18 | R4: 7-11 | S4: 12-18 | T4: 7-18 | V4: 7-11 | W4: 12-18 | X4: 7-18 | Z4: 7-18 | AB4: 7-11 | AC4: 12-18
B5: Выход,гр | D5: 35/150 | E5: 45/200 | F5: 200/15 | H5: 30/10 | I5: 30/10 | J5: 100 | L5: 60 | M5: 50 | N5: 200/10 | O5: 250/10 | P5: 50/200 | Q5: 50/250 | R5: 150 | S5: 180 | T5: 200 | V5: 40/40 | W5: 50/50 | X5: 200 | Z5: 50 | AD5: =AB5+AC5 -> 0
B7: Хлебобулочные изделия
A8: 1 | B8: батон | C8: кг | H8: 0.0300 | I8: 0.0300 | AB8: =(Z8+X8+V8+T8+P8+N8+L8+J8+H8+F8+D8)*$AB$5 -> 0.0000 | AC8: =(Z8+X8+W8+T8+Q8+O8+M8+J8+I8+F8+E8)*$AC$5 -> 0.0000 | AD8: =AB8+AC8 -> 0.0000
A9: 2 | B9: хлеб пшеничный | C9: кг | V9: 0.0400 | W9: 0.0500 | AB9: =(Z9+X9+V9+T9+P9+N9+L9+J9+H9+F9+D9)*$AB$5 -> 0.0000 | AC9: =(Z9+X9+W9+T9+Q9+O9+M9+J9+I9+F9+E9)*$AC$5 -> 0.0000 | AD9: =AB9+AC9 -> 0.0000
A10: 3 | B10: хлеб ржаной | C10: кг | V10: 0.0400 | W10: 0.0500 | AB10: 0.0000 | AC10: 0.0000 | AD10: 0.0000
A11: 4 | B11: сухари панировочные | C11: кг | AB11: 0.0000 | AC11: 0.0000 | AD11: 0.0000
A12: 5 | B12: лапша домашняя ПФ | C12: кг | AB12: 0.0000 | AC12: 0.0000 | AD12: 0.0000
B13: Мясо | AB13: 0.0000 | AC13: 0.0000 | AD13: 0.0000
A14: 6 | B14: говядина (котлетное мясо) | C14: кг | AB14: 0.0000 | AC14: 0.0000 | AD14: 0.0000
B15: или фарш говяжий | C15: кг | AB15: 0.0000 | AC15: 0.0000 | AD15: 0.0000
A16: 7 | B16: говядина лопатка б/к | C16: кг | P16: 0.0810 | Q16: 0.0810 | AB16: 0.0000 | AC16: 0.0000 | AD16: 0.0000
B17: или говядина потушная | C17: кг | AB17: 0.0000 | AC17: 0.0000 | AD17: 0.0000
A18: 8 | B18: сосиски куриные "Халяль" | C18: кг | D18: 0.0385 | E18: 0.0495 | AB18: 0.0000 | AC18: 0.0000 | AD18: 0.0000
A19: 9 | B19: куриная грудка | C19: кг | AB19: 0.0000 | AC19: 0.0000 | AD19: 0.0000
A20: 10 | B20: куры/цыплята потрош. | C20: кг | AB20: 0.0000 | AC20: 0.0000 | AD20: 0.0000
A21: 11 | B21: печень говяжья | C21: кг | AB21: 0.0000 | AC21: 0.0000 | AD21: 0.0000
B22: Рыба | AB22: 0.0000 | AC22: 0.0000 | AD22: 0.0000
A23: 12 | B23: фарш минтая с/м | C23: кг | AB23: 0.0000 | AC23: 0.0000 | AD23: 0.0000
A24: 13 | B24: минтай б/г с/м | C24: кг | AB24: 0.0000 | AC24: 0.0000 | AD24: 0.0000
B25: Сыпучка | AB25: 0.0000 | AC25: 0.0000 | AD25: 0.0000
A26: 14 | B26: вермишель | C26: кг | AB26: 0.0000 | AC26: 0.0000 | AD26: 0.0000
A27: 15 | B27: геркулес | C27: кг | AB27: 0.0000 | AC27: 0.0000 | AD27: 0.0000
A28: 16 | B28: горох | C28: кг | AB28: 0.0000 | AC28: 0.0000 | AD28: 0.0000
A29: 17 | B29: гречневая крупа | C29: кг | AB29: 0.0000 | AC29: 0.0000 | AD29: 0.0000
A30: 18 | B30: кукурузная крупа | C30: кг | AB30: 0.0000 | AC30: 0.0000 | AD30: 0.0000
A31: 19 | B31: макаронные изделия | C31: кг | AB31: 0.0000 | AC31: 0.0000 | AD31: 0.0000
A32: 20 | B32: манная крупа | C32: кг | AB32: 0.0000 | AC32: 0.0000 | AD32: 0.0000
A33: 21 | B33: перловая крупа | C33: кг | AB33: 0.0000 | AC33: 0.0000 | AD33: 0.0000
A34: 22 | B34: полбяная крупа | C34: кг | AB34: 0.0000 | AC34: 0.0000 | AD34: 0.0000
A35: 23 | B35: пшеничная крупа | C35: кг | AB35: 0.0000 | AC35: 0.0000 | AD35: 0.0000
A36: 24 | B36: пшено | C36: кг | AB36: 0.0000 | AC36: 0.0000 | AD36: 0.0000
A37: 25 | B37: рис | C37: кг | P37: 0.0510 | Q37: 0.0680 | AB37: 0.0000 | AC37: 0.0000 | AD37: 0.0000
A38: 26 | B38: мука пшеничная в/с | C38: кг | Z38: 0,03571 | AB38: 0.0000 | AC38: 0.0000 | AD38: 0.0000
A39: 27 | B39: сахарный песок | C39: кг | F39: 0.0150 | T39: 0.0300 | Z39: 0,0036 | AB39: 0.0000 | AC39: 0.0000 | AD39: 0.0000
A40: 28 | B40: соль | C40: кг | D40: 0.0008 | E40: 0.0010 | N40: 0.0020 | O40: 0.0025 | P40: 0.0015 | Q40: 0.0020 | Z40: 0.0004 | AB40: 0.0000 | AC40: 0.0000 | AD40: 0.0000
A41: 29 | B41: ячневая крупа | C41: кг | AB41: 0.0000 | AC41: 0.0000 | AD41: 0.0000
B42: Масло / сыр | AB42: 0.0000 | AC42: 0.0000 | AD42: 0.0000
A43: 30 | B43: масло растительное | C43: кг | N43: 0.0040 | O43: 0.0050 | P43: 0.0075 | Q43: 0.0100 | Z43: 0.0010 | AB43: 0.0000 | AC43: 0.0000 | AD43: 0.0000
A44: 31 | B44: масло сливочное | C44: кг | D44: 0.0120 | E44: 0.0140 | H44: 0.0100 | I44: 0.0100 | Z44: 0.0032 | AB44: 0.0000 | AC44: 0.0000 | AD44: 0.0000
A45: 32 | B45: сыр голландский | C45: кг | AB45: 0.0000 | AC45: 0.0000 | AD45: 0.0000
B46: Молоко и молочная продукция | AB46: 0.0000 | AC46: 0.0000 | AD46: 0.0000
A47: 33 | B47: молоко 2,5% | C47: кг | D47: 0.0314 | E47: 0.0423 | F47: 0.0510 | AB47: 0.0000 | AC47: 0.0000 | AD47: 0.0000
A48: 34 | B48: катык 2,5% | C48: кг | AB48: 0.0000 | AC48: 0.0000 | AD48: 0.0000
A49: 35 | B49: кефир 2,5% | C49: кг | AB49: 0.0000 | AC49: 0.0000 | AD49: 0.0000
A50: 36 | B50: ряженка 2,5% | C50: кг | AB50: 0.0000 | AC50: 0.0000 | AD50: 0.0000
A51: 37 | B51: напиток ацидофильный с подсластителем | C51: кг | AB51: 0.0000 | AC51: 0.0000 | AD51: 0.0000
A52: 38 | B52: творог | C52: кг | AB52: 0.0000 | AC52: 0.0000 | AD52: 0.0000
A53: 39 | B53: сметана | C53: кг | N53: 0.0100 | O53: 0.0100 | AB53: 0.0000 | AC53: 0.0000 | AD53: 0.0000
B54: Консервы | C54: кг | AB54: 0.0000 | AC54: 0.0000 | AD54: 0.0000
A55: 40 | B55: кукуруза к/с | C55: кг | AB55: 0.0000 | AC55: 0.0000 | AD55: 0.0000
A56: 41 | B56: зеленый горошек к/с | C56: кг | AB56: 0.0000 | AC56: 0.0000 | AD56: 0.0000
A57: 42 | B57: молоко сгущенное | C57: кг | AB57: 0.0000 | AC57: 0.0000 | AD57: 0.0000
A58: 43 | B58: огурцы соленые | C58: кг | AB58: 0.0000 | AC58: 0.0000 | AD58: 0.0000
A59: 44 | B59: повидло | C59: кг | AB59: 0.0000 | AC59: 0.0000 | AD59: 0.0000
A60: 45 | B60: томатная паста | C60: кг | P60: 0.0048 | Q60: 0.0060 | AB60: 0.0000 | AC60: 0.0000 | AD60: 0.0000
B61: Чай/какао/кофейный напиток | AB61: 0.0000 | AC61: 0.0000 | AD61: 0.0000
A62: 46 | B62: чай весовой | C62: кг | F62: 0.0010 | AB62: 0.0000 | AC62: 0.0000 | AD62: 0.0000
A63: 47 | B63: чай зеленый | C63: кг | AB63: 0.0000 | AC63: 0.0000 | AD63: 0.0000
A64: 48 | B64: какао | C64: кг | AB64: 0.0000 | AC64: 0.0000 | AD64: 0.0000
A65: 49 | B65: кисель | C65: кг | AB65: 0.0000 | AC65: 0.0000 | AD65: 0.0000
A66: 50 | B66: кофейный напиток | C66: кг | AB66: 0.0000 | AC66: 0.0000 | AD66: 0.0000
B67: Фрукты | AB67: 0.0000 | AC67: 0.0000 | AD67: 0.0000
A68: 51 | B68: апельсин | C68: кг | T68: 0.0746 | AB68: 0.0000 | AC68: 0.0000 | AD68: 0.0000
A69: 52 | B69: банан | C69: кг | AB69: 0.0000 | AC69: 0.0000 | AD69: 0.0000
A70: 53 | B70: груши | C70: кг | AB70: 0.0000 | AC70: 0.0000 | AD70: 0.0000
A71: 54 | B71: лимон | C71: кг | AB71: 0.0000 | AC71: 0.0000 | AD71: 0.0000
A72: 55 | B72: яблоки свежие | C72: кг | J72: 0.1000 | AB72: 0.0000 | AC72: 0.0000 | AD72: 0.0000
A73: 56 | B73: яблоки зеленые | C73: кг | AB73: =(Z73+X73+V73+T73+P73+N73+L73+J73+H73+F73+D73)*$AB$5 -> 0.0000 | AC73: =(Z73+X73+W73+T73+Q73+O73+M73+J73+I73+F73+E73)*$AC$5 -> 0.0000 | AD73: =AB73+AC73 -> 0.0000
B74: Сухофрукты | AB74: 0.0000 | AC74: 0.0000 | AD74: 0.0000
A75: 57 | B75: ассорти для компота (сухофрукты) | C75: кг | AB75: 0.0000 | AC75: 0.0000 | AD75: 0.0000
A76: 58 | B76: ягоды с/м (клюква,черная смородина) | C76: кг | AB76: 0.0000 | AC76: 0.0000 | AD76: 0.0000
A77: 59 | B77: изюм | C77: кг | Z77: 0.0018 | AB77: 0.0000 | AC77: 0.0000 | AD77: 0.0000
A78: 60 | B78: курага | C78: кг | AB78: 0.0000 | AC78: 0.0000 | AD78: 0.0000
A79: 61 | B79: урюк | C79: кг | AB79: 0.0000 | AC79: 0.0000 | AD79: 0.0000
A80: 62 | B80: шиповник | C80: кг | AB80: 0.0000 | AC80: 0.0000 | AD80: 0.0000
A81: 63 | B81: компотная смесь с/м | C81: кг | AB81: 0.0000 | AC81: 0.0000 | AD81: 0.0000
A82: 64 | B82: чернослив | C82: кг | AB82: 0.0000 | AC82: 0.0000 | AD82: 0.0000
B83: Овощи / зелень | AB83: 0.0000 | AC83: 0.0000 | AD83: 0.0000
A84: 65 | B84: зеленый горошек с/м | C84: кг | N84: 0.0100 | O84: 0.0125 | AB84: 0.0000 | AC84: 0.0000 | AD84: 0.0000
A85: 66 | B85: кабачки с/м | C85: кг | AB85: 0.0000 | AC85: 0.0000 | AD85: 0.0000
A86: 67 | B86: капуста свежая | C86: кг | N86: 0.0200 | O86: 0.0250 | AB86: 0.0000 | AC86: 0.0000 | AD86: 0.0000
A87: 68 | B87: капуста цветная с/м | C87: кг | AB87: 0.0000 | AC87: 0.0000 | AD87: 0.0000
A88: 69 | B88: картофель | C88: кг | N88: 0.0532 | O88: 0.0668 | AB88: 0.0000 | AC88: 0.0000 | AD88: 0.0000
A89: 70 | B89: лук репчатый | C89: кг | N89: 0.0096 | O89: 0.0120 | P89: 0.0090 | Q89: 0.0120 | AB89: 0.0000 | AC89: 0.0000 | AD89: 0.0000
A90: 71 | B90: морковь | C90: кг | N90: 0.0100 | O90: 0.0125 | P90: 0.0150 | Q90: 0.0200 | AB90: 0.0000 | AC90: 0.0000 | AD90: 0.0000
A91: 72 | B91: огурцы св. | C91: кг | AB91: 0.0000 | AC91: 0.0000 | AD91: 0.0000
A92: 73 | B92: свекла | C92: кг | AB92: 0.0000 | AC92: 0.0000 | AD92: 0.0000
A93: 74 | B93: томаты св. | C93: кг | L93: 0.0612 | M93: 0.0510 | AB93: 0.0000 | AC93: 0.0000 | AD93: 0.0000
A94: 75 | B94: фасоль к/с | C94: кг | AB94: 0.0000 | AC94: 0.0000 | AD94: 0.0000
A95: 76 | B95: чеснок | C95: кг | AB95: 0.0000 | AC95: 0.0000 | AD95: 0.0000
B96: Кондитерские изделия | AB96: 0.0000 | AC96: 0.0000 | AD96: 0.0000
A97: 77 | B97: батончик злаковый | C97: шт | AB97: 0.0000 | AC97: 0.0000 | AD97: 0.0000
A98: 78 | B98: блины с/м | C98: кг | AB98: 0.0000 | AC98: 0.0000 | AD98: 0.0000
A99: 79 | B99: вафли | C99: кг | AB99: 0.0000 | AC99: 0.0000 | AD99: 0.0000
A100: 80 | B100: печенье | C100: кг | AB100: 0.0000 | AC100: 0.0000 | AD100: 0.0000
B101: Сок | AB101: 0.0000 | AC101: 0.0000 | AD101: 0.0000
A102: 81 | B102: сок в ассортименте | C102: л | X102: 0.2000 | AB102: 0.0000 | AC102: 0.0000 | AD102: 0.0000
A103: 82 | B103: сок в индувид.упаковке (0,2л) | C103: л | AB103: 0.0000 | AC103: 0.0000 | AD103: 0.0000
B104: Специи | AB104: 0.0000 | AC104: 0.0000 | AD104: 0.0000
A105: 83 | B105: дрожжи | C105: кг | Z105: 0.0003 | AB105: 0.0000 | AC105: 0.0000 | AD105: 0.0000
A106: 84 | B106: кислота лимонная | C106: кг | AB106: 0.0000 | AC106: 0.0000 | AD106: 0.0000
A107: 85 | B107: клетчатка | C107: кг | AB107: 0.0000 | AC107: 0.0000 | AD107: 0.0000
B108: Яйцо | AB108: 0.0000 | AC108: 0.0000 | AD108: 0.0000
A109: 86 | B109: яйцо куриное | C109: кг | D109: 0.1006 | E109: 0.1356 | Z109: 0.0012 | AB109: 0.0000 | AC109: 0.0000 | AD109: 0.0000
Z110: 0.0480 | AB110: =AB109/Z110 -> 0 | AC110: =AC109/Z110 -> 0 | AD110: 0

Sheet День 18 (hidden)
A1: № | B1: Продукт | C1: Ед.изм. | D1: Нормы расхода продуктов в день,кг
D2: Завтрак | L2: Обед | X2: Полдник
B3: ДЕНЬ 18 | D3: Каша пшенная молочная с маслом | F3: Кофейный напиток с молоком | H3: батон, масло сливочное | L3: Огурцы сежие | N3: Суп лапша дом с картофелем на курином бульоне | P3: Фрикадельки из птицы в соусе томатном | R3: Каша перловая рассыпчатая с овощами | T3: Компот из кураги | V3: Хлеб белый, сельский | X3: Чай с сахаром | Z3: Булочка "К чаю" | AB3: Количество детей | AD3: ИТОГО
B4: Возрастная группа | D4: 7-11 | E4: 12-18 | F4: 7-18 | H4: 7-11 | I4: 12-18 | J4: 7-18 | L4: 7-11 | M4: 12-18 | N4: 7-11 | O4: 12-18 | P4: 7-11 | Q4: 12-18 | R4: 7-11 | S4: 12-18 | T4: 7-18 | V4: 7-11 | W4: 12-18 | X4: 7-18 | Z4: 7-18 | AB4: 7-11 | AC4: 12-18
B5: Выход,гр | D5: 200/5 | E5: 200/5 | F5: 200 | H5: 50/10 | I5: 50/10 | L5: 60 | M5: 100 | N5: 250 | O5: 250 | P5: 55/50 | Q5: 55/50 | R5: 150 | S5: 180 | T5: 200 | V5: 40/40 | W5: 50/50 | X5: 200/15 | Z5: 50 | AD5: =AB5+AC5 -> 0
B7: Хлебобулочные изделия
A8: 1 | B8: батон | C8: кг | H8: 0.0500 | I8: 0.0500 | AB8: =(Z8+X8+V8+T8+R8+P8+N8+L8+J8+H8+F8+D8)*$AB$5 -> 0.0000 | AC8: =(Z8+X8+W8+T8+S8+Q8+O8+M8+J8+I8+F8+E8)*$AC$5 -> 0.0000 | AD8: =AB8+AC8 -> 0.0000
A9: 2 | B9: хлеб пшеничный | C9: кг | P9: 0.0104 | Q9: 0.0104 | V9: 0.0400 | W9: 0.0500 | AB9: =(Z9+X9+V9+T9+R9+P9+N9+L9+J9+H9+F9+D9)*$AB$5 -> 0.0000 | AC9: =(Z9+X9+W9+T9+S9+Q9+O9+M9+J9+I9+F9+E9)*$AC$5 -> 0.0000 | AD9: =AB9+AC9 -> 0.0000
A10: 3 | B10: хлеб ржаной | C10: кг | V10: 0.0400 | W10: 0.0500 | AB10: 0.0000 | AC10: 0.0000 | AD10: 0.0000
A11: 4 | B11: сухари панировочные | C11: кг | AB11: 0.0000 | AC11: 0.0000 | AD11: 0.0000
A12: 5 | B12: лапша домашняя Пф | C12: кг | N12: 0.0250 | O12: 0.0250 | AB12: 0.0000 | AC12: 0.0000 | AD12: 0.0000
B13: Мясо | AB13: 0.0000 | AC13: 0.0000 | AD13: 0.0000
A14: 6 | B14: говядина (котлетное мясо) | C14: кг | AB14: 0.0000 | AC14: 0.0000 | AD14: 0.0000
B15: или фарш говяжий | C15: кг | AB15: 0.0000 | AC15: 0.0000 | AD15: 0.0000
A16: 7 | B16: говядина лопатка б/к | C16: кг | AB16: 0.0000 | AC16: 0.0000 | AD16: 0.0000
B17: или говядина потушная | C17: кг | AB17: 0.0000 | AC17: 0.0000 | AD17: 0.0000
A18: 8 | B18: сосиски куриные "Халяль" | C18: кг | AB18: 0.0000 | AC18: 0.0000 | AD18: 0.0000
A19: 9 | B19: куриная грудка | C19: кг | P19: 0.0469 | Q19: 0.0469 | AB19: 0.0000 | AC19: 0.0000 | AD19: 0.0000
A20: 10 | B20: куры/цыплята потрош. | C20: кг | AB20: 0.0000 | AC20: 0.0000 | AD20: 0.0000
A21: 11 | B21: печень говяжья | C21: кг | AB21: 0.0000 | AC21: 0.0000 | AD21: 0.0000
B22: Рыба | AB22: 0.0000 | AC22: 0.0000 | AD22: 0.0000
A23: 12 | B23: фарш минтая с/м | C23: кг | AB23: 0.0000 | AC23: 0.0000 | AD23: 0.0000
A24: 13 | B24: минтай б/г с/м | C24: кг | AB24: 0.0000 | AC24: 0.0000 | AD24: 0.0000
B25: Сыпучка | AB25: 0.0000 | AC25: 0.0000 | AD25: 0.0000
A26: 14 | B26: вермишель | C26: кг | AB26: 0.0000 | AC26: 0.0000 | AD26: 0.0000
A27: 15 | B27: геркулес | C27: кг | AB27: 0.0000 | AC27: 0.0000 | AD27: 0.0000
A28: 16 | B28: горох | C28: кг | AB28: 0.0000 | AC28: 0.0000 | AD28: 0.0000
A29: 17 | B29: гречневая крупа | C29: кг | AB29: 0.0000 | AC29: 0.0000 | AD29: 0.0000
A30: 18 | B30: кукурузная крупа | C30: кг | AB30: 0.0000 | AC30: 0.0000 | AD30: 0.0000
A31: 19 | B31: макаронные изделия | C31: кг | AB31: 0.0000 | AC31: 0.0000 | AD31: 0.0000
A32: 20 | B32: манная крупа | C32: кг | AB32: 0.0000 | AC32: 0.0000 | AD32: 0.0000
A33: 21 | B33: перловая крупа | C33: кг | R33: 0.0440 | S33: 0.0520 | AB33: 0.0000 | AC33: 0.0000 | AD33: 0.0000
A34: 22 | B34: полбяная крупа | C34: кг | AB34: 0.0000 | AC34: 0.0000 | AD34: 0.0000
A35: 23 | B35: пшеничная крупа | C35: кг | AB35: 0.0000 | AC35: 0.0000 | AD35: 0.0000
A36: 24 | B36: пшено | C36: кг | D36: 0.0400 | E36: 0.0400 | AB36: 0.0000 | AC36: 0.0000 | AD36: 0.0000
A37: 25 | B37: рис | C37: кг | AB37: 0.0000 | AC37: 0.0000 | AD37: 0.0000
A38: 26 | B38: мука пшеничная в/с | C38: кг | P38: 0.0023 | Q38: 0.0023 | Z38: 0.0310 | AB38: 0.0000 | AC38: 0.0000 | AD38: 0.0000
A39: 27 | B39: сахарный песок | C39: кг | D39: 0.0060 | E39: 0.0060 | F39: 0.0200 | P39: 0.0005 | Q39: 0.0005 | T39: 0.0200 | X39: 0,015 | Z39: 0,0039 | AB39: 0.0000 | AC39: 0.0000 | AD39: 0.0000
A40: 28 | B40: соль | C40: кг | D40: 0.0010 | E40: 0.0010 | N40: 0.0025 | O40: 0.0025 | P40: 0.0005 | Q40: 0.0005 | R40: 0.0010 | S40: 0.0012 | Z40: 0.0004 | AB40: 0.0000 | AC40: 0.0000 | AD40: 0.0000
A41: 29 | B41: ячневая крупа | C41: кг | AB41: 0.0000 | AC41: 0.0000 | AD41: 0.0000
B42: Масло / сыр | AB42: 0.0000 | AC42: 0.0000 | AD42: 0.0000
A43: 30 | B43: масло растительное | C43: кг | N43: 0.0050 | O43: 0.0050 | P43: 0.0008 | Q43: 0.0008 | AB43: 0.0000 | AC43: 0.0000 | AD43: 0.0000
A44: 31 | B44: масло сливочное | C44: кг | D44: 0.0050 | E44: 0.0050 | H44: 0.0100 | I44: 0.0100 | P44: 0.0023 | Q44: 0.0023 | R44: 0.0050 | S44: 0.0050 | Z44: 0,0014 | AB44: 0.0000 | AC44: 0.0000 | AD44: 0.0000
A45: 32 | B45: сыр голландский | C45: кг | AB45: 0.0000 | AC45: 0.0000 | AD45: 0.0000
B46: Молоко и молочная продукция | AB46: 0.0000 | AC46: 0.0000 | AD46: 0.0000
A47: 33 | B47: молоко 2,5% | C47: л | D47: 0.1000 | E47: 0.1000 | F47: 0.0500 | Z47: 0.0130 | AB47: 0.0000 | AC47: 0.0000 | AD47: 0.0000
A48: 34 | B48: катык 2,5% | C48: кг | AB48: 0.0000 | AC48: 0.0000 | AD48: 0.0000
A49: 35 | B49: кефир 2,5% | C49: кг | AB49: 0.0000 | AC49: 0.0000 | AD49: 0.0000
A50: 36 | B50: ряженка 2,5% | C50: кг | AB50: 0.0000 | AC50: 0.0000 | AD50: 0.0000
A51: 37 | B51: напиток ацидофильный с подсластителем | C51: кг | AB51: 0.0000 | AC51: 0.0000 | AD51: 0.0000
A52: 38 | B52: творог | C52: кг | AB52: 0.0000 | AC52: 0.0000 | AD52: 0.0000
A53: 39 | B53: сметана | C53: кг | AB53: 0.0000 | AC53: 0.0000 | AD53: 0.0000
B54: Консервы | C54: кг | AB54: 0.0000 | AC54: 0.0000 | AD54: 0.0000
A55: 40 | B55: кукуруза к/с | C55: кг | AB55: 0.0000 | AC55: 0.0000 | AD55: 0.0000
A56: 41 | B56: зеленый горошек к/с | C56: кг | AB56: 0.0000 | AC56: 0.0000 | AD56: 0.0000
A57: 42 | B57: молоко сгущенное | C57: кг | AB57: 0.0000 | AC57: 0.0000 | AD57: 0.0000
A58: 43 | B58: огурцы соленые | C58: кг | AB58: 0.0000 | AC58: 0.0000 | AD58: 0.0000
A59: 44 | B59: повидло | C59: кг | AB59: 0.0000 | AC59: 0.0000 | AD59: 0.0000
A60: 45 | B60: томатная паста | C60: кг | P60: 0.0030 | Q60: 0.0030 | AB60: 0.0000 | AC60: 0.0000 | AD60: 0.0000
B61: Чай/какао/кофейный напиток | AB61: 0.0000 | AC61: 0.0000 | AD61: 0.0000
A62: 46 | B62: чай весовой | C62: кг | X62: 0.0010 | AB62: 0.0000 | AC62: 0.0000 | AD62: 0.0000
A63: 47 | B63: чай зеленый | C63: кг | AB63: 0.0000 | AC63: 0.0000 | AD63: 0.0000
A64: 48 | B64: какао | C64: кг | AB64: 0.0000 | AC64: 0.0000 | AD64: 0.0000
A65: 49 | B65: кисель | C65: кг | AB65: 0.0000 | AC65: 0.0000 | AD65: 0.0000
A66: 50 | B66: кофейный напиток | C66: кг | F66: 0.0050 | AB66: 0.0000 | AC66: 0.0000 | AD66: 0.0000
B67: Фрукты | AB67: 0.0000 | AC67: 0.0000 | AD67: 0.0000
A68: 51 | B68: апельсин | C68: кг | AB68: 0.0000 | AC68: 0.0000 | AD68: 0.0000
A69: 52 | B69: банан | C69: кг | AB69: 0.0000 | AC69: 0.0000 | AD69: 0.0000
A70: 53 | B70: груши | C70: кг | AB70: 0.0000 | AC70: 0.0000 | AD70: 0.0000
A71: 54 | B71: лимон | C71: кг | AB71: 0.0000 | AC71: 0.0000 | AD71: 0.0000
A72: 55 | B72: яблоки свежие | C72: кг | AB72: 0.0000 | AC72: 0.0000 | AD72: 0.0000
A73: 56 | B73: яблоки зеленые | C73: кг | AB73: =(Z73+X73+V73+T73+R73+P73+N73+L73+J73+H73+F73+D73)*$AB$5 -> 0.0000 | AC73: =(Z73+X73+W73+T73+S73+Q73+O73+M73+J73+I73+F73+E73)*$AC$5 -> 0.0000 | AD73: =AB73+AC73 -> 0.0000
B74: Сухофрукты | AB74: 0.0000 | AC74: 0.0000 | AD74: 0.0000
A75: 57 | B75: ассорти для компота (сухофрукты) | C75: кг | AB75: 0.0000 | AC75: 0.0000 | AD75: 0.0000
A76: 58 | B76: ягоды с/м (клюква ,смородина черная) | C76: кг | AB76: 0.0000 | AC76: 0.0000 | AD76: 0.0000
A77: 59 | B77: изюм | C77: кг | AB77: 0.0000 | AC77: 0.0000 | AD77: 0.0000
A78: 60 | B78: курага | C78: кг | T78: 0.0204 | AB78: 0.0000 | AC78: 0.0000 | AD78: 0.0000
A79: 61 | B79: урюк | C79: кг | AB79: 0.0000 | AC79: 0.0000 | AD79: 0.0000
A80: 62 | B80: шиповник | C80: кг | AB80: 0.0000 | AC80: 0.0000 | AD80: 0.0000
A81: 63 | B81: компотная смесь с/м | C81: кг | AB81: 0.0000 | AC81: 0.0000 | AD81: 0.0000
A82: 64 | B82: чернослив | C82: кг | AB82: 0.0000 | AC82: 0.0000 | AD82: 0.0000
B83: Овощи / зелень | AB83: 0.0000 | AC83: 0.0000 | AD83: 0.0000
A84: 65 | B84: зеленый горошек с/м | C84: кг | AB84: 0.0000 | AC84: 0.0000 | AD84: 0.0000
A85: 66 | B85: кабачки с/м | C85: кг | AB85: 0.0000 | AC85: 0.0000 | AD85: 0.0000
A86: 67 | B86: капуста свежая | C86: кг | AB86: 0.0000 | AC86: 0.0000 | AD86: 0.0000
A87: 68 | B87: капуста цветная с/м | C87: кг | AB87: 0.0000 | AC87: 0.0000 | AD87: 0.0000
A88: 69 | B88: картофель | C88: кг | N88: 0.0500 | O88: 0.0500 | AB88: 0.0000 | AC88: 0.0000 | AD88: 0.0000
A89: 70 | B89: лук репчатый | C89: кг | N89: 0.0120 | O89: 0.0120 | P89: 0.0018 | Q89: 0.0018 | R89: 0.0024 | S89: 0.0029 | AB89: 0.0000 | AC89: 0.0000 | AD89: 0.0000
A90: 71 | B90: морковь | C90: кг | N90: 0.0125 | O90: 0.0125 | P90: 0.0044 | Q90: 0.0044 | R90: 0.0225 | S90: 0.0275 | AB90: 0.0000 | AC90: 0.0000 | AD90: 0.0000
A91: 72 | B91: огурцы св. | C91: кг | L91: 0.0612 | M91: 0.1020 | AB91: 0.0000 | AC91: 0.0000 | AD91: 0.0000
A92: 73 | B92: свекла | C92: кг | AB92: 0.0000 | AC92: 0.0000 | AD92: 0.0000
A93: 74 | B93: томаты св. | C93: кг | AB93: 0.0000 | AC93: 0.0000 | AD93: 0.0000
A94: 75 | B94: фасоль к/с | C94: кг | AB94: 0.0000 | AC94: 0.0000 | AD94: 0.0000
A95: 76 | B95: чеснок | C95: кг | AB95: 0.0000 | AC95: 0.0000 | AD95: 0.0000
B96: Кондитерские изделия | AB96: 0.0000 | AC96: 0.0000 | AD96: 0.0000
A97: 77 | B97: батончик злаковый | C97: шт | AB97: 0.0000 | AC97: 0.0000 | AD97: 0.0000
A98: 78 | B98: блины с/м ПФ | C98: кг | AB98: 0.0000 | AC98: 0.0000 | AD98: 0.0000
A99: 79 | B99: вафли | C99: кг | AB99: 0.0000 | AC99: 0.0000 | AD99: 0.0000
A100: 80 | B100: печенье | C100: кг | AB100: 0.0000 | AC100: 0.0000 | AD100: 0.0000
B101: Сок | AB101: 0.0000 | AC101: 0.0000 | AD101: 0.0000
A102: 81 | B102: сок в ассортименте | C102: л | AB102: 0.0000 | AC102: 0.0000 | AD102: 0.0000
A103: 82 | B103: сок в индувид.упаковке (0,2л) | C103: л | AB103: 0.0000 | AC103: 0.0000 | AD103: 0.0000
B104: Специи | AB104: 0.0000 | AC104: 0.0000 | AD104: 0.0000
A105: 83 | B105: дрожжи | C105: кг | Z105: 0.0003 | AB105: 0.0000 | AC105: 0.0000 | AD105: 0.0000
A106: 84 | B106: кислота лимонная | C106: кг | AB106: 0.0000 | AC106: 0.0000 | AD106: 0.0000
A107: 85 | B107: клетчатка | C107: кг | AB107: 0.0000 | AC107: 0.0000 | AD107: 0.0000
B108: Яйцо | AB108: 0.0000 | AC108: 0.0000 | AD108: 0.0000
A109: 86 | B109: яйцо куриное | C109: кг | P109: 0.0009 | Q109: 0.0009 | Z109: 0.0044 | AB109: 0.0000 | AC109: 0.0000 | AD109: 0.0000
Z110: 0,048 | AB110: =AB109/Z110 -> 0 | AC110: =AC109/Z110 -> 0 | AD110: 0

Sheet День 19 (hidden)
A1: № | B1: Продукт | C1: Ед.изм. | D1: Нормы расхода продуктов в день,кг
D2: Завтрак | L2: Обед | X2: Полдник
B3: ДЕНЬ 19 | D3: Каша молочная полбянная с маслом | F3: Чай с сахаром с шиповником | H3: батон, сыр порционно | L3: Помидоры свежие | N3: Щи из св. капусты со сметаной на мясном бульоне | P3: бефстрогонов из отварной говядины | R3: Макароны отварные | T3: Кисель | V3: Хлеб белый, сельский | X3: Сок /Нектар фруктовый (разливной) | Z3: Печенье | AB3: Количество детей | AD3: ИТОГО
B4: Возрастная группа | D4: 7-11 | E4: 12-18 | F4: 7-18 | H4: 7-11 | I4: 12-18 | J4: 7-18 | L4: 7-11 | M4: 12-18 | N4: 7-11 | O4: 12-18 | P4: 7-11 | Q4: 12-18 | R4: 7-11 | S4: 12-18 | T4: 7-18 | V4: 7-11 | W4: 12-18 | X4: 7-18 | Z4: 7-18 | AB4: 7-11 | AC4: 12-18
B5: Выход,гр | D5: 200 | E5: 250 | F5: 200/15/10 | H5: 40/10/25 | I5: 50/10/15 | L5: 60 | M5: 100 | N5: 200/10 | O5: 250/10 | P5: 50/50 | Q5: 50/50 | R5: 150 | S5: 180 | T5: 200 | V5: 40/40 | W5: 50/50 | X5: 200 | Z5: 50 | AD5: =AB5+AC5 -> 0
B7: Хлебобулочные изделия
A8: 1 | B8: батон | C8: кг | H8: 0.0400 | I8: 0.0500 | AB8: =(Z8+X8+V8+T8+R8+P8+N8+L8+J8+H8+F8+D8)*$AB$5 -> 0.0000 | AC8: =(Z8+X8+W8+T8+S8+Q8+O8+M8+J8+I8+F8+E8)*$AC$5 -> 0.0000 | AD8: =AB8+AC8 -> 0.0000
A9: 2 | B9: хлеб пшеничный | C9: кг | V9: 0.0400 | W9: 0.0500 | AB9: =(Z9+X9+V9+T9+R9+P9+N9+L9+J9+H9+F9+D9)*$AB$5 -> 0.0000 | AC9: =(Z9+X9+W9+T9+S9+Q9+O9+M9+J9+I9+F9+E9)*$AC$5 -> 0.0000 | AD9: =AB9+AC9 -> 0.0000
A10: 3 | B10: хлеб ржаной | C10: кг | V10: 0.0400 | W10: 0.0500 | AB10: 0.0000 | AC10: 0.0000 | AD10: 0.0000
A11: 4 | B11: сухари панировочные | C11: кг | AB11: 0.0000 | AC11: 0.0000 | AD11: 0.0000
A12: 5 | B12: лапша домашняя ПФ | C12: кг | AB12: 0.0000 | AC12: 0.0000 | AD12: 0.0000
B13: Мясо | AB13: 0.0000 | AC13: 0.0000 | AD13: 0.0000
A14: 6 | B14: говядина (котлетное мясо) | C14: кг | AB14: 0.0000 | AC14: 0.0000 | AD14: 0.0000
B15: или фарш говяжий | C15: кг | AB15: 0.0000 | AC15: 0.0000 | AD15: 0.0000
A16: 7 | B16: говядина лопатка б/к | C16: кг | P16: 0.0810 | Q16: 0.0810 | AB16: 0.0000 | AC16: 0.0000 | AD16: 0.0000
B17: или говядина потушная | C17: кг | AB17: 0.0000 | AC17: 0.0000 | AD17: 0.0000
A18: 8 | B18: сосиски куриные "Халяль" | C18: кг | AB18: 0.0000 | AC18: 0.0000 | AD18: 0.0000
A19: 9 | B19: куриная грудка | C19: кг | AB19: 0.0000 | AC19: 0.0000 | AD19: 0.0000
A20: 10 | B20: куры/цыплята потрош. | C20: кг | AB20: 0.0000 | AC20: 0.0000 | AD20: 0.0000
A21: 11 | B21: печень говяжья | C21: кг | AB21: 0.0000 | AC21: 0.0000 | AD21: 0.0000
B22: Рыба | AB22: 0.0000 | AC22: 0.0000 | AD22: 0.0000
A23: 12 | B23: фарш минтая с/м | C23: кг | AB23: 0.0000 | AC23: 0.0000 | AD23: 0.0000
A24: 13 | B24: минтай б/г с/м | C24: кг | AB24: 0.0000 | AC24: 0.0000 | AD24: 0.0000
B25: Сыпучка | AB25: 0.0000 | AC25: 0.0000 | AD25: 0.0000
A26: 14 | B26: вермишель | C26: кг | AB26: 0.0000 | AC26: 0.0000 | AD26: 0.0000
A27: 15 | B27: геркулес | C27: кг | AB27: 0.0000 | AC27: 0.0000 | AD27: 0.0000
A28: 16 | B28: горох | C28: кг | AB28: 0.0000 | AC28: 0.0000 | AD28: 0.0000
A29: 17 | B29: гречневая крупа | C29: кг | AB29: 0.0000 | AC29: 0.0000 | AD29: 0.0000
A30: 18 | B30: кукурузная крупа | C30: кг | AB30: 0.0000 | AC30: 0.0000 | AD30: 0.0000
A31: 19 | B31: макаронные изделия | C31: кг | R31: 0.0525 | S31: 0.0630 | AB31: 0.0000 | AC31: 0.0000 | AD31: 0.0000
A32: 20 | B32: манная крупа | C32: кг | AB32: 0.0000 | AC32: 0.0000 | AD32: 0.0000
A33: 21 | B33: перловая крупа | C33: кг | AB33: 0.0000 | AC33: 0.0000 | AD33: 0.0000
A34: 22 | B34: полбяная крупа | C34: кг | D34: 0.0350 | E34: 0.0440 | AB34: 0.0000 | AC34: 0.0000 | AD34: 0.0000
A35: 23 | B35: пшеничная крупа | C35: кг | AB35: 0.0000 | AC35: 0.0000 | AD35: 0.0000
A36: 24 | B36: пшено | C36: кг | AB36: 0.0000 | AC36: 0.0000 | AD36: 0.0000
A37: 25 | B37: рис | C37: кг | AB37: 0.0000 | AC37: 0.0000 | AD37: 0.0000
A38: 26 | B38: мука пшеничная в/с | C38: кг | P38: 0.0035 | Q38: 0.0035 | AB38: 0.0000 | AC38: 0.0000 | AD38: 0.0000
A39: 27 | B39: сахарный песок | C39: кг | D39: 0.0060 | E39: 0.0070 | F39: 0,015 | T39: 0.0100 | AB39: 0.0000 | AC39: 0.0000 | AD39: 0.0000
A40: 28 | B40: соль | C40: кг | D40: 0.0004 | E40: 0.0005 | N40: 0.0015 | O40: 0.0020 | P40: 0.0345 | Q40: 0.0345 | R40: 0.0025 | S40: 0.0030 | AB40: 0.0000 | AC40: 0.0000 | AD40: 0.0000
A41: 29 | B41: ячневая крупа | C41: кг | AB41: 0.0000 | AC41: 0.0000 | AD41: 0.0000
B42: Масло / сыр | AB42: 0.0000 | AC42: 0.0000 | AD42: 0.0000
A43: 30 | B43: масло растительное | C43: кг | N43: 0.0040 | O43: 0.0050 | R43: 0.0030 | S43: 0.0030 | AB43: 0.0000 | AC43: 0.0000 | AD43: 0.0000
A44: 31 | B44: масло сливочное | C44: кг | H44: 0.0100 | I44: 0.0100 | P44: 0.0010 | Q44: 0.0010 | AB44: 0.0000 | AC44: 0.0000 | AD44: 0.0000
A45: 32 | B45: сыр голландский | C45: кг | H45: 0.0250 | I45: 0.0150 | AB45: 0.0000 | AC45: 0.0000 | AD45: 0.0000
B46: Молоко и молочная продукция | AB46: 0.0000 | AC46: 0.0000 | AD46: 0.0000
A47: 33 | B47: молоко 2,5% | C47: кг | D47: 0.1000 | E47: 0.1250 | AB47: 0.0000 | AC47: 0.0000 | AD47: 0.0000
A48: 34 | B48: катык 2,5% | C48: кг | AB48: 0.0000 | AC48: 0.0000 | AD48: 0.0000
A49: 35 | B49: кефир 2,5% | C49: кг | AB49: 0.0000 | AC49: 0.0000 | AD49: 0.0000
A50: 36 | B50: ряженка 2,5% | C50: кг | AB50: 0.0000 | AC50: 0.0000 | AD50: 0.0000
A51: 37 | B51: напиток ацидофильный с подсластителем | C51: кг | AB51: 0.0000 | AC51: 0.0000 | AD51: 0.0000
A52: 38 | B52: творог | C52: кг | AB52: 0.0000 | AC52: 0.0000 | AD52: 0.0000
A53: 39 | B53: сметана | C53: кг | N53: 0.0100 | O53: 0.0100 | P53: 0.0115 | Q53: 0.0115 | AB53: 0.0000 | AC53: 0.0000 | AD53: 0.0000
B54: Консервы | AB54: 0.0000 | AC54: 0.0000 | AD54: 0.0000
A55: 40 | B55: кукуруза к/с | C55: кг | AB55: 0.0000 | AC55: 0.0000 | AD55: 0.0000
A56: 41 | B56: зеленый горошек к/с | C56: кг | AB56: 0.0000 | AC56: 0.0000 | AD56: 0.0000
A57: 42 | B57: молоко сгущенное | C57: кг | AB57: 0.0000 | AC57: 0.0000 | AD57: 0.0000
A58: 43 | B58: огурцы соленые | C58: кг | AB58: 0.0000 | AC58: 0.0000 | AD58: 0.0000
A59: 44 | B59: повидло | C59: кг | AB59: 0.0000 | AC59: 0.0000 | AD59: 0.0000
A60: 45 | B60: томатная паста | C60: кг | N60: 0.0012 | O60: 0.0015 | AB60: 0.0000 | AC60: 0.0000 | AD60: 0.0000
B61: Чай/какао/кофейный напиток | AB61: 0.0000 | AC61: 0.0000 | AD61: 0.0000
A62: 46 | B62: чай весовой | C62: кг | F62: 0.0010 | AB62: 0.0000 | AC62: 0.0000 | AD62: 0.0000
A63: 47 | B63: чай зеленый | C63: кг | AB63: 0.0000 | AC63: 0.0000 | AD63: 0.0000
A64: 48 | B64: какао | C64: кг | AB64: 0.0000 | AC64: 0.0000 | AD64: 0.0000
A65: 49 | B65: кисель | C65: кг | T65: 0.0240 | AB65: 0.0000 | AC65: 0.0000 | AD65: 0.0000
A66: 50 | B66: кофейный напиток | C66: кг | AB66: 0.0000 | AC66: 0.0000 | AD66: 0.0000
B67: Фрукты | AB67: 0.0000 | AC67: 0.0000 | AD67: 0.0000
A68: 51 | B68: апельсин | C68: кг | AB68: 0.0000 | AC68: 0.0000 | AD68: 0.0000
A69: 52 | B69: банан | C69: кг | AB69: 0.0000 | AC69: 0.0000 | AD69: 0.0000
A70: 53 | B70: груши | C70: кг | AB70: 0.0000 | AC70: 0.0000 | AD70: 0.0000
A71: 54 | B71: лимон | C71: кг | AB71: 0.0000 | AC71: 0.0000 | AD71: 0.0000
A72: 55 | B72: яблоки свежие | C72: кг | AB72: 0.0000 | AC72: 0.0000 | AD72: 0.0000
A73: 56 | B73: яблоки зеленые | C73: кг | AB73: =(Z73+X73+V73+T73+R73+P73+N73+L73+J73+H73+F73+D73)*$AB$5 -> 0.0000 | AC73: =(Z73+X73+W73+T73+S73+Q73+O73+M73+J73+I73+F73+E73)*$AC$5 -> 0.0000 | AD73: =AB73+AC73 -> 0.0000
B74: Сухофрукты | AB74: 0.0000 | AC74: 0.0000 | AD74: 0.0000
A75: 57 | B75: ассорти для компота (сухофрукты) | C75: кг | AB75: 0.0000 | AC75: 0.0000 | AD75: 0.0000
A76: 58 | B76: ягоды с/м (клюква,черная смородина) | C76: кг | AB76: 0.0000 | AC76: 0.0000 | AD76: 0.0000
A77: 59 | B77: изюм | C77: кг | AB77: 0.0000 | AC77: 0.0000 | AD77: 0.0000
A78: 60 | B78: курага | C78: кг | AB78: 0.0000 | AC78: 0.0000 | AD78: 0.0000
A79: 61 | B79: урюк | C79: кг | AB79: 0.0000 | AC79: 0.0000 | AD79: 0.0000
A80: 62 | B80: шиповник | C80: кг | F80: 0.0100 | AB80: 0.0000 | AC80: 0.0000 | AD80: 0.0000
A81: 63 | B81: компотная смесь с/м | C81: кг | AB81: 0.0000 | AC81: 0.0000 | AD81: 0.0000
A82: 64 | B82: чернослив | C82: кг | AB82: 0.0000 | AC82: 0.0000 | AD82: 0.0000
B83: Овощи / зелень | AB83: 0.0000 | AC83: 0.0000 | AD83: 0.0000
A84: 65 | B84: зеленый горошек с/м | C84: кг | AB84: 0.0000 | AC84: 0.0000 | AD84: 0.0000
A85: 66 | B85: кабачки с/м | C85: кг | AB85: 0.0000 | AC85: 0.0000 | AD85: 0.0000
A86: 67 | B86: капуста свежая | C86: кг | N86: 0.0500 | O86: 0.0625 | AB86: 0.0000 | AC86: 0.0000 | AD86: 0.0000
A87: 68 | B87: капуста цветная с/м | C87: кг | AB87: 0.0000 | AC87: 0.0000 | AD87: 0.0000
A88: 69 | B88: картофель | C88: кг | N88: 0.0320 | O88: 0.0400 | AB88: 0.0000 | AC88: 0.0000 | AD88: 0.0000
A89: 70 | B89: лук репчатый | C89: кг | N89: 0.0108 | O89: 0.0130 | P89: 0.0144 | Q89: 0.0144 | AB89: 0.0000 | AC89: 0.0000 | AD89: 0.0000
A90: 71 | B90: морковь | C90: кг | N90: 0.0113 | O90: 0.0140 | P90: 0.0030 | Q90: 0.0030 | AB90: 0.0000 | AC90: 0.0000 | AD90: 0.0000
A91: 72 | B91: огурцы св. | C91: кг | AB91: 0.0000 | AC91: 0.0000 | AD91: 0.0000
A92: 73 | B92: свекла | C92: кг | AB92: 0.0000 | AC92: 0.0000 | AD92: 0.0000
A93: 74 | B93: томаты св. | C93: кг | L93: 0.0612 | M93: 0.1020 | AB93: 0.0000 | AC93: 0.0000 | AD93: 0.0000
A94: 75 | B94: фасоль к/с | C94: кг | AB94: 0.0000 | AC94: 0.0000 | AD94: 0.0000
A95: 76 | B95: чеснок | C95: кг | AB95: 0.0000 | AC95: 0.0000 | AD95: 0.0000
B96: Кондитерские изделия | AB96: 0.0000 | AC96: 0.0000 | AD96: 0.0000
A97: 77 | B97: батончик злаковый | C97: шт | AB97: 0.0000 | AC97: 0.0000 | AD97: 0.0000
A98: 78 | B98: блины с/м ПФ | C98: кг | AB98: 0.0000 | AC98: 0.0000 | AD98: 0.0000
A99: 79 | B99: вафли | C99: кг | AB99: 0.0000 | AC99: 0.0000 | AD99: 0.0000
A100: 80 | B100: печенье | C100: кг | Z100: 0.0500 | AB100: 0.0000 | AC100: 0.0000 | AD100: 0.0000
B101: Сок | AB101: 0.0000 | AC101: 0.0000 | AD101: 0.0000
A102: 81 | B102: сок в ассортименте | C102: л | X102: 0.2000 | AB102: 0.0000 | AC102: 0.0000 | AD102: 0.0000
A103: 82 | B103: сок в индувид.упаковке (0,2л) | C103: л | AB103: 0.0000 | AC103: 0.0000 | AD103: 0.0000
B104: Специи | AB104: 0.0000 | AC104: 0.0000 | AD104: 0.0000
A105: 83 | B105: дрожжи сухие | C105: кг | AB105: 0.0000 | AC105: 0.0000 | AD105: 0.0000
A106: 84 | B106: кислота лимонная | C106: кг | AB106: 0.0000 | AC106: 0.0000 | AD106: 0.0000
A107: 85 | B107: клетчатка | C107: кг | AB107: 0.0000 | AC107: 0.0000 | AD107: 0.0000
B108: Яйцо | AB108: 0.0000 | AC108: 0.0000 | AD108: 0.0000
A109: 86 | B109: яйцо куриное | C109: кг | AB109: 0.0000 | AC109: 0.0000 | AD109: 0.0000
Z110: 0,048 | AB110: =AB109/Z110 -> 0 | AC110: =AC109/Z110 -> 0 | AD110: 0

Sheet День 20 (hidden)
A1: № | B1: Продукт | C1: Ед.изм. | D1: Нормы расхода продуктов в день,кг
D2: Завтрак | L2: Обед | V2: Полдник
B3: ДЕНЬ 20 | D3: Запеканка из творога с повидлом | F3: кофейный напиток с молоком | H3: батон, масло сливочное | J3: каша рисовая молочная с маслом сливочн | L3: салат из отварной свеклы с маслом | N3: Суп ГОРОХ, с гренками (без картофеля) | P3: Жаркое по- домашнему | R3: Напиток из заморож черной смородины | T3: Хлеб белый, сельский | V3: Напиток ацидоф/ Йогурт разливной | X3: батончик злаковый | Z3: Количество детей | AB3: ИТОГО
B4: Возрастная группа | D4: 7-11 | E4: 12-18 | F4: 7-18 | H4: 7-11 | I4: 12-18 | J4: 7-11 | K4: 12-18 | L4: 7-11 | M4: 12-18 | N4: 7-11 | O4: 12-18 | P4: 7-11 | Q4: 12-18 | R4: 7-18 | T4: 7-18 | V4: 7-11 | W4: 12-18 | X4: 7-18 | Z4: 7-11 | AA4: 12-18
B5: Выход,гр | D5: 130/20 | E5: 130/20 | F5: 200 | H5: 30/10 | I5: 50/10 | J5: 150/4 | K5: 150/4 | L5: 60/5 | M5: 100/5 | N5: 200/10 | O5: 250/10 | P5: 50/200 | Q5: 50/250 | R5: 200 | T5: 40/40 | U5: 50/50 | V5: 180 | W5: 200 | X5: 25 | AB5: =Z5+AA5 -> 0
B7: Хлебобулочные изделия
A8: 1 | B8: батон | C8: кг | H8: 0.0300 | I8: 0.0500 | Z8: =(X8+V8+T8+R8+P8+N8+L8+J8+H8+F8+D8)*$Z$5 -> 0.0000 | AA8: =(X8+W8+U8+R8+Q8+O8+M8+K8+I8+F8+E8)*$AA$5 -> 0.0000 | AB8: =Z8+AA8 -> 0.0000
A9: 2 | B9: хлеб пшеничный | C9: кг | N9: 0,0188 | O9: 0.0188 | T9: 0.0400 | U9: 0.0500 | Z9: =(X9+V9+T9+R9+P9+N9+L9+J9+H9+F9+D9)*$Z$5 -> 0.0000 | AA9: =(X9+W9+U9+R9+Q9+O9+M9+K9+I9+F9+E9)*$AA$5 -> 0.0000 | AB9: =Z9+AA9 -> 0.0000
A10: 3 | B10: хлеб ржаной | C10: кг | T10: 0.0400 | U10: 0.0500 | Z10: 0.0000 | AA10: 0.0000 | AB10: 0.0000
A11: 4 | B11: сухари панировочные | C11: кг | D11: 0.0050 | E11: 0.0050 | Z11: 0.0000 | AA11: 0.0000 | AB11: 0.0000
A12: 5 | B12: лапша домашняя ПФ | C12: кг | Z12: 0.0000 | AA12: 0.0000 | AB12: 0.0000
B13: Мясо | Z13: 0.0000 | AA13: 0.0000 | AB13: 0.0000
A14: 6 | B14: говядина (котлетное мясо) | C14: кг | Z14: 0.0000 | AA14: 0.0000 | AB14: 0.0000
B15: или фарш говяжий | C15: кг | Z15: 0.0000 | AA15: 0.0000 | AB15: 0.0000
A16: 7 | B16: говядина лопатка б/к | C16: кг | P16: 0.0790 | Q16: 0.0790 | Z16: 0.0000 | AA16: 0.0000 | AB16: 0.0000
B17: или говядина потушная | C17: кг | Z17: 0.0000 | AA17: 0.0000 | AB17: 0.0000
A18: 8 | B18: сосиски куриные "Халяль" | C18: кг | Z18: 0.0000 | AA18: 0.0000 | AB18: 0.0000
A19: 9 | B19: куриная грудка | C19: кг | Z19: 0.0000 | AA19: 0.0000 | AB19: 0.0000
A20: 10 | B20: куры/цыплята потрош. | C20: кг | Z20: 0.0000 | AA20: 0.0000 | AB20: 0.0000
A21: 11 | B21: печень говяжья | C21: кг | Z21: 0.0000 | AA21: 0.0000 | AB21: 0.0000
B22: Рыба | Z22: 0.0000 | AA22: 0.0000 | AB22: 0.0000
A23: 12 | B23: фарш из минтая с/м | C23: кг | Z23: 0.0000 | AA23: 0.0000 | AB23: 0.0000
A24: 13 | B24: минтай б/г с/м | C24: кг | Z24: 0.0000 | AA24: 0.0000 | AB24: 0.0000
B25: Сыпучка | Z25: 0.0000 | AA25: 0.0000 | AB25: 0.0000
A26: 14 | B26: вермишель | C26: кг | Z26: 0.0000 | AA26: 0.0000 | AB26: 0.0000
A27: 15 | B27: геркулес | C27: кг | Z27: 0.0000 | AA27: 0.0000 | AB27: 0.0000
A28: 16 | B28: горох | C28: кг | N28: 0.0282 | O28: 0.0354 | Z28: 0.0000 | AA28: 0.0000 | AB28: 0.0000
A29: 17 | B29: гречневая крупа | C29: кг | Z29: 0.0000 | AA29: 0.0000 | AB29: 0.0000
A30: 18 | B30: кукурузная крупа | C30: кг | Z30: 0.0000 | AA30: 0.0000 | AB30: 0.0000
A31: 19 | B31: макаронные изделия | C31: кг | Z31: 0.0000 | AA31: 0.0000 | AB31: 0.0000
A32: 20 | B32: манная крупа | C32: кг | D32: 0.0080 | E32: 0.0080 | Z32: 0.0000 | AA32: 0.0000 | AB32: 0.0000
A33: 21 | B33: перловая крупа | C33: кг | Z33: 0.0000 | AA33: 0.0000 | AB33: 0.0000
A34: 22 | B34: полбяная крупа | C34: кг | Z34: 0.0000 | AA34: 0.0000 | AB34: 0.0000
A35: 23 | B35: пшеничная крупа | C35: кг | Z35: 0.0000 | AA35: 0.0000 | AB35: 0.0000
A36: 24 | B36: пшено | C36: кг | Z36: 0.0000 | AA36: 0.0000 | AB36: 0.0000
A37: 25 | B37: рис | C37: кг | J37: 0.0280 | K37: 0.0280 | Z37: 0.0000 | AA37: 0.0000 | AB37: 0.0000
A38: 26 | B38: мука пшеничная в/с | C38: кг | Z38: 0.0000 | AA38: 0.0000 | AB38: 0.0000
A39: 27 | B39: сахарный песок | C39: кг | D39: 0.0100 | E39: 0.0100 | F39: 0.0200 | J39: 0.0040 | K39: 0.0040 | R39: 0,020 | Z39: 0.0000 | AA39: 0.0000 | AB39: 0.0000
A40: 28 | B40: соль | C40: кг | D40: 0.0007 | E40: 0.0007 | J40: 0.0003 | K40: 0.0003 | N40: 0.0015 | O40: 0.0020 | P40: 0.0030 | Q40: 0.0030 | Z40: 0.0000 | AA40: 0.0000 | AB40: 0.0000
A41: 29 | B41: ячневая крупа | C41: кг | Z41: 0.0000 | AA41: 0.0000 | AB41: 0.0000
B42: Масло / сыр | Z42: 0.0000 | AA42: 0.0000 | AB42: 0.0000
A43: 30 | B43: масло растительное | C43: кг | D43: 0.0050 | E43: 0.0050 | L43: 0.0050 | M43: 0.0060 | N43: 0.0040 | O43: 0.0050 | P43: 0.0100 | Q43: 0.0150 | Z43: 0.0000 | AA43: 0.0000 | AB43: 0.0000
A44: 31 | B44: масло сливочное | C44: кг | H44: 0.0100 | I44: 0.0100 | J44: 0.0040 | K44: 0.0040 | Z44: 0.0000 | AA44: 0.0000 | AB44: 0.0000
A45: 32 | B45: сыр голландский | C45: кг | Z45: 0.0000 | AA45: 0.0000 | AB45: 0.0000
B46: Молоко и молочная продукция | Z46: 0.0000 | AA46: 0.0000 | AB46: 0.0000
A47: 33 | B47: молоко 2,5% | C47: кг | F47: 0.0500 | J47: 0.0750 | K47: 0.0750 | Z47: 0.0000 | AA47: 0.0000 | AB47: 0.0000
A48: 34 | B48: катык 2,5% | C48: кг | Z48: 0.0000 | AA48: 0.0000 | AB48: 0.0000
A49: 35 | B49: кефир 2,5% | C49: кг | Z49: 0.0000 | AA49: 0.0000 | AB49: 0.0000
A50: 36 | B50: ряженка 2,5% | C50: кг | Z50: 0.0000 | AA50: 0.0000 | AB50: 0.0000
A51: 37 | B51: напиток ацидофильный с подсластителем | C51: кг | V51: 0.1850 | W51: 0.2070 | Z51: 0.0000 | AA51: 0.0000 | AB51: 0.0000
A52: 38 | B52: творог | C52: кг | D52: 0.1222 | E52: 0.1222 | Z52: 0.0000 | AA52: 0.0000 | AB52: 0.0000
A53: 39 | B53: сметана | C53: кг | D53: 0.0050 | E53: 0.0050 | Z53: 0.0000 | AA53: 0.0000 | AB53: 0.0000
B54: Консервы | Z54: 0.0000 | AA54: 0.0000 | AB54: 0.0000
A55: 40 | B55: кукуруза к/с | C55: кг | Z55: 0.0000 | AA55: 0.0000 | AB55: 0.0000
A56: 41 | B56: зеленый горошек к/с | C56: кг | Z56: 0.0000 | AA56: 0.0000 | AB56: 0.0000
A57: 42 | B57: молоко сгущенное | C57: кг | Z57: 0.0000 | AA57: 0.0000 | AB57: 0.0000
A58: 43 | B58: огурцы соленые | C58: кг | Z58: 0.0000 | AA58: 0.0000 | AB58: 0.0000
A59: 44 | B59: повидло | C59: кг | D59: 0.0200 | E59: 0.0200 | Z59: 0.0000 | AA59: 0.0000 | AB59: 0.0000
A60: 45 | B60: томатная паста | C60: кг | P60: 0.0040 | Q60: 0.0050 | Z60: 0.0000 | AA60: 0.0000 | AB60: 0.0000
B61: Чай/какао/кофейный напиток | Z61: 0.0000 | AA61: 0.0000 | AB61: 0.0000
A62: 46 | B62: чай весовой | C62: кг | Z62: 0.0000 | AA62: 0.0000 | AB62: 0.0000
A63: 47 | B63: чай зеленый | C63: кг | Z63: 0.0000 | AA63: 0.0000 | AB63: 0.0000
A64: 48 | B64: какао | C64: кг | Z64: 0.0000 | AA64: 0.0000 | AB64: 0.0000
A65: 49 | B65: кисель | C65: кг | Z65: 0.0000 | AA65: 0.0000 | AB65: 0.0000
A66: 50 | B66: кофейный напиток | C66: кг | F66: 0.0050 | Z66: 0.0000 | AA66: 0.0000 | AB66: 0.0000
B67: Фрукты | Z67: 0.0000 | AA67: 0.0000 | AB67: 0.0000
A68: 51 | B68: апельсин | C68: кг | Z68: 0.0000 | AA68: 0.0000 | AB68: 0.0000
A69: 52 | B69: банан | C69: кг | Z69: 0.0000 | AA69: 0.0000 | AB69: 0.0000
A70: 53 | B70: груши | C70: кг | Z70: 0.0000 | AA70: 0.0000 | AB70: 0.0000
A71: 54 | B71: лимон | C71: кг | Z71: 0.0000 | AA71: 0.0000 | AB71: 0.0000
A72: 55 | B72: яблоки свежие | C72: кг | Z72: 0.0000 | AA72: 0.0000 | AB72: 0.0000
A73: 56 | B73: яблоки зеленые | C73: кг | Z73: =(X73+V73+T73+R73+P73+N73+L73+J73+H73+F73+D73)*$Z$5 -> 0.0000 | AA73: =(X73+W73+U73+R73+Q73+O73+M73+K73+I73+F73+E73)*$AA$5 -> 0.0000 | AB73: =Z73+AA73 -> 0.0000
B74: Сухофрукты | Z74: 0.0000 | AA74: 0.0000 | AB74: 0.0000
A75: 57 | B75: ассорти для компота (сухофрукты) | C75: кг | Z75: 0.0000 | AA75: 0.0000 | AB75: 0.0000
A76: 58 | B76: ягоды с/м (клюква и смородина черная) | C76: кг | R76: 0,020 | Z76: 0.0000 | AA76: 0.0000 | AB76: 0.0000
A77: 59 | B77: изюм | C77: кг | Z77: 0.0000 | AA77: 0.0000 | AB77: 0.0000
A78: 60 | B78: курага | C78: кг | Z78: 0.0000 | AA78: 0.0000 | AB78: 0.0000
A79: 61 | B79: урюк | C79: кг | Z79: 0.0000 | AA79: 0.0000 | AB79: 0.0000
A80: 62 | B80: шиповник | C80: кг | Z80: 0.0000 | AA80: 0.0000 | AB80: 0.0000
A81: 63 | B81: компотная смесь с/м | C81: кг | Z81: 0.0000 | AA81: 0.0000 | AB81: 0.0000
A82: 64 | B82: чернослив | C82: кг | Z82: 0.0000 | AA82: 0.0000 | AB82: 0.0000
B83: Овощи / зелень | Z83: 0.0000 | AA83: 0.0000 | AB83: 0.0000
A84: 65 | B84: зеленый горошек с/м | C84: кг | Z84: 0.0000 | AA84: 0.0000 | AB84: 0.0000
A85: 66 | B85: кабачки с/м | C85: кг | Z85: 0.0000 | AA85: 0.0000 | AB85: 0.0000
A86: 67 | B86: капуста свежая | C86: кг | Z86: 0.0000 | AA86: 0.0000 | AB86: 0.0000
A87: 68 | B87: капуста цветная с/м | C87: кг | Z87: 0.0000 | AA87: 0.0000 | AB87: 0.0000
A88: 69 | B88: картофель | C88: кг | P88: 0.2130 | Q88: 0.2660 | Z88: 0.0000 | AA88: 0.0000 | AB88: 0.0000
A89: 70 | B89: лук репчатый | C89: кг | N89: 0.0144 | O89: 0.0180 | P89: 0.0192 | Q89: 0.0240 | Z89: 0.0000 | AA89: 0.0000 | AB89: 0.0000
A90: 71 | B90: морковь | C90: кг | N90: 0.0100 | O90: 0.0125 | Z90: 0.0000 | AA90: 0.0000 | AB90: 0.0000
A91: 72 | B91: огурцы св. | C91: кг | Z91: 0.0000 | AA91: 0.0000 | AB91: 0.0000
A92: 73 | B92: свекла | C92: кг | L92: 0.0727 | M92: 0.1212 | Z92: 0.0000 | AA92: 0.0000 | AB92: 0.0000
A93: 74 | B93: томаты св. | C93: кг | Z93: 0.0000 | AA93: 0.0000 | AB93: 0.0000
A94: 75 | B94: фасоль к/с | C94: кг | Z94: 0.0000 | AA94: 0.0000 | AB94: 0.0000
A95: 76 | B95: чеснок | C95: кг | Z95: 0.0000 | AA95: 0.0000 | AB95: 0.0000
B96: Кондитерские изделия | Z96: 0.0000 | AA96: 0.0000 | AB96: 0.0000
A97: 77 | B97: батончик злаковый | C97: шт | X97: 1 | Z97: 0.0000 | AA97: 0.0000 | AB97: 0.0000
A98: 78 | B98: блины с/м ПФ | C98: кг | Z98: 0.0000 | AA98: 0.0000 | AB98: 0.0000
A99: 79 | B99: вафли | C99: кг | Z99: 0.0000 | AA99: 0.0000 | AB99: 0.0000
A100: 80 | B100: печенье | C100: кг | Z100: 0.0000 | AA100: 0.0000 | AB100: 0.0000
B101: Сок | Z101: 0.0000 | AA101: 0.0000 | AB101: 0.0000
A102: 81 | B102: сок в ассортименте | C102: л | Z102: 0.0000 | AA102: 0.0000 | AB102: 0.0000
A103: 82 | B103: сок в индувид.упаковке (0,2л) | C103: л | Z103: 0.0000 | AA103: 0.0000 | AB103: 0.0000
B104: Специи | Z104: 0.0000 | AA104: 0.0000 | AB104: 0.0000
A105: 83 | B105: дрожжи | C105: кг | Z105: 0.0000 | AA105: 0.0000 | AB105: 0.0000
A106: 84 | B106: кислота лимонная | C106: кг | Z106: 0.0000 | AA106: 0.0000 | AB106: 0.0000
A107: 85 | B107: клетчатка | C107: кг | Z107: 0.0000 | AA107: 0.0000 | AB107: 0.0000
B108: Яйцо | Z108: 0.0000 | AA108: 0.0000 | AB108: 0.0000
A109: 86 | B109: яйцо куриное | C109: кг | D109: 0.0062 | E109: 0.0062 | Z109: 0.0000 | AA109: 0.0000 | AB109: 0.0000
X110: 0,048 | Z110: =Z109/X110 -> 0 | AA110: =AA109/X110 -> 0 | AB110: 0

Sheet День 21 (hidden)
A1: № | B1: Продукт | C1: Ед.изм. | D1: Нормы расхода продуктов в день,кг
D2: Завтрак | L2: Обед | X2: Полдник
B3: ДЕНЬ 21 | D3: Оладьи со сгущенным молоком | F3: Чай с молоком с сахаром | H3: батон, сыр порционно | J3: Фрукты АПЕЛЬСИН | L3: Огурцы свежие порционно | N3: Борщ Сибирс (с фасолью) на мясном бульоне, со сметаной | P3: Гуляш из отварной говядины | R3: Каша гречневая рассыпчатая | T3: Компот из свежих яблок | V3: Хлеб белый, сельский | X3: Сок /Нектар фруктовый (разливной) | Z3: Ватрушка с повидом | AB3: Количество детей | AD3: ИТОГО
B4: Возрастная группа | D4: 7-11 | E4: 12-18 | F4: 7-18 | H4: 7-11 | I4: 12-18 | J4: 7-18 | L4: 7-11 | M4: 12-18 | N4: 7-11 | O4: 12-18 | P4: 7-11 | Q4: 12-18 | R4: 7-11 | S4: 12-18 | T4: 7-18 | V4: 7-11 | W4: 12-18 | X4: 7-18 | AB4: 7-11 | AC4: 12-18
B5: Выход,гр | D5: 130/20 | E5: 175/25 | F5: 200/15 | H5: 30/15 | I5: 50/15 | J5: 100 | L5: 30 | M5: 60 | N5: 200/5 | O5: 250/5 | P5: 50/50 | Q5: 50/50 | R5: 150 | S5: 180 | T5: 200 | V5: 40/40 | W5: 50/50 | X5: 200 | Z5: 75 | AD5: =AB5+AC5 -> 0
B7: Хлебобулочные изделия
A8: 1 | B8: батон | C8: кг | H8: 0.0300 | I8: 0.0500 | AB8: =(Z8+X8+V8+T8+R8+P8+N8+L8+J8+H8+F8+D8)*$AB$5 -> 0.0000 | AC8: =(Z8+X8+W8+T8+S8+Q8+O8+M8+J8+I8+F8+E8)*$AC$5 -> 0.0000 | AD8: =AB8+AC8 -> 0.0000
A9: 2 | B9: хлеб пшеничный | C9: кг | V9: 0.0400 | W9: 0.0500 | AB9: =(Z9+X9+V9+T9+R9+P9+N9+L9+J9+H9+F9+D9)*$AB$5 -> 0.0000 | AC9: =(Z9+X9+W9+T9+S9+Q9+O9+M9+J9+I9+F9+E9)*$AC$5 -> 0.0000 | AD9: =AB9+AC9 -> 0.0000
A10: 3 | B10: хлеб ржаной | C10: кг | V10: 0.0400 | W10: 0.0500 | AB10: 0.0000 | AC10: 0.0000 | AD10: 0.0000
A11: 4 | B11: сухари панировочные | C11: кг | AB11: 0.0000 | AC11: 0.0000 | AD11: 0.0000
A12: 5 | B12: лапша домашняя ПФ | C12: кг | AB12: 0.0000 | AC12: 0.0000 | AD12: 0.0000
B13: Мясо | AB13: 0.0000 | AC13: 0.0000 | AD13: 0.0000
A14: 6 | B14: говядина (котлетное мясо) | C14: кг | AB14: 0.0000 | AC14: 0.0000 | AD14: 0.0000
B15: или фарш говяжий | C15: кг | AB15: 0.0000 | AC15: 0.0000 | AD15: 0.0000
A16: 7 | B16: говядина лопатка б/к | C16: кг | P16: 0.0810 | Q16: 0.0810 | AB16: 0.0000 | AC16: 0.0000 | AD16: 0.0000
B17: или говядина потушная | C17: кг | AB17: 0.0000 | AC17: 0.0000 | AD17: 0.0000
A18: 8 | B18: сосиски куриные "Халяль" | C18: кг | AB18: 0.0000 | AC18: 0.0000 | AD18: 0.0000
A19: 9 | B19: куриная грудка | C19: кг | AB19: 0.0000 | AC19: 0.0000 | AD19: 0.0000
A20: 10 | B20: куры/цыплята потрош. | C20: кг | AB20: 0.0000 | AC20: 0.0000 | AD20: 0.0000
A21: 11 | B21: печень говяжья | C21: кг | AB21: 0.0000 | AC21: 0.0000 | AD21: 0.0000
B22: Рыба | AB22: 0.0000 | AC22: 0.0000 | AD22: 0.0000
A23: 12 | B23: фарш минтая с/м | C23: кг | AB23: 0.0000 | AC23: 0.0000 | AD23: 0.0000
A24: 13 | B24: минтай б/г с/м | C24: кг | AB24: 0.0000 | AC24: 0.0000 | AD24: 0.0000
B25: Сыпучка | AB25: 0.0000 | AC25: 0.0000 | AD25: 0.0000
A26: 14 | B26: вермишель | C26: кг | AB26: 0.0000 | AC26: 0.0000 | AD26: 0.0000
A27: 15 | B27: геркулес | C27: кг | AB27: 0.0000 | AC27: 0.0000 | AD27: 0.0000
A28: 16 | B28: горох | C28: кг | AB28: 0.0000 | AC28: 0.0000 | AD28: 0.0000
A29: 17 | B29: гречневая крупа | C29: кг | R29: 0.0693 | S29: 0.0852 | AB29: 0.0000 | AC29: 0.0000 | AD29: 0.0000
A30: 18 | B30: кукурузная крупа | C30: кг | AB30: 0.0000 | AC30: 0.0000 | AD30: 0.0000
A31: 19 | B31: макаронные изделия | C31: кг | AB31: 0.0000 | AC31: 0.0000 | AD31: 0.0000
A32: 20 | B32: манная крупа | C32: кг | AB32: 0.0000 | AC32: 0.0000 | AD32: 0.0000
A33: 21 | B33: перловая крупа | C33: кг | AB33: 0.0000 | AC33: 0.0000 | AD33: 0.0000
A34: 22 | B34: полбяная крупа | C34: кг | AB34: 0.0000 | AC34: 0.0000 | AD34: 0.0000
A35: 23 | B35: пшеничная крупа | C35: кг | AB35: 0.0000 | AC35: 0.0000 | AD35: 0.0000
A36: 24 | B36: пшено | C36: кг | AB36: 0.0000 | AC36: 0.0000 | AD36: 0.0000
A37: 25 | B37: рис | C37: кг | AB37: 0.0000 | AC37: 0.0000 | AD37: 0.0000
A38: 26 | B38: мука пшеничная в/с | C38: кг | D38: 0.0740 | E38: 0.1000 | P38: 0,0025 | Q38: 0,0025 | Z38: 0.0397 | AB38: 0.0000 | AC38: 0.0000 | AD38: 0.0000
A39: 27 | B39: сахарный песок | C39: кг | D39: 0.0030 | E39: 0.0035 | F39: 0.0150 | N39: 0.0015 | O39: 0.0015 | T39: 0.0240 | Z39: 0.0020 | AB39: 0.0000 | AC39: 0.0000 | AD39: 0.0000
A40: 28 | B40: соль | C40: кг | D40: 0.0014 | E40: 0.0020 | N40: 0.0015 | O40: 0.0020 | P40: 0.0010 | Q40: 0.0010 | R40: 0.0015 | S40: 0.0018 | Z40: 0,0006 | AB40: 0.0000 | AC40: 0.0000 | AD40: 0.0000
A41: 29 | B41: ячневая крупа | C41: кг | AB41: 0.0000 | AC41: 0.0000 | AD41: 0.0000
B42: Масло / сыр | AB42: 0.0000 | AC42: 0.0000 | AD42: 0.0000
A43: 30 | B43: масло растительное | C43: кг | D43: 0.0070 | E43: 0.0090 | N43: 0.0040 | O43: 0.0050 | P43: 0,003 | Q43: 0,003 | Z43: 0,0003 | AB43: 0.0000 | AC43: 0.0000 | AD43: 0.0000
A44: 31 | B44: масло сливочное | C44: кг | Z44: 0,0017 | AB44: 0.0000 | AC44: 0.0000 | AD44: 0.0000
A45: 32 | B45: сыр голландский | C45: кг | H45: 0.0150 | I45: 0.0150 | AB45: 0.0000 | AC45: 0.0000 | AD45: 0.0000
B46: Молоко и молочная продукция | AB46: 0.0000 | AC46: 0.0000 | AD46: 0.0000
A47: 33 | B47: молоко 2,5% | C47: кг | D47: 0.0740 | E47: 0.1000 | F47: 0.0510 | AB47: 0.0000 | AC47: 0.0000 | AD47: 0.0000
A48: 34 | B48: катык 2,5% | C48: кг | AB48: 0.0000 | AC48: 0.0000 | AD48: 0.0000
A49: 35 | B49: кефир 2,5% | C49: кг | AB49: 0.0000 | AC49: 0.0000 | AD49: 0.0000
A50: 36 | B50: ряженка 2,5 | C50: кг | AB50: 0.0000 | AC50: 0.0000 | AD50: 0.0000
A51: 37 | B51: напиток ацидофильный с подсластителем | C51: кг | AB51: 0.0000 | AC51: 0.0000 | AD51: 0.0000
A52: 38 | B52: творог | C52: кг | AB52: 0.0000 | AC52: 0.0000 | AD52: 0.0000
A53: 39 | B53: сметана | C53: кг | N53: 0,005 | O53: 0.0050 | AB53: 0.0000 | AC53: 0.0000 | AD53: 0.0000
B54: Консервы | C54: кг | AB54: 0.0000 | AC54: 0.0000 | AD54: 0.0000
A55: 40 | B55: кукуруза к/с | C55: кг | AB55: 0.0000 | AC55: 0.0000 | AD55: 0.0000
A56: 41 | B56: зеленый горошек к/с | C56: кг | AB56: 0.0000 | AC56: 0.0000 | AD56: 0.0000
A57: 42 | B57: молоко сгущенное | C57: кг | D57: 0.0200 | E57: 0.0250 | AB57: 0.0000 | AC57: 0.0000 | AD57: 0.0000
A58: 43 | B58: огурцы соленые | C58: кг | AB58: 0.0000 | AC58: 0.0000 | AD58: 0.0000
A59: 44 | B59: повидло | C59: кг | Z59: 0.0303 | AB59: 0.0000 | AC59: 0.0000 | AD59: 0.0000
A60: 45 | B60: томатная паста | C60: кг | N60: 0.0024 | O60: 0.0030 | P60: 0,0015 | Q60: 0,0015 | AB60: 0.0000 | AC60: 0.0000 | AD60: 0.0000
B61: Чай/какао/кофейный напиток | AB61: 0.0000 | AC61: 0.0000 | AD61: 0.0000
A62: 46 | B62: чай весовой | C62: кг | F62: 0.0010 | AB62: 0.0000 | AC62: 0.0000 | AD62: 0.0000
A63: 47 | B63: чай зеленый | C63: кг | AB63: 0.0000 | AC63: 0.0000 | AD63: 0.0000
A64: 48 | B64: какао | C64: кг | AB64: 0.0000 | AC64: 0.0000 | AD64: 0.0000
A65: 49 | B65: кисель | C65: кг | AB65: 0.0000 | AC65: 0.0000 | AD65: 0.0000
A66: 50 | B66: кофейный напиток | C66: кг | AB66: 0.0000 | AC66: 0.0000 | AD66: 0.0000
B67: Фрукты | AB67: 0.0000 | AC67: 0.0000 | AD67: 0.0000
A68: 51 | B68: апельсин | C68: кг | J68: 0.1000 | AB68: 0.0000 | AC68: 0.0000 | AD68: 0.0000
A69: 52 | B69: банан | C69: кг | AB69: 0.0000 | AC69: 0.0000 | AD69: 0.0000
A70: 53 | B70: груши | C70: кг | AB70: 0.0000 | AC70: 0.0000 | AD70: 0.0000
A71: 54 | B71: лимон | C71: кг | AB71: 0.0000 | AC71: 0.0000 | AD71: 0.0000
A72: 55 | B72: яблоки свежие | C72: кг | T72: 0.0454 | AB72: 0.0000 | AC72: 0.0000 | AD72: 0.0000
A73: 56 | B73: яблоки зеленые | C73: кг | AB73: =(Z73+X73+V73+T73+R73+P73+N73+L73+J73+H73+F73+D73)*$AB$5 -> 0.0000 | AC73: =(Z73+X73+W73+T73+S73+Q73+O73+M73+J73+I73+F73+E73)*$AC$5 -> 0.0000 | AD73: =AB73+AC73 -> 0.0000
B74: Сухофрукты | AB74: 0.0000 | AC74: 0.0000 | AD74: 0.0000
A75: 57 | B75: ассорти для компота (сухофрукты) | C75: кг | AB75: 0.0000 | AC75: 0.0000 | AD75: 0.0000
A76: 58 | B76: ягоды с/м (клюква,смородина черная) | C76: кг | AB76: 0.0000 | AC76: 0.0000 | AD76: 0.0000
A77: 59 | B77: изюм | C77: кг | AB77: 0.0000 | AC77: 0.0000 | AD77: 0.0000
A78: 60 | B78: курага | C78: кг | AB78: 0.0000 | AC78: 0.0000 | AD78: 0.0000
A79: 61 | B79: урюк | C79: кг | AB79: 0.0000 | AC79: 0.0000 | AD79: 0.0000
A80: 62 | B80: шиповник | C80: кг | AB80: 0.0000 | AC80: 0.0000 | AD80: 0.0000
A81: 63 | B81: компотная смесь с/м | C81: кг | AB81: 0.0000 | AC81: 0.0000 | AD81: 0.0000
A82: 64 | B82: чернослив | C82: кг | AB82: 0.0000 | AC82: 0.0000 | AD82: 0.0000
B83: Овощи / зелень | AB83: 0.0000 | AC83: 0.0000 | AD83: 0.0000
A84: 65 | B84: зеленый горошек с/м | C84: кг | AB84: 0.0000 | AC84: 0.0000 | AD84: 0.0000
A85: 66 | B85: кабачки с/м | C85: кг | AB85: 0.0000 | AC85: 0.0000 | AD85: 0.0000
A86: 67 | B86: капуста свежая | C86: кг | AB86: 0.0000 | AC86: 0.0000 | AD86: 0.0000
A87: 68 | B87: капуста цветная с/м | C87: кг | AB87: 0.0000 | AC87: 0.0000 | AD87: 0.0000
A88: 69 | B88: картофель | C88: кг | N88: 0.0267 | O88: 0.0333 | AB88: 0.0000 | AC88: 0.0000 | AD88: 0.0000
A89: 70 | B89: лук репчатый | C89: кг | N89: 0.0096 | O89: 0.0120 | P89: 0.0096 | Q89: 0.0096 | AB89: 0.0000 | AC89: 0.0000 | AD89: 0.0000
A90: 71 | B90: морковь | C90: кг | N90: 0.0125 | O90: 0.0156 | P90: 0.0206 | Q90: 0.0206 | AB90: 0.0000 | AC90: 0.0000 | AD90: 0.0000
A91: 72 | B91: огурцы св. | C91: кг | L91: 0.0306 | M91: 0.0630 | AB91: 0.0000 | AC91: 0.0000 | AD91: 0.0000
A92: 73 | B92: свекла | C92: кг | N92: 0.0400 | O92: 0.0500 | AB92: 0.0000 | AC92: 0.0000 | AD92: 0.0000
A93: 74 | B93: томаты св. | C93: кг | AB93: 0.0000 | AC93: 0.0000 | AD93: 0.0000
A94: 75 | B94: фасоль к/с | C94: кг | N94: 0.0160 | O94: 0.0200 | AB94: 0.0000 | AC94: 0.0000 | AD94: 0.0000
A95: 76 | B95: чеснок | C95: кг | AB95: 0.0000 | AC95: 0.0000 | AD95: 0.0000
B96: Кондитерские изделия | AB96: 0.0000 | AC96: 0.0000 | AD96: 0.0000
A97: 77 | B97: батончик злаковый | C97: шт | AB97: 0.0000 | AC97: 0.0000 | AD97: 0.0000
A98: 78 | B98: блины с/м ПФ | C98: кг | AB98: 0.0000 | AC98: 0.0000 | AD98: 0.0000
A99: 79 | B99: вафли | C99: кг | AB99: 0.0000 | AC99: 0.0000 | AD99: 0.0000
A100: 80 | B100: печенье | C100: кг | AB100: 0.0000 | AC100: 0.0000 | AD100: 0.0000
B101: Сок | AB101: 0.0000 | AC101: 0.0000 | AD101: 0.0000
A102: 81 | B102: сок в ассортименте | C102: л | X102: 0.2000 | AB102: 0.0000 | AC102: 0.0000 | AD102: 0.0000
A103: 82 | B103: сок в индувид.упаковке (0,2л) | C103: л | AB103: 0.0000 | AC103: 0.0000 | AD103: 0.0000
B104: Специи | AB104: 0.0000 | AC104: 0.0000 | AD104: 0.0000
A105: 83 | B105: дрожжи | C105: кг | D105: 0.0005 | E105: 0.0007 | Z105: 0.0003 | AB105: 0.0000 | AC105: 0.0000 | AD105: 0.0000
A106: 84 | B106: кислота лимонная | C106: кг | AB106: 0.0000 | AC106: 0.0000 | AD106: 0.0000
A107: 85 | B107: клетчатка | C107: кг | AB107: 0.0000 | AC107: 0.0000 | AD107: 0.0000
B108: Яйцо | AB108: 0.0000 | AC108: 0.0000 | AD108: 0.0000
A109: 86 | B109: яйцо куриное | C109: кг | D109: 0.0044 | E109: 0.0060 | Z109: 0.0027 | AB109: 0.0000 | AC109: 0.0000 | AD109: 0.0000
Z110: 0,048 | AB110: =AB109/Z110 -> 0 | AC110: =AC109/Z110 -> 0 | AD110: 0

Sheet ИТОГО ЗА 7 Дней
A1: ИТОГО РАСХОД ПРОДУКТОВ ЗА 7 ДНЕЙ
B2: пришкольные лагеря | D2: Количество детей | F2: ИТОГО
B4: Возрастная группа | D4: 7-11 | E4: 12-18
B5: Выход,гр | D5: ='День 21'!AB5+'День 20'!Z5+'День 19'!AB5+'День 18'!AB5+'День 17'!AB5+'День 16'!AB5+'День 15'!AB5+'День 14'!AB5+'День 13'!AB5+'День 12'!AB5+'День 11'!AB5+'День 10'!AB5+'День 9'!AB5+'День 7'!AB5+'День 6'!AB5+' День 5'!AB5+'День 4'!AB5+'День 3'!AB5+'День 2'!AB5+'День 1'!AB5+'День 1 '!AB5 -> 0 | E5: ='День 21'!AC5+'День 20'!AA5+'День 19'!AC5+'День 18'!AC5+'День 17'!AC5+'День 16'!AC5+'День 15'!AC5+'День 14'!AC5+'День 13'!AC5+'День 12'!AC5+'День 11'!AC5+'День 10'!AC5+'День 9'!AC5+'День 7'!AC5+'День 6'!AC5+' День 5'!AC5+'День 4'!AC5+'День 3'!AC5+'День 2'!AC5+'День 1'!AC5+'День 1 '!AC5 -> 91 | F5: =D5+E5 -> 91
B7: Хлебобулочные изделия
A8: 1 | B8: батон | C8: кг | D8: ='День 1 '!AB8+'День 1'!AB8+'День 2'!AB8+'День 3'!AB8+'День 4'!AB8+' День 5'!AB8+'День 6'!AB8+'День 7'!AB8+'День 9'!AB8+'День 10'!AB8+'День 11'!AB8+'День 12'!AB8+'День 13'!AB8+'День 14'!AB8+'День 15'!AB8+'День 16'!AB8+'День 17'!AB8+'День 18'!AB8+'День 19'!AB8+'День 21'!AB8+'День 20'!Z8 -> 0.0000 | E8: ='День 21'!AC8+'День 20'!AA8+'День 19'!AC8+'День 18'!AC8+'День 17'!AC8+'День 16'!AC8+'День 15'!AC8+'День 14'!AC8+'День 13'!AC8+'День 12'!AC8+'День 11'!AC8+'День 10'!AC8+'День 9'!AC8+'День 7'!AC8+'День 6'!AC8+' День 5'!AC8+'День 4'!AC8+'День 3'!AC8+'День 2'!AC8+'День 1'!AC8+'День 1 '!AC8 -> 4.5500 | F8: =D8+E8 -> 4.5500
A9: 2 | B9: хлеб пшеничный | C9: кг | D9: ='День 1 '!AB9+'День 1'!AB9+'День 2'!AB9+'День 3'!AB9+'День 4'!AB9+' День 5'!AB9+'День 6'!AB9+'День 7'!AB9+'День 9'!AB9+'День 10'!AB9+'День 11'!AB9+'День 12'!AB9+'День 13'!AB9+'День 14'!AB9+'День 15'!AB9+'День 16'!AB9+'День 17'!AB9+'День 18'!AB9+'День 19'!AB9+'День 21'!AB9+'День 20'!Z9 -> 0.0000 | E9: ='День 21'!AC9+'День 20'!AA9+'День 19'!AC9+'День 18'!AC9+'День 17'!AC9+'День 16'!AC9+'День 15'!AC9+'День 14'!AC9+'День 13'!AC9+'День 12'!AC9+'День 11'!AC9+'День 10'!AC9+'День 9'!AC9+'День 7'!AC9+'День 6'!AC9+' День 5'!AC9+'День 4'!AC9+'День 3'!AC9+'День 2'!AC9+'День 1'!AC9+'День 1 '!AC9 -> 5.3762 | F9: =D9+E9 -> 5.3762
A10: 3 | B10: хлеб ржаной | C10: кг | D10: ='День 1 '!AB10+'День 1'!AB10+'День 2'!AB10+'День 3'!AB10+'День 4'!AB10+' День 5'!AB10+'День 6'!AB10+'День 7'!AB10+'День 9'!AB10+'День 10'!AB10+'День 11'!AB10+'День 12'!AB10+'День 13'!AB10+'День 14'!AB10+'День 15'!AB10+'День 16'!AB10+'День 17'!AB10+'День 18'!AB10+'День 19'!AB10+'День 21'!AB10+'День 20'!Z10 -> 0.0000 | E10: ='День 21'!AC10+'День 20'!AA10+'День 19'!AC10+'День 18'!AC10+'День 17'!AC10+'День 16'!AC10+'День 15'!AC10+'День 14'!AC10+'День 13'!AC10+'День 12'!AC10+'День 11'!AC10+'День 10'!AC10+'День 9'!AC10+'День 7'!AC10+'День 6'!AC10+' День 5'!AC10+'День 4'!AC10+'День 3'!AC10+'День 2'!AC10+'День 1'!AC10+'День 1 '!AC10 -> 4.5500 | F10: 4.5500
A11: 4 | B11: сухари панировочные | C11: кг | D11: ='День 1 '!AB11+'День 1'!AB11+'День 2'!AB11+'День 3'!AB11+'День 4'!AB11+' День 5'!AB11+'День 6'!AB11+'День 7'!AB11+'День 9'!AB11+'День 10'!AB11+'День 11'!AB11+'День 12'!AB11+'День 13'!AB11+'День 14'!AB11+'День 15'!AB11+'День 16'!AB11+'День 17'!AB11+'День 18'!AB11+'День 19'!AB11+'День 21'!AB11+'День 20'!Z11 -> 0.0000 | E11: ='День 21'!AC11+'День 20'!AA11+'День 19'!AC11+'День 18'!AC11+'День 17'!AC11+'День 16'!AC11+'День 15'!AC11+'День 14'!AC11+'День 13'!AC11+'День 12'!AC11+'День 11'!AC11+'День 10'!AC11+'День 9'!AC11+'День 7'!AC11+'День 6'!AC11+' День 5'!AC11+'День 4'!AC11+'День 3'!AC11+'День 2'!AC11+'День 1'!AC11+'День 1 '!AC11 -> 0.4680 | F11: 0.4680
A12: 5 | B12: лапша домашняя ПФ | C12: кг | D12: ='День 1 '!AB12+'День 1'!AB12+'День 2'!AB12+'День 3'!AB12+'День 4'!AB12+' День 5'!AB12+'День 6'!AB12+'День 7'!AB12+'День 9'!AB12+'День 10'!AB12+'День 11'!AB12+'День 12'!AB12+'День 13'!AB12+'День 14'!AB12+'День 15'!AB12+'День 16'!AB12+'День 17'!AB12+'День 18'!AB12+'День 19'!AB12+'День 21'!AB12+'День 20'!Z12 -> 0.0000 | E12: ='День 21'!AC12+'День 20'!AA12+'День 19'!AC12+'День 18'!AC12+'День 17'!AC12+'День 16'!AC12+'День 15'!AC12+'День 14'!AC12+'День 13'!AC12+'День 12'!AC12+'День 11'!AC12+'День 10'!AC12+'День 9'!AC12+'День 7'!AC12+'День 6'!AC12+' День 5'!AC12+'День 4'!AC12+'День 3'!AC12+'День 2'!AC12+'День 1'!AC12+'День 1 '!AC12 -> 0.2600 | F12: 0.2600
B13: Мясо
A14: 6 | B14: говядина (котлетное мясо) | C14: кг | D14: ='День 1 '!AB14+'День 1'!AB14+'День 2'!AB14+'День 3'!AB14+'День 4'!AB14+' День 5'!AB14+'День 6'!AB14+'День 7'!AB14+'День 9'!AB14+'День 10'!AB14+'День 11'!AB14+'День 12'!AB14+'День 13'!AB14+'День 14'!AB14+'День 15'!AB14+'День 16'!AB14+'День 17'!AB14+'День 18'!AB14+'День 19'!AB14+'День 21'!AB14+'День 20'!Z14 -> 0.0000 | E14: ='День 21'!AC14+'День 20'!AA14+'День 19'!AC14+'День 18'!AC14+'День 17'!AC14+'День 16'!AC14+'День 15'!AC14+'День 14'!AC14+'День 13'!AC14+'День 12'!AC14+'День 11'!AC14+'День 10'!AC14+'День 9'!AC14+'День 7'!AC14+'День 6'!AC14+' День 5'!AC14+'День 4'!AC14+'День 3'!AC14+'День 2'!AC14+'День 1'!AC14+'День 1 '!AC14 -> 0.0000 | F14: 0.0000
B15: или фарш говяжий | D15: ='День 1 '!AB15+'День 1'!AB15+'День 2'!AB15+'День 3'!AB15+'День 4'!AB15+' День 5'!AB15+'День 6'!AB15+'День 7'!AB15+'День 9'!AB15+'День 10'!AB15+'День 11'!AB15+'День 12'!AB15+'День 13'!AB15+'День 14'!AB15+'День 15'!AB15+'День 16'!AB15+'День 17'!AB15+'День 18'!AB15+'День 19'!AB15+'День 21'!AB15+'День 20'!Z15 -> 0.0000 | E15: ='День 21'!AC15+'День 20'!AA15+'День 19'!AC15+'День 18'!AC15+'День 17'!AC15+'День 16'!AC15+'День 15'!AC15+'День 14'!AC15+'День 13'!AC15+'День 12'!AC15+'День 11'!AC15+'День 10'!AC15+'День 9'!AC15+'День 7'!AC15+'День 6'!AC15+' День 5'!AC15+'День 4'!AC15+'День 3'!AC15+'День 2'!AC15+'День 1'!AC15+'День 1 '!AC15 -> 2.8076 | F15: 2.8076
A16: 7 | B16: говядина лопатка б/к | C16: кг | D16: ='День 1 '!AB16+'День 1'!AB16+'День 2'!AB16+'День 3'!AB16+'День 4'!AB16+' День 5'!AB16+'День 6'!AB16+'День 7'!AB16+'День 9'!AB16+'День 10'!AB16+'День 11'!AB16+'День 12'!AB16+'День 13'!AB16+'День 14'!AB16+'День 15'!AB16+'День 16'!AB16+'День 17'!AB16+'День 18'!AB16+'День 19'!AB16+'День 21'!AB16+'День 20'!Z16 -> 0.0000 | E16: ='День 21'!AC16+'День 20'!AA16+'День 19'!AC16+'День 18'!AC16+'День 17'!AC16+'День 16'!AC16+'День 15'!AC16+'День 14'!AC16+'День 13'!AC16+'День 12'!AC16+'День 11'!AC16+'День 10'!AC16+'День 9'!AC16+'День 7'!AC16+'День 6'!AC16+' День 5'!AC16+'День 4'!AC16+'День 3'!AC16+'День 2'!AC16+'День 1'!AC16+'День 1 '!AC16 -> 0.0000 | F16: 0.0000
C17: кг | D17: ='День 1 '!AB17+'День 1'!AB17+'День 2'!AB17+'День 3'!AB17+'День 4'!AB17+' День 5'!AB17+'День 6'!AB17+'День 7'!AB17+'День 9'!AB17+'День 10'!AB17+'День 11'!AB17+'День 12'!AB17+'День 13'!AB17+'День 14'!AB17+'День 15'!AB17+'День 16'!AB17+'День 17'!AB17+'День 18'!AB17+'День 19'!AB17+'День 21'!AB17+'День 20'!Z17 -> 0.0000 | E17: ='День 21'!AC17+'День 20'!AA17+'День 19'!AC17+'День 18'!AC17+'День 17'!AC17+'День 16'!AC17+'День 15'!AC17+'День 14'!AC17+'День 13'!AC17+'День 12'!AC17+'День 11'!AC17+'День 10'!AC17+'День 9'!AC17+'День 7'!AC17+'День 6'!AC17+' День 5'!AC17+'День 4'!AC17+'День 3'!AC17+'День 2'!AC17+'День 1'!AC17+'День 1 '!AC17 -> 0.0000 | F17: 0.0000
A18: 8 | B18: сосиски | C18: кг | D18: ='День 1 '!AB18+'День 1'!AB18+'День 2'!AB18+'День 3'!AB18+'День 4'!AB18+' День 5'!AB18+'День 6'!AB18+'День 7'!AB18+'День 9'!AB18+'День 10'!AB18+'День 11'!AB18+'День 12'!AB18+'День 13'!AB18+'День 14'!AB18+'День 15'!AB18+'День 16'!AB18+'День 17'!AB18+'День 18'!AB18+'День 19'!AB18+'День 21'!AB18+'День 20'!Z18 -> 0.0000 | E18: ='День 21'!AC18+'День 20'!AA18+'День 19'!AC18+'День 18'!AC18+'День 17'!AC18+'День 16'!AC18+'День 15'!AC18+'День 14'!AC18+'День 13'!AC18+'День 12'!AC18+'День 11'!AC18+'День 10'!AC18+'День 9'!AC18+'День 7'!AC18+'День 6'!AC18+' День 5'!AC18+'День 4'!AC18+'День 3'!AC18+'День 2'!AC18+'День 1'!AC18+'День 1 '!AC18 -> 0.0000 | F18: 0.0000
A19: 9 | B19: куриная грудка | C19: кг | D19: ='День 1 '!AB19+'День 1'!AB19+'День 2'!AB19+'День 3'!AB19+'День 4'!AB19+' День 5'!AB19+'День 6'!AB19+'День 7'!AB19+'День 9'!AB19+'День 10'!AB19+'День 11'!AB19+'День 12'!AB19+'День 13'!AB19+'День 14'!AB19+'День 15'!AB19+'День 16'!AB19+'День 17'!AB19+'День 18'!AB19+'День 19'!AB19+'День 21'!AB19+'День 20'!Z19 -> 0.0000 | E19: ='День 21'!AC19+'День 20'!AA19+'День 19'!AC19+'День 18'!AC19+'День 17'!AC19+'День 16'!AC19+'День 15'!AC19+'День 14'!AC19+'День 13'!AC19+'День 12'!AC19+'День 11'!AC19+'День 10'!AC19+'День 9'!AC19+'День 7'!AC19+'День 6'!AC19+' День 5'!AC19+'День 4'!AC19+'День 3'!AC19+'День 2'!AC19+'День 1'!AC19+'День 1 '!AC19 -> 4.1262 | F19: 4.1262
A20: 10 | B20: куры/цыплята потрош. | C20: кг | D20: ='День 1 '!AB20+'День 1'!AB20+'День 2'!AB20+'День 3'!AB20+'День 4'!AB20+' День 5'!AB20+'День 6'!AB20+'День 7'!AB20+'День 9'!AB20+'День 10'!AB20+'День 11'!AB20+'День 12'!AB20+'День 13'!AB20+'День 14'!AB20+'День 15'!AB20+'День 16'!AB20+'День 17'!AB20+'День 18'!AB20+'День 19'!AB20+'День 21'!AB20+'День 20'!Z20 -> 0.0000 | E20: ='День 21'!AC20+'День 20'!AA20+'День 19'!AC20+'День 18'!AC20+'День 17'!AC20+'День 16'!AC20+'День 15'!AC20+'День 14'!AC20+'День 13'!AC20+'День 12'!AC20+'День 11'!AC20+'День 10'!AC20+'День 9'!AC20+'День 7'!AC20+'День 6'!AC20+' День 5'!AC20+'День 4'!AC20+'День 3'!AC20+'День 2'!AC20+'День 1'!AC20+'День 1 '!AC20 -> 0.0000 | F20: 0.0000
A21: 11 | C21: кг | D21: ='День 1 '!AB21+'День 1'!AB21+'День 2'!AB21+'День 3'!AB21+'День 4'!AB21+' День 5'!AB21+'День 6'!AB21+'День 7'!AB21+'День 9'!AB21+'День 10'!AB21+'День 11'!AB21+'День 12'!AB21+'День 13'!AB21+'День 14'!AB21+'День 15'!AB21+'День 16'!AB21+'День 17'!AB21+'День 18'!AB21+'День 19'!AB21+'День 21'!AB21+'День 20'!Z21 -> 0.0000 | E21: ='День 21'!AC21+'День 20'!AA21+'День 19'!AC21+'День 18'!AC21+'День 17'!AC21+'День 16'!AC21+'День 15'!AC21+'День 14'!AC21+'День 13'!AC21+'День 12'!AC21+'День 11'!AC21+'День 10'!AC21+'День 9'!AC21+'День 7'!AC21+'День 6'!AC21+' День 5'!AC21+'День 4'!AC21+'День 3'!AC21+'День 2'!AC21+'День 1'!AC21+'День 1 '!AC21 -> 0.0000 | F21: 0.0000
B22: Рыба
A23: 12 | B23: или фарш минтая с/м | C23: кг | D23: ='День 1 '!AB23+'День 1'!AB23+'День 2'!AB23+'День 3'!AB23+'День 4'!AB23+' День 5'!AB23+'День 6'!AB23+'День 7'!AB23+'День 9'!AB23+'День 10'!AB23+'День 11'!AB23+'День 12'!AB23+'День 13'!AB23+'День 14'!AB23+'День 15'!AB23+'День 16'!AB23+'День 17'!AB23+'День 18'!AB23+'День 19'!AB23+'День 21'!AB23+'День 20'!Z23 -> 0.0000 | E23: ='День 21'!AC23+'День 20'!AA23+'День 19'!AC23+'День 18'!AC23+'День 17'!AC23+'День 16'!AC23+'День 15'!AC23+'День 14'!AC23+'День 13'!AC23+'День 12'!AC23+'День 11'!AC23+'День 10'!AC23+'День 9'!AC23+'День 7'!AC23+'День 6'!AC23+' День 5'!AC23+'День 4'!AC23+'День 3'!AC23+'День 2'!AC23+'День 1'!AC23+'День 1 '!AC23 -> 0.0000 | F23: 0.0000
A24: 13 | B24: минтай б/г с/м | C24: кг | D24: ='День 1 '!AB24+'День 1'!AB24+'День 2'!AB24+'День 3'!AB24+'День 4'!AB24+' День 5'!AB24+'День 6'!AB24+'День 7'!AB24+'День 9'!AB24+'День 10'!AB24+'День 11'!AB24+'День 12'!AB24+'День 13'!AB24+'День 14'!AB24+'День 15'!AB24+'День 16'!AB24+'День 17'!AB24+'День 18'!AB24+'День 19'!AB24+'День 21'!AB24+'День 20'!Z24 -> 0.0000 | E24: ='День 21'!AC24+'День 20'!AA24+'День 19'!AC24+'День 18'!AC24+'День 17'!AC24+'День 16'!AC24+'День 15'!AC24+'День 14'!AC24+'День 13'!AC24+'День 12'!AC24+'День 11'!AC24+'День 10'!AC24+'День 9'!AC24+'День 7'!AC24+'День 6'!AC24+' День 5'!AC24+'День 4'!AC24+'День 3'!AC24+'День 2'!AC24+'День 1'!AC24+'День 1 '!AC24 -> 1.3358 | F24: 1.3358
B25: Сыпучка
A26: 14 | B26: вермишель | C26: кг | D26: ='День 1 '!AB26+'День 1'!AB26+'День 2'!AB26+'День 3'!AB26+'День 4'!AB26+' День 5'!AB26+'День 6'!AB26+'День 7'!AB26+'День 9'!AB26+'День 10'!AB26+'День 11'!AB26+'День 12'!AB26+'День 13'!AB26+'День 14'!AB26+'День 15'!AB26+'День 16'!AB26+'День 17'!AB26+'День 18'!AB26+'День 19'!AB26+'День 21'!AB26+'День 20'!Z26 -> 0.0000 | E26: ='День 21'!AC26+'День 20'!AA26+'День 19'!AC26+'День 18'!AC26+'День 17'!AC26+'День 16'!AC26+'День 15'!AC26+'День 14'!AC26+'День 13'!AC26+'День 12'!AC26+'День 11'!AC26+'День 10'!AC26+'День 9'!AC26+'День 7'!AC26+'День 6'!AC26+' День 5'!AC26+'День 4'!AC26+'День 3'!AC26+'День 2'!AC26+'День 1'!AC26+'День 1 '!AC26 -> 0.0000 | F26: 0.0000
A27: 15 | B27: геркулес | C27: кг | D27: ='День 1 '!AB27+'День 1'!AB27+'День 2'!AB27+'День 3'!AB27+'День 4'!AB27+' День 5'!AB27+'День 6'!AB27+'День 7'!AB27+'День 9'!AB27+'День 10'!AB27+'День 11'!AB27+'День 12'!AB27+'День 13'!AB27+'День 14'!AB27+'День 15'!AB27+'День 16'!AB27+'День 17'!AB27+'День 18'!AB27+'День 19'!AB27+'День 21'!AB27+'День 20'!Z27 -> 0.0000 | E27: ='День 21'!AC27+'День 20'!AA27+'День 19'!AC27+'День 18'!AC27+'День 17'!AC27+'День 16'!AC27+'День 15'!AC27+'День 14'!AC27+'День 13'!AC27+'День 12'!AC27+'День 11'!AC27+'День 10'!AC27+'День 9'!AC27+'День 7'!AC27+'День 6'!AC27+' День 5'!AC27+'День 4'!AC27+'День 3'!AC27+'День 2'!AC27+'День 1'!AC27+'День 1 '!AC27 -> 0.4810 | F27: 0.4810
A28: 16 | B28: горох | C28: кг | D28: ='День 1 '!AB28+'День 1'!AB28+'День 2'!AB28+'День 3'!AB28+'День 4'!AB28+' День 5'!AB28+'День 6'!AB28+'День 7'!AB28+'День 9'!AB28+'День 10'!AB28+'День 11'!AB28+'День 12'!AB28+'День 13'!AB28+'День 14'!AB28+'День 15'!AB28+'День 16'!AB28+'День 17'!AB28+'День 18'!AB28+'День 19'!AB28+'День 21'!AB28+'День 20'!Z28 -> 0.0000 | E28: ='День 21'!AC28+'День 20'!AA28+'День 19'!AC28+'День 18'!AC28+'День 17'!AC28+'День 16'!AC28+'День 15'!AC28+'День 14'!AC28+'День 13'!AC28+'День 12'!AC28+'День 11'!AC28+'День 10'!AC28+'День 9'!AC28+'День 7'!AC28+'День 6'!AC28+' День 5'!AC28+'День 4'!AC28+'День 3'!AC28+'День 2'!AC28+'День 1'!AC28+'День 1 '!AC28 -> 0.4602 | F28: 0.4602
A29: 17 | B29: гречневая крупа | C29: кг | D29: ='День 1 '!AB29+'День 1'!AB29+'День 2'!AB29+'День 3'!AB29+'День 4'!AB29+' День 5'!AB29+'День 6'!AB29+'День 7'!AB29+'День 9'!AB29+'День 10'!AB29+'День 11'!AB29+'День 12'!AB29+'День 13'!AB29+'День 14'!AB29+'День 15'!AB29+'День 16'!AB29+'День 17'!AB29+'День 18'!AB29+'День 19'!AB29+'День 21'!AB29+'День 20'!Z29 -> 0.0000 | E29: ='День 21'!AC29+'День 20'!AA29+'День 19'!AC29+'День 18'!AC29+'День 17'!AC29+'День 16'!AC29+'День 15'!AC29+'День 14'!AC29+'День 13'!AC29+'День 12'!AC29+'День 11'!AC29+'День 10'!AC29+'День 9'!AC29+'День 7'!AC29+'День 6'!AC29+' День 5'!AC29+'День 4'!AC29+'День 3'!AC29+'День 2'!AC29+'День 1'!AC29+'День 1 '!AC29 -> 1.1076 | F29: 1.1076
A30: 18 | B30: кукурузная крупа | C30: кг | D30: ='День 1 '!AB30+'День 1'!AB30+'День 2'!AB30+'День 3'!AB30+'День 4'!AB30+' День 5'!AB30+'День 6'!AB30+'День 7'!AB30+'День 9'!AB30+'День 10'!AB30+'День 11'!AB30+'День 12'!AB30+'День 13'!AB30+'День 14'!AB30+'День 15'!AB30+'День 16'!AB30+'День 17'!AB30+'День 18'!AB30+'День 19'!AB30+'День 21'!AB30+'День 20'!Z30 -> 0.0000 | E30: ='День 21'!AC30+'День 20'!AA30+'День 19'!AC30+'День 18'!AC30+'День 17'!AC30+'День 16'!AC30+'День 15'!AC30+'День 14'!AC30+'День 13'!AC30+'День 12'!AC30+'День 11'!AC30+'День 10'!AC30+'День 9'!AC30+'День 7'!AC30+'День 6'!AC30+' День 5'!AC30+'День 4'!AC30+'День 3'!AC30+'День 2'!AC30+'День 1'!AC30+'День 1 '!AC30 -> 0.0000 | F30: 0.0000
A31: 19 | B31: макаронные изделия | C31: кг | D31: ='День 1 '!AB31+'День 1'!AB31+'День 2'!AB31+'День 3'!AB31+'День 4'!AB31+' День 5'!AB31+'День 6'!AB31+'День 7'!AB31+'День 9'!AB31+'День 10'!AB31+'День 11'!AB31+'День 12'!AB31+'День 13'!AB31+'День 14'!AB31+'День 15'!AB31+'День 16'!AB31+'День 17'!AB31+'День 18'!AB31+'День 19'!AB31+'День 21'!AB31+'День 20'!Z31 -> 0.0000 | E31: ='День 21'!AC31+'День 20'!AA31+'День 19'!AC31+'День 18'!AC31+'День 17'!AC31+'День 16'!AC31+'День 15'!AC31+'День 14'!AC31+'День 13'!AC31+'День 12'!AC31+'День 11'!AC31+'День 10'!AC31+'День 9'!AC31+'День 7'!AC31+'День 6'!AC31+' День 5'!AC31+'День 4'!AC31+'День 3'!AC31+'День 2'!AC31+'День 1'!AC31+'День 1 '!AC31 -> 1.9032 | F31: 1.9032
A32: 20 | B32: манная крупа | C32: кг | D32: ='День 1 '!AB32+'День 1'!AB32+'День 2'!AB32+'День 3'!AB32+'День 4'!AB32+' День 5'!AB32+'День 6'!AB32+'День 7'!AB32+'День 9'!AB32+'День 10'!AB32+'День 11'!AB32+'День 12'!AB32+'День 13'!AB32+'День 14'!AB32+'День 15'!AB32+'День 16'!AB32+'День 17'!AB32+'День 18'!AB32+'День 19'!AB32+'День 21'!AB32+'День 20'!Z32 -> 0.0000 | E32: ='День 21'!AC32+'День 20'!AA32+'День 19'!AC32+'День 18'!AC32+'День 17'!AC32+'День 16'!AC32+'День 15'!AC32+'День 14'!AC32+'День 13'!AC32+'День 12'!AC32+'День 11'!AC32+'День 10'!AC32+'День 9'!AC32+'День 7'!AC32+'День 6'!AC32+' День 5'!AC32+'День 4'!AC32+'День 3'!AC32+'День 2'!AC32+'День 1'!AC32+'День 1 '!AC32 -> 0.2405 | F32: 0.2405
A33: 21 | B33: перловая крупа | C33: кг | D33: ='День 1 '!AB33+'День 1'!AB33+'День 2'!AB33+'День 3'!AB33+'День 4'!AB33+' День 5'!AB33+'День 6'!AB33+'День 7'!AB33+'День 9'!AB33+'День 10'!AB33+'День 11'!AB33+'День 12'!AB33+'День 13'!AB33+'День 14'!AB33+'День 15'!AB33+'День 16'!AB33+'День 17'!AB33+'День 18'!AB33+'День 19'!AB33+'День 21'!AB33+'День 20'!Z33 -> 0.0000 | E33: ='День 21'!AC33+'День 20'!AA33+'День 19'!AC33+'День 18'!AC33+'День 17'!AC33+'День 16'!AC33+'День 15'!AC33+'День 14'!AC33+'День 13'!AC33+'День 12'!AC33+'День 11'!AC33+'День 10'!AC33+'День 9'!AC33+'День 7'!AC33+'День 6'!AC33+' День 5'!AC33+'День 4'!AC33+'День 3'!AC33+'День 2'!AC33+'День 1'!AC33+'День 1 '!AC33 -> 0.7540 | F33: 0.7540
A34: 22 | B34: полбяная крупа | C34: кг | D34: ='День 1 '!AB34+'День 1'!AB34+'День 2'!AB34+'День 3'!AB34+'День 4'!AB34+' День 5'!AB34+'День 6'!AB34+'День 7'!AB34+'День 9'!AB34+'День 10'!AB34+'День 11'!AB34+'День 12'!AB34+'День 13'!AB34+'День 14'!AB34+'День 15'!AB34+'День 16'!AB34+'День 17'!AB34+'День 18'!AB34+'День 19'!AB34+'День 21'!AB34+'День 20'!Z34 -> 0.0000 | E34: ='День 21'!AC34+'День 20'!AA34+'День 19'!AC34+'День 18'!AC34+'День 17'!AC34+'День 16'!AC34+'День 15'!AC34+'День 14'!AC34+'День 13'!AC34+'День 12'!AC34+'День 11'!AC34+'День 10'!AC34+'День 9'!AC34+'День 7'!AC34+'День 6'!AC34+' День 5'!AC34+'День 4'!AC34+'День 3'!AC34+'День 2'!AC34+'День 1'!AC34+'День 1 '!AC34 -> 0.5200 | F34: 0.5200
A35: 23 | B35: пшеничная крупа | C35: кг | D35: ='День 1 '!AB35+'День 1'!AB35+'День 2'!AB35+'День 3'!AB35+'День 4'!AB35+' День 5'!AB35+'День 6'!AB35+'День 7'!AB35+'День 9'!AB35+'День 10'!AB35+'День 11'!AB35+'День 12'!AB35+'День 13'!AB35+'День 14'!AB35+'День 15'!AB35+'День 16'!AB35+'День 17'!AB35+'День 18'!AB35+'День 19'!AB35+'День 21'!AB35+'День 20'!Z35 -> 0.0000 | E35: ='День 21'!AC35+'День 20'!AA35+'День 19'!AC35+'День 18'!AC35+'День 17'!AC35+'День 16'!AC35+'День 15'!AC35+'День 14'!AC35+'День 13'!AC35+'День 12'!AC35+'День 11'!AC35+'День 10'!AC35+'День 9'!AC35+'День 7'!AC35+'День 6'!AC35+' День 5'!AC35+'День 4'!AC35+'День 3'!AC35+'День 2'!AC35+'День 1'!AC35+'День 1 '!AC35 -> 0.5200 | F35: 0.5200
A36: 24 | B36: пшено | C36: кг | D36: ='День 1 '!AB36+'День 1'!AB36+'День 2'!AB36+'День 3'!AB36+'День 4'!AB36+' День 5'!AB36+'День 6'!AB36+'День 7'!AB36+'День 9'!AB36+'День 10'!AB36+'День 11'!AB36+'День 12'!AB36+'День 13'!AB36+'День 14'!AB36+'День 15'!AB36+'День 16'!AB36+'День 17'!AB36+'День 18'!AB36+'День 19'!AB36+'День 21'!AB36+'День 20'!Z36 -> 0.0000 | E36: ='День 21'!AC36+'День 20'!AA36+'День 19'!AC36+'День 18'!AC36+'День 17'!AC36+'День 16'!AC36+'День 15'!AC36+'День 14'!AC36+'День 13'!AC36+'День 12'!AC36+'День 11'!AC36+'День 10'!AC36+'День 9'!AC36+'День 7'!AC36+'День 6'!AC36+' День 5'!AC36+'День 4'!AC36+'День 3'!AC36+'День 2'!AC36+'День 1'!AC36+'День 1 '!AC36 -> 0.8320 | F36: 0.8320
A37: 25 | B37: рис | C37: кг | D37: ='День 1 '!AB37+'День 1'!AB37+'День 2'!AB37+'День 3'!AB37+'День 4'!AB37+' День 5'!AB37+'День 6'!AB37+'День 7'!AB37+'День 9'!AB37+'День 10'!AB37+'День 11'!AB37+'День 12'!AB37+'День 13'!AB37+'День 14'!AB37+'День 15'!AB37+'День 16'!AB37+'День 17'!AB37+'День 18'!AB37+'День 19'!AB37+'День 21'!AB37+'День 20'!Z37 -> 0.0000 | E37: ='День 21'!AC37+'День 20'!AA37+'День 19'!AC37+'День 18'!AC37+'День 17'!AC37+'День 16'!AC37+'День 15'!AC37+'День 14'!AC37+'День 13'!AC37+'День 12'!AC37+'День 11'!AC37+'День 10'!AC37+'День 9'!AC37+'День 7'!AC37+'День 6'!AC37+' День 5'!AC37+'День 4'!AC37+'День 3'!AC37+'День 2'!AC37+'День 1'!AC37+'День 1 '!AC37 -> 1.9630 | F37: 1.9630
A38: 26 | B38: мука пшеничная в/с | C38: кг | D38: ='День 1 '!AB38+'День 1'!AB38+'День 2'!AB38+'День 3'!AB38+'День 4'!AB38+' День 5'!AB38+'День 6'!AB38+'День 7'!AB38+'День 9'!AB38+'День 10'!AB38+'День 11'!AB38+'День 12'!AB38+'День 13'!AB38+'День 14'!AB38+'День 15'!AB38+'День 16'!AB38+'День 17'!AB38+'День 18'!AB38+'День 19'!AB38+'День 21'!AB38+'День 20'!Z38 -> 0.0000 | E38: ='День 21'!AC38+'День 20'!AA38+'День 19'!AC38+'День 18'!AC38+'День 17'!AC38+'День 16'!AC38+'День 15'!AC38+'День 14'!AC38+'День 13'!AC38+'День 12'!AC38+'День 11'!AC38+'День 10'!AC38+'День 9'!AC38+'День 7'!AC38+'День 6'!AC38+' День 5'!AC38+'День 4'!AC38+'День 3'!AC38+'День 2'!AC38+'День 1'!AC38+'День 1 '!AC38 -> 0.1443 | F38: 0.1443
A39: 27 | B39: сахарный песок | C39: кг | D39: ='День 1 '!AB39+'День 1'!AB39+'День 2'!AB39+'День 3'!AB39+'День 4'!AB39+' День 5'!AB39+'День 6'!AB39+'День 7'!AB39+'День 9'!AB39+'День 10'!AB39+'День 11'!AB39+'День 12'!AB39+'День 13'!AB39+'День 14'!AB39+'День 15'!AB39+'День 16'!AB39+'День 17'!AB39+'День 18'!AB39+'День 19'!AB39+'День 21'!AB39+'День 20'!Z39 -> 0.0000 | E39: ='День 21'!AC39+'День 20'!AA39+'День 19'!AC39+'День 18'!AC39+'День 17'!AC39+'День 16'!AC39+'День 15'!AC39+'День 14'!AC39+'День 13'!AC39+'День 12'!AC39+'День 11'!AC39+'День 10'!AC39+'День 9'!AC39+'День 7'!AC39+'День 6'!AC39+' День 5'!AC39+'День 4'!AC39+'День 3'!AC39+'День 2'!AC39+'День 1'!AC39+'День 1 '!AC39 -> 2.3192 | F39: 2.3192
A40: 28 | B40: соль | C40: кг | D40: ='День 1 '!AB40+'День 1'!AB40+'День 2'!AB40+'День 3'!AB40+'День 4'!AB40+' День 5'!AB40+'День 6'!AB40+'День 7'!AB40+'День 9'!AB40+'День 10'!AB40+'День 11'!AB40+'День 12'!AB40+'День 13'!AB40+'День 14'!AB40+'День 15'!AB40+'День 16'!AB40+'День 17'!AB40+'День 18'!AB40+'День 19'!AB40+'День 21'!AB40+'День 20'!Z40 -> 0.0000 | E40: ='День 21'!AC40+'День 20'!AA40+'День 19'!AC40+'День 18'!AC40+'День 17'!AC40+'День 16'!AC40+'День 15'!AC40+'День 14'!AC40+'День 13'!AC40+'День 12'!AC40+'День 11'!AC40+'День 10'!AC40+'День 9'!AC40+'День 7'!AC40+'День 6'!AC40+' День 5'!AC40+'День 4'!AC40+'День 3'!AC40+'День 2'!AC40+'День 1'!AC40+'День 1 '!AC40 -> 0.2705 | F40: 0.2705
A41: 29 | B41: ячневая крупа | C41: кг | D41: ='День 1 '!AB41+'День 1'!AB41+'День 2'!AB41+'День 3'!AB41+'День 4'!AB41+' День 5'!AB41+'День 6'!AB41+'День 7'!AB41+'День 9'!AB41+'День 10'!AB41+'День 11'!AB41+'День 12'!AB41+'День 13'!AB41+'День 14'!AB41+'День 15'!AB41+'День 16'!AB41+'День 17'!AB41+'День 18'!AB41+'День 19'!AB41+'День 21'!AB41+'День 20'!Z41 -> 0.0000 | E41: ='День 21'!AC41+'День 20'!AA41+'День 19'!AC41+'День 18'!AC41+'День 17'!AC41+'День 16'!AC41+'День 15'!AC41+'День 14'!AC41+'День 13'!AC41+'День 12'!AC41+'День 11'!AC41+'День 10'!AC41+'День 9'!AC41+'День 7'!AC41+'День 6'!AC41+' День 5'!AC41+'День 4'!AC41+'День 3'!AC41+'День 2'!AC41+'День 1'!AC41+'День 1 '!AC41 -> 0.0000 | F41: 0.0000
B42: Масло / сыр
A43: 30 | B43: масло растительное | C43: кг | D43: ='День 1 '!AB43+'День 1'!AB43+'День 2'!AB43+'День 3'!AB43+'День 4'!AB43+' День 5'!AB43+'День 6'!AB43+'День 7'!AB43+'День 9'!AB43+'День 10'!AB43+'День 11'!AB43+'День 12'!AB43+'День 13'!AB43+'День 14'!AB43+'День 15'!AB43+'День 16'!AB43+'День 17'!AB43+'День 18'!AB43+'День 19'!AB43+'День 21'!AB43+'День 20'!Z43 -> 0.0000 | E43: ='День 21'!AC43+'День 20'!AA43+'День 19'!AC43+'День 18'!AC43+'День 17'!AC43+'День 16'!AC43+'День 15'!AC43+'День 14'!AC43+'День 13'!AC43+'День 12'!AC43+'День 11'!AC43+'День 10'!AC43+'День 9'!AC43+'День 7'!AC43+'День 6'!AC43+' День 5'!AC43+'День 4'!AC43+'День 3'!AC43+'День 2'!AC43+'День 1'!AC43+'День 1 '!AC43 -> 1.3553 | F43: 1.3553
A44: 31 | B44: масло сливочное | C44: кг | D44: ='День 1 '!AB44+'День 1'!AB44+'День 2'!AB44+'День 3'!AB44+'День 4'!AB44+' День 5'!AB44+'День 6'!AB44+'День 7'!AB44+'День 9'!AB44+'День 10'!AB44+'День 11'!AB44+'День 12'!AB44+'День 13'!AB44+'День 14'!AB44+'День 15'!AB44+'День 16'!AB44+'День 17'!AB44+'День 18'!AB44+'День 19'!AB44+'День 21'!AB44+'День 20'!Z44 -> 0.0000 | E44: ='День 21'!AC44+'День 20'!AA44+'День 19'!AC44+'День 18'!AC44+'День 17'!AC44+'День 16'!AC44+'День 15'!AC44+'День 14'!AC44+'День 13'!AC44+'День 12'!AC44+'День 11'!AC44+'День 10'!AC44+'День 9'!AC44+'День 7'!AC44+'День 6'!AC44+' День 5'!AC44+'День 4'!AC44+'День 3'!AC44+'День 2'!AC44+'День 1'!AC44+'День 1 '!AC44 -> 1.2168 | F44: 1.2168
A45: 32 | B45: сыр голландский | C45: кг | D45: ='День 1 '!AB45+'День 1'!AB45+'День 2'!AB45+'День 3'!AB45+'День 4'!AB45+' День 5'!AB45+'День 6'!AB45+'День 7'!AB45+'День 9'!AB45+'День 10'!AB45+'День 11'!AB45+'День 12'!AB45+'День 13'!AB45+'День 14'!AB45+'День 15'!AB45+'День 16'!AB45+'День 17'!AB45+'День 18'!AB45+'День 19'!AB45+'День 21'!AB45+'День 20'!Z45 -> 0.0000 | E45: ='День 21'!AC45+'День 20'!AA45+'День 19'!AC45+'День 18'!AC45+'День 17'!AC45+'День 16'!AC45+'День 15'!AC45+'День 14'!AC45+'День 13'!AC45+'День 12'!AC45+'День 11'!AC45+'День 10'!AC45+'День 9'!AC45+'День 7'!AC45+'День 6'!AC45+' День 5'!AC45+'День 4'!AC45+'День 3'!AC45+'День 2'!AC45+'День 1'!AC45+'День 1 '!AC45 -> 0.5967 | F45: 0.5967
B46: Молоко и молоч продукция
A47: 33 | B47: молоко 2,5% | C47: кг | D47: ='День 1 '!AB47+'День 1'!AB47+'День 2'!AB47+'День 3'!AB47+'День 4'!AB47+' День 5'!AB47+'День 6'!AB47+'День 7'!AB47+'День 9'!AB47+'День 10'!AB47+'День 11'!AB47+'День 12'!AB47+'День 13'!AB47+'День 14'!AB47+'День 15'!AB47+'День 16'!AB47+'День 17'!AB47+'День 18'!AB47+'День 19'!AB47+'День 21'!AB47+'День 20'!Z47 -> 0.0000 | E47: ='День 21'!AC47+'День 20'!AA47+'День 19'!AC47+'День 18'!AC47+'День 17'!AC47+'День 16'!AC47+'День 15'!AC47+'День 14'!AC47+'День 13'!AC47+'День 12'!AC47+'День 11'!AC47+'День 10'!AC47+'День 9'!AC47+'День 7'!AC47+'День 6'!AC47+' День 5'!AC47+'День 4'!AC47+'День 3'!AC47+'День 2'!AC47+'День 1'!AC47+'День 1 '!AC47 -> 14.0452 | F47: 14.0452
A48: 34 | B48: катык 2,5% | C48: кг | D48: ='День 1 '!AB48+'День 1'!AB48+'День 2'!AB48+'День 3'!AB48+'День 4'!AB48+' День 5'!AB48+'День 6'!AB48+'День 7'!AB48+'День 9'!AB48+'День 10'!AB48+'День 11'!AB48+'День 12'!AB48+'День 13'!AB48+'День 14'!AB48+'День 15'!AB48+'День 16'!AB48+'День 17'!AB48+'День 18'!AB48+'День 19'!AB48+'День 21'!AB48+'День 20'!Z48 -> 0.0000 | E48: ='День 21'!AC48+'День 20'!AA48+'День 19'!AC48+'День 18'!AC48+'День 17'!AC48+'День 16'!AC48+'День 15'!AC48+'День 14'!AC48+'День 13'!AC48+'День 12'!AC48+'День 11'!AC48+'День 10'!AC48+'День 9'!AC48+'День 7'!AC48+'День 6'!AC48+' День 5'!AC48+'День 4'!AC48+'День 3'!AC48+'День 2'!AC48+'День 1'!AC48+'День 1 '!AC48 -> 0.0000 | F48: 0.0000
A49: 35 | B49: кефир 2,5% | C49: кг | D49: ='День 1 '!AB49+'День 1'!AB49+'День 2'!AB49+'День 3'!AB49+'День 4'!AB49+' День 5'!AB49+'День 6'!AB49+'День 7'!AB49+'День 9'!AB49+'День 10'!AB49+'День 11'!AB49+'День 12'!AB49+'День 13'!AB49+'День 14'!AB49+'День 15'!AB49+'День 16'!AB49+'День 17'!AB49+'День 18'!AB49+'День 19'!AB49+'День 21'!AB49+'День 20'!Z49 -> 0.0000 | E49: ='День 21'!AC49+'День 20'!AA49+'День 19'!AC49+'День 18'!AC49+'День 17'!AC49+'День 16'!AC49+'День 15'!AC49+'День 14'!AC49+'День 13'!AC49+'День 12'!AC49+'День 11'!AC49+'День 10'!AC49+'День 9'!AC49+'День 7'!AC49+'День 6'!AC49+' День 5'!AC49+'День 4'!AC49+'День 3'!AC49+'День 2'!AC49+'День 1'!AC49+'День 1 '!AC49 -> 0.0000 | F49: 0.0000
A50: 36 | B50: ряженка 2,5% | C50: кг | D50: ='День 1 '!AB50+'День 1'!AB50+'День 2'!AB50+'День 3'!AB50+'День 4'!AB50+' День 5'!AB50+'День 6'!AB50+'День 7'!AB50+'День 9'!AB50+'День 10'!AB50+'День 11'!AB50+'День 12'!AB50+'День 13'!AB50+'День 14'!AB50+'День 15'!AB50+'День 16'!AB50+'День 17'!AB50+'День 18'!AB50+'День 19'!AB50+'День 21'!AB50+'День 20'!Z50 -> 0.0000 | E50: ='День 21'!AC50+'День 20'!AA50+'День 19'!AC50+'День 18'!AC50+'День 17'!AC50+'День 16'!AC50+'День 15'!AC50+'День 14'!AC50+'День 13'!AC50+'День 12'!AC50+'День 11'!AC50+'День 10'!AC50+'День 9'!AC50+'День 7'!AC50+'День 6'!AC50+' День 5'!AC50+'День 4'!AC50+'День 3'!AC50+'День 2'!AC50+'День 1'!AC50+'День 1 '!AC50 -> 0.0000 | F50: 0.0000
A51: 37 | B51: йогурт разливной | C51: кг | D51: ='День 1 '!AB51+'День 1'!AB51+'День 2'!AB51+'День 3'!AB51+'День 4'!AB51+' День 5'!AB51+'День 6'!AB51+'День 7'!AB51+'День 9'!AB51+'День 10'!AB51+'День 11'!AB51+'День 12'!AB51+'День 13'!AB51+'День 14'!AB51+'День 15'!AB51+'День 16'!AB51+'День 17'!AB51+'День 18'!AB51+'День 19'!AB51+'День 21'!AB51+'День 20'!Z51 -> 0.0000 | E51: ='День 21'!AC51+'День 20'!AA51+'День 19'!AC51+'День 18'!AC51+'День 17'!AC51+'День 16'!AC51+'День 15'!AC51+'День 14'!AC51+'День 13'!AC51+'День 12'!AC51+'День 11'!AC51+'День 10'!AC51+'День 9'!AC51+'День 7'!AC51+'День 6'!AC51+' День 5'!AC51+'День 4'!AC51+'День 3'!AC51+'День 2'!AC51+'День 1'!AC51+'День 1 '!AC51 -> 0.0000 | F51: 0.0000
A52: 38 | B52: творог | C52: кг | D52: ='День 1 '!AB52+'День 1'!AB52+'День 2'!AB52+'День 3'!AB52+'День 4'!AB52+' День 5'!AB52+'День 6'!AB52+'День 7'!AB52+'День 9'!AB52+'День 10'!AB52+'День 11'!AB52+'День 12'!AB52+'День 13'!AB52+'День 14'!AB52+'День 15'!AB52+'День 16'!AB52+'День 17'!AB52+'День 18'!AB52+'День 19'!AB52+'День 21'!AB52+'День 20'!Z52 -> 0.0000 | E52: ='День 21'!AC52+'День 20'!AA52+'День 19'!AC52+'День 18'!AC52+'День 17'!AC52+'День 16'!AC52+'День 15'!AC52+'День 14'!AC52+'День 13'!AC52+'День 12'!AC52+'День 11'!AC52+'День 10'!AC52+'День 9'!AC52+'День 7'!AC52+'День 6'!AC52+' День 5'!AC52+'День 4'!AC52+'День 3'!AC52+'День 2'!AC52+'День 1'!AC52+'День 1 '!AC52 -> 3.2812 | F52: 3.2812
A53: 39 | B53: сметана | C53: кг | D53: ='День 1 '!AB53+'День 1'!AB53+'День 2'!AB53+'День 3'!AB53+'День 4'!AB53+' День 5'!AB53+'День 6'!AB53+'День 7'!AB53+'День 9'!AB53+'День 10'!AB53+'День 11'!AB53+'День 12'!AB53+'День 13'!AB53+'День 14'!AB53+'День 15'!AB53+'День 16'!AB53+'День 17'!AB53+'День 18'!AB53+'День 19'!AB53+'День 21'!AB53+'День 20'!Z53 -> 0.0000 | E53: ='День 21'!AC53+'День 20'!AA53+'День 19'!AC53+'День 18'!AC53+'День 17'!AC53+'День 16'!AC53+'День 15'!AC53+'День 14'!AC53+'День 13'!AC53+'День 12'!AC53+'День 11'!AC53+'День 10'!AC53+'День 9'!AC53+'День 7'!AC53+'День 6'!AC53+' День 5'!AC53+'День 4'!AC53+'День 3'!AC53+'День 2'!AC53+'День 1'!AC53+'День 1 '!AC53 -> 0.5850 | F53: 0.5850
B54: Консервы
A55: 40 | B55: кукуруза к/с | C55: кг | D55: ='День 1 '!AB55+'День 1'!AB55+'День 2'!AB55+'День 3'!AB55+'День 4'!AB55+' День 5'!AB55+'День 6'!AB55+'День 7'!AB55+'День 9'!AB55+'День 10'!AB55+'День 11'!AB55+'День 12'!AB55+'День 13'!AB55+'День 14'!AB55+'День 15'!AB55+'День 16'!AB55+'День 17'!AB55+'День 18'!AB55+'День 19'!AB55+'День 21'!AB55+'День 20'!Z55 -> 0.0000 | E55: ='День 21'!AC55+'День 20'!AA55+'День 19'!AC55+'День 18'!AC55+'День 17'!AC55+'День 16'!AC55+'День 15'!AC55+'День 14'!AC55+'День 13'!AC55+'День 12'!AC55+'День 11'!AC55+'День 10'!AC55+'День 9'!AC55+'День 7'!AC55+'День 6'!AC55+' День 5'!AC55+'День 4'!AC55+'День 3'!AC55+'День 2'!AC55+'День 1'!AC55+'День 1 '!AC55 -> 2.0189 | F55: 2.0189
A56: 41 | B56: зеленый горошек к/с | C56: кг | D56: ='День 1 '!AB56+'День 1'!AB56+'День 2'!AB56+'День 3'!AB56+'День 4'!AB56+' День 5'!AB56+'День 6'!AB56+'День 7'!AB56+'День 9'!AB56+'День 10'!AB56+'День 11'!AB56+'День 12'!AB56+'День 13'!AB56+'День 14'!AB56+'День 15'!AB56+'День 16'!AB56+'День 17'!AB56+'День 18'!AB56+'День 19'!AB56+'День 21'!AB56+'День 20'!Z56 -> 0.0000 | E56: ='День 21'!AC56+'День 20'!AA56+'День 19'!AC56+'День 18'!AC56+'День 17'!AC56+'День 16'!AC56+'День 15'!AC56+'День 14'!AC56+'День 13'!AC56+'День 12'!AC56+'День 11'!AC56+'День 10'!AC56+'День 9'!AC56+'День 7'!AC56+'День 6'!AC56+' День 5'!AC56+'День 4'!AC56+'День 3'!AC56+'День 2'!AC56+'День 1'!AC56+'День 1 '!AC56 -> 0.6513 | F56: 0.6513
A57: 42 | B57: молоко сгущенное | C57: кг | D57: ='День 1 '!AB57+'День 1'!AB57+'День 2'!AB57+'День 3'!AB57+'День 4'!AB57+' День 5'!AB57+'День 6'!AB57+'День 7'!AB57+'День 9'!AB57+'День 10'!AB57+'День 11'!AB57+'День 12'!AB57+'День 13'!AB57+'День 14'!AB57+'День 15'!AB57+'День 16'!AB57+'День 17'!AB57+'День 18'!AB57+'День 19'!AB57+'День 21'!AB57+'День 20'!Z57 -> 0.0000 | E57: ='День 21'!AC57+'День 20'!AA57+'День 19'!AC57+'День 18'!AC57+'День 17'!AC57+'День 16'!AC57+'День 15'!AC57+'День 14'!AC57+'День 13'!AC57+'День 12'!AC57+'День 11'!AC57+'День 10'!AC57+'День 9'!AC57+'День 7'!AC57+'День 6'!AC57+' День 5'!AC57+'День 4'!AC57+'День 3'!AC57+'День 2'!AC57+'День 1'!AC57+'День 1 '!AC57 -> 0.5239 | F57: 0.5239
A58: 43 | B58: огурцы соленые | C58: кг | D58: ='День 1 '!AB58+'День 1'!AB58+'День 2'!AB58+'День 3'!AB58+'День 4'!AB58+' День 5'!AB58+'День 6'!AB58+'День 7'!AB58+'День 9'!AB58+'День 10'!AB58+'День 11'!AB58+'День 12'!AB58+'День 13'!AB58+'День 14'!AB58+'День 15'!AB58+'День 16'!AB58+'День 17'!AB58+'День 18'!AB58+'День 19'!AB58+'День 21'!AB58+'День 20'!Z58 -> 0.0000 | E58: ='День 21'!AC58+'День 20'!AA58+'День 19'!AC58+'День 18'!AC58+'День 17'!AC58+'День 16'!AC58+'День 15'!AC58+'День 14'!AC58+'День 13'!AC58+'День 12'!AC58+'День 11'!AC58+'День 10'!AC58+'День 9'!AC58+'День 7'!AC58+'День 6'!AC58+' День 5'!AC58+'День 4'!AC58+'День 3'!AC58+'День 2'!AC58+'День 1'!AC58+'День 1 '!AC58 -> 1.3013 | F58: 1.3013
A59: 44 | B59: рыбная консерва | C59: кг | D59: ='День 1 '!AB59+'День 1'!AB59+'День 2'!AB59+'День 3'!AB59+'День 4'!AB59+' День 5'!AB59+'День 6'!AB59+'День 7'!AB59+'День 9'!AB59+'День 10'!AB59+'День 11'!AB59+'День 12'!AB59+'День 13'!AB59+'День 14'!AB59+'День 15'!AB59+'День 16'!AB59+'День 17'!AB59+'День 18'!AB59+'День 19'!AB59+'День 21'!AB59+'День 20'!Z59 -> 0.0000 | E59: ='День 21'!AC59+'День 20'!AA59+'День 19'!AC59+'День 18'!AC59+'День 17'!AC59+'День 16'!AC59+'День 15'!AC59+'День 14'!AC59+'День 13'!AC59+'День 12'!AC59+'День 11'!AC59+'День 10'!AC59+'День 9'!AC59+'День 7'!AC59+'День 6'!AC59+' День 5'!AC59+'День 4'!AC59+'День 3'!AC59+'День 2'!AC59+'День 1'!AC59+'День 1 '!AC59 -> 0.0000 | F59: 0.0000
A60: 45 | B60: томатная паста | C60: кг | D60: ='День 1 '!AB60+'День 1'!AB60+'День 2'!AB60+'День 3'!AB60+'День 4'!AB60+' День 5'!AB60+'День 6'!AB60+'День 7'!AB60+'День 9'!AB60+'День 10'!AB60+'День 11'!AB60+'День 12'!AB60+'День 13'!AB60+'День 14'!AB60+'День 15'!AB60+'День 16'!AB60+'День 17'!AB60+'День 18'!AB60+'День 19'!AB60+'День 21'!AB60+'День 20'!Z60 -> 0.0000 | E60: ='День 21'!AC60+'День 20'!AA60+'День 19'!AC60+'День 18'!AC60+'День 17'!AC60+'День 16'!AC60+'День 15'!AC60+'День 14'!AC60+'День 13'!AC60+'День 12'!AC60+'День 11'!AC60+'День 10'!AC60+'День 9'!AC60+'День 7'!AC60+'День 6'!AC60+' День 5'!AC60+'День 4'!AC60+'День 3'!AC60+'День 2'!AC60+'День 1'!AC60+'День 1 '!AC60 -> 0.1690 | F60: 0.1690
B61: Чай/какао/кофейный напиток
A62: 46 | B62: чай весовой | C62: кг | D62: ='День 1 '!AB62+'День 1'!AB62+'День 2'!AB62+'День 3'!AB62+'День 4'!AB62+' День 5'!AB62+'День 6'!AB62+'День 7'!AB62+'День 9'!AB62+'День 10'!AB62+'День 11'!AB62+'День 12'!AB62+'День 13'!AB62+'День 14'!AB62+'День 15'!AB62+'День 16'!AB62+'День 17'!AB62+'День 18'!AB62+'День 19'!AB62+'День 21'!AB62+'День 20'!Z62 -> 0.0000 | E62: ='День 21'!AC62+'День 20'!AA62+'День 19'!AC62+'День 18'!AC62+'День 17'!AC62+'День 16'!AC62+'День 15'!AC62+'День 14'!AC62+'День 13'!AC62+'День 12'!AC62+'День 11'!AC62+'День 10'!AC62+'День 9'!AC62+'День 7'!AC62+'День 6'!AC62+' День 5'!AC62+'День 4'!AC62+'День 3'!AC62+'День 2'!AC62+'День 1'!AC62+'День 1 '!AC62 -> 0.0260 | F62: 0.0260
A63: 47 | B63: чай зеленый | C63: кг | D63: ='День 1 '!AB63+'День 1'!AB63+'День 2'!AB63+'День 3'!AB63+'День 4'!AB63+' День 5'!AB63+'День 6'!AB63+'День 7'!AB63+'День 9'!AB63+'День 10'!AB63+'День 11'!AB63+'День 12'!AB63+'День 13'!AB63+'День 14'!AB63+'День 15'!AB63+'День 16'!AB63+'День 17'!AB63+'День 18'!AB63+'День 19'!AB63+'День 21'!AB63+'День 20'!Z63 -> 0.0000 | E63: ='День 21'!AC63+'День 20'!AA63+'День 19'!AC63+'День 18'!AC63+'День 17'!AC63+'День 16'!AC63+'День 15'!AC63+'День 14'!AC63+'День 13'!AC63+'День 12'!AC63+'День 11'!AC63+'День 10'!AC63+'День 9'!AC63+'День 7'!AC63+'День 6'!AC63+' День 5'!AC63+'День 4'!AC63+'День 3'!AC63+'День 2'!AC63+'День 1'!AC63+'День 1 '!AC63 -> 0.0000 | F63: 0.0000
A64: 48 | B64: какао | C64: кг | D64: ='День 1 '!AB64+'День 1'!AB64+'День 2'!AB64+'День 3'!AB64+'День 4'!AB64+' День 5'!AB64+'День 6'!AB64+'День 7'!AB64+'День 9'!AB64+'День 10'!AB64+'День 11'!AB64+'День 12'!AB64+'День 13'!AB64+'День 14'!AB64+'День 15'!AB64+'День 16'!AB64+'День 17'!AB64+'День 18'!AB64+'День 19'!AB64+'День 21'!AB64+'День 20'!Z64 -> 0.0000 | E64: ='День 21'!AC64+'День 20'!AA64+'День 19'!AC64+'День 18'!AC64+'День 17'!AC64+'День 16'!AC64+'День 15'!AC64+'День 14'!AC64+'День 13'!AC64+'День 12'!AC64+'День 11'!AC64+'День 10'!AC64+'День 9'!AC64+'День 7'!AC64+'День 6'!AC64+' День 5'!AC64+'День 4'!AC64+'День 3'!AC64+'День 2'!AC64+'День 1'!AC64+'День 1 '!AC64 -> 0.1040 | F64: 0.1040
A65: 49 | B65: кисель | C65: кг | D65: ='День 1 '!AB65+'День 1'!AB65+'День 2'!AB65+'День 3'!AB65+'День 4'!AB65+' День 5'!AB65+'День 6'!AB65+'День 7'!AB65+'День 9'!AB65+'День 10'!AB65+'День 11'!AB65+'День 12'!AB65+'День 13'!AB65+'День 14'!AB65+'День 15'!AB65+'День 16'!AB65+'День 17'!AB65+'День 18'!AB65+'День 19'!AB65+'День 21'!AB65+'День 20'!Z65 -> 0.0000 | E65: ='День 21'!AC65+'День 20'!AA65+'День 19'!AC65+'День 18'!AC65+'День 17'!AC65+'День 16'!AC65+'День 15'!AC65+'День 14'!AC65+'День 13'!AC65+'День 12'!AC65+'День 11'!AC65+'День 10'!AC65+'День 9'!AC65+'День 7'!AC65+'День 6'!AC65+' День 5'!AC65+'День 4'!AC65+'День 3'!AC65+'День 2'!AC65+'День 1'!AC65+'День 1 '!AC65 -> 0.3120 | F65: 0.3120
A66: 50 | B66: кофейный напиток | C66: кг | D66: ='День 1 '!AB66+'День 1'!AB66+'День 2'!AB66+'День 3'!AB66+'День 4'!AB66+' День 5'!AB66+'День 6'!AB66+'День 7'!AB66+'День 9'!AB66+'День 10'!AB66+'День 11'!AB66+'День 12'!AB66+'День 13'!AB66+'День 14'!AB66+'День 15'!AB66+'День 16'!AB66+'День 17'!AB66+'День 18'!AB66+'День 19'!AB66+'День 21'!AB66+'День 20'!Z66 -> 0.0000 | E66: ='День 21'!AC66+'День 20'!AA66+'День 19'!AC66+'День 18'!AC66+'День 17'!AC66+'День 16'!AC66+'День 15'!AC66+'День 14'!AC66+'День 13'!AC66+'День 12'!AC66+'День 11'!AC66+'День 10'!AC66+'День 9'!AC66+'День 7'!AC66+'День 6'!AC66+' День 5'!AC66+'День 4'!AC66+'День 3'!AC66+'День 2'!AC66+'День 1'!AC66+'День 1 '!AC66 -> 0.1300 | F66: 0.1300
B67: Фрукты
A68: 51 | B68: апельсин | C68: кг | D68: ='День 1 '!AB68+'День 1'!AB68+'День 2'!AB68+'День 3'!AB68+'День 4'!AB68+' День 5'!AB68+'День 6'!AB68+'День 7'!AB68+'День 9'!AB68+'День 10'!AB68+'День 11'!AB68+'День 12'!AB68+'День 13'!AB68+'День 14'!AB68+'День 15'!AB68+'День 16'!AB68+'День 17'!AB68+'День 18'!AB68+'День 19'!AB68+'День 21'!AB68+'День 20'!Z68 -> 0.0000 | E68: ='День 21'!AC68+'День 20'!AA68+'День 19'!AC68+'День 18'!AC68+'День 17'!AC68+'День 16'!AC68+'День 15'!AC68+'День 14'!AC68+'День 13'!AC68+'День 12'!AC68+'День 11'!AC68+'День 10'!AC68+'День 9'!AC68+'День 7'!AC68+'День 6'!AC68+' День 5'!AC68+'День 4'!AC68+'День 3'!AC68+'День 2'!AC68+'День 1'!AC68+'День 1 '!AC68 -> 3.9000 | F68: 3.9000
A69: 52 | B69: банан | C69: кг | D69: ='День 1 '!AB69+'День 1'!AB69+'День 2'!AB69+'День 3'!AB69+'День 4'!AB69+' День 5'!AB69+'День 6'!AB69+'День 7'!AB69+'День 9'!AB69+'День 10'!AB69+'День 11'!AB69+'День 12'!AB69+'День 13'!AB69+'День 14'!AB69+'День 15'!AB69+'День 16'!AB69+'День 17'!AB69+'День 18'!AB69+'День 19'!AB69+'День 21'!AB69+'День 20'!Z69 -> 0.0000 | E69: ='День 21'!AC69+'День 20'!AA69+'День 19'!AC69+'День 18'!AC69+'День 17'!AC69+'День 16'!AC69+'День 15'!AC69+'День 14'!AC69+'День 13'!AC69+'День 12'!AC69+'День 11'!AC69+'День 10'!AC69+'День 9'!AC69+'День 7'!AC69+'День 6'!AC69+' День 5'!AC69+'День 4'!AC69+'День 3'!AC69+'День 2'!AC69+'День 1'!AC69+'День 1 '!AC69 -> 0.0000 | F69: 0.0000
A70: 53 | B70: груши | C70: кг | D70: ='День 1 '!AB70+'День 1'!AB70+'День 2'!AB70+'День 3'!AB70+'День 4'!AB70+' День 5'!AB70+'День 6'!AB70+'День 7'!AB70+'День 9'!AB70+'День 10'!AB70+'День 11'!AB70+'День 12'!AB70+'День 13'!AB70+'День 14'!AB70+'День 15'!AB70+'День 16'!AB70+'День 17'!AB70+'День 18'!AB70+'День 19'!AB70+'День 21'!AB70+'День 20'!Z70 -> 0.0000 | E70: ='День 21'!AC70+'День 20'!AA70+'День 19'!AC70+'День 18'!AC70+'День 17'!AC70+'День 16'!AC70+'День 15'!AC70+'День 14'!AC70+'День 13'!AC70+'День 12'!AC70+'День 11'!AC70+'День 10'!AC70+'День 9'!AC70+'День 7'!AC70+'День 6'!AC70+' День 5'!AC70+'День 4'!AC70+'День 3'!AC70+'День 2'!AC70+'День 1'!AC70+'День 1 '!AC70 -> 0.0000 | F70: 0.0000
A71: 54 | B71: лимон | C71: кг | D71: ='День 1 '!AB71+'День 1'!AB71+'День 2'!AB71+'День 3'!AB71+'День 4'!AB71+' День 5'!AB71+'День 6'!AB71+'День 7'!AB71+'День 9'!AB71+'День 10'!AB71+'День 11'!AB71+'День 12'!AB71+'День 13'!AB71+'День 14'!AB71+'День 15'!AB71+'День 16'!AB71+'День 17'!AB71+'День 18'!AB71+'День 19'!AB71+'День 21'!AB71+'День 20'!Z71 -> 0.0000 | E71: ='День 21'!AC71+'День 20'!AA71+'День 19'!AC71+'День 18'!AC71+'День 17'!AC71+'День 16'!AC71+'День 15'!AC71+'День 14'!AC71+'День 13'!AC71+'День 12'!AC71+'День 11'!AC71+'День 10'!AC71+'День 9'!AC71+'День 7'!AC71+'День 6'!AC71+' День 5'!AC71+'День 4'!AC71+'День 3'!AC71+'День 2'!AC71+'День 1'!AC71+'День 1 '!AC71 -> 0.0000 | F71: 0.0000
A72: 55 | B72: яблоки свежие | C72: кг | D72: ='День 1 '!AB72+'День 1'!AB72+'День 2'!AB72+'День 3'!AB72+'День 4'!AB72+' День 5'!AB72+'День 6'!AB72+'День 7'!AB72+'День 9'!AB72+'День 10'!AB72+'День 11'!AB72+'День 12'!AB72+'День 13'!AB72+'День 14'!AB72+'День 15'!AB72+'День 16'!AB72+'День 17'!AB72+'День 18'!AB72+'День 19'!AB72+'День 21'!AB72+'День 20'!Z72 -> 0.0000 | E72: ='День 21'!AC72+'День 20'!AA72+'День 19'!AC72+'День 18'!AC72+'День 17'!AC72+'День 16'!AC72+'День 15'!AC72+'День 14'!AC72+'День 13'!AC72+'День 12'!AC72+'День 11'!AC72+'День 10'!AC72+'День 9'!AC72+'День 7'!AC72+'День 6'!AC72+' День 5'!AC72+'День 4'!AC72+'День 3'!AC72+'День 2'!AC72+'День 1'!AC72+'День 1 '!AC72 -> 4.4902 | F72: 4.4902
A73: 56 | B73: мандарин | C73: кг | D73: ='День 1 '!AB73+'День 1'!AB73+'День 2'!AB73+'День 3'!AB73+'День 4'!AB73+' День 5'!AB73+'День 6'!AB73+'День 7'!AB73+'День 9'!AB73+'День 10'!AB73+'День 11'!AB73+'День 12'!AB73+'День 13'!AB73+'День 14'!AB73+'День 15'!AB73+'День 16'!AB73+'День 17'!AB73+'День 18'!AB73+'День 19'!AB73+'День 21'!AB73+'День 20'!Z73 -> 0.0000 | E73: ='День 21'!AC73+'День 20'!AA73+'День 19'!AC73+'День 18'!AC73+'День 17'!AC73+'День 16'!AC73+'День 15'!AC73+'День 14'!AC73+'День 13'!AC73+'День 12'!AC73+'День 11'!AC73+'День 10'!AC73+'День 9'!AC73+'День 7'!AC73+'День 6'!AC73+' День 5'!AC73+'День 4'!AC73+'День 3'!AC73+'День 2'!AC73+'День 1'!AC73+'День 1 '!AC73 -> 0.0000 | F73: =D73+E73 -> 0.0000
B74: Сухофрукты, ягоды замороженные
A75: 57 | B75: ассорти для компота (сухофрукты) | C75: кг | D75: ='День 1 '!AB75+'День 1'!AB75+'День 2'!AB75+'День 3'!AB75+'День 4'!AB75+' День 5'!AB75+'День 6'!AB75+'День 7'!AB75+'День 9'!AB75+'День 10'!AB75+'День 11'!AB75+'День 12'!AB75+'День 13'!AB75+'День 14'!AB75+'День 15'!AB75+'День 16'!AB75+'День 17'!AB75+'День 18'!AB75+'День 19'!AB75+'День 21'!AB75+'День 20'!Z75 -> 0.0000 | E75: ='День 21'!AC75+'День 20'!AA75+'День 19'!AC75+'День 18'!AC75+'День 17'!AC75+'День 16'!AC75+'День 15'!AC75+'День 14'!AC75+'День 13'!AC75+'День 12'!AC75+'День 11'!AC75+'День 10'!AC75+'День 9'!AC75+'День 7'!AC75+'День 6'!AC75+' День 5'!AC75+'День 4'!AC75+'День 3'!AC75+'День 2'!AC75+'День 1'!AC75+'День 1 '!AC75 -> 0.2652 | F75: 0.2652
A76: 58 | B76: ягоды с/м (смородина черная) | C76: кг | D76: ='День 1 '!AB76+'День 1'!AB76+'День 2'!AB76+'День 3'!AB76+'День 4'!AB76+' День 5'!AB76+'День 6'!AB76+'День 7'!AB76+'День 9'!AB76+'День 10'!AB76+'День 11'!AB76+'День 12'!AB76+'День 13'!AB76+'День 14'!AB76+'День 15'!AB76+'День 16'!AB76+'День 17'!AB76+'День 18'!AB76+'День 19'!AB76+'День 21'!AB76+'День 20'!Z76 -> 0.0000 | E76: ='День 21'!AC76+'День 20'!AA76+'День 19'!AC76+'День 18'!AC76+'День 17'!AC76+'День 16'!AC76+'День 15'!AC76+'День 14'!AC76+'День 13'!AC76+'День 12'!AC76+'День 11'!AC76+'День 10'!AC76+'День 9'!AC76+'День 7'!AC76+'День 6'!AC76+' День 5'!AC76+'День 4'!AC76+'День 3'!AC76+'День 2'!AC76+'День 1'!AC76+'День 1 '!AC76 -> 0.0000 | F76: 0.0000
A77: 59 | B77: изюм | C77: кг | D77: ='День 1 '!AB77+'День 1'!AB77+'День 2'!AB77+'День 3'!AB77+'День 4'!AB77+' День 5'!AB77+'День 6'!AB77+'День 7'!AB77+'День 9'!AB77+'День 10'!AB77+'День 11'!AB77+'День 12'!AB77+'День 13'!AB77+'День 14'!AB77+'День 15'!AB77+'День 16'!AB77+'День 17'!AB77+'День 18'!AB77+'День 19'!AB77+'День 21'!AB77+'День 20'!Z77 -> 0.0000 | E77: ='День 21'!AC77+'День 20'!AA77+'День 19'!AC77+'День 18'!AC77+'День 17'!AC77+'День 16'!AC77+'День 15'!AC77+'День 14'!AC77+'День 13'!AC77+'День 12'!AC77+'День 11'!AC77+'День 10'!AC77+'День 9'!AC77+'День 7'!AC77+'День 6'!AC77+' День 5'!AC77+'День 4'!AC77+'День 3'!AC77+'День 2'!AC77+'День 1'!AC77+'День 1 '!AC77 -> 0.5304 | F77: 0.5304
A78: 60 | B78: курага | C78: кг | D78: ='День 1 '!AB78+'День 1'!AB78+'День 2'!AB78+'День 3'!AB78+'День 4'!AB78+' День 5'!AB78+'День 6'!AB78+'День 7'!AB78+'День 9'!AB78+'День 10'!AB78+'День 11'!AB78+'День 12'!AB78+'День 13'!AB78+'День 14'!AB78+'День 15'!AB78+'День 16'!AB78+'День 17'!AB78+'День 18'!AB78+'День 19'!AB78+'День 21'!AB78+'День 20'!Z78 -> 0.0000 | E78: ='День 21'!AC78+'День 20'!AA78+'День 19'!AC78+'День 18'!AC78+'День 17'!AC78+'День 16'!AC78+'День 15'!AC78+'День 14'!AC78+'День 13'!AC78+'День 12'!AC78+'День 11'!AC78+'День 10'!AC78+'День 9'!AC78+'День 7'!AC78+'День 6'!AC78+' День 5'!AC78+'День 4'!AC78+'День 3'!AC78+'День 2'!AC78+'День 1'!AC78+'День 1 '!AC78 -> 0.0000 | F78: 0.0000
A79: 61 | B79: урюк | C79: кг | D79: ='День 1 '!AB79+'День 1'!AB79+'День 2'!AB79+'День 3'!AB79+'День 4'!AB79+' День 5'!AB79+'День 6'!AB79+'День 7'!AB79+'День 9'!AB79+'День 10'!AB79+'День 11'!AB79+'День 12'!AB79+'День 13'!AB79+'День 14'!AB79+'День 15'!AB79+'День 16'!AB79+'День 17'!AB79+'День 18'!AB79+'День 19'!AB79+'День 21'!AB79+'День 20'!Z79 -> 0.0000 | E79: ='День 21'!AC79+'День 20'!AA79+'День 19'!AC79+'День 18'!AC79+'День 17'!AC79+'День 16'!AC79+'День 15'!AC79+'День 14'!AC79+'День 13'!AC79+'День 12'!AC79+'День 11'!AC79+'День 10'!AC79+'День 9'!AC79+'День 7'!AC79+'День 6'!AC79+' День 5'!AC79+'День 4'!AC79+'День 3'!AC79+'День 2'!AC79+'День 1'!AC79+'День 1 '!AC79 -> 0.0000 | F79: 0.0000
A80: 62 | B80: шиповник | C80: кг | D80: ='День 1 '!AB80+'День 1'!AB80+'День 2'!AB80+'День 3'!AB80+'День 4'!AB80+' День 5'!AB80+'День 6'!AB80+'День 7'!AB80+'День 9'!AB80+'День 10'!AB80+'День 11'!AB80+'День 12'!AB80+'День 13'!AB80+'День 14'!AB80+'День 15'!AB80+'День 16'!AB80+'День 17'!AB80+'День 18'!AB80+'День 19'!AB80+'День 21'!AB80+'День 20'!Z80 -> 0.0000 | E80: ='День 21'!AC80+'День 20'!AA80+'День 19'!AC80+'День 18'!AC80+'День 17'!AC80+'День 16'!AC80+'День 15'!AC80+'День 14'!AC80+'День 13'!AC80+'День 12'!AC80+'День 11'!AC80+'День 10'!AC80+'День 9'!AC80+'День 7'!AC80+'День 6'!AC80+' День 5'!AC80+'День 4'!AC80+'День 3'!AC80+'День 2'!AC80+'День 1'!AC80+'День 1 '!AC80 -> 0.3978 | F80: 0.3978
A81: 63 | B81: компотная смесь свежморож | C81: кг | D81: ='День 1 '!AB81+'День 1'!AB81+'День 2'!AB81+'День 3'!AB81+'День 4'!AB81+' День 5'!AB81+'День 6'!AB81+'День 7'!AB81+'День 9'!AB81+'День 10'!AB81+'День 11'!AB81+'День 12'!AB81+'День 13'!AB81+'День 14'!AB81+'День 15'!AB81+'День 16'!AB81+'День 17'!AB81+'День 18'!AB81+'День 19'!AB81+'День 21'!AB81+'День 20'!Z81 -> 0.0000 | E81: ='День 21'!AC81+'День 20'!AA81+'День 19'!AC81+'День 18'!AC81+'День 17'!AC81+'День 16'!AC81+'День 15'!AC81+'День 14'!AC81+'День 13'!AC81+'День 12'!AC81+'День 11'!AC81+'День 10'!AC81+'День 9'!AC81+'День 7'!AC81+'День 6'!AC81+' День 5'!AC81+'День 4'!AC81+'День 3'!AC81+'День 2'!AC81+'День 1'!AC81+'День 1 '!AC81 -> 0.0000 | F81: 0.0000
A82: 64 | B82: чернослив | C82: кг | D82: ='День 1 '!AB82+'День 1'!AB82+'День 2'!AB82+'День 3'!AB82+'День 4'!AB82+' День 5'!AB82+'День 6'!AB82+'День 7'!AB82+'День 9'!AB82+'День 10'!AB82+'День 11'!AB82+'День 12'!AB82+'День 13'!AB82+'День 14'!AB82+'День 15'!AB82+'День 16'!AB82+'День 17'!AB82+'День 18'!AB82+'День 19'!AB82+'День 21'!AB82+'День 20'!Z82 -> 0.0000 | E82: ='День 21'!AC82+'День 20'!AA82+'День 19'!AC82+'День 18'!AC82+'День 17'!AC82+'День 16'!AC82+'День 15'!AC82+'День 14'!AC82+'День 13'!AC82+'День 12'!AC82+'День 11'!AC82+'День 10'!AC82+'День 9'!AC82+'День 7'!AC82+'День 6'!AC82+' День 5'!AC82+'День 4'!AC82+'День 3'!AC82+'День 2'!AC82+'День 1'!AC82+'День 1 '!AC82 -> 0.0000 | F82: 0.0000
B83: Овощи / зелень
A84: 65 | B84: зеленый горошек с/м | C84: кг | D84: ='День 1 '!AB84+'День 1'!AB84+'День 2'!AB84+'День 3'!AB84+'День 4'!AB84+' День 5'!AB84+'День 6'!AB84+'День 7'!AB84+'День 9'!AB84+'День 10'!AB84+'День 11'!AB84+'День 12'!AB84+'День 13'!AB84+'День 14'!AB84+'День 15'!AB84+'День 16'!AB84+'День 17'!AB84+'День 18'!AB84+'День 19'!AB84+'День 21'!AB84+'День 20'!Z84 -> 0.0000 | E84: ='День 21'!AC84+'День 20'!AA84+'День 19'!AC84+'День 18'!AC84+'День 17'!AC84+'День 16'!AC84+'День 15'!AC84+'День 14'!AC84+'День 13'!AC84+'День 12'!AC84+'День 11'!AC84+'День 10'!AC84+'День 9'!AC84+'День 7'!AC84+'День 6'!AC84+' День 5'!AC84+'День 4'!AC84+'День 3'!AC84+'День 2'!AC84+'День 1'!AC84+'День 1 '!AC84 -> 0.0000 | F84: 0.0000
A85: 66 | B85: кабачки с/м | C85: кг | D85: ='День 1 '!AB85+'День 1'!AB85+'День 2'!AB85+'День 3'!AB85+'День 4'!AB85+' День 5'!AB85+'День 6'!AB85+'День 7'!AB85+'День 9'!AB85+'День 10'!AB85+'День 11'!AB85+'День 12'!AB85+'День 13'!AB85+'День 14'!AB85+'День 15'!AB85+'День 16'!AB85+'День 17'!AB85+'День 18'!AB85+'День 19'!AB85+'День 21'!AB85+'День 20'!Z85 -> 0.0000 | E85: ='День 21'!AC85+'День 20'!AA85+'День 19'!AC85+'День 18'!AC85+'День 17'!AC85+'День 16'!AC85+'День 15'!AC85+'День 14'!AC85+'День 13'!AC85+'День 12'!AC85+'День 11'!AC85+'День 10'!AC85+'День 9'!AC85+'День 7'!AC85+'День 6'!AC85+' День 5'!AC85+'День 4'!AC85+'День 3'!AC85+'День 2'!AC85+'День 1'!AC85+'День 1 '!AC85 -> 0.0000 | F85: 0.0000
A86: 67 | B86: капуста свежая | C86: кг | D86: ='День 1 '!AB86+'День 1'!AB86+'День 2'!AB86+'День 3'!AB86+'День 4'!AB86+' День 5'!AB86+'День 6'!AB86+'День 7'!AB86+'День 9'!AB86+'День 10'!AB86+'День 11'!AB86+'День 12'!AB86+'День 13'!AB86+'День 14'!AB86+'День 15'!AB86+'День 16'!AB86+'День 17'!AB86+'День 18'!AB86+'День 19'!AB86+'День 21'!AB86+'День 20'!Z86 -> 0.0000 | E86: ='День 21'!AC86+'День 20'!AA86+'День 19'!AC86+'День 18'!AC86+'День 17'!AC86+'День 16'!AC86+'День 15'!AC86+'День 14'!AC86+'День 13'!AC86+'День 12'!AC86+'День 11'!AC86+'День 10'!AC86+'День 9'!AC86+'День 7'!AC86+'День 6'!AC86+' День 5'!AC86+'День 4'!AC86+'День 3'!AC86+'День 2'!AC86+'День 1'!AC86+'День 1 '!AC86 -> 3.1282 | F86: 3.1282
A87: 68 | B87: капуста квашеная | C87: кг | D87: ='День 1 '!AB87+'День 1'!AB87+'День 2'!AB87+'День 3'!AB87+'День 4'!AB87+' День 5'!AB87+'День 6'!AB87+'День 7'!AB87+'День 9'!AB87+'День 10'!AB87+'День 11'!AB87+'День 12'!AB87+'День 13'!AB87+'День 14'!AB87+'День 15'!AB87+'День 16'!AB87+'День 17'!AB87+'День 18'!AB87+'День 19'!AB87+'День 21'!AB87+'День 20'!Z87 -> 0.0000 | E87: ='День 21'!AC87+'День 20'!AA87+'День 19'!AC87+'День 18'!AC87+'День 17'!AC87+'День 16'!AC87+'День 15'!AC87+'День 14'!AC87+'День 13'!AC87+'День 12'!AC87+'День 11'!AC87+'День 10'!AC87+'День 9'!AC87+'День 7'!AC87+'День 6'!AC87+' День 5'!AC87+'День 4'!AC87+'День 3'!AC87+'День 2'!AC87+'День 1'!AC87+'День 1 '!AC87 -> 1.7966 | F87: 1.7966
A88: 69 | B88: картофель | C88: кг | D88: ='День 1 '!AB88+'День 1'!AB88+'День 2'!AB88+'День 3'!AB88+'День 4'!AB88+' День 5'!AB88+'День 6'!AB88+'День 7'!AB88+'День 9'!AB88+'День 10'!AB88+'День 11'!AB88+'День 12'!AB88+'День 13'!AB88+'День 14'!AB88+'День 15'!AB88+'День 16'!AB88+'День 17'!AB88+'День 18'!AB88+'День 19'!AB88+'День 21'!AB88+'День 20'!Z88 -> 0.0000 | E88: ='День 21'!AC88+'День 20'!AA88+'День 19'!AC88+'День 18'!AC88+'День 17'!AC88+'День 16'!AC88+'День 15'!AC88+'День 14'!AC88+'День 13'!AC88+'День 12'!AC88+'День 11'!AC88+'День 10'!AC88+'День 9'!AC88+'День 7'!AC88+'День 6'!AC88+' День 5'!AC88+'День 4'!AC88+'День 3'!AC88+'День 2'!AC88+'День 1'!AC88+'День 1 '!AC88 -> 8.1530 | F88: 8.1530
A89: 70 | B89: лук репчатый | C89: кг | D89: ='День 1 '!AB89+'День 1'!AB89+'День 2'!AB89+'День 3'!AB89+'День 4'!AB89+' День 5'!AB89+'День 6'!AB89+'День 7'!AB89+'День 9'!AB89+'День 10'!AB89+'День 11'!AB89+'День 12'!AB89+'День 13'!AB89+'День 14'!AB89+'День 15'!AB89+'День 16'!AB89+'День 17'!AB89+'День 18'!AB89+'День 19'!AB89+'День 21'!AB89+'День 20'!Z89 -> 0.0000 | E89: ='День 21'!AC89+'День 20'!AA89+'День 19'!AC89+'День 18'!AC89+'День 17'!AC89+'День 16'!AC89+'День 15'!AC89+'День 14'!AC89+'День 13'!AC89+'День 12'!AC89+'День 11'!AC89+'День 10'!AC89+'День 9'!AC89+'День 7'!AC89+'День 6'!AC89+' День 5'!AC89+'День 4'!AC89+'День 3'!AC89+'День 2'!AC89+'День 1'!AC89+'День 1 '!AC89 -> 3.3946 | F89: 3.3946
A90: 71 | B90: морковь | C90: кг | D90: ='День 1 '!AB90+'День 1'!AB90+'День 2'!AB90+'День 3'!AB90+'День 4'!AB90+' День 5'!AB90+'День 6'!AB90+'День 7'!AB90+'День 9'!AB90+'День 10'!AB90+'День 11'!AB90+'День 12'!AB90+'День 13'!AB90+'День 14'!AB90+'День 15'!AB90+'День 16'!AB90+'День 17'!AB90+'День 18'!AB90+'День 19'!AB90+'День 21'!AB90+'День 20'!Z90 -> 0.0000 | E90: ='День 21'!AC90+'День 20'!AA90+'День 19'!AC90+'День 18'!AC90+'День 17'!AC90+'День 16'!AC90+'День 15'!AC90+'День 14'!AC90+'День 13'!AC90+'День 12'!AC90+'День 11'!AC90+'День 10'!AC90+'День 9'!AC90+'День 7'!AC90+'День 6'!AC90+' День 5'!AC90+'День 4'!AC90+'День 3'!AC90+'День 2'!AC90+'День 1'!AC90+'День 1 '!AC90 -> 3.0557 | F90: 3.0557
A91: 72 | B91: огурцы св. | C91: кг | D91: ='День 1 '!AB91+'День 1'!AB91+'День 2'!AB91+'День 3'!AB91+'День 4'!AB91+' День 5'!AB91+'День 6'!AB91+'День 7'!AB91+'День 9'!AB91+'День 10'!AB91+'День 11'!AB91+'День 12'!AB91+'День 13'!AB91+'День 14'!AB91+'День 15'!AB91+'День 16'!AB91+'День 17'!AB91+'День 18'!AB91+'День 19'!AB91+'День 21'!AB91+'День 20'!Z91 -> 0.0000 | E91: ='День 21'!AC91+'День 20'!AA91+'День 19'!AC91+'День 18'!AC91+'День 17'!AC91+'День 16'!AC91+'День 15'!AC91+'День 14'!AC91+'День 13'!AC91+'День 12'!AC91+'День 11'!AC91+'День 10'!AC91+'День 9'!AC91+'День 7'!AC91+'День 6'!AC91+' День 5'!AC91+'День 4'!AC91+'День 3'!AC91+'День 2'!AC91+'День 1'!AC91+'День 1 '!AC91 -> 0.0000 | F91: 0.0000
A92: 73 | B92: свекла | C92: кг | D92: ='День 1 '!AB92+'День 1'!AB92+'День 2'!AB92+'День 3'!AB92+'День 4'!AB92+' День 5'!AB92+'День 6'!AB92+'День 7'!AB92+'День 9'!AB92+'День 10'!AB92+'День 11'!AB92+'День 12'!AB92+'День 13'!AB92+'День 14'!AB92+'День 15'!AB92+'День 16'!AB92+'День 17'!AB92+'День 18'!AB92+'День 19'!AB92+'День 21'!AB92+'День 20'!Z92 -> 0.0000 | E92: ='День 21'!AC92+'День 20'!AA92+'День 19'!AC92+'День 18'!AC92+'День 17'!AC92+'День 16'!AC92+'День 15'!AC92+'День 14'!AC92+'День 13'!AC92+'День 12'!AC92+'День 11'!AC92+'День 10'!AC92+'День 9'!AC92+'День 7'!AC92+'День 6'!AC92+' День 5'!AC92+'День 4'!AC92+'День 3'!AC92+'День 2'!AC92+'День 1'!AC92+'День 1 '!AC92 -> 2.2191 | F92: 2.2191
A93: 74 | B93: томаты св. | C93: кг | D93: ='День 1 '!AB93+'День 1'!AB93+'День 2'!AB93+'День 3'!AB93+'День 4'!AB93+' День 5'!AB93+'День 6'!AB93+'День 7'!AB93+'День 9'!AB93+'День 10'!AB93+'День 11'!AB93+'День 12'!AB93+'День 13'!AB93+'День 14'!AB93+'День 15'!AB93+'День 16'!AB93+'День 17'!AB93+'День 18'!AB93+'День 19'!AB93+'День 21'!AB93+'День 20'!Z93 -> 0.0000 | E93: ='День 21'!AC93+'День 20'!AA93+'День 19'!AC93+'День 18'!AC93+'День 17'!AC93+'День 16'!AC93+'День 15'!AC93+'День 14'!AC93+'День 13'!AC93+'День 12'!AC93+'День 11'!AC93+'День 10'!AC93+'День 9'!AC93+'День 7'!AC93+'День 6'!AC93+' День 5'!AC93+'День 4'!AC93+'День 3'!AC93+'День 2'!AC93+'День 1'!AC93+'День 1 '!AC93 -> 0.0000 | F93: 0.0000
A94: 75 | B94: фасоль консервированная | C94: кг | D94: ='День 1 '!AB94+'День 1'!AB94+'День 2'!AB94+'День 3'!AB94+'День 4'!AB94+' День 5'!AB94+'День 6'!AB94+'День 7'!AB94+'День 9'!AB94+'День 10'!AB94+'День 11'!AB94+'День 12'!AB94+'День 13'!AB94+'День 14'!AB94+'День 15'!AB94+'День 16'!AB94+'День 17'!AB94+'День 18'!AB94+'День 19'!AB94+'День 21'!AB94+'День 20'!Z94 -> 0.0000 | E94: ='День 21'!AC94+'День 20'!AA94+'День 19'!AC94+'День 18'!AC94+'День 17'!AC94+'День 16'!AC94+'День 15'!AC94+'День 14'!AC94+'День 13'!AC94+'День 12'!AC94+'День 11'!AC94+'День 10'!AC94+'День 9'!AC94+'День 7'!AC94+'День 6'!AC94+' День 5'!AC94+'День 4'!AC94+'День 3'!AC94+'День 2'!AC94+'День 1'!AC94+'День 1 '!AC94 -> 0.0000 | F94: 0.0000
A95: 76 | B95: икра кабачковая/баклажан | C95: кг | D95: ='День 1 '!AB95+'День 1'!AB95+'День 2'!AB95+'День 3'!AB95+'День 4'!AB95+' День 5'!AB95+'День 6'!AB95+'День 7'!AB95+'День 9'!AB95+'День 10'!AB95+'День 11'!AB95+'День 12'!AB95+'День 13'!AB95+'День 14'!AB95+'День 15'!AB95+'День 16'!AB95+'День 17'!AB95+'День 18'!AB95+'День 19'!AB95+'День 21'!AB95+'День 20'!Z95 -> 0.0000 | E95: ='День 21'!AC95+'День 20'!AA95+'День 19'!AC95+'День 18'!AC95+'День 17'!AC95+'День 16'!AC95+'День 15'!AC95+'День 14'!AC95+'День 13'!AC95+'День 12'!AC95+'День 11'!AC95+'День 10'!AC95+'День 9'!AC95+'День 7'!AC95+'День 6'!AC95+' День 5'!AC95+'День 4'!AC95+'День 3'!AC95+'День 2'!AC95+'День 1'!AC95+'День 1 '!AC95 -> 0.0000 | F95: 0.0000
B96: Кондитерские изделия
A97: 77 | B97: батончик злаковый | C97: шт | D97: ='День 1 '!AB97+'День 1'!AB97+'День 2'!AB97+'День 3'!AB97+'День 4'!AB97+' День 5'!AB97+'День 6'!AB97+'День 7'!AB97+'День 9'!AB97+'День 10'!AB97+'День 11'!AB97+'День 12'!AB97+'День 13'!AB97+'День 14'!AB97+'День 15'!AB97+'День 16'!AB97+'День 17'!AB97+'День 18'!AB97+'День 19'!AB97+'День 21'!AB97+'День 20'!Z97 -> 0.0000 | E97: ='День 21'!AC97+'День 20'!AA97+'День 19'!AC97+'День 18'!AC97+'День 17'!AC97+'День 16'!AC97+'День 15'!AC97+'День 14'!AC97+'День 13'!AC97+'День 12'!AC97+'День 11'!AC97+'День 10'!AC97+'День 9'!AC97+'День 7'!AC97+'День 6'!AC97+' День 5'!AC97+'День 4'!AC97+'День 3'!AC97+'День 2'!AC97+'День 1'!AC97+'День 1 '!AC97 -> 0.0000 | F97: 0.0000
A98: 78 | B98: крекер | C98: кг | D98: ='День 1 '!AB98+'День 1'!AB98+'День 2'!AB98+'День 3'!AB98+'День 4'!AB98+' День 5'!AB98+'День 6'!AB98+'День 7'!AB98+'День 9'!AB98+'День 10'!AB98+'День 11'!AB98+'День 12'!AB98+'День 13'!AB98+'День 14'!AB98+'День 15'!AB98+'День 16'!AB98+'День 17'!AB98+'День 18'!AB98+'День 19'!AB98+'День 21'!AB98+'День 20'!Z98 -> 0.0000 | E98: ='День 21'!AC98+'День 20'!AA98+'День 19'!AC98+'День 18'!AC98+'День 17'!AC98+'День 16'!AC98+'День 15'!AC98+'День 14'!AC98+'День 13'!AC98+'День 12'!AC98+'День 11'!AC98+'День 10'!AC98+'День 9'!AC98+'День 7'!AC98+'День 6'!AC98+' День 5'!AC98+'День 4'!AC98+'День 3'!AC98+'День 2'!AC98+'День 1'!AC98+'День 1 '!AC98 -> 0.0000 | F98: 0.0000
A99: 79 | B99: печенье | C99: кг | D99: ='День 1 '!AB99+'День 1'!AB99+'День 2'!AB99+'День 3'!AB99+'День 4'!AB99+' День 5'!AB99+'День 6'!AB99+'День 7'!AB99+'День 9'!AB99+'День 10'!AB99+'День 11'!AB99+'День 12'!AB99+'День 13'!AB99+'День 14'!AB99+'День 15'!AB99+'День 16'!AB99+'День 17'!AB99+'День 18'!AB99+'День 19'!AB99+'День 21'!AB99+'День 20'!Z99 -> 0.0000 | E99: ='День 21'!AC99+'День 20'!AA99+'День 19'!AC99+'День 18'!AC99+'День 17'!AC99+'День 16'!AC99+'День 15'!AC99+'День 14'!AC99+'День 13'!AC99+'День 12'!AC99+'День 11'!AC99+'День 10'!AC99+'День 9'!AC99+'День 7'!AC99+'День 6'!AC99+' День 5'!AC99+'День 4'!AC99+'День 3'!AC99+'День 2'!AC99+'День 1'!AC99+'День 1 '!AC99 -> 0.0000 | F99: 0.0000
A100: 80 | B100: вафли | C100: кг | D100: ='День 1 '!AB100+'День 1'!AB100+'День 2'!AB100+'День 3'!AB100+'День 4'!AB100+' День 5'!AB100+'День 6'!AB100+'День 7'!AB100+'День 9'!AB100+'День 10'!AB100+'День 11'!AB100+'День 12'!AB100+'День 13'!AB100+'День 14'!AB100+'День 15'!AB100+'День 16'!AB100+'День 17'!AB100+'День 18'!AB100+'День 19'!AB100+'День 21'!AB100+'День 20'!Z100 -> 0.0000 | E100: ='День 21'!AC100+'День 20'!AA100+'День 19'!AC100+'День 18'!AC100+'День 17'!AC100+'День 16'!AC100+'День 15'!AC100+'День 14'!AC100+'День 13'!AC100+'День 12'!AC100+'День 11'!AC100+'День 10'!AC100+'День 9'!AC100+'День 7'!AC100+'День 6'!AC100+' День 5'!AC100+'День 4'!AC100+'День 3'!AC100+'День 2'!AC100+'День 1'!AC100+'День 1 '!AC100 -> 0.0000 | F100: 0.0000
B101: Сок
A102: 81 | B102: сок в ассортименте разливной | C102: л | D102: ='День 1 '!AB102+'День 1'!AB102+'День 2'!AB102+'День 3'!AB102+'День 4'!AB102+' День 5'!AB102+'День 6'!AB102+'День 7'!AB102+'День 9'!AB102+'День 10'!AB102+'День 11'!AB102+'День 12'!AB102+'День 13'!AB102+'День 14'!AB102+'День 15'!AB102+'День 16'!AB102+'День 17'!AB102+'День 18'!AB102+'День 19'!AB102+'День 21'!AB102+'День 20'!Z102 -> 0.0000 | E102: ='День 21'!AC102+'День 20'!AA102+'День 19'!AC102+'День 18'!AC102+'День 17'!AC102+'День 16'!AC102+'День 15'!AC102+'День 14'!AC102+'День 13'!AC102+'День 12'!AC102+'День 11'!AC102+'День 10'!AC102+'День 9'!AC102+'День 7'!AC102+'День 6'!AC102+' День 5'!AC102+'День 4'!AC102+'День 3'!AC102+'День 2'!AC102+'День 1'!AC102+'День 1 '!AC102 -> 0.0000 | F102: 0.0000
A103: 82 | B103: сок в индувид.упаковке (0,2л) | C103: л | D103: ='День 1 '!AB103+'День 1'!AB103+'День 2'!AB103+'День 3'!AB103+'День 4'!AB103+' День 5'!AB103+'День 6'!AB103+'День 7'!AB103+'День 9'!AB103+'День 10'!AB103+'День 11'!AB103+'День 12'!AB103+'День 13'!AB103+'День 14'!AB103+'День 15'!AB103+'День 16'!AB103+'День 17'!AB103+'День 18'!AB103+'День 19'!AB103+'День 21'!AB103+'День 20'!Z103 -> 0.0000 | E103: ='День 21'!AC103+'День 20'!AA103+'День 19'!AC103+'День 18'!AC103+'День 17'!AC103+'День 16'!AC103+'День 15'!AC103+'День 14'!AC103+'День 13'!AC103+'День 12'!AC103+'День 11'!AC103+'День 10'!AC103+'День 9'!AC103+'День 7'!AC103+'День 6'!AC103+' День 5'!AC103+'День 4'!AC103+'День 3'!AC103+'День 2'!AC103+'День 1'!AC103+'День 1 '!AC103 -> 0.0000 | F103: 0.0000
B104: Специи
A105: 83 | B105: дрожжи сухие | C105: кг | D105: ='День 1 '!AB105+'День 1'!AB105+'День 2'!AB105+'День 3'!AB105+'День 4'!AB105+' День 5'!AB105+'День 6'!AB105+'День 7'!AB105+'День 9'!AB105+'День 10'!AB105+'День 11'!AB105+'День 12'!AB105+'День 13'!AB105+'День 14'!AB105+'День 15'!AB105+'День 16'!AB105+'День 17'!AB105+'День 18'!AB105+'День 19'!AB105+'День 21'!AB105+'День 20'!Z105 -> 0.0000 | E105: ='День 21'!AC105+'День 20'!AA105+'День 19'!AC105+'День 18'!AC105+'День 17'!AC105+'День 16'!AC105+'День 15'!AC105+'День 14'!AC105+'День 13'!AC105+'День 12'!AC105+'День 11'!AC105+'День 10'!AC105+'День 9'!AC105+'День 7'!AC105+'День 6'!AC105+' День 5'!AC105+'День 4'!AC105+'День 3'!AC105+'День 2'!AC105+'День 1'!AC105+'День 1 '!AC105 -> 0.0000 | F105: 0.0000
A106: 84 | B106: кислота лимонная | C106: кг | D106: ='День 1 '!AB106+'День 1'!AB106+'День 2'!AB106+'День 3'!AB106+'День 4'!AB106+' День 5'!AB106+'День 6'!AB106+'День 7'!AB106+'День 9'!AB106+'День 10'!AB106+'День 11'!AB106+'День 12'!AB106+'День 13'!AB106+'День 14'!AB106+'День 15'!AB106+'День 16'!AB106+'День 17'!AB106+'День 18'!AB106+'День 19'!AB106+'День 21'!AB106+'День 20'!Z106 -> 0.0000 | E106: ='День 21'!AC106+'День 20'!AA106+'День 19'!AC106+'День 18'!AC106+'День 17'!AC106+'День 16'!AC106+'День 15'!AC106+'День 14'!AC106+'День 13'!AC106+'День 12'!AC106+'День 11'!AC106+'День 10'!AC106+'День 9'!AC106+'День 7'!AC106+'День 6'!AC106+' День 5'!AC106+'День 4'!AC106+'День 3'!AC106+'День 2'!AC106+'День 1'!AC106+'День 1 '!AC106 -> 0.0000 | F106: 0.0000
A107: 85 | B107: клетчатка | C107: кг | D107: ='День 1 '!AB107+'День 1'!AB107+'День 2'!AB107+'День 3'!AB107+'День 4'!AB107+' День 5'!AB107+'День 6'!AB107+'День 7'!AB107+'День 9'!AB107+'День 10'!AB107+'День 11'!AB107+'День 12'!AB107+'День 13'!AB107+'День 14'!AB107+'День 15'!AB107+'День 16'!AB107+'День 17'!AB107+'День 18'!AB107+'День 19'!AB107+'День 21'!AB107+'День 20'!Z107 -> 0.0000 | E107: ='День 21'!AC107+'День 20'!AA107+'День 19'!AC107+'День 18'!AC107+'День 17'!AC107+'День 16'!AC107+'День 15'!AC107+'День 14'!AC107+'День 13'!AC107+'День 12'!AC107+'День 11'!AC107+'День 10'!AC107+'День 9'!AC107+'День 7'!AC107+'День 6'!AC107+' День 5'!AC107+'День 4'!AC107+'День 3'!AC107+'День 2'!AC107+'День 1'!AC107+'День 1 '!AC107 -> 0.0000 | F107: 0.0000
B108: Яйцо
A109: 86 | B109: яйцо куриное | C109: кг | D109: ='День 1 '!AB109+'День 1'!AB109+'День 2'!AB109+'День 3'!AB109+'День 4'!AB109+' День 5'!AB109+'День 6'!AB109+'День 7'!AB109+'День 9'!AB109+'День 10'!AB109+'День 11'!AB109+'День 12'!AB109+'День 13'!AB109+'День 14'!AB109+'День 15'!AB109+'День 16'!AB109+'День 17'!AB109+'День 18'!AB109+'День 19'!AB109+'День 21'!AB109+'День 20'!Z109 -> 0.0000 | E109: ='День 21'!AC109+'День 20'!AA109+'День 19'!AC109+'День 18'!AC109+'День 17'!AC109+'День 16'!AC109+'День 15'!AC109+'День 14'!AC109+'День 13'!AC109+'День 12'!AC109+'День 11'!AC109+'День 10'!AC109+'День 9'!AC109+'День 7'!AC109+'День 6'!AC109+' День 5'!AC109+'День 4'!AC109+'День 3'!AC109+'День 2'!AC109+'День 1'!AC109+'День 1 '!AC109 -> 2.6060 | F109: 2.6060
B110: яйцо куриное В ШТУКАХ!!! | C110: 0.048 | D110: =D109/C110 -> 0 | E110: =E109/C110 -> 54 | F110: =D110+E110 -> 54
